Workbook

Sheet To Do (hidden)
B3: # | C3: Onderdeel | D3: Uitleg | E3: Status | F3: Comments
B4: 1 | C4: Kapitaalgoed Motor Selecteren | D4: Het lijkt er nu op dat er onderscheid gemaakt gaat worden tussen type brandstocellen op het gebied van kapitaalgoederen. Dit zit nu niet slim in de lookup. Hier dus nog naar kijken. | E4: Gesloten
B5: 2 | C5: NOx & PM Emissies | D5: Ik heb nu een lookup gebouwd voor NOx en PM, maar deze halen alleen de gr/kWh waarde naar boven. Dit moet nog worden doorberekend. | E5: Gesloten
B6: 3 | C6: Calculation Setup V2 | D6: Calculation Setup Inladen & Invullen (overschrijven waardes) | E6: Gesloten
B7: 4 | C7: Referenties Selecteren V2 | D7: Opsturen Calc Setup Stijn (voor Check) | E7: Gesloten
B8: 5 | C8: NOx & PM Emissie Tabellen | D8: Stijn Check op Combinaties (o.b.v. PM/NOx) | E8: Gesloten
B9: 6 | C9: Brandstofcel Waterstof | D9: Brandstofcel Waterstof (toepassen) voor alle brandstofcellen. | E9: Gesloten
B10: 7 | C10: AdBlue Tabel | D10: Adblue Tabel Opsturen | E10: Gesloten
B11: 8 | C11: AdBlue Toevoegen | D11: Ad Blue Mee Modelleren | E11: Gesloten
B12: 9 | C12: PM & NOx tabellen opsturen | D12: PM & NOx tabellen Opsturen | E12: Gesloten
B13: 10 | C13: Arbeid Tabel | D13: Arbeid Tabel Check (kloppen deze waardes) - Combinaties - Schaling Energiedragers | E13: Gesloten
B14: 11 | C14: Motor / Accu / Brandsstofcel | D14: Type Motor (Electromotor/Brandstofcel) moet aanvullen en niet of of | E14: Gesloten
B15: 12 | C15: Milieuprofielen Opmaken | D15: Losse Results (Milieuprofielen) | E15: Gesloten
B16: 13 | C16: Dashboard Results met Grafieken | D16: Dashboard Result Overzicht met Grafieken | E16: Gesloten
B17: 14 | C17: Omrekening per MJ | D17: Omrekening per MJ | E17: Gesloten
B18: 15 | C18: Diesel Elektrisch Combinatie | D18: Combinatie Toevoegen | E18: In Behandeling
B19: 16 | C19: Groene Mix SMR Toevoegen (Waterstof) | D19: Nieuwe Combinatie van Stijn | E19: Gesloten
B20: 17 | C20: Hotspot | D20: Uitdraaien van Analyse voor Stijn. | E20: Gesloten
B21: 18 | C21: Calculation Setup V3 | D21: Calculation Setup Inladen & Invullen (overschrijven waardes) | E21: Gesloten
B22: 19 | C22: Referenties Selecteren V3 | D22: Opsturen Calc Setup Stijn (voor Check) | E22: Gesloten
B23: 20 | C23: Electra/Waterstof Kapitaalgoederen Etc. | D23: Bespreken met Stijn na afronden inventarisatie | E23: Gesloten
B24: 21 | C24: Tabellen PM, NOx & AdBlue Stijn | D24: Stijn gaat mij updates geven | E24: Gesloten
B25: 22 | C25: Blends / Projectberekening | D25: Klanten kunnen nu van verschillende brandstoftypes een milieuprofiel uitdraaien. Daarmee kunne ze ook hun eigen blends uitrekenen. Wil de klant echt een blend maken (bijv. 40% Diesel en 60% MGO, of 200 liter Diesel en 300 liter MGO) dan zullen ze dit nu handmatig moeten doen buiten de tool. De reden hiervoor, is, omdat deze functie inbouwen een projectberekeningsfunctie omvat. Dit is niet in scope, maar kan nog in scope komen. | E25: In Behandeling
B26: 23 | C26: Biogeen Methanol Emissies | D26: Er moeten de mogenlijkheid komen om te onderscheiden tussen methanol en bio-methanol in de context van emissies | E26: Gesloten
B27: 24 | C27: Nieuw Wind Mix Referentie Toevoegen | E27: Gesloten
B28: 25 | C28: AdBlue + Opslag AdBlue | E28: Gesloten
B29: 26 | C29: Waterstof (Zijn alle Opties Gedekt) | E29: Gesloten
B30: 27 | C30: Elec Wind Mix Selectie | E30: Gesloten
B31: 28 | C31: PM & NOx Lookup | D31: Bio-Methanol toevoegen. Daarbij moeten tabellen worden geupdate. | E31: Gesloten
B32: 29 | C32: Emissielimieten Checken | D32: Bij invoer kaarten ff nalopen of er geen gekke dingen gebeuren, zoals brandstoffen die geen PM of NOx hebben (=0) | E32: Gesloten
B33: 30 | C33: Omrekening naar Liter (en kWh) | D33: Nog omrekening voor de ON'ers | E33: Gesloten
B34: 31 | C34: Scope Controle (Tabel 1 Rapport Stijn) | E34: Gesloten
B35: 32 | C35: GTL Verwijderen als TIER optie | E35: Gesloten
B36: 33 | C36: Stage V IWP/IWA & NRE Onderscheid in Record Select | E36: Gesloten
B37: 34 | C37: Verschil Waterstof Performance | D37: Is er een verschil tussen geleverde arbeid uit vloeibare of gasvormige waterstof wat ik nu niet in de tool heb zitten? | E37: Gesloten
B38: 35 | C38: Resultaten Updaten (met Cap. Goods & AdBlue etc.) | E38: Gesloten
B39: 36 | C39: CCR 0 Verder Fixen | E39: Gesloten
B40: 37 | C40: Uitleg TIER | D40: Beter uitleggen dat standaard wordt uitgegaan van verbarndingmotor (dus bij TIER en CCR en Stage) | E40: Gesloten
B41: 38 | C41: AdBlue. Updaten Waarden | D41: In Excel Combinaties Baggeren en Transport moet AdBlue worden aangepast. Stijn heeft update gedaan moet ook in tool. | E41: Gesloten
B42: 39 | C42: AdBlue Klassen | D42: AdBlue is alleen voor Stage V en Tier III van toepassing | E42: Gesloten
B43: 40 | C43: Ammoniak SMR | E43: In Behandeling
B44: 41 | C44: Characterisation EN15804+A1 | D44: Deze moeten we nog uitdraaien | E44: Gesloten
B45: 42 | C45: Diesel naam (ULSD) | D45: Naam energiedrager naar Diesel (ULSD) | E45: Gesloten
B46: 43 | C46: Hotspot | D46: Momenteel alleen voor set;A2, moet dit ook doen voor set A1. | E46: Gesloten
B47: 44 | C47: Tabblad met resultaten (dom) | D47: stijn levert figuren aan, deze moeten we mooi weergeven (Zoet en Zout). De totalenper F.E. en de MKI poer GJ (MKIA1 en MKIA2) | E47: Gesloten
B48: 45 | C48: Versleutelen en delen met de klant | D48: Delen met T.C. | E48: In Behandeling
B49: 46 | C49: E-Methanol (Biogeen) | D49: Toevoegen van E-methanol o.b.v. biogene CO2 | E49: Gesloten
B50: 47 | C50: Functional Unit / Functionele Eenheid | D50: Er is inconsistentie gevonden in de tool | E50: Gesloten
B51: 48 | C51: NOx en PM in g/kWh | D51: Dit aanpassen in invoer | E51: Gesloten
B52: 49 | C52: Bug in Hotspot | D52: Milieuprofiel 5 lijkt de waarden van 1 te geven voor brandstofcel | E52: Gesloten
B53: 50 | C53: Toevoegen E-Methanols | E53: Gesloten
B54: 51 | C54: Bio-Methanol naamgeving | E54: Gesloten
B55: 52 | C55: Resultaten Updaten Zout (Stijn) | E55: Gesloten
B56: 53 | C56: Tier I & II -> Tier I / II | D56: Tier II naam aanpassen en Tier I kan er uit. | E56: Gesloten
B57: 54 | C57: ULEV Toevoegen | D57: Alle schepen kunnen ULEV hebben en emissielimieten van Stage V IWA zijn van toepassing. Zijn er aantal energiedragers zoals Ammoniak. Emissielimieten even uit het rapport halen. | E57: Gesloten
B58: 55 | C58: CNG/LNG zit geen verschil in Tier II, III en ULEV (geld ook voor Bio-LNG en Bio-CNG) | D58: De vraag is hier of de tool het onderscheid blijft of clustert. | E58: Gesloten
B59: 56 | C59: E-Methanol & Seynthetische Ammoniak | D59: Allebei updaten met H2 wind mix in naam. | E59: Gesloten
B60: 57 | E60: Open
B61: 58 | E61: Open
B62: 59 | E62: Open
B63: 60 | E63: Open

Sheet Legenda
C3: EcoReview Scheepsbrandstoffen Rekentool
C4: Welkom bij de EcoReview Scheepsbrandstoffen Rekentool Versie 12.0 ontwikkeld door Roel van Oosterhout en Stijn Mulder van EcoReview NL B.V. Deze tool biedt de mogenlijkheid om milieuprofielen te genereren van verschillende scheepsbrandstof combinaties voor werkschepen (baggeren). Daarnaast kunnen de resultaten uit deze tool worden gebruikt voor het verkrijgen van inzicht in de oorsprong van milieu-impact. Alle achterliggende rekenstappen, datapunten en modellering van de basisprocessen worden beschreven in de bijbehorende cat.3. LCA rapportage. Toepassing Deze milieuprofielen kunnen vervolgens gebruikt worden om: - Energiedrager varianten te vergelijken t.b.v. inversteringsbeslissingen. - Milieuprofielen te generen t.b.v. het uitrekenen van een project totaal (blends kunnen meegenomen worden door de mileuprofielen te middelen, dit is niet mogelijk in deze excel tool). - Diverse motoren op één schip te modelleren welke allen andere Nox en PM emissies hebben. Deze tool genereert milieu-impact data zowel voor impactcategorien uit EN15804+A1 als uit EN15804+A2. Ook voor beide sets wordt een MKI berekend. EN15804+A1: NMD 3.9 + EcoInvent 3.6 - ECI SBK Single Score EN15804+A2: NMD 3.9 + EcoInvent 3.9.1 - EF 3.1 Weighting Set De kern van de tool is het werkblad "Invoerblad". Op dit werkblad wordt alle invoer gedaan dat in andere paginas lijd tot resultaten. Ter bevordering van de navigatie van deze tool is onderstaand een legenda weergegeven welke de verschillende werkbladen toelicht.
C7: Legenda
C8: Onderstaand zijn de verschillende werkbladen van deze tool toegelicht, welke onderaan het document weergegeven worden.
C9: Onderdeel | D9: Omschrijving
C10: Invoerblad | D10: Het blad waar alle invoer geleverd wordt voor het genereren van milieuprofielen. Volg deze pagina stap voor stap om resultaten voor de tool te genereren.
C11: MKI Resultaten | D11: Weergeeft de milieukosten indicator (MKI) per levencyclusmodules A1-A3 + A4 + B1. Geeft inzicht in zwaartepunten en levert directe feedback aan de voorbladpagina (rij 1-20).
C12: Hotspot | D12: Weergeeft in detaill welke onderdelen bijdragen aan de totale MKI. Deze pagina is hoofdzakelijk bedoeld voor het leveren van inzichten.
C13: Milieuprofielen | D13: In dit onderdeel worden de volledige milieuprofielen weergegeven per ton brandstof en per kWh elektriciteit.
C14: MP per Liter | D14: In dit onderdeel worden de volledige milieuprofielen weergegeven per liter brandstof en per kWh elektriciteit.
C15: MP per GJ | D15: In dit onderdeel worden de volledige milieuprofielen weergegeven per GJ geleverde energie.
C16: Figuren Werken Zoet | D16: In dit onderdeel worden de resultaten van alle combinaties in staafdiagrammen weergegeven, voor MKI:A1 en MKI:A2 per functionele eenheid en per GJ-geleverde arbeid.
C17: Figuren Werken Zout | D17: In dit onderdeel worden de resultaten van alle combinaties in figuren weergegeven, voor MKI:A1 en MKI:A2 per functionele eenheid en per GJ-geleverde arbeid.

Sheet Modellering Combinaties (hidden)
C2: Modellering
C3: Onderstaande tabellen zijn overgenomen uit de bijbehorende cat.3. LCA rapportage. Deze tabellen geven weer hoe alle combinaties gemodeleerd zijn. De kolommen geven de diverse basisprocessen weer, de modellering van deze basisprocessen staat tevens beschreven in het bijbehorende cat.3 .rapport.
C5: Tabel 55: Hoeveelheid basisprocessen per combinatie, werken zout.
C6: Aandrijving | D6: Energiedrager | F6: Energiedragers | J6: Gebruiksprofiel | N6: Kapitaalgoederen
F7: Energiedager (A1-A3) | G7: Energiedager (A4) | H7: AdBlue (A1-A3)1,2 | I7: Adblue (A4) 1,2 | J7: Verbrandingsemissies | K7: Emissies AdBlue1,2 | L7: PM | M7: NOx | N7: Casco Schip | O7: Verbrandingsmotor | P7: Elektrische aandrijving | Q7: Accu | R7: Brandstofcel
E8: Eenheid | F8: ton | G8: ton | H8: kg | I8: kg | J8: ton | K8: kg | L8: Kg | M8: kg | N8: ton | O8: ton | P8: p | Q8: kWh | R8: kW
C9: Verbrandingsmotor | D9: Diesel | E9: ton | F9: 1 | G9: 1 | H9: 66.6 | I9: 66.6 | J9: 1 | K9: 66.6 | L9: variabel TIER-klassen / ULEV | M9: variabel TIER-klassen / ULEV | N9: 1.01 | O9: 0.00113 | P9: N/A
D10: HFO | E10: ton | F10: 1 | G10: 1 | H10: 62.63 | I10: 62.63 | J10: 1 | K10: 62.63 | N10: 0.95 | O10: 0.00106
D11: GTL | E11: ton | F11: 1 | G11: 1 | H11: 68.04 | I11: 68.04 | J11: 1 | K11: 68.04 | N11: 1.03 | O11: 0.00115
D12: MGO | E12: ton | F12: 1 | G12: 1 | H12: 65.87 | I12: 65.87 | J12: 1 | K12: 65.87 | N12: 1 | O12: 0.00111
D13: LNG | E13: ton | F13: 1 | G13: 1 | H13: 0 | I13: 0 | J13: 1 | K13: 0 | N13: 1.15 | O13: 0.00128
D14: Bio-LNG | E14: ton | F14: 1 | G14: 1 | H14: 0 | I14: 0 | J14: 1 | K14: 0 | N14: 1.15 | O14: 0.00128
D15: CNG | E15: ton | F15: 1 | G15: 1 | H15: 0 | I15: 0 | J15: 1 | K15: 0 | N15: 1.09 | O15: 0.00121
D16: Bio-CNG | E16: ton | F16: 1 | G16: 1 | H16: 0 | I16: 0 | J16: 1 | K16: 0 | N16: 1.09 | O16: 0.00121
D17: HVO | E17: ton | F17: 1 | G17: 1 | H17: 68.04 | I17: 68.04 | J17: 1 | K17: 68.04 | N17: 1.03 | O17: 0.00115
D18: FAME | E18: ton | F18: 1 | G18: 1 | H18: 57.52 | I18: 57.52 | J18: 1 | K18: 57.52 | N18: 0.87 | O18: 0.000972
D19: Ammoniak (3x) | E19: ton | F19: 1 | G19: 1 | H19: 28.76 | I19: 28.76 | J19: 1 | K19: 28.76 | N19: 0.44 | O19: 0.000486
D20: Waterstof (vloeibaar) (5x) | E20: ton | F20: 1 | G20: 1 | H20: 185.56 | I20: 185.56 | J20: 1 | K20: 185.56 | N20: 2.82 | O20: 0.00314
D21: Waterstof (gas) (5x) | E21: ton | F21: 1 | G21: 1 | H21: 185.56 | I21: 185.56 | J21: 1 | K21: 185.56 | N21: 2.82 | O21: 0.00314
D22: Methanol (3x) | E22: ton | F22: 1 | G22: 1 | H22: 30,77 / 2 = 15,4 | I22: 15.39 | J22: 1 | K22: 15.39 | N22: 0.47 | O22: 0.00052
C23: Brandstofcel | D23: Ammoniak (2x) | E23: ton | F23: 1 | G23: 1 | H23: 0 | I23: 0 | J23: 1 | K23: 0 | L23: 0 | M23: 0 | N23: 0.46 | O23: N/A | P23: 0.000457 | Q23: 1.35 | R23: 0.98
D24: Waterstof Vloeibaar (5x) | E24: ton | F24: 1 | G24: 1 | H24: 0 | I24: 0 | J24: 1 | K24: 0 | L24: 0 | M24: 0 | N24: 2.94 | P24: 0.00295 | Q24: 8.7 | R24: 6.33
D25: Waterstof Gas (5x) | E25: ton | F25: 1 | G25: 1 | H25: 0 | I25: 0 | J25: 1 | K25: 0 | L25: 0 | M25: 0 | N25: 2.94 | P25: 0.00295 | Q25: 8.7 | R25: 6.33
D26: Methanol (3x) | E26: ton | F26: 1 | G26: 1 | H26: 0 | I26: 0 | J26: 1 | K26: 0 | L26: 0 | M26: 0 | N26: 0.49 | P26: 0.000489 | Q26: 1.44 | R26: 1.05
C28: 1AdBlue is alleen relevant voor TIER III en ULEV motoren. Uitgerekend voor Diesel (Tabel 56) en geschaald naar overige energiedragers middels energie-inhoud. Voor Methanol gerekend met de helft aangezien hier minder AdBlue benodigd (2,5% i.p.v. 5%).
C29: 2 Voor LNG, bio-LNG, CNG en Bio-CNG is bij TIER III geen AdBlue nodig om de gerapporteerde NOx emissies te behalen.
C31: Tabel 58: Hoeveelheid basisprocessen per combinatie, werken zoet.
C32: Aandrijving | D32: Energiedrager | F32: Energiedragers | J32: Gebruiksprofiel | N32: Kapitaalgoederen
F33: Energiedager (A1-A3) | G33: Energiedager (A4) | H33: AdBlue (A1-A3)* | I33: Adblue (A4)* | J33: Verbrandingsemissies | K33: Emissies AdBlue* | L33: PM | M33: Nox | N33: Casco Schip | O33: Verbrandingsmotor | P33: Elektrische aadnrijving | Q33: Accu | R33: Brandstofcel
E34: Eenheid | F34: ton | G34: ton | H34: kg | I34: kg | J34: ton | K34: kg | L34: kg | M34: kg | N34: ton | O34: ton | P34: p | Q34: kWh | R34: kW
C35: Verbrandingsmotor | D35: Diesel | E35: ton | F35: 1 | G35: 1 | H35: 66.65 | I35: 66.65 | J35: 1 | K35: 66.6 | L35: variabel CCR-klassen | M35: variabel CCR-klassen | N35: 1 | O35: 0.00157 | P35: N/A
D36: HFO | E36: ton | F36: N/A
D37: GTL | E37: ton | F37: 1 | G37: 1 | H37: 68.04 | I37: 68.04 | J37: 1 | K37: 68.04 | N37: 1.02 | O37: 0.00161
D38: MGO | E38: ton | F38: N/A
D39: LNG | E39: ton | F39: 1 | G39: 1 | H39: 75.77 | I39: 75.77 | J39: 1 | K39: 75.77 | N39: 1.14 | O39: 0.00179
D40: Bio-LNG | E40: ton | F40: 1 | G40: 1 | H40: 75.77 | I40: 75.77 | J40: 1 | K40: 75.77 | N40: 1.14 | O40: 0.00179
D41: CNG | E41: ton | F41: 1 | G41: 1 | H41: 71.59 | I41: 71.59 | J41: 1 | K41: 71.59 | N41: 1.07 | O41: 0.00169
D42: Bio-CNG | E42: ton | F42: 1 | G42: 1 | H42: 71.59 | I42: 71.59 | J42: 1 | K42: 71.59 | N42: 1.07 | O42: 0.00169
D43: HVO | E43: ton | F43: 1 | G43: 1 | H43: 68.04 | I43: 68.04 | J43: 1 | K43: 68.04 | N43: 1.02 | O43: 0.00161
D44: FAME | E44: ton | F44: 1 | G44: 1 | H44: 57.52 | I44: 57.52 | J44: 1 | K44: 57.52 | N44: 0.86 | O44: 0.00136
D45: Ammoniak (3x) | E45: ton | F45: N/A
D46: Waterstof (vloeibaar) (5x) | E46: ton | F46: 1 | G46: 1 | H46: 185.56 | I46: 185.56 | J46: 1 | K46: 185.56 | L46: 0 | M46: 0 | N46: 2.78 | O46: 0.00438
D47: Waterstof (gas) (5x) | E47: ton | F47: 1 | G47: 1 | H47: 185.56 | I47: 185.56 | J47: 1 | K47: 185.56 | L47: 0 | M47: 0 | N47: 2.78 | O47: 0.00438
D48: Methanol (3x) | E48: ton | F48: 1 | G48: 1 | H48: 30,77 / 2 = 15,4 | I48: 15.4 | J48: 1 | K48: 15.4 | L48: 0.08 | M48: 0.06 | N48: 0.46 | O48: 0.000727
C49: Brandstofcel | D49: Ammoniak (2x) | E49: ton | F49: N/A | O49: N/A | P49: 0.000719 | Q49: 1.35 | R49: 0.98
D50: Waterstof Vloeibaar (5x) | E50: ton | F50: 1 | G50: 1 | H50: 0 | I50: 0 | J50: 1 | K50: 0 | L50: 0 | M50: 0 | N50: 3.27 | P50: 0.00464 | Q50: 8.7 | R50: 6.33
D51: Waterstof Gas (5x) | E51: ton | F51: 1 | G51: 1 | H51: 0 | I51: 0 | J51: 1 | K51: 0 | L51: 0 | M51: 0 | N51: 3.27 | P51: 0.00464 | Q51: 8.7 | R51: 6.33
D52: Methanol (3x) | E52: ton | F52: 1 | G52: 1 | H52: 0 | I52: 0 | J52: 1 | K52: 0 | L52: 0 | M52: 0 | N52: 0.54 | P52: 0.000769 | Q52: 1.44 | R52: 1.05
C53: Accu Elektrisch | D53: Elektrisch | E53: kWh (input) | F53: 1 | G53: 1 | H53: N/A | N53: 0.00016 | P53: 2.26e-07 | Q53: 0.0005 | R53: N/A
C56: 1AdBlue is alleen relevant voor Stage V motoren.

Sheet Invoerblad
C24: EcoReview Scheepsbrandstoffen Rekentool
C25: Deze tool biedt de mogenlijk om milieuprofielen te genereren van verschillende scheepsbrandstof combinaties voor werkschepen (baggeren). Op deze pagina vind de invoer van verschillende milieuprofielen plaats. Het genereren van 1 tot 5 milieuprofielen kan worden gedaan door de stappen 1 t/m 5 op deze pagina door te lopen. Toepassing Deze milieuprofielen kunnen vervolgens gebruikt worden om: - Energiedrager varianten te vergelijken t.b.v. inversteringsbeslissingen. - Milieuprofielen te generen t.b.v. het uitrekenen van een project totaal (blends kunnen meegenomen worden door de mileuprofielen te middelen, dit is niet mogelijk in deze excel tool). - Diverse motoren op één schip te modelleren welke allen andere NOx en PM emissies hebben. Invoer Alle lichtgrijze invoervelden, met uitzondering van beschrijvende teksten bij de verschillende onderdelen, zijn bedoeld voor de gebruiker van deze tool en dienen ingevuld te worden. Lichtgroene invoervelden weergeven relevante informatie o.b.v geleverde input. De input op deze pagina resulteert uiteindelijk in output in andere werkbladen. Op deze pagina kan real-time informatie van impact worden verkregen door het +/- icoon te selecteren in rij 21 (links weergegeven in het Excel venster).
C28: 1. Definitie Milieuprofiel
C29: Geef in dit onderdeel relevantie informatie op. Onderdeel en 1.1 & 1.2 zijn noodzakelijk.
C30: Onderdeel | D30: Definitie
C31: 1.1 Naam Schip | D31: Voorbeeld: Boot 200 KN
C32: 1.2 Toepassingsgebied | D32: Zeevaart
C33: 1.3 Verdieping op Toepassing | D33: Voorbeeld: Vaart rond op de Noordzee voor baggeren zone KZ2.
C34: 1.4 Meer Informatie
C35: 1.5 Definitie Volledig? | D35: =IF(COUNTIF(D31:D32,"")=0,"JA","NEE") -> JA
C40: 2. Definitie Scheepsmotoren & Brandstoffen
C41: In dit onderdeel worden de verschillende milieuprofielen gedefineerd. Deze tool geeft de mogenlijkheid om 5 verschillende milieuprofielen te definieren. In deze tool zijn selecties afhankelijk van eerder gemaakte keuzes. Zo kan in dit onderdeel geen energiedrager worden gekozen tot dat het toepassingsgebied (zeevaart/binnenvaart) in het vorige onderdeel is gekozen. Om een volledig milieuprofiel te kunnen genereren met deze tool moeten alle onderdelen ingevuld worden (op volgorde). Indien dit niet gebeurt krijg je een foutmelding te zien in rood (onderaan in het onderdeel). De in te vullen onderdelen zijn: 2.1 Naam Motor: Definieer hier de naam van het mileuprofiel 2.2 Energiedrager: Geef hier de energiedrager op (brandstof of elektriciteit). Energiedragers kunnen worden geselecteerd d.m.v. het drop-down menu. 2.3 Verdieping Energiedrager: Sommige energiedragers worden op verschillende manieren gewonnen (bijv. waterstof/elektriciteit/methanol). Het type winning heeft effect op milieu impact. Gelieve hier het juist type winning te selecteren. Indien enkel een algemeen profiel beschikbaar is dient deze geselecteerd te worden. Selectie kan worden gedaan d.m.v. het drop-down menu. 2.4 Classificatie Motor: Geef hier de classificatie op. Voor verbrandingsmotoren zijn verschillende classificaties beschikbaar (dit zijn de TIER, CCR & Stage klassen). Voor brandstofcel en elektromotoren is slechts 1 classificatie beschikbaar. Deze zijn aangegeven met brandstofcel en elektromotor. 2.5 Definitie Volledig: Dit onderdeel controleert of alle waarden ingevuld zijn. Zodra overal een groene "Ja" weergegeven wordt kunt U door naar het volgende onderdeel.
C42: Onderdeel | D42: Milieuprofiel 1 | E42: Milieuprofiel 2 | F42: Milieuprofiel 3 | G42: Milieuprofiel 4 | H42: Milieuprofiel 5
C43: 2.1 Naam Milieuprofiel | D43: Milieuprofiel 1 | E43: Milieuprofiel 2 | F43: Milieuprofiel 3 | G43: Milieuprofiel 4 | H43: Milieuprofiel 5
C44: 2.2 Energiedrager | D44: Diesel (ULSD)
C45: 2.3 Verdieping Energiedrager | D45: Diesel, Algemeen
C46: 2.4 Classificatie Motor | D46: ULEV (Stage V IWP/IWA)
C47: 2.5 Definitie Volledig? | D47: =_xlfn.IFS(COUNTBLANK(D43:D46)=0,"JA",COUNTBLANK(D43:D46)=4,"",COUNTBLANK(D43:D46)=1,"NEE",COUNTBLANK(D43:D46)=2,"NEE",COUNTBLANK(D43:D46)=3,"NEE") -> JA | E47: =_xlfn.IFS(COUNTBLANK(E43:E46)=0,"JA",COUNTBLANK(E43:E46)=4,"",COUNTBLANK(E43:E46)=1,"NEE",COUNTBLANK(E43:E46)=2,"NEE",COUNTBLANK(E43:E46)=3,"NEE") -> NEE | F47: =_xlfn.IFS(COUNTBLANK(F43:F46)=0,"JA",COUNTBLANK(F43:F46)=4,"",COUNTBLANK(F43:F46)=1,"NEE",COUNTBLANK(F43:F46)=2,"NEE",COUNTBLANK(F43:F46)=3,"NEE") -> NEE | G47: =_xlfn.IFS(COUNTBLANK(G43:G46)=0,"JA",COUNTBLANK(G43:G46)=4,"",COUNTBLANK(G43:G46)=1,"NEE",COUNTBLANK(G43:G46)=2,"NEE",COUNTBLANK(G43:G46)=3,"NEE") -> NEE | H47: =_xlfn.IFS(COUNTBLANK(H43:H46)=0,"JA",COUNTBLANK(H43:H46)=4,"",COUNTBLANK(H43:H46)=1,"NEE",COUNTBLANK(H43:H46)=2,"NEE",COUNTBLANK(H43:H46)=3,"NEE") -> NEE
C52: 3. Informatie o.b.v. Definitie
C53: De volgende data zal worden aangehouden aan de hand van de definitie in sectie 2.
C54: Onderdeel | D54: Milieuprofiel 1 | E54: Milieuprofiel 2 | F54: Milieuprofiel 3 | G54: Milieuprofiel 4 | H54: Milieuprofiel 5
C55: 3.1 Functionele Eenheid | D55: =_xlfn.XLOOKUP(D$44,Emi_Short[Brandstof],Emi_Short[Unit],"",0) -> ton | E55: =_xlfn.XLOOKUP(E$44,Emi_Short[Brandstof],Emi_Short[Unit],"",0) ->  | F55: =_xlfn.XLOOKUP(F$44,Emi_Short[Brandstof],Emi_Short[Unit],"",0) ->  | G55: =_xlfn.XLOOKUP(G$44,Emi_Short[Brandstof],Emi_Short[Unit],"",0) ->  | H55: =_xlfn.XLOOKUP(H$44,Emi_Short[Brandstof],Emi_Short[Unit],"",0) -> 
C56: 3.2 Volume (liter/ton) | D56: =_xlfn.XLOOKUP(D45,Lit_Conv_[[Brandstof]:[Brandstof]],Lit_Conv_[liter/ton],"Not Found",0) -> 1201.923077 | E56: =_xlfn.XLOOKUP(E45,Lit_Conv_[[Brandstof]:[Brandstof]],Lit_Conv_[liter/ton],"Not Found",0) -> Not Found | F56: =_xlfn.XLOOKUP(F45,Lit_Conv_[[Brandstof]:[Brandstof]],Lit_Conv_[liter/ton],"Not Found",0) -> Not Found | G56: =_xlfn.XLOOKUP(G45,Lit_Conv_[[Brandstof]:[Brandstof]],Lit_Conv_[liter/ton],"Not Found",0) -> Not Found | H56: =_xlfn.XLOOKUP(H45,Lit_Conv_[[Brandstof]:[Brandstof]],Lit_Conv_[liter/ton],"Not Found",0) -> Not Found
C57: 3.3 Geleverde Arbeid (MJ) per FE | D57: =IF($D$32="Binnenvaart",(_xlfn.XLOOKUP(D$44&D$46,Emi_Short[Brandstof]&Emi_Short[MotCel2],Emi_Short[MJ Arbeid (Zoet)],"Not Found",0)),(_xlfn.XLOOKUP(D$44&D$46,Emi_Short[Brandstof]&Emi_Short[MotCel2],Emi_Short[MJ Arbeid (Zout)],"",0))) -> 19395 | E57: =IF($D$32="Binnenvaart",(_xlfn.XLOOKUP(E$44&E$46,Emi_Short[Brandstof]&Emi_Short[MotCel2],Emi_Short[MJ Arbeid (Zoet)],"Not Found",0)),(_xlfn.XLOOKUP(E$44&E$46,Emi_Short[Brandstof]&Emi_Short[MotCel2],Emi_Short[MJ Arbeid (Zout)],"",0))) ->  | F57: =IF($D$32="Binnenvaart",(_xlfn.XLOOKUP(F$44&F$46,Emi_Short[Brandstof]&Emi_Short[MotCel2],Emi_Short[MJ Arbeid (Zoet)],"Not Found",0)),(_xlfn.XLOOKUP(F$44&F$46,Emi_Short[Brandstof]&Emi_Short[MotCel2],Emi_Short[MJ Arbeid (Zout)],"",0))) ->  | G57: =IF($D$32="Binnenvaart",(_xlfn.XLOOKUP(G$44&G$46,Emi_Short[Brandstof]&Emi_Short[MotCel2],Emi_Short[MJ Arbeid (Zoet)],"Not Found",0)),(_xlfn.XLOOKUP(G$44&G$46,Emi_Short[Brandstof]&Emi_Short[MotCel2],Emi_Short[MJ Arbeid (Zout)],"",0))) ->  | H57: =IF($D$32="Binnenvaart",(_xlfn.XLOOKUP(H$44&H$46,Emi_Short[Brandstof]&Emi_Short[MotCel2],Emi_Short[MJ Arbeid (Zoet)],"Not Found",0)),(_xlfn.XLOOKUP(H$44&H$46,Emi_Short[Brandstof]&Emi_Short[MotCel2],Emi_Short[MJ Arbeid (Zout)],"",0))) -> 
C62: 4. Additionele Emissies
C63: In dit onderdeel worden de emissiewaarden van Stikstof (NOx) en Fijnstof (PM) weergegeven o.b.v. de opgegeven energiedrager en motorclassificatie in onderdeel 2. Standaard worden deze emissiewaarden (4.1 & 4.2) aangehouden bij de berekening van het milieuprofiel. Indien het gewenst is om af te wijken van de standaard waarden, bijvoorbeeld, omdat eigen emissielimieten lager zijn (en dus meer milieuvriendelijk) kan dit worden gedaan door bij 4.3 "JA" te selecteren en bij 4.4 en 4.5 de eigen emissielimieten op te geven. Enkel wanneer de overschrijving volledig is (4.6) zullen de nieuwe emissielimieten worden meegenomen in de milieuprofiel berekening. 4.1 Emissielimiet NOx: Weergeeft standaard emissielimiet NOx (in g/kWh) o.b.v. selectie in onderdeel 2. 4.2 Emissielimiet PM: Weergeeft standaard emissielimiet PM (in g/kWh) o.b.v. selectie in onderdeel 2. 4.3 Overschrijven Standaardwaarden: Geef hier aan met JA of NEE of de standaardwaarden overschreven willen worden. 4.4 Emissielimiet NOx: Hier kan eigen NOx emissielimiet worden opgegeven (in g/kWh) 4.5 Emissielimiet PM: Hier kan eigen PM emissielimiet worden opgegeven (in g/kWh) 4.6 Overschrijving Volledig: Weergeeft of overschrijding volledig is ingevoerd. Let op! Indien onvolledig wordt overschrijving niet meegenomen in milieuprofiel calculatie.
C64: Onderdeel | D64: Milieuprofiel 1 | E64: Milieuprofiel 2 | F64: Milieuprofiel 3 | G64: Milieuprofiel 4 | H64: Milieuprofiel 5
C65: 4.1 Emissielimiet NOx (g/kWh) | D65: =(IFERROR(_xlfn.XLOOKUP(D$44,NOx_Tab2[[#Headers],[Ammoniak]:[Waterstof]],(_xlfn.XLOOKUP(Invoerblad!D$46,NOx_Tab2[NOx],NOx_Tab2[[Ammoniak]:[Waterstof]],"Not Found",0)),"Not Found",0),"")) -> 3.61 | E65: =(IFERROR(_xlfn.XLOOKUP(E$44,NOx_Tab2[[#Headers],[Ammoniak]:[Waterstof]],(_xlfn.XLOOKUP(Invoerblad!E$46,NOx_Tab2[NOx],NOx_Tab2[[Ammoniak]:[Waterstof]],"Not Found",0)),"Not Found",0),"")) ->  | F65: =(IFERROR(_xlfn.XLOOKUP(F$44,NOx_Tab2[[#Headers],[Ammoniak]:[Waterstof]],(_xlfn.XLOOKUP(Invoerblad!F$46,NOx_Tab2[NOx],NOx_Tab2[[Ammoniak]:[Waterstof]],"Not Found",0)),"Not Found",0),"")) ->  | G65: =(IFERROR(_xlfn.XLOOKUP(G$44,NOx_Tab2[[#Headers],[Ammoniak]:[Waterstof]],(_xlfn.XLOOKUP(Invoerblad!G$46,NOx_Tab2[NOx],NOx_Tab2[[Ammoniak]:[Waterstof]],"Not Found",0)),"Not Found",0),"")) ->  | H65: =(IFERROR(_xlfn.XLOOKUP(H$44,NOx_Tab2[[#Headers],[Ammoniak]:[Waterstof]],(_xlfn.XLOOKUP(Invoerblad!H$46,NOx_Tab2[NOx],NOx_Tab2[[Ammoniak]:[Waterstof]],"Not Found",0)),"Not Found",0),"")) -> 
C66: 4.2 Emissielimiet PM (g/kWh) | D66: =IFERROR(_xlfn.XLOOKUP(D$44,PM_Tab2[[#Headers],[Ammoniak]:[Waterstof]],(_xlfn.XLOOKUP(Invoerblad!D$46,PM_Tab2[PM],PM_Tab2[[Ammoniak]:[Waterstof]],"Not Found",0)),"Not Found",0),"") -> 0.03 | E66: =IFERROR(_xlfn.XLOOKUP(E$44,PM_Tab2[[#Headers],[Ammoniak]:[Waterstof]],(_xlfn.XLOOKUP(Invoerblad!E$46,PM_Tab2[PM],PM_Tab2[[Ammoniak]:[Waterstof]],"Not Found",0)),"Not Found",0),"") ->  | F66: =IFERROR(_xlfn.XLOOKUP(F$44,PM_Tab2[[#Headers],[Ammoniak]:[Waterstof]],(_xlfn.XLOOKUP(Invoerblad!F$46,PM_Tab2[PM],PM_Tab2[[Ammoniak]:[Waterstof]],"Not Found",0)),"Not Found",0),"") ->  | G66: =IFERROR(_xlfn.XLOOKUP(G$44,PM_Tab2[[#Headers],[Ammoniak]:[Waterstof]],(_xlfn.XLOOKUP(Invoerblad!G$46,PM_Tab2[PM],PM_Tab2[[Ammoniak]:[Waterstof]],"Not Found",0)),"Not Found",0),"") ->  | H66: =IFERROR(_xlfn.XLOOKUP(H$44,PM_Tab2[[#Headers],[Ammoniak]:[Waterstof]],(_xlfn.XLOOKUP(Invoerblad!H$46,PM_Tab2[PM],PM_Tab2[[Ammoniak]:[Waterstof]],"Not Found",0)),"Not Found",0),"") -> 
C67: 4.3 Overschrijven Waarden? | D67: NEE | E67: NEE | F67: NEE | G67: NEE | H67: NEE
C68: 4.4 Emissielimiet NOx (g/kWh)
C69: 4.5 Emissielimiet PM (g/kWh)
C70: 4.6 Overschrijving Volledig? | D70: =IF(D67="NEE","",IF(OR(PM_NOx!B65=0,PM_NOx!B66=0),"NEE","JA")) ->  | E70: =IF(E67="NEE","",IF(OR(PM_NOx!C65=0,PM_NOx!C66=0),"NEE","JA")) ->  | F70: =IF(F67="NEE","",IF(OR(PM_NOx!D65=0,PM_NOx!D66=0),"NEE","JA")) ->  | G70: =IF(G67="NEE","",IF(OR(PM_NOx!E65=0,PM_NOx!E66=0),"NEE","JA")) ->  | H70: =IF(H67="NEE","",IF(OR(PM_NOx!F65=0,PM_NOx!F66=0),"NEE","JA")) -> 
C75: 5. AdBlue Verbruik
C76: In dit onderdeel is het AdBlue gebruik weergegeven. 5.1 AdBlue Verbruik: Hier wordt het standaard AdBlue verbruik weergegeven dat wordt gemodelleerd o.b.v. input in Sectie 2.
C77: Onderdeel | D77: Milieuprofiel 1 | E77: Milieuprofiel 2 | F77: Milieuprofiel 3 | G77: Milieuprofiel 4 | H77: Milieuprofiel 5
C78: 5.1 AdBlue Verbruik (in kg) | D78: =IF($D$32="Binnenvaart",(_xlfn.XLOOKUP(D$44&D$46,Emi_Short[Brandstof]&Emi_Short[MotCel2],Emi_Short[AdBlue (Zoet)],"Not Found",0)),(_xlfn.XLOOKUP(D$44&D$46,Emi_Short[Brandstof]&Emi_Short[MotCel2],Emi_Short[AdBlue (Zout)],"",0))) -> 66.64663462 | E78: =IF($D$32="Binnenvaart",(_xlfn.XLOOKUP(E$44&E$46,Emi_Short[Brandstof]&Emi_Short[MotCel2],Emi_Short[AdBlue (Zoet)],"Not Found",0)),(_xlfn.XLOOKUP(E$44&E$46,Emi_Short[Brandstof]&Emi_Short[MotCel2],Emi_Short[AdBlue (Zout)],"",0))) ->  | F78: =IF($D$32="Binnenvaart",(_xlfn.XLOOKUP(F$44&F$46,Emi_Short[Brandstof]&Emi_Short[MotCel2],Emi_Short[AdBlue (Zoet)],"Not Found",0)),(_xlfn.XLOOKUP(F$44&F$46,Emi_Short[Brandstof]&Emi_Short[MotCel2],Emi_Short[AdBlue (Zout)],"",0))) ->  | G78: =IF($D$32="Binnenvaart",(_xlfn.XLOOKUP(G$44&G$46,Emi_Short[Brandstof]&Emi_Short[MotCel2],Emi_Short[AdBlue (Zoet)],"Not Found",0)),(_xlfn.XLOOKUP(G$44&G$46,Emi_Short[Brandstof]&Emi_Short[MotCel2],Emi_Short[AdBlue (Zout)],"",0))) ->  | H78: =IF($D$32="Binnenvaart",(_xlfn.XLOOKUP(H$44&H$46,Emi_Short[Brandstof]&Emi_Short[MotCel2],Emi_Short[AdBlue (Zoet)],"Not Found",0)),(_xlfn.XLOOKUP(H$44&H$46,Emi_Short[Brandstof]&Emi_Short[MotCel2],Emi_Short[AdBlue (Zout)],"",0))) -> 

Sheet MKI Resultaten
B13: Resultaten - Milieukosten Set A1 (per FU) | P13: Resultaten - Milieukosten Set A1 (per GJ arbeid)
B14: Volgens EN15804+A1 | P14: Volgens EN15804+A1
B15: Motor | C15: A1-A3 | D15: A4 | E15: B1 | F15: Total | P15: Motor | Q15: A1-A3 | R15: A4 | S15: B1 | T15: Total
B16: =IF(Invoerblad!$D$43="","Motor 1",Invoerblad!$D$43) -> Milieuprofiel 1 | C16: =Milieuprofielen!F19 -> 105.1538216 | D16: =Milieuprofielen!G19 -> 2.00768719 | E16: =Milieuprofielen!H19 -> 246.5732141 | F16: =Milieuprofielen!I19 -> 353.7347229 | P16: =IF(Invoerblad!$D$43="","Motor 1",Invoerblad!$D$43) -> Milieuprofiel 1 | Q16: ='MP per GJ'!F19 -> 5.421697429 | R16: ='MP per GJ'!G19 -> 0.1035157097 | S16: ='MP per GJ'!H19 -> 12.7132361 | T16: ='MP per GJ'!I19 -> 18.23844924
B17: =IF(Invoerblad!$E$43="","Motor 2",Invoerblad!$E$43) -> Milieuprofiel 2 | C17: =Milieuprofielen!O19 -> 0 | D17: =Milieuprofielen!P19 -> 0 | E17: =Milieuprofielen!Q19 -> 0 | F17: =Milieuprofielen!R19 -> 0 | P17: =IF(Invoerblad!$E$43="","Motor 2",Invoerblad!$E$43) -> Milieuprofiel 2 | Q17: ='MP per GJ'!O19 -> 0 | R17: ='MP per GJ'!P19 -> 0 | S17: ='MP per GJ'!Q19 -> 0 | T17: ='MP per GJ'!R19 -> 0
B18: =IF(Invoerblad!$F$43="","Motor 3",Invoerblad!$F$43) -> Milieuprofiel 3 | C18: =Milieuprofielen!X19 -> 0 | D18: =Milieuprofielen!Y19 -> 0 | E18: =Milieuprofielen!Z19 -> 0 | F18: =Milieuprofielen!AA19 -> 0 | P18: =IF(Invoerblad!$F$43="","Motor 3",Invoerblad!$F$43) -> Milieuprofiel 3 | Q18: ='MP per GJ'!X19 -> 0 | R18: ='MP per GJ'!Y19 -> 0 | S18: ='MP per GJ'!Z19 -> 0 | T18: ='MP per GJ'!AA19 -> 0
B19: =IF(Invoerblad!$G$43="","Motor 4",Invoerblad!$G$43) -> Milieuprofiel 4 | C19: =Milieuprofielen!AG19 -> 0 | D19: =Milieuprofielen!AH19 -> 0 | E19: =Milieuprofielen!AI19 -> 0 | F19: =Milieuprofielen!AJ19 -> 0 | P19: =IF(Invoerblad!$G$43="","Motor 4",Invoerblad!$G$43) -> Milieuprofiel 4 | Q19: ='MP per GJ'!AG19 -> 0 | R19: ='MP per GJ'!AH19 -> 0 | S19: ='MP per GJ'!AI19 -> 0 | T19: ='MP per GJ'!AJ19 -> 0
B20: =IF(Invoerblad!$H$43="","Motor 5",Invoerblad!$H$43) -> Milieuprofiel 5 | C20: =Milieuprofielen!AP19 -> 0 | D20: =Milieuprofielen!AQ19 -> 0 | E20: =Milieuprofielen!AR19 -> 0 | F20: =Milieuprofielen!AS19 -> 0 | P20: =IF(Invoerblad!$H$43="","Motor 5",Invoerblad!$H$43) -> Milieuprofiel 5 | Q20: ='MP per GJ'!AP19 -> 0 | R20: ='MP per GJ'!AQ19 -> 0 | S20: ='MP per GJ'!AR19 -> 0 | T20: ='MP per GJ'!AS19 -> 0
B38: Resultaten - Milieukosten Set A2 (per FU) | P38: Resultaten - Milieukosten Set A2 (per GJ arbeid)
B39: Volgens EN15804+A2 | P39: Volgens EN15804+A2
B40: Motor | C40: A1-A3 | D40: A4 | E40: B1 | F40: Total | P40: Motor | Q40: A1-A3 | R40: A4 | S40: B1 | T40: Total
B41: =IF(Invoerblad!$D$43="","Motor 1",Invoerblad!$D$43) -> Milieuprofiel 1 | C41: =Milieuprofielen!F20 -> 140.5649209 | D41: =Milieuprofielen!G20 -> 3.876401057 | E41: =Milieuprofielen!H20 -> 479.0126783 | F41: =Milieuprofielen!I20 -> 623.4540002 | P41: =IF(Invoerblad!$D$43="","Motor 1",Invoerblad!$D$43) -> Milieuprofiel 1 | Q41: ='MP per GJ'!F20 -> 7.247482388 | R41: ='MP per GJ'!G20 -> 0.1998659993 | S41: ='MP per GJ'!H20 -> 24.69774057 | T41: ='MP per GJ'!I20 -> 32.14508895
B42: =IF(Invoerblad!$E$43="","Motor 2",Invoerblad!$E$43) -> Milieuprofiel 2 | C42: =Milieuprofielen!O20 -> 0 | D42: =Milieuprofielen!P20 -> 0 | E42: =Milieuprofielen!Q20 -> 0 | F42: =Milieuprofielen!R20 -> 0 | P42: =IF(Invoerblad!$E$43="","Motor 2",Invoerblad!$E$43) -> Milieuprofiel 2 | Q42: ='MP per GJ'!O20 -> 0 | R42: ='MP per GJ'!P20 -> 0 | S42: ='MP per GJ'!Q20 -> 0 | T42: ='MP per GJ'!R20 -> 0
B43: =IF(Invoerblad!$F$43="","Motor 3",Invoerblad!$F$43) -> Milieuprofiel 3 | C43: =Milieuprofielen!X20 -> 0 | D43: =Milieuprofielen!Y20 -> 0 | E43: =Milieuprofielen!Z20 -> 0 | F43: =Milieuprofielen!AA20 -> 0 | P43: =IF(Invoerblad!$F$43="","Motor 3",Invoerblad!$F$43) -> Milieuprofiel 3 | Q43: ='MP per GJ'!X20 -> 0 | R43: ='MP per GJ'!Y20 -> 0 | S43: ='MP per GJ'!Z20 -> 0 | T43: ='MP per GJ'!AA20 -> 0
B44: =IF(Invoerblad!$G$43="","Motor 4",Invoerblad!$G$43) -> Milieuprofiel 4 | C44: =Milieuprofielen!AG20 -> 0 | D44: =Milieuprofielen!AH20 -> 0 | E44: =Milieuprofielen!AI20 -> 0 | F44: =Milieuprofielen!AJ20 -> 0 | P44: =IF(Invoerblad!$G$43="","Motor 4",Invoerblad!$G$43) -> Milieuprofiel 4 | Q44: ='MP per GJ'!AG20 -> 0 | R44: ='MP per GJ'!AH20 -> 0 | S44: ='MP per GJ'!AI20 -> 0 | T44: ='MP per GJ'!AJ20 -> 0
B45: =IF(Invoerblad!$H$43="","Motor 5",Invoerblad!$H$43) -> Milieuprofiel 5 | C45: =Milieuprofielen!AP20 -> 0 | D45: =Milieuprofielen!AQ20 -> 0 | E45: =Milieuprofielen!AR20 -> 0 | F45: =Milieuprofielen!AS20 -> 0 | P45: =IF(Invoerblad!$H$43="","Motor 5",Invoerblad!$H$43) -> Milieuprofiel 5 | Q45: ='MP per GJ'!AP20 -> 0 | R45: ='MP per GJ'!AQ20 -> 0 | S45: ='MP per GJ'!AR20 -> 0 | T45: ='MP per GJ'!AS20 -> 0

Sheet Hotspot
C3: EN15804+A1 | X3: EN15804+A2
C4: Profiel # | D4: Milieuprofiel 1 | E4: Milieuprofiel 2 | F4: Milieuprofiel 3 | G4: Milieuprofiel 4 | H4: Milieuprofiel 5 | X4: Profiel # | Y4: Milieuprofiel 1 | Z4: Milieuprofiel 2 | AA4: Milieuprofiel 3 | AB4: Milieuprofiel 4 | AC4: Milieuprofiel 5
C5: Eenheid | D5: =Invoerblad!D55 -> ton | E5: =Invoerblad!E55 ->  | F5: =Invoerblad!F55 ->  | G5: =Invoerblad!G55 ->  | H5: =Invoerblad!H55 ->  | X5: Eenheid | Y5: =Invoerblad!D55 -> ton | Z5: =Invoerblad!E55 ->  | AA5: =Invoerblad!F55 ->  | AB5: =Invoerblad!G55 ->  | AC5: =Invoerblad!H55 -> 
C6: Onderdeel | D6: =Invoerblad!D45&" - "&Invoerblad!D46 -> Diesel, Algemeen - ULEV (Stage V IWP/IWA) | E6: =Invoerblad!E45&" - "&Invoerblad!E46 -> - | F6: =Invoerblad!F45&" - "&Invoerblad!F46 -> - | G6: =Invoerblad!G45&" - "&Invoerblad!G46 -> - | H6: =Invoerblad!H45&" - "&Invoerblad!H46 -> - | X6: Onderdeel | Y6: =Invoerblad!D45&" - "&Invoerblad!D46 -> Diesel, Algemeen - ULEV (Stage V IWP/IWA) | Z6: =Invoerblad!E45&" "&Invoerblad!E46 ->  | AA6: =Invoerblad!F45&" "&Invoerblad!F46 ->  | AB6: =Invoerblad!G45&" "&Invoerblad!G46 ->  | AC6: =Invoerblad!H45&" "&Invoerblad!H46 -> 
C7: Winning Energiedrager | D7: =Modellering!K6:K17 -> 96.92313963 | E7: =Modellering!K26:K37 -> 0 | F7: =Modellering!K46:K57 -> 0 | G7: =Modellering!K66:K77 -> 0 | H7: =Modellering!K86:K97 -> 0 | X7: Winning Energiedrager | Y7: =Modellering!L6:L17 -> 135.3329812 | Z7: =Modellering!L26:L37 -> 0 | AA7: =Modellering!L46:L57 -> 0 | AB7: =Modellering!L66:L77 -> 0 | AC7: =Modellering!L86:L97 -> 0
C8: Opslag Energiedrager | D8: 1.921728151 | E8: 0 | F8: 0 | G8: 0 | H8: 0 | X8: Opslag Energiedrager | Y8: 3.684717829 | Z8: 0 | AA8: 0 | AB8: 0 | AC8: 0
C9: Emissieprofiel | D9: 169.6919827 | E9: 0 | F9: 0 | G9: 0 | H9: 0 | X9: Emissieprofiel | Y9: 379.2826629 | Z9: 0 | AA9: 0 | AB9: 0 | AC9: 0
C10: NOx Emissies | D10: 63.75341225 | E10: 0 | F10: 0 | G10: 0 | H10: 0 | X10: NOx Emissies | Y10: 86.22790011 | Z10: 0 | AA10: 0 | AB10: 0 | AC10: 0
C11: PM Emissies | D11: 0.011927925 | E11: 0 | F11: 0 | G11: 0 | H11: 0 | X11: PM Emissies | Y11: 0.06166422056 | Z11: 0 | AA11: 0 | AB11: 0 | AC11: 0
C12: Casco Schip | D12: 10.64848279 | E12: 0 | F12: 0 | G12: 0 | H12: 0 | X12: Casco Schip | Y12: 10.72381816 | Z12: 0 | AA12: 0 | AB12: 0 | AC12: 0
C13: Aandrijving (Type Motor) | D13: 1.673563761 | E13: 0 | F13: 0 | G13: 0 | H13: 0 | X13: Aandrijving (Type Motor) | Y13: 0.8749130904 | Z13: 0 | AA13: 0 | AB13: 0 | AC13: 0
C14: Accu | D14: 0 | E14: 0 | F14: 0 | G14: 0 | H14: 0 | X14: Accu | Y14: 0 | Z14: 0 | AA14: 0 | AB14: 0 | AC14: 0
C15: Brandstofcel | D15: 0 | E15: 0 | F15: 0 | G15: 0 | H15: 0 | X15: Brandstofcel | Y15: 0 | Z15: 0 | AA15: 0 | AB15: 0 | AC15: 0
C16: Winning AdBlue | D16: 8.230681994 | E16: 0 | F16: 0 | G16: 0 | H16: 0 | X16: Winning AdBlue | Y16: 5.231939743 | Z16: 0 | AA16: 0 | AB16: 0 | AC16: 0
C17: Opslag AdBlue | D17: 0.0859590392 | E17: 0 | F17: 0 | G17: 0 | H17: 0 | X17: Opslag AdBlue | Y17: 0.1916832278 | Z17: 0 | AA17: 0 | AB17: 0 | AC17: 0
C18: Gebruiksprofiel AdBlue | D18: 0.7938447266 | E18: 0 | F18: 0 | G18: 0 | H18: 0 | X18: Gebruiksprofiel AdBlue | Y18: 1.841719766 | Z18: 0 | AA18: 0 | AB18: 0 | AC18: 0
C19: Totaal | D19: =SUM(D7:D18) -> 353.7347229 | E19: =SUM(E7:E18) -> 0 | F19: 0 | G19: 0 | H19: 0 | X19: Totaal | Y19: =SUM(Y7:Y18) -> 623.4540002 | Z19: =SUM(Z7:Z18) -> 0 | AA19: 0 | AB19: 0 | AC19: 0
C45: EN15804+A1 | X45: EN15804+A2
C46: Profiel # | D46: Milieuprofiel 1 | E46: Milieuprofiel 2 | F46: Milieuprofiel 3 | G46: Milieuprofiel 4 | H46: Milieuprofiel 5 | X46: Profiel # | Y46: Milieuprofiel 1 | Z46: Milieuprofiel 2 | AA46: Milieuprofiel 3 | AB46: Milieuprofiel 4 | AC46: Milieuprofiel 5
C47: Eenheid | D47: GJ | E47: GJ | F47: GJ | G47: GJ | H47: GJ | X47: Eenheid | Y47: GJ | Z47: GJ | AA47: GJ | AB47: GJ | AC47: GJ
C48: Onderdeel | D48: =D6 -> Diesel, Algemeen - ULEV (Stage V IWP/IWA) | E48: =E6 -> - | F48: =F6 -> - | G48: =G6 -> - | H48: =H6 -> - | X48: Onderdeel | Y48: =Y6 -> Diesel, Algemeen - ULEV (Stage V IWP/IWA) | Z48: =Z6 ->  | AA48: =AA6 ->  | AB48: =AB6 ->  | AC48: =AC6 -> 
C49: Winning Energiedrager | D49: =IFERROR((D$7:D$18)/Invoerblad!D57*1000,0) -> 4.997326096 | E49: =IFERROR((E$7:E$18)/Invoerblad!E57*1000,0) -> 0 | F49: =IFERROR((F$7:F$18)/Invoerblad!F57*1000,0) -> 0 | G49: =IFERROR((G$7:G$18)/Invoerblad!G57*1000,0) -> 0 | H49: =IFERROR((H$7:H$18)/Invoerblad!H57*1000,0) -> 0 | X49: Winning Energiedrager | Y49: =IFERROR((Y$7:Y$18)/Invoerblad!D57*1000,0) -> 6.977725247 | Z49: =IFERROR((Z$7:Z$18)/Invoerblad!E57*1000,0) -> 0 | AA49: =IFERROR((AA$7:AA$18)/Invoerblad!F57*1000,0) -> 0 | AB49: =IFERROR((AB$7:AB$18)/Invoerblad!G57*1000,0) -> 0 | AC49: =IFERROR((AC$7:AC$18)/Invoerblad!H57*1000,0) -> 0
C50: Opslag Energiedrager | D50: 0.09908368916 | E50: 0 | F50: 0 | G50: 0 | H50: 0 | X50: Opslag Energiedrager | Y50: 0.1899828734 | Z50: 0 | AA50: 0 | AB50: 0 | AC50: 0
C51: Gebruiksprofiel Basis | D51: 8.74926438 | E51: 0 | F51: 0 | G51: 0 | H51: 0 | X51: Gebruiksprofiel Basis | Y51: 19.55569285 | Z51: 0 | AA51: 0 | AB51: 0 | AC51: 0
C52: NOx Emissies | D52: 3.287105556 | E52: 0 | F52: 0 | G52: 0 | H52: 0 | X52: NOx Emissies | Y52: 4.445882965 | Z52: 0 | AA52: 0 | AB52: 0 | AC52: 0
C53: PM Emissies | D53: 0.000615 | E53: 0 | F53: 0 | G53: 0 | H53: 0 | X53: PM Emissies | Y53: 0.0031793875 | Z53: 0 | AA53: 0 | AB53: 0 | AC53: 0
C54: Casco Schip | D54: 0.5490323684 | E54: 0 | F54: 0 | G54: 0 | H54: 0 | X54: Casco Schip | Y54: 0.5529166363 | Z54: 0 | AA54: 0 | AB54: 0 | AC54: 0
C55: Aandrijving (Type Motor) | D55: 0.08628841254 | E55: 0 | F55: 0 | G55: 0 | H55: 0 | X55: Aandrijving (Type Motor) | Y55: 0.04511023926 | Z55: 0 | AA55: 0 | AB55: 0 | AC55: 0
C56: Accu | D56: 0 | E56: 0 | F56: 0 | G56: 0 | H56: 0 | X56: Accu | Y56: 0 | Z56: 0 | AA56: 0 | AB56: 0 | AC56: 0
C57: Brandstofcel | D57: 0 | E57: 0 | F57: 0 | G57: 0 | H57: 0 | X57: Brandstofcel | Y57: 0 | Z57: 0 | AA57: 0 | AB57: 0 | AC57: 0
C58: Winning AdBlue | D58: 0.4243713325 | E58: 0 | F58: 0 | G58: 0 | H58: 0 | X58: Winning AdBlue | Y58: 0.2697571407 | Z58: 0 | AA58: 0 | AB58: 0 | AC58: 0
C59: Opslag AdBlue | D59: 0.004432020583 | E59: 0 | F59: 0 | G59: 0 | H59: 0 | X59: Opslag AdBlue | Y59: 0.009883125951 | Z59: 0 | AA59: 0 | AB59: 0 | AC59: 0
C60: Gebruiksprofiel AdBlue | D60: 0.04093038033 | E60: 0 | F60: 0 | G60: 0 | H60: 0 | X60: Gebruiksprofiel AdBlue | Y60: 0.09495848237 | Z60: 0 | AA60: 0 | AB60: 0 | AC60: 0
C61: Totaal | D61: =SUM(D49:D60) -> 18.23844924 | E61: =SUM(E49:E60) -> 0 | F61: 0 | G61: 0 | H61: 0 | X61: Totaal | Y61: =SUM(Y49:Y60) -> 32.14508895 | Z61: =SUM(Z49:Z60) -> 0 | AA61: 0 | AB61: 0 | AC61: 0

Sheet Milieuprofielen
C6: Milieuprofielen
C7: In dit onderdeel worden de volledige milieuprofielen van het schip en de motoren weergegeven. Alle relevante indicatoren voor EN15804+A1, EN15804+A2 en bijbehorende parameters zijn opgenomen en weergegeven per relevante LCA module. Motoren zijn weergegeven op volgorde van links naar rechts. Databases & Karakterisatie: EN15804+A1: NMD 3.9 + EcoInvent 3.6 - ECI SBK Single Score EN15804+A2: NMD 3.9 + EcoInvent 3.9.1 - EF 3.1 Weighting Set
C14: ="Milieuprofiel 1: "&Invoerblad!D43&" (per "&Invoerblad!D55&")" -> Milieuprofiel 1: Milieuprofiel 1 (per ton) | L14: ="Milieuprofiel 2: "&Invoerblad!E43&" (per "&Invoerblad!E55&")" -> Milieuprofiel 2: Milieuprofiel 2 (per ) | U14: ="Mileuprofiel 3: "&Invoerblad!F43&" (per "&Invoerblad!F55&")" -> Mileuprofiel 3: Milieuprofiel 3 (per ) | AD14: ="Milieuprofiel 4: "&Invoerblad!G43&" (per "&Invoerblad!G55&")" -> Milieuprofiel 4: Milieuprofiel 4 (per ) | AM14: ="Milieuprofiel 5: "&Invoerblad!H43&" (per "&Invoerblad!H55&")" -> Milieuprofiel 5: Milieuprofiel 5 (per )
C15: Energiedrager | E15: =Invoerblad!D44 -> Diesel (ULSD) | L15: Energiedrager | N15: =Invoerblad!E44 -> 0 | U15: Energiedrager | W15: =Invoerblad!F44 -> 0 | AD15: Energiedrager | AF15: =Invoerblad!G44 -> 0 | AM15: Energiedrager | AO15: =Invoerblad!H44 -> 0
C16: Verdieping Energiedrager | E16: =Invoerblad!D45 -> Diesel, Algemeen | L16: Verdieping Energiedrager | N16: =Invoerblad!E45 -> 0 | U16: Verdieping Energiedrager | W16: =Invoerblad!F45 -> 0 | AD16: Verdieping Energiedrager | AF16: =Invoerblad!G45 -> 0 | AM16: Verdieping Energiedrager | AO16: =Invoerblad!H45 -> 0
C17: Classificatie Motor | E17: =Invoerblad!D46 -> ULEV (Stage V IWP/IWA) | L17: Classificatie Motor | N17: =Invoerblad!E46 -> 0 | U17: Classificatie Motor | W17: =Invoerblad!F46 -> 0 | AD17: Classificatie Motor | AF17: =Invoerblad!G46 -> 0 | AM17: Classificatie Motor | AO17: =Invoerblad!H46 -> 0
C18: Module | D18: Impact Category | E18: Unit | F18: A1-A3 | G18: A4 | H18: B1 | I18: Total | L18: Module | M18: Impact Category | N18: Unit | O18: A1-A3 | P18: A4 | Q18: B1 | R18: Total | U18: Module | V18: Impact Category | W18: Unit | X18: A1-A3 | Y18: A4 | Z18: B1 | AA18: Total | AD18: Module | AE18: Impact Category | AF18: Unit | AG18: A1-A3 | AH18: A4 | AI18: B1 | AJ18: Total | AM18: Module | AN18: Impact Category | AO18: Unit | AP18: A1-A3 | AQ18: A4 | AR18: B1 | AS18: Total
C19: ECI-A1 | D19: Environmental Cost Indicator (ECI) - Set 1 | E19: € | F19: =SUMIFS((_xlfn.XLOOKUP('Weighting Set'!$Z3,Modellering!$K$5:$BH$5,Modellering!$K$6:$BH$17)),Modellering!$E$6:$E$17,Milieuprofielen!F$18) -> 105.1538216 | G19: =SUMIFS((_xlfn.XLOOKUP('Weighting Set'!$Z3,Modellering!$K$5:$BH$5,Modellering!$K$6:$BH$17)),Modellering!$E$6:$E$17,Milieuprofielen!G$18) -> 2.00768719 | H19: =SUMIFS((_xlfn.XLOOKUP('Weighting Set'!$Z3,Modellering!$K$5:$BH$5,Modellering!$K$6:$BH$17)),Modellering!$E$6:$E$17,Milieuprofielen!H$18) -> 246.5732141 | I19: =SUM(F19:H19) -> 353.7347229 | L19: ECI-A1 | M19: Environmental Cost Indicator (ECI) - Set 1 | N19: € | O19: =SUMIFS((_xlfn.XLOOKUP('Weighting Set'!$Z3,Modellering!$K$25:$BH$25,Modellering!$K$26:$BH$37)),Modellering!$E$26:$E$37,Milieuprofielen!O$18) -> 0 | P19: =SUMIFS((_xlfn.XLOOKUP('Weighting Set'!$Z3,Modellering!$K$25:$BH$25,Modellering!$K$26:$BH$37)),Modellering!$E$26:$E$37,Milieuprofielen!P$18) -> 0 | Q19: =SUMIFS((_xlfn.XLOOKUP('Weighting Set'!$Z3,Modellering!$K$25:$BH$25,Modellering!$K$26:$BH$37)),Modellering!$E$26:$E$37,Milieuprofielen!Q$18) -> 0 | R19: =SUM(O19:Q19) -> 0 | U19: ECI-A1 | V19: Environmental Cost Indicator (ECI) - Set 1 | W19: € | X19: =SUMIFS((_xlfn.XLOOKUP('Weighting Set'!$Z3,Modellering!$K$45:$BH$45,Modellering!$K$46:$BH$57)),Modellering!$E$46:$E$57,Milieuprofielen!X$18) -> 0 | Y19: =SUMIFS((_xlfn.XLOOKUP('Weighting Set'!$Z3,Modellering!$K$45:$BH$45,Modellering!$K$46:$BH$57)),Modellering!$E$46:$E$57,Milieuprofielen!Y$18) -> 0 | Z19: =SUMIFS((_xlfn.XLOOKUP('Weighting Set'!$Z3,Modellering!$K$45:$BH$45,Modellering!$K$46:$BH$57)),Modellering!$E$46:$E$57,Milieuprofielen!Z$18) -> 0 | AA19: =SUM(X19:Z19) -> 0 | AD19: ECI-A1 | AE19: Environmental Cost Indicator (ECI) - Set 1 | AF19: € | AG19: =SUMIFS((_xlfn.XLOOKUP('Weighting Set'!$Z3,Modellering!$K$65:$BH$65,Modellering!$K$66:$BH$77)),Modellering!$E$66:$E$77,Milieuprofielen!AG$18) -> 0 | AH19: =SUMIFS((_xlfn.XLOOKUP('Weighting Set'!$Z3,Modellering!$K$65:$BH$65,Modellering!$K$66:$BH$77)),Modellering!$E$66:$E$77,Milieuprofielen!AH$18) -> 0 | AI19: =SUMIFS((_xlfn.XLOOKUP('Weighting Set'!$Z3,Modellering!$K$65:$BH$65,Modellering!$K$66:$BH$77)),Modellering!$E$66:$E$77,Milieuprofielen!AI$18) -> 0 | AJ19: =SUM(AG19:AI19) -> 0 | AM19: ECI-A1 | AN19: Environmental Cost Indicator (ECI) - Set 1 | AO19: € | AP19: =SUMIFS((_xlfn.XLOOKUP('Weighting Set'!$Z3,Modellering!$K$85:$BH$85,Modellering!$K$86:$BH$97)),Modellering!$E$86:$E$97,Milieuprofielen!AP$18) -> 0 | AQ19: =SUMIFS((_xlfn.XLOOKUP('Weighting Set'!$Z3,Modellering!$K$85:$BH$85,Modellering!$K$86:$BH$97)),Modellering!$E$86:$E$97,Milieuprofielen!AQ$18) -> 0 | AR19: =SUMIFS((_xlfn.XLOOKUP('Weighting Set'!$Z3,Modellering!$K$85:$BH$85,Modellering!$K$86:$BH$97)),Modellering!$E$86:$E$97,Milieuprofielen!AR$18) -> 0 | AS19: =SUM(AP19:AR19) -> 0
C20: ECI-A2 | D20: Environmental Cost Indicator (ECI) - Set 2 | E20: € | F20: =SUMIFS((_xlfn.XLOOKUP('Weighting Set'!$Z4,Modellering!$K$5:$BH$5,Modellering!$K$6:$BH$17)),Modellering!$E$6:$E$17,Milieuprofielen!F$18) -> 140.5649209 | G20: =SUMIFS((_xlfn.XLOOKUP('Weighting Set'!$Z4,Modellering!$K$5:$BH$5,Modellering!$K$6:$BH$17)),Modellering!$E$6:$E$17,Milieuprofielen!G$18) -> 3.876401057 | H20: =SUMIFS((_xlfn.XLOOKUP('Weighting Set'!$Z4,Modellering!$K$5:$BH$5,Modellering!$K$6:$BH$17)),Modellering!$E$6:$E$17,Milieuprofielen!H$18) -> 479.0126783 | I20: =SUM(F20:H20) -> 623.4540002 | L20: ECI-A2 | M20: Environmental Cost Indicator (ECI) - Set 2 | N20: € | O20: =SUMIFS((_xlfn.XLOOKUP('Weighting Set'!$Z4,Modellering!$K$25:$BH$25,Modellering!$K$26:$BH$37)),Modellering!$E$26:$E$37,Milieuprofielen!O$18) -> 0 | P20: =SUMIFS((_xlfn.XLOOKUP('Weighting Set'!$Z4,Modellering!$K$25:$BH$25,Modellering!$K$26:$BH$37)),Modellering!$E$26:$E$37,Milieuprofielen!P$18) -> 0 | Q20: =SUMIFS((_xlfn.XLOOKUP('Weighting Set'!$Z4,Modellering!$K$25:$BH$25,Modellering!$K$26:$BH$37)),Modellering!$E$26:$E$37,Milieuprofielen!Q$18) -> 0 | R20: =SUM(O20:Q20) -> 0 | U20: ECI-A2 | V20: Environmental Cost Indicator (ECI) - Set 2 | W20: € | X20: =SUMIFS((_xlfn.XLOOKUP('Weighting Set'!$Z4,Modellering!$K$45:$BH$45,Modellering!$K$46:$BH$57)),Modellering!$E$46:$E$57,Milieuprofielen!X$18) -> 0 | Y20: =SUMIFS((_xlfn.XLOOKUP('Weighting Set'!$Z4,Modellering!$K$45:$BH$45,Modellering!$K$46:$BH$57)),Modellering!$E$46:$E$57,Milieuprofielen!Y$18) -> 0 | Z20: =SUMIFS((_xlfn.XLOOKUP('Weighting Set'!$Z4,Modellering!$K$45:$BH$45,Modellering!$K$46:$BH$57)),Modellering!$E$46:$E$57,Milieuprofielen!Z$18) -> 0 | AA20: =SUM(X20:Z20) -> 0 | AD20: ECI-A2 | AE20: Environmental Cost Indicator (ECI) - Set 2 | AF20: € | AG20: =SUMIFS((_xlfn.XLOOKUP('Weighting Set'!$Z4,Modellering!$K$65:$BH$65,Modellering!$K$66:$BH$77)),Modellering!$E$66:$E$77,Milieuprofielen!AG$18) -> 0 | AH20: =SUMIFS((_xlfn.XLOOKUP('Weighting Set'!$Z4,Modellering!$K$65:$BH$65,Modellering!$K$66:$BH$77)),Modellering!$E$66:$E$77,Milieuprofielen!AH$18) -> 0 | AI20: =SUMIFS((_xlfn.XLOOKUP('Weighting Set'!$Z4,Modellering!$K$65:$BH$65,Modellering!$K$66:$BH$77)),Modellering!$E$66:$E$77,Milieuprofielen!AI$18) -> 0 | AJ20: =SUM(AG20:AI20) -> 0 | AM20: ECI-A2 | AN20: Environmental Cost Indicator (ECI) - Set 2 | AO20: € | AP20: =SUMIFS((_xlfn.XLOOKUP('Weighting Set'!$Z4,Modellering!$K$85:$BH$85,Modellering!$K$86:$BH$97)),Modellering!$E$86:$E$97,Milieuprofielen!AP$18) -> 0 | AQ20: =SUMIFS((_xlfn.XLOOKUP('Weighting Set'!$Z4,Modellering!$K$85:$BH$85,Modellering!$K$86:$BH$97)),Modellering!$E$86:$E$97,Milieuprofielen!AQ$18) -> 0 | AR20: =SUMIFS((_xlfn.XLOOKUP('Weighting Set'!$Z4,Modellering!$K$85:$BH$85,Modellering!$K$86:$BH$97)),Modellering!$E$86:$E$97,Milieuprofielen!AR$18) -> 0 | AS20: =SUM(AP20:AR20) -> 0
C21: Characterized EN15804+A1 | D21: 001. abiotic depletion, non fuel (AD) | E21: kg Sb eq | F21: =SUMIFS((_xlfn.XLOOKUP('Weighting Set'!$Z5,Modellering!$K$5:$BH$5,Modellering!$K$6:$BH$17)),Modellering!$E$6:$E$17,Milieuprofielen!F$18) -> 0.002751280861 | G21: =SUMIFS((_xlfn.XLOOKUP('Weighting Set'!$Z5,Modellering!$K$5:$BH$5,Modellering!$K$6:$BH$17)),Modellering!$E$6:$E$17,Milieuprofielen!G$18) -> 0.00133785308 | H21: =SUMIFS((_xlfn.XLOOKUP('Weighting Set'!$Z5,Modellering!$K$5:$BH$5,Modellering!$K$6:$BH$17)),Modellering!$E$6:$E$17,Milieuprofielen!H$18) -> 0.005943285298 | I21: 0.01003241924 | L21: Characterized EN15804+A1 | M21: 001. abiotic depletion, non fuel (AD) | N21: kg Sb eq | O21: =SUMIFS((_xlfn.XLOOKUP('Weighting Set'!$Z5,Modellering!$K$25:$BH$25,Modellering!$K$26:$BH$37)),Modellering!$E$26:$E$37,Milieuprofielen!O$18) -> 0 | P21: =SUMIFS((_xlfn.XLOOKUP('Weighting Set'!$Z5,Modellering!$K$25:$BH$25,Modellering!$K$26:$BH$37)),Modellering!$E$26:$E$37,Milieuprofielen!P$18) -> 0 | Q21: =SUMIFS((_xlfn.XLOOKUP('Weighting Set'!$Z5,Modellering!$K$25:$BH$25,Modellering!$K$26:$BH$37)),Modellering!$E$26:$E$37,Milieuprofielen!Q$18) -> 0 | R21: =SUM(O21:Q21) -> 0 | U21: Characterized EN15804+A1 | V21: 001. abiotic depletion, non fuel (AD) | W21: kg Sb eq | X21: =SUMIFS((_xlfn.XLOOKUP('Weighting Set'!$Z5,Modellering!$K$45:$BH$45,Modellering!$K$46:$BH$57)),Modellering!$E$46:$E$57,Milieuprofielen!X$18) -> 0 | Y21: =SUMIFS((_xlfn.XLOOKUP('Weighting Set'!$Z5,Modellering!$K$45:$BH$45,Modellering!$K$46:$BH$57)),Modellering!$E$46:$E$57,Milieuprofielen!Y$18) -> 0 | Z21: =SUMIFS((_xlfn.XLOOKUP('Weighting Set'!$Z5,Modellering!$K$45:$BH$45,Modellering!$K$46:$BH$57)),Modellering!$E$46:$E$57,Milieuprofielen!Z$18) -> 0 | AA21: 0 | AD21: Characterized EN15804+A1 | AE21: 001. abiotic depletion, non fuel (AD) | AF21: kg Sb eq | AG21: =SUMIFS((_xlfn.XLOOKUP('Weighting Set'!$Z5,Modellering!$K$65:$BH$65,Modellering!$K$66:$BH$77)),Modellering!$E$66:$E$77,Milieuprofielen!AG$18) -> 0 | AH21: =SUMIFS((_xlfn.XLOOKUP('Weighting Set'!$Z5,Modellering!$K$65:$BH$65,Modellering!$K$66:$BH$77)),Modellering!$E$66:$E$77,Milieuprofielen!AH$18) -> 0 | AI21: =SUMIFS((_xlfn.XLOOKUP('Weighting Set'!$Z5,Modellering!$K$65:$BH$65,Modellering!$K$66:$BH$77)),Modellering!$E$66:$E$77,Milieuprofielen!AI$18) -> 0 | AJ21: 0 | AM21: Characterized EN15804+A1 | AN21: 001. abiotic depletion, non fuel (AD) | AO21: kg Sb eq | AP21: =SUMIFS((_xlfn.XLOOKUP('Weighting Set'!$Z5,Modellering!$K$85:$BH$85,Modellering!$K$86:$BH$97)),Modellering!$E$86:$E$97,Milieuprofielen!AP$18) -> 0 | AQ21: =SUMIFS((_xlfn.XLOOKUP('Weighting Set'!$Z5,Modellering!$K$85:$BH$85,Modellering!$K$86:$BH$97)),Modellering!$E$86:$E$97,Milieuprofielen!AQ$18) -> 0 | AR21: =SUMIFS((_xlfn.XLOOKUP('Weighting Set'!$Z5,Modellering!$K$85:$BH$85,Modellering!$K$86:$BH$97)),Modellering!$E$86:$E$97,Milieuprofielen!AR$18) -> 0 | AS21: 0
D22: 002. abiotic depletion, fuel (AD) | E22: kg Sb eq | F22: =SUMIFS((_xlfn.XLOOKUP('Weighting Set'!$Z6,Modellering!$K$5:$BH$5,Modellering!$K$6:$BH$17)),Modellering!$E$6:$E$17,Milieuprofielen!F$18) -> 25.80079087 | G22: =SUMIFS((_xlfn.XLOOKUP('Weighting Set'!$Z6,Modellering!$K$5:$BH$5,Modellering!$K$6:$BH$17)),Modellering!$E$6:$E$17,Milieuprofielen!G$18) -> 0.1393353037 | H22: =SUMIFS((_xlfn.XLOOKUP('Weighting Set'!$Z6,Modellering!$K$5:$BH$5,Modellering!$K$6:$BH$17)),Modellering!$E$6:$E$17,Milieuprofielen!H$18) -> 0.3958797341 | I22: 26.33600591 | M22: 002. abiotic depletion, fuel (AD) | N22: kg Sb eq | O22: =SUMIFS((_xlfn.XLOOKUP('Weighting Set'!$Z6,Modellering!$K$25:$BH$25,Modellering!$K$26:$BH$37)),Modellering!$E$26:$E$37,Milieuprofielen!O$18) -> 0 | P22: =SUMIFS((_xlfn.XLOOKUP('Weighting Set'!$Z6,Modellering!$K$25:$BH$25,Modellering!$K$26:$BH$37)),Modellering!$E$26:$E$37,Milieuprofielen!P$18) -> 0 | Q22: =SUMIFS((_xlfn.XLOOKUP('Weighting Set'!$Z6,Modellering!$K$25:$BH$25,Modellering!$K$26:$BH$37)),Modellering!$E$26:$E$37,Milieuprofielen!Q$18) -> 0 | R22: 0 | V22: 002. abiotic depletion, fuel (AD) | W22: kg Sb eq | X22: =SUMIFS((_xlfn.XLOOKUP('Weighting Set'!$Z6,Modellering!$K$45:$BH$45,Modellering!$K$46:$BH$57)),Modellering!$E$46:$E$57,Milieuprofielen!X$18) -> 0 | Y22: =SUMIFS((_xlfn.XLOOKUP('Weighting Set'!$Z6,Modellering!$K$45:$BH$45,Modellering!$K$46:$BH$57)),Modellering!$E$46:$E$57,Milieuprofielen!Y$18) -> 0 | Z22: =SUMIFS((_xlfn.XLOOKUP('Weighting Set'!$Z6,Modellering!$K$45:$BH$45,Modellering!$K$46:$BH$57)),Modellering!$E$46:$E$57,Milieuprofielen!Z$18) -> 0 | AA22: 0 | AE22: 002. abiotic depletion, fuel (AD) | AF22: kg Sb eq | AG22: =SUMIFS((_xlfn.XLOOKUP('Weighting Set'!$Z6,Modellering!$K$65:$BH$65,Modellering!$K$66:$BH$77)),Modellering!$E$66:$E$77,Milieuprofielen!AG$18) -> 0 | AH22: =SUMIFS((_xlfn.XLOOKUP('Weighting Set'!$Z6,Modellering!$K$65:$BH$65,Modellering!$K$66:$BH$77)),Modellering!$E$66:$E$77,Milieuprofielen!AH$18) -> 0 | AI22: =SUMIFS((_xlfn.XLOOKUP('Weighting Set'!$Z6,Modellering!$K$65:$BH$65,Modellering!$K$66:$BH$77)),Modellering!$E$66:$E$77,Milieuprofielen!AI$18) -> 0 | AJ22: 0 | AN22: 002. abiotic depletion, fuel (AD) | AO22: kg Sb eq | AP22: =SUMIFS((_xlfn.XLOOKUP('Weighting Set'!$Z6,Modellering!$K$85:$BH$85,Modellering!$K$86:$BH$97)),Modellering!$E$86:$E$97,Milieuprofielen!AP$18) -> 0 | AQ22: =SUMIFS((_xlfn.XLOOKUP('Weighting Set'!$Z6,Modellering!$K$85:$BH$85,Modellering!$K$86:$BH$97)),Modellering!$E$86:$E$97,Milieuprofielen!AQ$18) -> 0 | AR22: =SUMIFS((_xlfn.XLOOKUP('Weighting Set'!$Z6,Modellering!$K$85:$BH$85,Modellering!$K$86:$BH$97)),Modellering!$E$86:$E$97,Milieuprofielen!AR$18) -> 0 | AS22: 0
D23: 004. global warming (GWP) | E23: kg CO2 eq | F23: =SUMIFS((_xlfn.XLOOKUP('Weighting Set'!$Z7,Modellering!$K$5:$BH$5,Modellering!$K$6:$BH$17)),Modellering!$E$6:$E$17,Milieuprofielen!F$18) -> 649.0119289 | G23: =SUMIFS((_xlfn.XLOOKUP('Weighting Set'!$Z7,Modellering!$K$5:$BH$5,Modellering!$K$6:$BH$17)),Modellering!$E$6:$E$17,Milieuprofielen!G$18) -> 19.14024491 | H23: =SUMIFS((_xlfn.XLOOKUP('Weighting Set'!$Z7,Modellering!$K$5:$BH$5,Modellering!$K$6:$BH$17)),Modellering!$E$6:$E$17,Milieuprofielen!H$18) -> 3305.591264 | I23: 3973.743438 | M23: 004. global warming (GWP) | N23: kg CO2 eq | O23: =SUMIFS((_xlfn.XLOOKUP('Weighting Set'!$Z7,Modellering!$K$25:$BH$25,Modellering!$K$26:$BH$37)),Modellering!$E$26:$E$37,Milieuprofielen!O$18) -> 0 | P23: =SUMIFS((_xlfn.XLOOKUP('Weighting Set'!$Z7,Modellering!$K$25:$BH$25,Modellering!$K$26:$BH$37)),Modellering!$E$26:$E$37,Milieuprofielen!P$18) -> 0 | Q23: =SUMIFS((_xlfn.XLOOKUP('Weighting Set'!$Z7,Modellering!$K$25:$BH$25,Modellering!$K$26:$BH$37)),Modellering!$E$26:$E$37,Milieuprofielen!Q$18) -> 0 | R23: 0 | V23: 004. global warming (GWP) | W23: kg CO2 eq | X23: =SUMIFS((_xlfn.XLOOKUP('Weighting Set'!$Z7,Modellering!$K$45:$BH$45,Modellering!$K$46:$BH$57)),Modellering!$E$46:$E$57,Milieuprofielen!X$18) -> 0 | Y23: =SUMIFS((_xlfn.XLOOKUP('Weighting Set'!$Z7,Modellering!$K$45:$BH$45,Modellering!$K$46:$BH$57)),Modellering!$E$46:$E$57,Milieuprofielen!Y$18) -> 0 | Z23: =SUMIFS((_xlfn.XLOOKUP('Weighting Set'!$Z7,Modellering!$K$45:$BH$45,Modellering!$K$46:$BH$57)),Modellering!$E$46:$E$57,Milieuprofielen!Z$18) -> 0 | AA23: 0 | AE23: 004. global warming (GWP) | AF23: kg CO2 eq | AG23: =SUMIFS((_xlfn.XLOOKUP('Weighting Set'!$Z7,Modellering!$K$65:$BH$65,Modellering!$K$66:$BH$77)),Modellering!$E$66:$E$77,Milieuprofielen!AG$18) -> 0 | AH23: =SUMIFS((_xlfn.XLOOKUP('Weighting Set'!$Z7,Modellering!$K$65:$BH$65,Modellering!$K$66:$BH$77)),Modellering!$E$66:$E$77,Milieuprofielen!AH$18) -> 0 | AI23: =SUMIFS((_xlfn.XLOOKUP('Weighting Set'!$Z7,Modellering!$K$65:$BH$65,Modellering!$K$66:$BH$77)),Modellering!$E$66:$E$77,Milieuprofielen!AI$18) -> 0 | AJ23: 0 | AN23: 004. global warming (GWP) | AO23: kg CO2 eq | AP23: =SUMIFS((_xlfn.XLOOKUP('Weighting Set'!$Z7,Modellering!$K$85:$BH$85,Modellering!$K$86:$BH$97)),Modellering!$E$86:$E$97,Milieuprofielen!AP$18) -> 0 | AQ23: =SUMIFS((_xlfn.XLOOKUP('Weighting Set'!$Z7,Modellering!$K$85:$BH$85,Modellering!$K$86:$BH$97)),Modellering!$E$86:$E$97,Milieuprofielen!AQ$18) -> 0 | AR23: =SUMIFS((_xlfn.XLOOKUP('Weighting Set'!$Z7,Modellering!$K$85:$BH$85,Modellering!$K$86:$BH$97)),Modellering!$E$86:$E$97,Milieuprofielen!AR$18) -> 0 | AS23: 0
D24: 005. ozone layer depletion (ODP) | E24: kg CFC-11 eq | F24: =SUMIFS((_xlfn.XLOOKUP('Weighting Set'!$Z8,Modellering!$K$5:$BH$5,Modellering!$K$6:$BH$17)),Modellering!$E$6:$E$17,Milieuprofielen!F$18) -> 0.0006221948954 | G24: =SUMIFS((_xlfn.XLOOKUP('Weighting Set'!$Z8,Modellering!$K$5:$BH$5,Modellering!$K$6:$BH$17)),Modellering!$E$6:$E$17,Milieuprofielen!G$18) -> 3.159273939e-06 | H24: =SUMIFS((_xlfn.XLOOKUP('Weighting Set'!$Z8,Modellering!$K$5:$BH$5,Modellering!$K$6:$BH$17)),Modellering!$E$6:$E$17,Milieuprofielen!H$18) -> 2.043495936e-05 | I24: 0.0006457891287 | M24: 005. ozone layer depletion (ODP) | N24: kg CFC-11 eq | O24: =SUMIFS((_xlfn.XLOOKUP('Weighting Set'!$Z8,Modellering!$K$25:$BH$25,Modellering!$K$26:$BH$37)),Modellering!$E$26:$E$37,Milieuprofielen!O$18) -> 0 | P24: =SUMIFS((_xlfn.XLOOKUP('Weighting Set'!$Z8,Modellering!$K$25:$BH$25,Modellering!$K$26:$BH$37)),Modellering!$E$26:$E$37,Milieuprofielen!P$18) -> 0 | Q24: =SUMIFS((_xlfn.XLOOKUP('Weighting Set'!$Z8,Modellering!$K$25:$BH$25,Modellering!$K$26:$BH$37)),Modellering!$E$26:$E$37,Milieuprofielen!Q$18) -> 0 | R24: 0 | V24: 005. ozone layer depletion (ODP) | W24: kg CFC-11 eq | X24: =SUMIFS((_xlfn.XLOOKUP('Weighting Set'!$Z8,Modellering!$K$45:$BH$45,Modellering!$K$46:$BH$57)),Modellering!$E$46:$E$57,Milieuprofielen!X$18) -> 0 | Y24: =SUMIFS((_xlfn.XLOOKUP('Weighting Set'!$Z8,Modellering!$K$45:$BH$45,Modellering!$K$46:$BH$57)),Modellering!$E$46:$E$57,Milieuprofielen!Y$18) -> 0 | Z24: =SUMIFS((_xlfn.XLOOKUP('Weighting Set'!$Z8,Modellering!$K$45:$BH$45,Modellering!$K$46:$BH$57)),Modellering!$E$46:$E$57,Milieuprofielen!Z$18) -> 0 | AA24: 0 | AE24: 005. ozone layer depletion (ODP) | AF24: kg CFC-11 eq | AG24: =SUMIFS((_xlfn.XLOOKUP('Weighting Set'!$Z8,Modellering!$K$65:$BH$65,Modellering!$K$66:$BH$77)),Modellering!$E$66:$E$77,Milieuprofielen!AG$18) -> 0 | AH24: =SUMIFS((_xlfn.XLOOKUP('Weighting Set'!$Z8,Modellering!$K$65:$BH$65,Modellering!$K$66:$BH$77)),Modellering!$E$66:$E$77,Milieuprofielen!AH$18) -> 0 | AI24: =SUMIFS((_xlfn.XLOOKUP('Weighting Set'!$Z8,Modellering!$K$65:$BH$65,Modellering!$K$66:$BH$77)),Modellering!$E$66:$E$77,Milieuprofielen!AI$18) -> 0 | AJ24: 0 | AN24: 005. ozone layer depletion (ODP) | AO24: kg CFC-11 eq | AP24: =SUMIFS((_xlfn.XLOOKUP('Weighting Set'!$Z8,Modellering!$K$85:$BH$85,Modellering!$K$86:$BH$97)),Modellering!$E$86:$E$97,Milieuprofielen!AP$18) -> 0 | AQ24: =SUMIFS((_xlfn.XLOOKUP('Weighting Set'!$Z8,Modellering!$K$85:$BH$85,Modellering!$K$86:$BH$97)),Modellering!$E$86:$E$97,Milieuprofielen!AQ$18) -> 0 | AR24: =SUMIFS((_xlfn.XLOOKUP('Weighting Set'!$Z8,Modellering!$K$85:$BH$85,Modellering!$K$86:$BH$97)),Modellering!$E$86:$E$97,Milieuprofielen!AR$18) -> 0 | AS24: 0
D25: 006. photochemical oxidation (POCP) | E25: kg C2H4 | F25: =SUMIFS((_xlfn.XLOOKUP('Weighting Set'!$Z9,Modellering!$K$5:$BH$5,Modellering!$K$6:$BH$17)),Modellering!$E$6:$E$17,Milieuprofielen!F$18) -> 0.9151899318 | G25: =SUMIFS((_xlfn.XLOOKUP('Weighting Set'!$Z9,Modellering!$K$5:$BH$5,Modellering!$K$6:$BH$17)),Modellering!$E$6:$E$17,Milieuprofielen!G$18) -> 0.0119129535 | H25: =SUMIFS((_xlfn.XLOOKUP('Weighting Set'!$Z9,Modellering!$K$5:$BH$5,Modellering!$K$6:$BH$17)),Modellering!$E$6:$E$17,Milieuprofielen!H$18) -> 0.195580641 | I25: 1.122683526 | M25: 006. photochemical oxidation (POCP) | N25: kg C2H4 | O25: =SUMIFS((_xlfn.XLOOKUP('Weighting Set'!$Z9,Modellering!$K$25:$BH$25,Modellering!$K$26:$BH$37)),Modellering!$E$26:$E$37,Milieuprofielen!O$18) -> 0 | P25: =SUMIFS((_xlfn.XLOOKUP('Weighting Set'!$Z9,Modellering!$K$25:$BH$25,Modellering!$K$26:$BH$37)),Modellering!$E$26:$E$37,Milieuprofielen!P$18) -> 0 | Q25: =SUMIFS((_xlfn.XLOOKUP('Weighting Set'!$Z9,Modellering!$K$25:$BH$25,Modellering!$K$26:$BH$37)),Modellering!$E$26:$E$37,Milieuprofielen!Q$18) -> 0 | R25: 0 | V25: 006. photochemical oxidation (POCP) | W25: kg C2H4 | X25: =SUMIFS((_xlfn.XLOOKUP('Weighting Set'!$Z9,Modellering!$K$45:$BH$45,Modellering!$K$46:$BH$57)),Modellering!$E$46:$E$57,Milieuprofielen!X$18) -> 0 | Y25: =SUMIFS((_xlfn.XLOOKUP('Weighting Set'!$Z9,Modellering!$K$45:$BH$45,Modellering!$K$46:$BH$57)),Modellering!$E$46:$E$57,Milieuprofielen!Y$18) -> 0 | Z25: =SUMIFS((_xlfn.XLOOKUP('Weighting Set'!$Z9,Modellering!$K$45:$BH$45,Modellering!$K$46:$BH$57)),Modellering!$E$46:$E$57,Milieuprofielen!Z$18) -> 0 | AA25: 0 | AE25: 006. photochemical oxidation (POCP) | AF25: kg C2H4 | AG25: =SUMIFS((_xlfn.XLOOKUP('Weighting Set'!$Z9,Modellering!$K$65:$BH$65,Modellering!$K$66:$BH$77)),Modellering!$E$66:$E$77,Milieuprofielen!AG$18) -> 0 | AH25: =SUMIFS((_xlfn.XLOOKUP('Weighting Set'!$Z9,Modellering!$K$65:$BH$65,Modellering!$K$66:$BH$77)),Modellering!$E$66:$E$77,Milieuprofielen!AH$18) -> 0 | AI25: =SUMIFS((_xlfn.XLOOKUP('Weighting Set'!$Z9,Modellering!$K$65:$BH$65,Modellering!$K$66:$BH$77)),Modellering!$E$66:$E$77,Milieuprofielen!AI$18) -> 0 | AJ25: 0 | AN25: 006. photochemical oxidation (POCP) | AO25: kg C2H4 | AP25: =SUMIFS((_xlfn.XLOOKUP('Weighting Set'!$Z9,Modellering!$K$85:$BH$85,Modellering!$K$86:$BH$97)),Modellering!$E$86:$E$97,Milieuprofielen!AP$18) -> 0 | AQ25: =SUMIFS((_xlfn.XLOOKUP('Weighting Set'!$Z9,Modellering!$K$85:$BH$85,Modellering!$K$86:$BH$97)),Modellering!$E$86:$E$97,Milieuprofielen!AQ$18) -> 0 | AR25: =SUMIFS((_xlfn.XLOOKUP('Weighting Set'!$Z9,Modellering!$K$85:$BH$85,Modellering!$K$86:$BH$97)),Modellering!$E$86:$E$97,Milieuprofielen!AR$18) -> 0 | AS25: 0
D26: 007. acidification (AP) | E26: kg SO2 eq | F26: =SUMIFS((_xlfn.XLOOKUP('Weighting Set'!$Z10,Modellering!$K$5:$BH$5,Modellering!$K$6:$BH$17)),Modellering!$E$6:$E$17,Milieuprofielen!F$18) -> 5.258319487 | G26: =SUMIFS((_xlfn.XLOOKUP('Weighting Set'!$Z10,Modellering!$K$5:$BH$5,Modellering!$K$6:$BH$17)),Modellering!$E$6:$E$17,Milieuprofielen!G$18) -> 0.07918753517 | H26: =SUMIFS((_xlfn.XLOOKUP('Weighting Set'!$Z10,Modellering!$K$5:$BH$5,Modellering!$K$6:$BH$17)),Modellering!$E$6:$E$17,Milieuprofielen!H$18) -> 10.7690859 | I26: 16.10659292 | M26: 007. acidification (AP) | N26: kg SO2 eq | O26: =SUMIFS((_xlfn.XLOOKUP('Weighting Set'!$Z10,Modellering!$K$25:$BH$25,Modellering!$K$26:$BH$37)),Modellering!$E$26:$E$37,Milieuprofielen!O$18) -> 0 | P26: =SUMIFS((_xlfn.XLOOKUP('Weighting Set'!$Z10,Modellering!$K$25:$BH$25,Modellering!$K$26:$BH$37)),Modellering!$E$26:$E$37,Milieuprofielen!P$18) -> 0 | Q26: =SUMIFS((_xlfn.XLOOKUP('Weighting Set'!$Z10,Modellering!$K$25:$BH$25,Modellering!$K$26:$BH$37)),Modellering!$E$26:$E$37,Milieuprofielen!Q$18) -> 0 | R26: 0 | V26: 007. acidification (AP) | W26: kg SO2 eq | X26: =SUMIFS((_xlfn.XLOOKUP('Weighting Set'!$Z10,Modellering!$K$45:$BH$45,Modellering!$K$46:$BH$57)),Modellering!$E$46:$E$57,Milieuprofielen!X$18) -> 0 | Y26: =SUMIFS((_xlfn.XLOOKUP('Weighting Set'!$Z10,Modellering!$K$45:$BH$45,Modellering!$K$46:$BH$57)),Modellering!$E$46:$E$57,Milieuprofielen!Y$18) -> 0 | Z26: =SUMIFS((_xlfn.XLOOKUP('Weighting Set'!$Z10,Modellering!$K$45:$BH$45,Modellering!$K$46:$BH$57)),Modellering!$E$46:$E$57,Milieuprofielen!Z$18) -> 0 | AA26: 0 | AE26: 007. acidification (AP) | AF26: kg SO2 eq | AG26: =SUMIFS((_xlfn.XLOOKUP('Weighting Set'!$Z10,Modellering!$K$65:$BH$65,Modellering!$K$66:$BH$77)),Modellering!$E$66:$E$77,Milieuprofielen!AG$18) -> 0 | AH26: =SUMIFS((_xlfn.XLOOKUP('Weighting Set'!$Z10,Modellering!$K$65:$BH$65,Modellering!$K$66:$BH$77)),Modellering!$E$66:$E$77,Milieuprofielen!AH$18) -> 0 | AI26: =SUMIFS((_xlfn.XLOOKUP('Weighting Set'!$Z10,Modellering!$K$65:$BH$65,Modellering!$K$66:$BH$77)),Modellering!$E$66:$E$77,Milieuprofielen!AI$18) -> 0 | AJ26: 0 | AN26: 007. acidification (AP) | AO26: kg SO2 eq | AP26: =SUMIFS((_xlfn.XLOOKUP('Weighting Set'!$Z10,Modellering!$K$85:$BH$85,Modellering!$K$86:$BH$97)),Modellering!$E$86:$E$97,Milieuprofielen!AP$18) -> 0 | AQ26: =SUMIFS((_xlfn.XLOOKUP('Weighting Set'!$Z10,Modellering!$K$85:$BH$85,Modellering!$K$86:$BH$97)),Modellering!$E$86:$E$97,Milieuprofielen!AQ$18) -> 0 | AR26: =SUMIFS((_xlfn.XLOOKUP('Weighting Set'!$Z10,Modellering!$K$85:$BH$85,Modellering!$K$86:$BH$97)),Modellering!$E$86:$E$97,Milieuprofielen!AR$18) -> 0 | AS26: 0
D27: 008. eutrophication (EP) | E27: kg PO4--- eq | F27: =SUMIFS((_xlfn.XLOOKUP('Weighting Set'!$Z11,Modellering!$K$5:$BH$5,Modellering!$K$6:$BH$17)),Modellering!$E$6:$E$17,Milieuprofielen!F$18) -> 0.7042369803 | G27: =SUMIFS((_xlfn.XLOOKUP('Weighting Set'!$Z11,Modellering!$K$5:$BH$5,Modellering!$K$6:$BH$17)),Modellering!$E$6:$E$17,Milieuprofielen!G$18) -> 0.01400998809 | H27: =SUMIFS((_xlfn.XLOOKUP('Weighting Set'!$Z11,Modellering!$K$5:$BH$5,Modellering!$K$6:$BH$17)),Modellering!$E$6:$E$17,Milieuprofielen!H$18) -> 2.673016444 | I27: 3.391263412 | M27: 008. eutrophication (EP) | N27: kg PO4--- eq | O27: =SUMIFS((_xlfn.XLOOKUP('Weighting Set'!$Z11,Modellering!$K$25:$BH$25,Modellering!$K$26:$BH$37)),Modellering!$E$26:$E$37,Milieuprofielen!O$18) -> 0 | P27: =SUMIFS((_xlfn.XLOOKUP('Weighting Set'!$Z11,Modellering!$K$25:$BH$25,Modellering!$K$26:$BH$37)),Modellering!$E$26:$E$37,Milieuprofielen!P$18) -> 0 | Q27: =SUMIFS((_xlfn.XLOOKUP('Weighting Set'!$Z11,Modellering!$K$25:$BH$25,Modellering!$K$26:$BH$37)),Modellering!$E$26:$E$37,Milieuprofielen!Q$18) -> 0 | R27: 0 | V27: 008. eutrophication (EP) | W27: kg PO4--- eq | X27: =SUMIFS((_xlfn.XLOOKUP('Weighting Set'!$Z11,Modellering!$K$45:$BH$45,Modellering!$K$46:$BH$57)),Modellering!$E$46:$E$57,Milieuprofielen!X$18) -> 0 | Y27: =SUMIFS((_xlfn.XLOOKUP('Weighting Set'!$Z11,Modellering!$K$45:$BH$45,Modellering!$K$46:$BH$57)),Modellering!$E$46:$E$57,Milieuprofielen!Y$18) -> 0 | Z27: =SUMIFS((_xlfn.XLOOKUP('Weighting Set'!$Z11,Modellering!$K$45:$BH$45,Modellering!$K$46:$BH$57)),Modellering!$E$46:$E$57,Milieuprofielen!Z$18) -> 0 | AA27: 0 | AE27: 008. eutrophication (EP) | AF27: kg PO4--- eq | AG27: =SUMIFS((_xlfn.XLOOKUP('Weighting Set'!$Z11,Modellering!$K$65:$BH$65,Modellering!$K$66:$BH$77)),Modellering!$E$66:$E$77,Milieuprofielen!AG$18) -> 0 | AH27: =SUMIFS((_xlfn.XLOOKUP('Weighting Set'!$Z11,Modellering!$K$65:$BH$65,Modellering!$K$66:$BH$77)),Modellering!$E$66:$E$77,Milieuprofielen!AH$18) -> 0 | AI27: =SUMIFS((_xlfn.XLOOKUP('Weighting Set'!$Z11,Modellering!$K$65:$BH$65,Modellering!$K$66:$BH$77)),Modellering!$E$66:$E$77,Milieuprofielen!AI$18) -> 0 | AJ27: 0 | AN27: 008. eutrophication (EP) | AO27: kg PO4--- eq | AP27: =SUMIFS((_xlfn.XLOOKUP('Weighting Set'!$Z11,Modellering!$K$85:$BH$85,Modellering!$K$86:$BH$97)),Modellering!$E$86:$E$97,Milieuprofielen!AP$18) -> 0 | AQ27: =SUMIFS((_xlfn.XLOOKUP('Weighting Set'!$Z11,Modellering!$K$85:$BH$85,Modellering!$K$86:$BH$97)),Modellering!$E$86:$E$97,Milieuprofielen!AQ$18) -> 0 | AR27: =SUMIFS((_xlfn.XLOOKUP('Weighting Set'!$Z11,Modellering!$K$85:$BH$85,Modellering!$K$86:$BH$97)),Modellering!$E$86:$E$97,Milieuprofielen!AR$18) -> 0 | AS27: 0
D28: 009. human toxicity (HT) | E28: kg 1,4-DB eq | F28: =SUMIFS((_xlfn.XLOOKUP('Weighting Set'!$Z12,Modellering!$K$5:$BH$5,Modellering!$K$6:$BH$17)),Modellering!$E$6:$E$17,Milieuprofielen!F$18) -> 359.6250453 | G28: =SUMIFS((_xlfn.XLOOKUP('Weighting Set'!$Z12,Modellering!$K$5:$BH$5,Modellering!$K$6:$BH$17)),Modellering!$E$6:$E$17,Milieuprofielen!G$18) -> 5.598467184 | H28: =SUMIFS((_xlfn.XLOOKUP('Weighting Set'!$Z12,Modellering!$K$5:$BH$5,Modellering!$K$6:$BH$17)),Modellering!$E$6:$E$17,Milieuprofielen!H$18) -> 148.3707119 | I28: 513.5942244 | M28: 009. human toxicity (HT) | N28: kg 1,4-DB eq | O28: =SUMIFS((_xlfn.XLOOKUP('Weighting Set'!$Z12,Modellering!$K$25:$BH$25,Modellering!$K$26:$BH$37)),Modellering!$E$26:$E$37,Milieuprofielen!O$18) -> 0 | P28: =SUMIFS((_xlfn.XLOOKUP('Weighting Set'!$Z12,Modellering!$K$25:$BH$25,Modellering!$K$26:$BH$37)),Modellering!$E$26:$E$37,Milieuprofielen!P$18) -> 0 | Q28: =SUMIFS((_xlfn.XLOOKUP('Weighting Set'!$Z12,Modellering!$K$25:$BH$25,Modellering!$K$26:$BH$37)),Modellering!$E$26:$E$37,Milieuprofielen!Q$18) -> 0 | R28: 0 | V28: 009. human toxicity (HT) | W28: kg 1,4-DB eq | X28: =SUMIFS((_xlfn.XLOOKUP('Weighting Set'!$Z12,Modellering!$K$45:$BH$45,Modellering!$K$46:$BH$57)),Modellering!$E$46:$E$57,Milieuprofielen!X$18) -> 0 | Y28: =SUMIFS((_xlfn.XLOOKUP('Weighting Set'!$Z12,Modellering!$K$45:$BH$45,Modellering!$K$46:$BH$57)),Modellering!$E$46:$E$57,Milieuprofielen!Y$18) -> 0 | Z28: =SUMIFS((_xlfn.XLOOKUP('Weighting Set'!$Z12,Modellering!$K$45:$BH$45,Modellering!$K$46:$BH$57)),Modellering!$E$46:$E$57,Milieuprofielen!Z$18) -> 0 | AA28: 0 | AE28: 009. human toxicity (HT) | AF28: kg 1,4-DB eq | AG28: =SUMIFS((_xlfn.XLOOKUP('Weighting Set'!$Z12,Modellering!$K$65:$BH$65,Modellering!$K$66:$BH$77)),Modellering!$E$66:$E$77,Milieuprofielen!AG$18) -> 0 | AH28: =SUMIFS((_xlfn.XLOOKUP('Weighting Set'!$Z12,Modellering!$K$65:$BH$65,Modellering!$K$66:$BH$77)),Modellering!$E$66:$E$77,Milieuprofielen!AH$18) -> 0 | AI28: =SUMIFS((_xlfn.XLOOKUP('Weighting Set'!$Z12,Modellering!$K$65:$BH$65,Modellering!$K$66:$BH$77)),Modellering!$E$66:$E$77,Milieuprofielen!AI$18) -> 0 | AJ28: 0 | AN28: 009. human toxicity (HT) | AO28: kg 1,4-DB eq | AP28: =SUMIFS((_xlfn.XLOOKUP('Weighting Set'!$Z12,Modellering!$K$85:$BH$85,Modellering!$K$86:$BH$97)),Modellering!$E$86:$E$97,Milieuprofielen!AP$18) -> 0 | AQ28: =SUMIFS((_xlfn.XLOOKUP('Weighting Set'!$Z12,Modellering!$K$85:$BH$85,Modellering!$K$86:$BH$97)),Modellering!$E$86:$E$97,Milieuprofielen!AQ$18) -> 0 | AR28: =SUMIFS((_xlfn.XLOOKUP('Weighting Set'!$Z12,Modellering!$K$85:$BH$85,Modellering!$K$86:$BH$97)),Modellering!$E$86:$E$97,Milieuprofielen!AR$18) -> 0 | AS28: 0
D29: 010. Ecotoxicity, fresh water (FAETP) | E29: kg 1,4-DB eq | F29: =SUMIFS((_xlfn.XLOOKUP('Weighting Set'!$Z13,Modellering!$K$5:$BH$5,Modellering!$K$6:$BH$17)),Modellering!$E$6:$E$17,Milieuprofielen!F$18) -> 14.39722053 | G29: =SUMIFS((_xlfn.XLOOKUP('Weighting Set'!$Z13,Modellering!$K$5:$BH$5,Modellering!$K$6:$BH$17)),Modellering!$E$6:$E$17,Milieuprofielen!G$18) -> 0.1831446521 | H29: =SUMIFS((_xlfn.XLOOKUP('Weighting Set'!$Z13,Modellering!$K$5:$BH$5,Modellering!$K$6:$BH$17)),Modellering!$E$6:$E$17,Milieuprofielen!H$18) -> 0.889880291 | I29: 15.47024547 | M29: 010. Ecotoxicity, fresh water (FAETP) | N29: kg 1,4-DB eq | O29: =SUMIFS((_xlfn.XLOOKUP('Weighting Set'!$Z13,Modellering!$K$25:$BH$25,Modellering!$K$26:$BH$37)),Modellering!$E$26:$E$37,Milieuprofielen!O$18) -> 0 | P29: =SUMIFS((_xlfn.XLOOKUP('Weighting Set'!$Z13,Modellering!$K$25:$BH$25,Modellering!$K$26:$BH$37)),Modellering!$E$26:$E$37,Milieuprofielen!P$18) -> 0 | Q29: =SUMIFS((_xlfn.XLOOKUP('Weighting Set'!$Z13,Modellering!$K$25:$BH$25,Modellering!$K$26:$BH$37)),Modellering!$E$26:$E$37,Milieuprofielen!Q$18) -> 0 | R29: 0 | V29: 010. Ecotoxicity, fresh water (FAETP) | W29: kg 1,4-DB eq | X29: =SUMIFS((_xlfn.XLOOKUP('Weighting Set'!$Z13,Modellering!$K$45:$BH$45,Modellering!$K$46:$BH$57)),Modellering!$E$46:$E$57,Milieuprofielen!X$18) -> 0 | Y29: =SUMIFS((_xlfn.XLOOKUP('Weighting Set'!$Z13,Modellering!$K$45:$BH$45,Modellering!$K$46:$BH$57)),Modellering!$E$46:$E$57,Milieuprofielen!Y$18) -> 0 | Z29: =SUMIFS((_xlfn.XLOOKUP('Weighting Set'!$Z13,Modellering!$K$45:$BH$45,Modellering!$K$46:$BH$57)),Modellering!$E$46:$E$57,Milieuprofielen!Z$18) -> 0 | AA29: 0 | AE29: 010. Ecotoxicity, fresh water (FAETP) | AF29: kg 1,4-DB eq | AG29: =SUMIFS((_xlfn.XLOOKUP('Weighting Set'!$Z13,Modellering!$K$65:$BH$65,Modellering!$K$66:$BH$77)),Modellering!$E$66:$E$77,Milieuprofielen!AG$18) -> 0 | AH29: =SUMIFS((_xlfn.XLOOKUP('Weighting Set'!$Z13,Modellering!$K$65:$BH$65,Modellering!$K$66:$BH$77)),Modellering!$E$66:$E$77,Milieuprofielen!AH$18) -> 0 | AI29: =SUMIFS((_xlfn.XLOOKUP('Weighting Set'!$Z13,Modellering!$K$65:$BH$65,Modellering!$K$66:$BH$77)),Modellering!$E$66:$E$77,Milieuprofielen!AI$18) -> 0 | AJ29: 0 | AN29: 010. Ecotoxicity, fresh water (FAETP) | AO29: kg 1,4-DB eq | AP29: =SUMIFS((_xlfn.XLOOKUP('Weighting Set'!$Z13,Modellering!$K$85:$BH$85,Modellering!$K$86:$BH$97)),Modellering!$E$86:$E$97,Milieuprofielen!AP$18) -> 0 | AQ29: =SUMIFS((_xlfn.XLOOKUP('Weighting Set'!$Z13,Modellering!$K$85:$BH$85,Modellering!$K$86:$BH$97)),Modellering!$E$86:$E$97,Milieuprofielen!AQ$18) -> 0 | AR29: =SUMIFS((_xlfn.XLOOKUP('Weighting Set'!$Z13,Modellering!$K$85:$BH$85,Modellering!$K$86:$BH$97)),Modellering!$E$86:$E$97,Milieuprofielen!AR$18) -> 0 | AS29: 0
D30: 012. Ecotoxcity, marine water (MAETP) | E30: kg 1,4-DB eq | F30: =SUMIFS((_xlfn.XLOOKUP('Weighting Set'!$Z14,Modellering!$K$5:$BH$5,Modellering!$K$6:$BH$17)),Modellering!$E$6:$E$17,Milieuprofielen!F$18) -> 65002.1328 | G30: =SUMIFS((_xlfn.XLOOKUP('Weighting Set'!$Z14,Modellering!$K$5:$BH$5,Modellering!$K$6:$BH$17)),Modellering!$E$6:$E$17,Milieuprofielen!G$18) -> 492.470535 | H30: =SUMIFS((_xlfn.XLOOKUP('Weighting Set'!$Z14,Modellering!$K$5:$BH$5,Modellering!$K$6:$BH$17)),Modellering!$E$6:$E$17,Milieuprofielen!H$18) -> 2338.994797 | I30: 67833.59813 | M30: 012. Ecotoxcity, marine water (MAETP) | N30: kg 1,4-DB eq | O30: =SUMIFS((_xlfn.XLOOKUP('Weighting Set'!$Z14,Modellering!$K$25:$BH$25,Modellering!$K$26:$BH$37)),Modellering!$E$26:$E$37,Milieuprofielen!O$18) -> 0 | P30: =SUMIFS((_xlfn.XLOOKUP('Weighting Set'!$Z14,Modellering!$K$25:$BH$25,Modellering!$K$26:$BH$37)),Modellering!$E$26:$E$37,Milieuprofielen!P$18) -> 0 | Q30: =SUMIFS((_xlfn.XLOOKUP('Weighting Set'!$Z14,Modellering!$K$25:$BH$25,Modellering!$K$26:$BH$37)),Modellering!$E$26:$E$37,Milieuprofielen!Q$18) -> 0 | R30: 0 | V30: 012. Ecotoxcity, marine water (MAETP) | W30: kg 1,4-DB eq | X30: =SUMIFS((_xlfn.XLOOKUP('Weighting Set'!$Z14,Modellering!$K$45:$BH$45,Modellering!$K$46:$BH$57)),Modellering!$E$46:$E$57,Milieuprofielen!X$18) -> 0 | Y30: =SUMIFS((_xlfn.XLOOKUP('Weighting Set'!$Z14,Modellering!$K$45:$BH$45,Modellering!$K$46:$BH$57)),Modellering!$E$46:$E$57,Milieuprofielen!Y$18) -> 0 | Z30: =SUMIFS((_xlfn.XLOOKUP('Weighting Set'!$Z14,Modellering!$K$45:$BH$45,Modellering!$K$46:$BH$57)),Modellering!$E$46:$E$57,Milieuprofielen!Z$18) -> 0 | AA30: 0 | AE30: 012. Ecotoxcity, marine water (MAETP) | AF30: kg 1,4-DB eq | AG30: =SUMIFS((_xlfn.XLOOKUP('Weighting Set'!$Z14,Modellering!$K$65:$BH$65,Modellering!$K$66:$BH$77)),Modellering!$E$66:$E$77,Milieuprofielen!AG$18) -> 0 | AH30: =SUMIFS((_xlfn.XLOOKUP('Weighting Set'!$Z14,Modellering!$K$65:$BH$65,Modellering!$K$66:$BH$77)),Modellering!$E$66:$E$77,Milieuprofielen!AH$18) -> 0 | AI30: =SUMIFS((_xlfn.XLOOKUP('Weighting Set'!$Z14,Modellering!$K$65:$BH$65,Modellering!$K$66:$BH$77)),Modellering!$E$66:$E$77,Milieuprofielen!AI$18) -> 0 | AJ30: 0 | AN30: 012. Ecotoxcity, marine water (MAETP) | AO30: kg 1,4-DB eq | AP30: =SUMIFS((_xlfn.XLOOKUP('Weighting Set'!$Z14,Modellering!$K$85:$BH$85,Modellering!$K$86:$BH$97)),Modellering!$E$86:$E$97,Milieuprofielen!AP$18) -> 0 | AQ30: =SUMIFS((_xlfn.XLOOKUP('Weighting Set'!$Z14,Modellering!$K$85:$BH$85,Modellering!$K$86:$BH$97)),Modellering!$E$86:$E$97,Milieuprofielen!AQ$18) -> 0 | AR30: =SUMIFS((_xlfn.XLOOKUP('Weighting Set'!$Z14,Modellering!$K$85:$BH$85,Modellering!$K$86:$BH$97)),Modellering!$E$86:$E$97,Milieuprofielen!AR$18) -> 0 | AS30: 0
D31: 014. Ecotoxicity, terrestric (TETP) | E31: kg 1,4-DB eq | F31: =SUMIFS((_xlfn.XLOOKUP('Weighting Set'!$Z15,Modellering!$K$5:$BH$5,Modellering!$K$6:$BH$17)),Modellering!$E$6:$E$17,Milieuprofielen!F$18) -> 0.9302996908 | G31: =SUMIFS((_xlfn.XLOOKUP('Weighting Set'!$Z15,Modellering!$K$5:$BH$5,Modellering!$K$6:$BH$17)),Modellering!$E$6:$E$17,Milieuprofielen!G$18) -> 0.04671802785 | H31: =SUMIFS((_xlfn.XLOOKUP('Weighting Set'!$Z15,Modellering!$K$5:$BH$5,Modellering!$K$6:$BH$17)),Modellering!$E$6:$E$17,Milieuprofielen!H$18) -> 1.502222228 | I31: 2.479239947 | M31: 014. Ecotoxicity, terrestric (TETP) | N31: kg 1,4-DB eq | O31: =SUMIFS((_xlfn.XLOOKUP('Weighting Set'!$Z15,Modellering!$K$25:$BH$25,Modellering!$K$26:$BH$37)),Modellering!$E$26:$E$37,Milieuprofielen!O$18) -> 0 | P31: =SUMIFS((_xlfn.XLOOKUP('Weighting Set'!$Z15,Modellering!$K$25:$BH$25,Modellering!$K$26:$BH$37)),Modellering!$E$26:$E$37,Milieuprofielen!P$18) -> 0 | Q31: =SUMIFS((_xlfn.XLOOKUP('Weighting Set'!$Z15,Modellering!$K$25:$BH$25,Modellering!$K$26:$BH$37)),Modellering!$E$26:$E$37,Milieuprofielen!Q$18) -> 0 | R31: 0 | V31: 014. Ecotoxicity, terrestric (TETP) | W31: kg 1,4-DB eq | X31: =SUMIFS((_xlfn.XLOOKUP('Weighting Set'!$Z15,Modellering!$K$45:$BH$45,Modellering!$K$46:$BH$57)),Modellering!$E$46:$E$57,Milieuprofielen!X$18) -> 0 | Y31: =SUMIFS((_xlfn.XLOOKUP('Weighting Set'!$Z15,Modellering!$K$45:$BH$45,Modellering!$K$46:$BH$57)),Modellering!$E$46:$E$57,Milieuprofielen!Y$18) -> 0 | Z31: =SUMIFS((_xlfn.XLOOKUP('Weighting Set'!$Z15,Modellering!$K$45:$BH$45,Modellering!$K$46:$BH$57)),Modellering!$E$46:$E$57,Milieuprofielen!Z$18) -> 0 | AA31: 0 | AE31: 014. Ecotoxicity, terrestric (TETP) | AF31: kg 1,4-DB eq | AG31: =SUMIFS((_xlfn.XLOOKUP('Weighting Set'!$Z15,Modellering!$K$65:$BH$65,Modellering!$K$66:$BH$77)),Modellering!$E$66:$E$77,Milieuprofielen!AG$18) -> 0 | AH31: =SUMIFS((_xlfn.XLOOKUP('Weighting Set'!$Z15,Modellering!$K$65:$BH$65,Modellering!$K$66:$BH$77)),Modellering!$E$66:$E$77,Milieuprofielen!AH$18) -> 0 | AI31: =SUMIFS((_xlfn.XLOOKUP('Weighting Set'!$Z15,Modellering!$K$65:$BH$65,Modellering!$K$66:$BH$77)),Modellering!$E$66:$E$77,Milieuprofielen!AI$18) -> 0 | AJ31: 0 | AN31: 014. Ecotoxicity, terrestric (TETP) | AO31: kg 1,4-DB eq | AP31: =SUMIFS((_xlfn.XLOOKUP('Weighting Set'!$Z15,Modellering!$K$85:$BH$85,Modellering!$K$86:$BH$97)),Modellering!$E$86:$E$97,Milieuprofielen!AP$18) -> 0 | AQ31: =SUMIFS((_xlfn.XLOOKUP('Weighting Set'!$Z15,Modellering!$K$85:$BH$85,Modellering!$K$86:$BH$97)),Modellering!$E$86:$E$97,Milieuprofielen!AQ$18) -> 0 | AR31: =SUMIFS((_xlfn.XLOOKUP('Weighting Set'!$Z15,Modellering!$K$85:$BH$85,Modellering!$K$86:$BH$97)),Modellering!$E$86:$E$97,Milieuprofielen!AR$18) -> 0 | AS31: 0
C32: Characterized EN15804+A2 | D32: 051. Climate change | E32: kg CO2 eq | F32: =SUMIFS((_xlfn.XLOOKUP('Weighting Set'!$Z16,Modellering!$K$5:$BH$5,Modellering!$K$6:$BH$17)),Modellering!$E$6:$E$17,Milieuprofielen!F$18) -> 741.663117 | G32: =SUMIFS((_xlfn.XLOOKUP('Weighting Set'!$Z16,Modellering!$K$5:$BH$5,Modellering!$K$6:$BH$17)),Modellering!$E$6:$E$17,Milieuprofielen!G$18) -> 20.34807159 | H32: =SUMIFS((_xlfn.XLOOKUP('Weighting Set'!$Z16,Modellering!$K$5:$BH$5,Modellering!$K$6:$BH$17)),Modellering!$E$6:$E$17,Milieuprofielen!H$18) -> 3318.810699 | I32: 4080.821888 | L32: Characterized EN15804+A2 | M32: 051. Climate change | N32: kg CO2 eq | O32: =SUMIFS((_xlfn.XLOOKUP('Weighting Set'!$Z16,Modellering!$K$25:$BH$25,Modellering!$K$26:$BH$37)),Modellering!$E$26:$E$37,Milieuprofielen!O$18) -> 0 | P32: =SUMIFS((_xlfn.XLOOKUP('Weighting Set'!$Z16,Modellering!$K$25:$BH$25,Modellering!$K$26:$BH$37)),Modellering!$E$26:$E$37,Milieuprofielen!P$18) -> 0 | Q32: =SUMIFS((_xlfn.XLOOKUP('Weighting Set'!$Z16,Modellering!$K$25:$BH$25,Modellering!$K$26:$BH$37)),Modellering!$E$26:$E$37,Milieuprofielen!Q$18) -> 0 | R32: 0 | U32: Characterized EN15804+A2 | V32: 051. Climate change | W32: kg CO2 eq | X32: =SUMIFS((_xlfn.XLOOKUP('Weighting Set'!$Z16,Modellering!$K$45:$BH$45,Modellering!$K$46:$BH$57)),Modellering!$E$46:$E$57,Milieuprofielen!X$18) -> 0 | Y32: =SUMIFS((_xlfn.XLOOKUP('Weighting Set'!$Z16,Modellering!$K$45:$BH$45,Modellering!$K$46:$BH$57)),Modellering!$E$46:$E$57,Milieuprofielen!Y$18) -> 0 | Z32: =SUMIFS((_xlfn.XLOOKUP('Weighting Set'!$Z16,Modellering!$K$45:$BH$45,Modellering!$K$46:$BH$57)),Modellering!$E$46:$E$57,Milieuprofielen!Z$18) -> 0 | AA32: 0 | AD32: Characterized EN15804+A2 | AE32: 051. Climate change | AF32: kg CO2 eq | AG32: =SUMIFS((_xlfn.XLOOKUP('Weighting Set'!$Z16,Modellering!$K$65:$BH$65,Modellering!$K$66:$BH$77)),Modellering!$E$66:$E$77,Milieuprofielen!AG$18) -> 0 | AH32: =SUMIFS((_xlfn.XLOOKUP('Weighting Set'!$Z16,Modellering!$K$65:$BH$65,Modellering!$K$66:$BH$77)),Modellering!$E$66:$E$77,Milieuprofielen!AH$18) -> 0 | AI32: =SUMIFS((_xlfn.XLOOKUP('Weighting Set'!$Z16,Modellering!$K$65:$BH$65,Modellering!$K$66:$BH$77)),Modellering!$E$66:$E$77,Milieuprofielen!AI$18) -> 0 | AJ32: 0 | AM32: Characterized EN15804+A2 | AN32: 051. Climate change | AO32: kg CO2 eq | AP32: =SUMIFS((_xlfn.XLOOKUP('Weighting Set'!$Z16,Modellering!$K$85:$BH$85,Modellering!$K$86:$BH$97)),Modellering!$E$86:$E$97,Milieuprofielen!AP$18) -> 0 | AQ32: =SUMIFS((_xlfn.XLOOKUP('Weighting Set'!$Z16,Modellering!$K$85:$BH$85,Modellering!$K$86:$BH$97)),Modellering!$E$86:$E$97,Milieuprofielen!AQ$18) -> 0 | AR32: =SUMIFS((_xlfn.XLOOKUP('Weighting Set'!$Z16,Modellering!$K$85:$BH$85,Modellering!$K$86:$BH$97)),Modellering!$E$86:$E$97,Milieuprofielen!AR$18) -> 0 | AS32: 0
D33: 052. Climate change - Fossil | E33: kg CO2 eq | F33: =SUMIFS((_xlfn.XLOOKUP('Weighting Set'!$Z17,Modellering!$K$5:$BH$5,Modellering!$K$6:$BH$17)),Modellering!$E$6:$E$17,Milieuprofielen!F$18) -> 740.365369 | G33: =SUMIFS((_xlfn.XLOOKUP('Weighting Set'!$Z17,Modellering!$K$5:$BH$5,Modellering!$K$6:$BH$17)),Modellering!$E$6:$E$17,Milieuprofielen!G$18) -> 20.30754257 | H33: =SUMIFS((_xlfn.XLOOKUP('Weighting Set'!$Z17,Modellering!$K$5:$BH$5,Modellering!$K$6:$BH$17)),Modellering!$E$6:$E$17,Milieuprofielen!H$18) -> 3318.312557 | I33: 4078.985468 | M33: 052. Climate change - Fossil | N33: kg CO2 eq | O33: =SUMIFS((_xlfn.XLOOKUP('Weighting Set'!$Z17,Modellering!$K$25:$BH$25,Modellering!$K$26:$BH$37)),Modellering!$E$26:$E$37,Milieuprofielen!O$18) -> 0 | P33: =SUMIFS((_xlfn.XLOOKUP('Weighting Set'!$Z17,Modellering!$K$25:$BH$25,Modellering!$K$26:$BH$37)),Modellering!$E$26:$E$37,Milieuprofielen!P$18) -> 0 | Q33: =SUMIFS((_xlfn.XLOOKUP('Weighting Set'!$Z17,Modellering!$K$25:$BH$25,Modellering!$K$26:$BH$37)),Modellering!$E$26:$E$37,Milieuprofielen!Q$18) -> 0 | R33: 0 | V33: 052. Climate change - Fossil | W33: kg CO2 eq | X33: =SUMIFS((_xlfn.XLOOKUP('Weighting Set'!$Z17,Modellering!$K$45:$BH$45,Modellering!$K$46:$BH$57)),Modellering!$E$46:$E$57,Milieuprofielen!X$18) -> 0 | Y33: =SUMIFS((_xlfn.XLOOKUP('Weighting Set'!$Z17,Modellering!$K$45:$BH$45,Modellering!$K$46:$BH$57)),Modellering!$E$46:$E$57,Milieuprofielen!Y$18) -> 0 | Z33: =SUMIFS((_xlfn.XLOOKUP('Weighting Set'!$Z17,Modellering!$K$45:$BH$45,Modellering!$K$46:$BH$57)),Modellering!$E$46:$E$57,Milieuprofielen!Z$18) -> 0 | AA33: 0 | AE33: 052. Climate change - Fossil | AF33: kg CO2 eq | AG33: =SUMIFS((_xlfn.XLOOKUP('Weighting Set'!$Z17,Modellering!$K$65:$BH$65,Modellering!$K$66:$BH$77)),Modellering!$E$66:$E$77,Milieuprofielen!AG$18) -> 0 | AH33: =SUMIFS((_xlfn.XLOOKUP('Weighting Set'!$Z17,Modellering!$K$65:$BH$65,Modellering!$K$66:$BH$77)),Modellering!$E$66:$E$77,Milieuprofielen!AH$18) -> 0 | AI33: =SUMIFS((_xlfn.XLOOKUP('Weighting Set'!$Z17,Modellering!$K$65:$BH$65,Modellering!$K$66:$BH$77)),Modellering!$E$66:$E$77,Milieuprofielen!AI$18) -> 0 | AJ33: 0 | AN33: 052. Climate change - Fossil | AO33: kg CO2 eq | AP33: =SUMIFS((_xlfn.XLOOKUP('Weighting Set'!$Z17,Modellering!$K$85:$BH$85,Modellering!$K$86:$BH$97)),Modellering!$E$86:$E$97,Milieuprofielen!AP$18) -> 0 | AQ33: =SUMIFS((_xlfn.XLOOKUP('Weighting Set'!$Z17,Modellering!$K$85:$BH$85,Modellering!$K$86:$BH$97)),Modellering!$E$86:$E$97,Milieuprofielen!AQ$18) -> 0 | AR33: =SUMIFS((_xlfn.XLOOKUP('Weighting Set'!$Z17,Modellering!$K$85:$BH$85,Modellering!$K$86:$BH$97)),Modellering!$E$86:$E$97,Milieuprofielen!AR$18) -> 0 | AS33: 0
D34: 053. Climate change - Biogenic | E34: kg CO2 eq | F34: =SUMIFS((_xlfn.XLOOKUP('Weighting Set'!$Z18,Modellering!$K$5:$BH$5,Modellering!$K$6:$BH$17)),Modellering!$E$6:$E$17,Milieuprofielen!F$18) -> 1.120162453 | G34: =SUMIFS((_xlfn.XLOOKUP('Weighting Set'!$Z18,Modellering!$K$5:$BH$5,Modellering!$K$6:$BH$17)),Modellering!$E$6:$E$17,Milieuprofielen!G$18) -> 0.02824547295 | H34: =SUMIFS((_xlfn.XLOOKUP('Weighting Set'!$Z18,Modellering!$K$5:$BH$5,Modellering!$K$6:$BH$17)),Modellering!$E$6:$E$17,Milieuprofielen!H$18) -> 0.3592758026 | I34: 1.507683728 | M34: 053. Climate change - Biogenic | N34: kg CO2 eq | O34: =SUMIFS((_xlfn.XLOOKUP('Weighting Set'!$Z18,Modellering!$K$25:$BH$25,Modellering!$K$26:$BH$37)),Modellering!$E$26:$E$37,Milieuprofielen!O$18) -> 0 | P34: =SUMIFS((_xlfn.XLOOKUP('Weighting Set'!$Z18,Modellering!$K$25:$BH$25,Modellering!$K$26:$BH$37)),Modellering!$E$26:$E$37,Milieuprofielen!P$18) -> 0 | Q34: =SUMIFS((_xlfn.XLOOKUP('Weighting Set'!$Z18,Modellering!$K$25:$BH$25,Modellering!$K$26:$BH$37)),Modellering!$E$26:$E$37,Milieuprofielen!Q$18) -> 0 | R34: 0 | V34: 053. Climate change - Biogenic | W34: kg CO2 eq | X34: =SUMIFS((_xlfn.XLOOKUP('Weighting Set'!$Z18,Modellering!$K$45:$BH$45,Modellering!$K$46:$BH$57)),Modellering!$E$46:$E$57,Milieuprofielen!X$18) -> 0 | Y34: =SUMIFS((_xlfn.XLOOKUP('Weighting Set'!$Z18,Modellering!$K$45:$BH$45,Modellering!$K$46:$BH$57)),Modellering!$E$46:$E$57,Milieuprofielen!Y$18) -> 0 | Z34: =SUMIFS((_xlfn.XLOOKUP('Weighting Set'!$Z18,Modellering!$K$45:$BH$45,Modellering!$K$46:$BH$57)),Modellering!$E$46:$E$57,Milieuprofielen!Z$18) -> 0 | AA34: 0 | AE34: 053. Climate change - Biogenic | AF34: kg CO2 eq | AG34: =SUMIFS((_xlfn.XLOOKUP('Weighting Set'!$Z18,Modellering!$K$65:$BH$65,Modellering!$K$66:$BH$77)),Modellering!$E$66:$E$77,Milieuprofielen!AG$18) -> 0 | AH34: =SUMIFS((_xlfn.XLOOKUP('Weighting Set'!$Z18,Modellering!$K$65:$BH$65,Modellering!$K$66:$BH$77)),Modellering!$E$66:$E$77,Milieuprofielen!AH$18) -> 0 | AI34: =SUMIFS((_xlfn.XLOOKUP('Weighting Set'!$Z18,Modellering!$K$65:$BH$65,Modellering!$K$66:$BH$77)),Modellering!$E$66:$E$77,Milieuprofielen!AI$18) -> 0 | AJ34: 0 | AN34: 053. Climate change - Biogenic | AO34: kg CO2 eq | AP34: =SUMIFS((_xlfn.XLOOKUP('Weighting Set'!$Z18,Modellering!$K$85:$BH$85,Modellering!$K$86:$BH$97)),Modellering!$E$86:$E$97,Milieuprofielen!AP$18) -> 0 | AQ34: =SUMIFS((_xlfn.XLOOKUP('Weighting Set'!$Z18,Modellering!$K$85:$BH$85,Modellering!$K$86:$BH$97)),Modellering!$E$86:$E$97,Milieuprofielen!AQ$18) -> 0 | AR34: =SUMIFS((_xlfn.XLOOKUP('Weighting Set'!$Z18,Modellering!$K$85:$BH$85,Modellering!$K$86:$BH$97)),Modellering!$E$86:$E$97,Milieuprofielen!AR$18) -> 0 | AS34: 0
D35: 054. Climate change - Land use and LU ch | E35: kg CO2 eq | F35: =SUMIFS((_xlfn.XLOOKUP('Weighting Set'!$Z19,Modellering!$K$5:$BH$5,Modellering!$K$6:$BH$17)),Modellering!$E$6:$E$17,Milieuprofielen!F$18) -> 0.1775855346 | G35: =SUMIFS((_xlfn.XLOOKUP('Weighting Set'!$Z19,Modellering!$K$5:$BH$5,Modellering!$K$6:$BH$17)),Modellering!$E$6:$E$17,Milieuprofielen!G$18) -> 0.01228353629 | H35: =SUMIFS((_xlfn.XLOOKUP('Weighting Set'!$Z19,Modellering!$K$5:$BH$5,Modellering!$K$6:$BH$17)),Modellering!$E$6:$E$17,Milieuprofielen!H$18) -> 0.138866228 | I35: 0.3287352988 | M35: 054. Climate change - Land use and LU ch | N35: kg CO2 eq | O35: =SUMIFS((_xlfn.XLOOKUP('Weighting Set'!$Z19,Modellering!$K$25:$BH$25,Modellering!$K$26:$BH$37)),Modellering!$E$26:$E$37,Milieuprofielen!O$18) -> 0 | P35: =SUMIFS((_xlfn.XLOOKUP('Weighting Set'!$Z19,Modellering!$K$25:$BH$25,Modellering!$K$26:$BH$37)),Modellering!$E$26:$E$37,Milieuprofielen!P$18) -> 0 | Q35: =SUMIFS((_xlfn.XLOOKUP('Weighting Set'!$Z19,Modellering!$K$25:$BH$25,Modellering!$K$26:$BH$37)),Modellering!$E$26:$E$37,Milieuprofielen!Q$18) -> 0 | R35: 0 | V35: 054. Climate change - Land use and LU ch | W35: kg CO2 eq | X35: =SUMIFS((_xlfn.XLOOKUP('Weighting Set'!$Z19,Modellering!$K$45:$BH$45,Modellering!$K$46:$BH$57)),Modellering!$E$46:$E$57,Milieuprofielen!X$18) -> 0 | Y35: =SUMIFS((_xlfn.XLOOKUP('Weighting Set'!$Z19,Modellering!$K$45:$BH$45,Modellering!$K$46:$BH$57)),Modellering!$E$46:$E$57,Milieuprofielen!Y$18) -> 0 | Z35: =SUMIFS((_xlfn.XLOOKUP('Weighting Set'!$Z19,Modellering!$K$45:$BH$45,Modellering!$K$46:$BH$57)),Modellering!$E$46:$E$57,Milieuprofielen!Z$18) -> 0 | AA35: 0 | AE35: 054. Climate change - Land use and LU ch | AF35: kg CO2 eq | AG35: =SUMIFS((_xlfn.XLOOKUP('Weighting Set'!$Z19,Modellering!$K$65:$BH$65,Modellering!$K$66:$BH$77)),Modellering!$E$66:$E$77,Milieuprofielen!AG$18) -> 0 | AH35: =SUMIFS((_xlfn.XLOOKUP('Weighting Set'!$Z19,Modellering!$K$65:$BH$65,Modellering!$K$66:$BH$77)),Modellering!$E$66:$E$77,Milieuprofielen!AH$18) -> 0 | AI35: =SUMIFS((_xlfn.XLOOKUP('Weighting Set'!$Z19,Modellering!$K$65:$BH$65,Modellering!$K$66:$BH$77)),Modellering!$E$66:$E$77,Milieuprofielen!AI$18) -> 0 | AJ35: 0 | AN35: 054. Climate change - Land use and LU ch | AO35: kg CO2 eq | AP35: =SUMIFS((_xlfn.XLOOKUP('Weighting Set'!$Z19,Modellering!$K$85:$BH$85,Modellering!$K$86:$BH$97)),Modellering!$E$86:$E$97,Milieuprofielen!AP$18) -> 0 | AQ35: =SUMIFS((_xlfn.XLOOKUP('Weighting Set'!$Z19,Modellering!$K$85:$BH$85,Modellering!$K$86:$BH$97)),Modellering!$E$86:$E$97,Milieuprofielen!AQ$18) -> 0 | AR35: =SUMIFS((_xlfn.XLOOKUP('Weighting Set'!$Z19,Modellering!$K$85:$BH$85,Modellering!$K$86:$BH$97)),Modellering!$E$86:$E$97,Milieuprofielen!AR$18) -> 0 | AS35: 0
D36: 055. Ozone depletion | E36: kg CFC11 eq | F36: =SUMIFS((_xlfn.XLOOKUP('Weighting Set'!$Z20,Modellering!$K$5:$BH$5,Modellering!$K$6:$BH$17)),Modellering!$E$6:$E$17,Milieuprofielen!F$18) -> 0.0003711477756 | G36: =SUMIFS((_xlfn.XLOOKUP('Weighting Set'!$Z20,Modellering!$K$5:$BH$5,Modellering!$K$6:$BH$17)),Modellering!$E$6:$E$17,Milieuprofielen!G$18) -> 4.268398674e-07 | H36: =SUMIFS((_xlfn.XLOOKUP('Weighting Set'!$Z20,Modellering!$K$5:$BH$5,Modellering!$K$6:$BH$17)),Modellering!$E$6:$E$17,Milieuprofielen!H$18) -> 1.366101355e-05 | I36: 0.000385235629 | M36: 055. Ozone depletion | N36: kg CFC11 eq | O36: =SUMIFS((_xlfn.XLOOKUP('Weighting Set'!$Z20,Modellering!$K$25:$BH$25,Modellering!$K$26:$BH$37)),Modellering!$E$26:$E$37,Milieuprofielen!O$18) -> 0 | P36: =SUMIFS((_xlfn.XLOOKUP('Weighting Set'!$Z20,Modellering!$K$25:$BH$25,Modellering!$K$26:$BH$37)),Modellering!$E$26:$E$37,Milieuprofielen!P$18) -> 0 | Q36: =SUMIFS((_xlfn.XLOOKUP('Weighting Set'!$Z20,Modellering!$K$25:$BH$25,Modellering!$K$26:$BH$37)),Modellering!$E$26:$E$37,Milieuprofielen!Q$18) -> 0 | R36: 0 | V36: 055. Ozone depletion | W36: kg CFC11 eq | X36: =SUMIFS((_xlfn.XLOOKUP('Weighting Set'!$Z20,Modellering!$K$45:$BH$45,Modellering!$K$46:$BH$57)),Modellering!$E$46:$E$57,Milieuprofielen!X$18) -> 0 | Y36: =SUMIFS((_xlfn.XLOOKUP('Weighting Set'!$Z20,Modellering!$K$45:$BH$45,Modellering!$K$46:$BH$57)),Modellering!$E$46:$E$57,Milieuprofielen!Y$18) -> 0 | Z36: =SUMIFS((_xlfn.XLOOKUP('Weighting Set'!$Z20,Modellering!$K$45:$BH$45,Modellering!$K$46:$BH$57)),Modellering!$E$46:$E$57,Milieuprofielen!Z$18) -> 0 | AA36: 0 | AE36: 055. Ozone depletion | AF36: kg CFC11 eq | AG36: =SUMIFS((_xlfn.XLOOKUP('Weighting Set'!$Z20,Modellering!$K$65:$BH$65,Modellering!$K$66:$BH$77)),Modellering!$E$66:$E$77,Milieuprofielen!AG$18) -> 0 | AH36: =SUMIFS((_xlfn.XLOOKUP('Weighting Set'!$Z20,Modellering!$K$65:$BH$65,Modellering!$K$66:$BH$77)),Modellering!$E$66:$E$77,Milieuprofielen!AH$18) -> 0 | AI36: =SUMIFS((_xlfn.XLOOKUP('Weighting Set'!$Z20,Modellering!$K$65:$BH$65,Modellering!$K$66:$BH$77)),Modellering!$E$66:$E$77,Milieuprofielen!AI$18) -> 0 | AJ36: 0 | AN36: 055. Ozone depletion | AO36: kg CFC11 eq | AP36: =SUMIFS((_xlfn.XLOOKUP('Weighting Set'!$Z20,Modellering!$K$85:$BH$85,Modellering!$K$86:$BH$97)),Modellering!$E$86:$E$97,Milieuprofielen!AP$18) -> 0 | AQ36: =SUMIFS((_xlfn.XLOOKUP('Weighting Set'!$Z20,Modellering!$K$85:$BH$85,Modellering!$K$86:$BH$97)),Modellering!$E$86:$E$97,Milieuprofielen!AQ$18) -> 0 | AR36: =SUMIFS((_xlfn.XLOOKUP('Weighting Set'!$Z20,Modellering!$K$85:$BH$85,Modellering!$K$86:$BH$97)),Modellering!$E$86:$E$97,Milieuprofielen!AR$18) -> 0 | AS36: 0
D37: 056. Acidification | E37: mol H+ eq | F37: =SUMIFS((_xlfn.XLOOKUP('Weighting Set'!$Z21,Modellering!$K$5:$BH$5,Modellering!$K$6:$BH$17)),Modellering!$E$6:$E$17,Milieuprofielen!F$18) -> 3.947630515 | G37: =SUMIFS((_xlfn.XLOOKUP('Weighting Set'!$Z21,Modellering!$K$5:$BH$5,Modellering!$K$6:$BH$17)),Modellering!$E$6:$E$17,Milieuprofielen!G$18) -> 0.08973256125 | H37: =SUMIFS((_xlfn.XLOOKUP('Weighting Set'!$Z21,Modellering!$K$5:$BH$5,Modellering!$K$6:$BH$17)),Modellering!$E$6:$E$17,Milieuprofielen!H$18) -> 15.61489473 | I37: 19.65225781 | M37: 056. Acidification | N37: mol H+ eq | O37: =SUMIFS((_xlfn.XLOOKUP('Weighting Set'!$Z21,Modellering!$K$25:$BH$25,Modellering!$K$26:$BH$37)),Modellering!$E$26:$E$37,Milieuprofielen!O$18) -> 0 | P37: =SUMIFS((_xlfn.XLOOKUP('Weighting Set'!$Z21,Modellering!$K$25:$BH$25,Modellering!$K$26:$BH$37)),Modellering!$E$26:$E$37,Milieuprofielen!P$18) -> 0 | Q37: =SUMIFS((_xlfn.XLOOKUP('Weighting Set'!$Z21,Modellering!$K$25:$BH$25,Modellering!$K$26:$BH$37)),Modellering!$E$26:$E$37,Milieuprofielen!Q$18) -> 0 | R37: 0 | V37: 056. Acidification | W37: mol H+ eq | X37: =SUMIFS((_xlfn.XLOOKUP('Weighting Set'!$Z21,Modellering!$K$45:$BH$45,Modellering!$K$46:$BH$57)),Modellering!$E$46:$E$57,Milieuprofielen!X$18) -> 0 | Y37: =SUMIFS((_xlfn.XLOOKUP('Weighting Set'!$Z21,Modellering!$K$45:$BH$45,Modellering!$K$46:$BH$57)),Modellering!$E$46:$E$57,Milieuprofielen!Y$18) -> 0 | Z37: =SUMIFS((_xlfn.XLOOKUP('Weighting Set'!$Z21,Modellering!$K$45:$BH$45,Modellering!$K$46:$BH$57)),Modellering!$E$46:$E$57,Milieuprofielen!Z$18) -> 0 | AA37: 0 | AE37: 056. Acidification | AF37: mol H+ eq | AG37: =SUMIFS((_xlfn.XLOOKUP('Weighting Set'!$Z21,Modellering!$K$65:$BH$65,Modellering!$K$66:$BH$77)),Modellering!$E$66:$E$77,Milieuprofielen!AG$18) -> 0 | AH37: =SUMIFS((_xlfn.XLOOKUP('Weighting Set'!$Z21,Modellering!$K$65:$BH$65,Modellering!$K$66:$BH$77)),Modellering!$E$66:$E$77,Milieuprofielen!AH$18) -> 0 | AI37: =SUMIFS((_xlfn.XLOOKUP('Weighting Set'!$Z21,Modellering!$K$65:$BH$65,Modellering!$K$66:$BH$77)),Modellering!$E$66:$E$77,Milieuprofielen!AI$18) -> 0 | AJ37: 0 | AN37: 056. Acidification | AO37: mol H+ eq | AP37: =SUMIFS((_xlfn.XLOOKUP('Weighting Set'!$Z21,Modellering!$K$85:$BH$85,Modellering!$K$86:$BH$97)),Modellering!$E$86:$E$97,Milieuprofielen!AP$18) -> 0 | AQ37: =SUMIFS((_xlfn.XLOOKUP('Weighting Set'!$Z21,Modellering!$K$85:$BH$85,Modellering!$K$86:$BH$97)),Modellering!$E$86:$E$97,Milieuprofielen!AQ$18) -> 0 | AR37: =SUMIFS((_xlfn.XLOOKUP('Weighting Set'!$Z21,Modellering!$K$85:$BH$85,Modellering!$K$86:$BH$97)),Modellering!$E$86:$E$97,Milieuprofielen!AR$18) -> 0 | AS37: 0
D38: 057. Eutrophication, freshwater | E38: kg P eq | F38: =SUMIFS((_xlfn.XLOOKUP('Weighting Set'!$Z22,Modellering!$K$5:$BH$5,Modellering!$K$6:$BH$17)),Modellering!$E$6:$E$17,Milieuprofielen!F$18) -> 0.005430302068 | G38: =SUMIFS((_xlfn.XLOOKUP('Weighting Set'!$Z22,Modellering!$K$5:$BH$5,Modellering!$K$6:$BH$17)),Modellering!$E$6:$E$17,Milieuprofielen!G$18) -> 0.0004011838017 | H38: =SUMIFS((_xlfn.XLOOKUP('Weighting Set'!$Z22,Modellering!$K$5:$BH$5,Modellering!$K$6:$BH$17)),Modellering!$E$6:$E$17,Milieuprofielen!H$18) -> 0.004255078067 | I38: 0.01008656394 | M38: 057. Eutrophication, freshwater | N38: kg P eq | O38: =SUMIFS((_xlfn.XLOOKUP('Weighting Set'!$Z22,Modellering!$K$25:$BH$25,Modellering!$K$26:$BH$37)),Modellering!$E$26:$E$37,Milieuprofielen!O$18) -> 0 | P38: =SUMIFS((_xlfn.XLOOKUP('Weighting Set'!$Z22,Modellering!$K$25:$BH$25,Modellering!$K$26:$BH$37)),Modellering!$E$26:$E$37,Milieuprofielen!P$18) -> 0 | Q38: =SUMIFS((_xlfn.XLOOKUP('Weighting Set'!$Z22,Modellering!$K$25:$BH$25,Modellering!$K$26:$BH$37)),Modellering!$E$26:$E$37,Milieuprofielen!Q$18) -> 0 | R38: 0 | V38: 057. Eutrophication, freshwater | W38: kg P eq | X38: =SUMIFS((_xlfn.XLOOKUP('Weighting Set'!$Z22,Modellering!$K$45:$BH$45,Modellering!$K$46:$BH$57)),Modellering!$E$46:$E$57,Milieuprofielen!X$18) -> 0 | Y38: =SUMIFS((_xlfn.XLOOKUP('Weighting Set'!$Z22,Modellering!$K$45:$BH$45,Modellering!$K$46:$BH$57)),Modellering!$E$46:$E$57,Milieuprofielen!Y$18) -> 0 | Z38: =SUMIFS((_xlfn.XLOOKUP('Weighting Set'!$Z22,Modellering!$K$45:$BH$45,Modellering!$K$46:$BH$57)),Modellering!$E$46:$E$57,Milieuprofielen!Z$18) -> 0 | AA38: 0 | AE38: 057. Eutrophication, freshwater | AF38: kg P eq | AG38: =SUMIFS((_xlfn.XLOOKUP('Weighting Set'!$Z22,Modellering!$K$65:$BH$65,Modellering!$K$66:$BH$77)),Modellering!$E$66:$E$77,Milieuprofielen!AG$18) -> 0 | AH38: =SUMIFS((_xlfn.XLOOKUP('Weighting Set'!$Z22,Modellering!$K$65:$BH$65,Modellering!$K$66:$BH$77)),Modellering!$E$66:$E$77,Milieuprofielen!AH$18) -> 0 | AI38: =SUMIFS((_xlfn.XLOOKUP('Weighting Set'!$Z22,Modellering!$K$65:$BH$65,Modellering!$K$66:$BH$77)),Modellering!$E$66:$E$77,Milieuprofielen!AI$18) -> 0 | AJ38: 0 | AN38: 057. Eutrophication, freshwater | AO38: kg P eq | AP38: =SUMIFS((_xlfn.XLOOKUP('Weighting Set'!$Z22,Modellering!$K$85:$BH$85,Modellering!$K$86:$BH$97)),Modellering!$E$86:$E$97,Milieuprofielen!AP$18) -> 0 | AQ38: =SUMIFS((_xlfn.XLOOKUP('Weighting Set'!$Z22,Modellering!$K$85:$BH$85,Modellering!$K$86:$BH$97)),Modellering!$E$86:$E$97,Milieuprofielen!AQ$18) -> 0 | AR38: =SUMIFS((_xlfn.XLOOKUP('Weighting Set'!$Z22,Modellering!$K$85:$BH$85,Modellering!$K$86:$BH$97)),Modellering!$E$86:$E$97,Milieuprofielen!AR$18) -> 0 | AS38: 0
D39: 058. Eutrophication, marine | E39: kg N eq | F39: =SUMIFS((_xlfn.XLOOKUP('Weighting Set'!$Z23,Modellering!$K$5:$BH$5,Modellering!$K$6:$BH$17)),Modellering!$E$6:$E$17,Milieuprofielen!F$18) -> 0.6899958299 | G39: =SUMIFS((_xlfn.XLOOKUP('Weighting Set'!$Z23,Modellering!$K$5:$BH$5,Modellering!$K$6:$BH$17)),Modellering!$E$6:$E$17,Milieuprofielen!G$18) -> 0.02729785792 | H39: =SUMIFS((_xlfn.XLOOKUP('Weighting Set'!$Z23,Modellering!$K$5:$BH$5,Modellering!$K$6:$BH$17)),Modellering!$E$6:$E$17,Milieuprofielen!H$18) -> 7.627392204 | I39: 8.344685891 | M39: 058. Eutrophication, marine | N39: kg N eq | O39: =SUMIFS((_xlfn.XLOOKUP('Weighting Set'!$Z23,Modellering!$K$25:$BH$25,Modellering!$K$26:$BH$37)),Modellering!$E$26:$E$37,Milieuprofielen!O$18) -> 0 | P39: =SUMIFS((_xlfn.XLOOKUP('Weighting Set'!$Z23,Modellering!$K$25:$BH$25,Modellering!$K$26:$BH$37)),Modellering!$E$26:$E$37,Milieuprofielen!P$18) -> 0 | Q39: =SUMIFS((_xlfn.XLOOKUP('Weighting Set'!$Z23,Modellering!$K$25:$BH$25,Modellering!$K$26:$BH$37)),Modellering!$E$26:$E$37,Milieuprofielen!Q$18) -> 0 | R39: 0 | V39: 058. Eutrophication, marine | W39: kg N eq | X39: =SUMIFS((_xlfn.XLOOKUP('Weighting Set'!$Z23,Modellering!$K$45:$BH$45,Modellering!$K$46:$BH$57)),Modellering!$E$46:$E$57,Milieuprofielen!X$18) -> 0 | Y39: =SUMIFS((_xlfn.XLOOKUP('Weighting Set'!$Z23,Modellering!$K$45:$BH$45,Modellering!$K$46:$BH$57)),Modellering!$E$46:$E$57,Milieuprofielen!Y$18) -> 0 | Z39: =SUMIFS((_xlfn.XLOOKUP('Weighting Set'!$Z23,Modellering!$K$45:$BH$45,Modellering!$K$46:$BH$57)),Modellering!$E$46:$E$57,Milieuprofielen!Z$18) -> 0 | AA39: 0 | AE39: 058. Eutrophication, marine | AF39: kg N eq | AG39: =SUMIFS((_xlfn.XLOOKUP('Weighting Set'!$Z23,Modellering!$K$65:$BH$65,Modellering!$K$66:$BH$77)),Modellering!$E$66:$E$77,Milieuprofielen!AG$18) -> 0 | AH39: =SUMIFS((_xlfn.XLOOKUP('Weighting Set'!$Z23,Modellering!$K$65:$BH$65,Modellering!$K$66:$BH$77)),Modellering!$E$66:$E$77,Milieuprofielen!AH$18) -> 0 | AI39: =SUMIFS((_xlfn.XLOOKUP('Weighting Set'!$Z23,Modellering!$K$65:$BH$65,Modellering!$K$66:$BH$77)),Modellering!$E$66:$E$77,Milieuprofielen!AI$18) -> 0 | AJ39: 0 | AN39: 058. Eutrophication, marine | AO39: kg N eq | AP39: =SUMIFS((_xlfn.XLOOKUP('Weighting Set'!$Z23,Modellering!$K$85:$BH$85,Modellering!$K$86:$BH$97)),Modellering!$E$86:$E$97,Milieuprofielen!AP$18) -> 0 | AQ39: =SUMIFS((_xlfn.XLOOKUP('Weighting Set'!$Z23,Modellering!$K$85:$BH$85,Modellering!$K$86:$BH$97)),Modellering!$E$86:$E$97,Milieuprofielen!AQ$18) -> 0 | AR39: =SUMIFS((_xlfn.XLOOKUP('Weighting Set'!$Z23,Modellering!$K$85:$BH$85,Modellering!$K$86:$BH$97)),Modellering!$E$86:$E$97,Milieuprofielen!AR$18) -> 0 | AS39: 0
D40: 059. Eutrophication, terrestrial | E40: mol N eq | F40: =SUMIFS((_xlfn.XLOOKUP('Weighting Set'!$Z24,Modellering!$K$5:$BH$5,Modellering!$K$6:$BH$17)),Modellering!$E$6:$E$17,Milieuprofielen!F$18) -> 6.319325959 | G40: =SUMIFS((_xlfn.XLOOKUP('Weighting Set'!$Z24,Modellering!$K$5:$BH$5,Modellering!$K$6:$BH$17)),Modellering!$E$6:$E$17,Milieuprofielen!G$18) -> 0.321369833 | H40: =SUMIFS((_xlfn.XLOOKUP('Weighting Set'!$Z24,Modellering!$K$5:$BH$5,Modellering!$K$6:$BH$17)),Modellering!$E$6:$E$17,Milieuprofielen!H$18) -> 84.13377981 | I40: 90.7744756 | M40: 059. Eutrophication, terrestrial | N40: mol N eq | O40: =SUMIFS((_xlfn.XLOOKUP('Weighting Set'!$Z24,Modellering!$K$25:$BH$25,Modellering!$K$26:$BH$37)),Modellering!$E$26:$E$37,Milieuprofielen!O$18) -> 0 | P40: =SUMIFS((_xlfn.XLOOKUP('Weighting Set'!$Z24,Modellering!$K$25:$BH$25,Modellering!$K$26:$BH$37)),Modellering!$E$26:$E$37,Milieuprofielen!P$18) -> 0 | Q40: =SUMIFS((_xlfn.XLOOKUP('Weighting Set'!$Z24,Modellering!$K$25:$BH$25,Modellering!$K$26:$BH$37)),Modellering!$E$26:$E$37,Milieuprofielen!Q$18) -> 0 | R40: 0 | V40: 059. Eutrophication, terrestrial | W40: mol N eq | X40: =SUMIFS((_xlfn.XLOOKUP('Weighting Set'!$Z24,Modellering!$K$45:$BH$45,Modellering!$K$46:$BH$57)),Modellering!$E$46:$E$57,Milieuprofielen!X$18) -> 0 | Y40: =SUMIFS((_xlfn.XLOOKUP('Weighting Set'!$Z24,Modellering!$K$45:$BH$45,Modellering!$K$46:$BH$57)),Modellering!$E$46:$E$57,Milieuprofielen!Y$18) -> 0 | Z40: =SUMIFS((_xlfn.XLOOKUP('Weighting Set'!$Z24,Modellering!$K$45:$BH$45,Modellering!$K$46:$BH$57)),Modellering!$E$46:$E$57,Milieuprofielen!Z$18) -> 0 | AA40: 0 | AE40: 059. Eutrophication, terrestrial | AF40: mol N eq | AG40: =SUMIFS((_xlfn.XLOOKUP('Weighting Set'!$Z24,Modellering!$K$65:$BH$65,Modellering!$K$66:$BH$77)),Modellering!$E$66:$E$77,Milieuprofielen!AG$18) -> 0 | AH40: =SUMIFS((_xlfn.XLOOKUP('Weighting Set'!$Z24,Modellering!$K$65:$BH$65,Modellering!$K$66:$BH$77)),Modellering!$E$66:$E$77,Milieuprofielen!AH$18) -> 0 | AI40: =SUMIFS((_xlfn.XLOOKUP('Weighting Set'!$Z24,Modellering!$K$65:$BH$65,Modellering!$K$66:$BH$77)),Modellering!$E$66:$E$77,Milieuprofielen!AI$18) -> 0 | AJ40: 0 | AN40: 059. Eutrophication, terrestrial | AO40: mol N eq | AP40: =SUMIFS((_xlfn.XLOOKUP('Weighting Set'!$Z24,Modellering!$K$85:$BH$85,Modellering!$K$86:$BH$97)),Modellering!$E$86:$E$97,Milieuprofielen!AP$18) -> 0 | AQ40: =SUMIFS((_xlfn.XLOOKUP('Weighting Set'!$Z24,Modellering!$K$85:$BH$85,Modellering!$K$86:$BH$97)),Modellering!$E$86:$E$97,Milieuprofielen!AQ$18) -> 0 | AR40: =SUMIFS((_xlfn.XLOOKUP('Weighting Set'!$Z24,Modellering!$K$85:$BH$85,Modellering!$K$86:$BH$97)),Modellering!$E$86:$E$97,Milieuprofielen!AR$18) -> 0 | AS40: 0
D41: 060. Photochemical ozone formation | E41: kg NMVOC eq | F41: =SUMIFS((_xlfn.XLOOKUP('Weighting Set'!$Z25,Modellering!$K$5:$BH$5,Modellering!$K$6:$BH$17)),Modellering!$E$6:$E$17,Milieuprofielen!F$18) -> 4.977753259 | G41: =SUMIFS((_xlfn.XLOOKUP('Weighting Set'!$Z25,Modellering!$K$5:$BH$5,Modellering!$K$6:$BH$17)),Modellering!$E$6:$E$17,Milieuprofielen!G$18) -> 0.1107846975 | H41: =SUMIFS((_xlfn.XLOOKUP('Weighting Set'!$Z25,Modellering!$K$5:$BH$5,Modellering!$K$6:$BH$17)),Modellering!$E$6:$E$17,Milieuprofielen!H$18) -> 20.97465454 | I41: 26.0631925 | M41: 060. Photochemical ozone formation | N41: kg NMVOC eq | O41: =SUMIFS((_xlfn.XLOOKUP('Weighting Set'!$Z25,Modellering!$K$25:$BH$25,Modellering!$K$26:$BH$37)),Modellering!$E$26:$E$37,Milieuprofielen!O$18) -> 0 | P41: =SUMIFS((_xlfn.XLOOKUP('Weighting Set'!$Z25,Modellering!$K$25:$BH$25,Modellering!$K$26:$BH$37)),Modellering!$E$26:$E$37,Milieuprofielen!P$18) -> 0 | Q41: =SUMIFS((_xlfn.XLOOKUP('Weighting Set'!$Z25,Modellering!$K$25:$BH$25,Modellering!$K$26:$BH$37)),Modellering!$E$26:$E$37,Milieuprofielen!Q$18) -> 0 | R41: 0 | V41: 060. Photochemical ozone formation | W41: kg NMVOC eq | X41: =SUMIFS((_xlfn.XLOOKUP('Weighting Set'!$Z25,Modellering!$K$45:$BH$45,Modellering!$K$46:$BH$57)),Modellering!$E$46:$E$57,Milieuprofielen!X$18) -> 0 | Y41: =SUMIFS((_xlfn.XLOOKUP('Weighting Set'!$Z25,Modellering!$K$45:$BH$45,Modellering!$K$46:$BH$57)),Modellering!$E$46:$E$57,Milieuprofielen!Y$18) -> 0 | Z41: =SUMIFS((_xlfn.XLOOKUP('Weighting Set'!$Z25,Modellering!$K$45:$BH$45,Modellering!$K$46:$BH$57)),Modellering!$E$46:$E$57,Milieuprofielen!Z$18) -> 0 | AA41: 0 | AE41: 060. Photochemical ozone formation | AF41: kg NMVOC eq | AG41: =SUMIFS((_xlfn.XLOOKUP('Weighting Set'!$Z25,Modellering!$K$65:$BH$65,Modellering!$K$66:$BH$77)),Modellering!$E$66:$E$77,Milieuprofielen!AG$18) -> 0 | AH41: =SUMIFS((_xlfn.XLOOKUP('Weighting Set'!$Z25,Modellering!$K$65:$BH$65,Modellering!$K$66:$BH$77)),Modellering!$E$66:$E$77,Milieuprofielen!AH$18) -> 0 | AI41: =SUMIFS((_xlfn.XLOOKUP('Weighting Set'!$Z25,Modellering!$K$65:$BH$65,Modellering!$K$66:$BH$77)),Modellering!$E$66:$E$77,Milieuprofielen!AI$18) -> 0 | AJ41: 0 | AN41: 060. Photochemical ozone formation | AO41: kg NMVOC eq | AP41: =SUMIFS((_xlfn.XLOOKUP('Weighting Set'!$Z25,Modellering!$K$85:$BH$85,Modellering!$K$86:$BH$97)),Modellering!$E$86:$E$97,Milieuprofielen!AP$18) -> 0 | AQ41: =SUMIFS((_xlfn.XLOOKUP('Weighting Set'!$Z25,Modellering!$K$85:$BH$85,Modellering!$K$86:$BH$97)),Modellering!$E$86:$E$97,Milieuprofielen!AQ$18) -> 0 | AR41: =SUMIFS((_xlfn.XLOOKUP('Weighting Set'!$Z25,Modellering!$K$85:$BH$85,Modellering!$K$86:$BH$97)),Modellering!$E$86:$E$97,Milieuprofielen!AR$18) -> 0 | AS41: 0
D42: 061. Resource use, minerals and metals | E42: kg Sb eq | F42: =SUMIFS((_xlfn.XLOOKUP('Weighting Set'!$Z26,Modellering!$K$5:$BH$5,Modellering!$K$6:$BH$17)),Modellering!$E$6:$E$17,Milieuprofielen!F$18) -> 0.000770381199 | G42: =SUMIFS((_xlfn.XLOOKUP('Weighting Set'!$Z26,Modellering!$K$5:$BH$5,Modellering!$K$6:$BH$17)),Modellering!$E$6:$E$17,Milieuprofielen!G$18) -> 7.874715296e-05 | H42: =SUMIFS((_xlfn.XLOOKUP('Weighting Set'!$Z26,Modellering!$K$5:$BH$5,Modellering!$K$6:$BH$17)),Modellering!$E$6:$E$17,Milieuprofielen!H$18) -> 0.0006477212298 | I42: 0.001496849582 | M42: 061. Resource use, minerals and metals | N42: kg Sb eq | O42: =SUMIFS((_xlfn.XLOOKUP('Weighting Set'!$Z26,Modellering!$K$25:$BH$25,Modellering!$K$26:$BH$37)),Modellering!$E$26:$E$37,Milieuprofielen!O$18) -> 0 | P42: =SUMIFS((_xlfn.XLOOKUP('Weighting Set'!$Z26,Modellering!$K$25:$BH$25,Modellering!$K$26:$BH$37)),Modellering!$E$26:$E$37,Milieuprofielen!P$18) -> 0 | Q42: =SUMIFS((_xlfn.XLOOKUP('Weighting Set'!$Z26,Modellering!$K$25:$BH$25,Modellering!$K$26:$BH$37)),Modellering!$E$26:$E$37,Milieuprofielen!Q$18) -> 0 | R42: 0 | V42: 061. Resource use, minerals and metals | W42: kg Sb eq | X42: =SUMIFS((_xlfn.XLOOKUP('Weighting Set'!$Z26,Modellering!$K$45:$BH$45,Modellering!$K$46:$BH$57)),Modellering!$E$46:$E$57,Milieuprofielen!X$18) -> 0 | Y42: =SUMIFS((_xlfn.XLOOKUP('Weighting Set'!$Z26,Modellering!$K$45:$BH$45,Modellering!$K$46:$BH$57)),Modellering!$E$46:$E$57,Milieuprofielen!Y$18) -> 0 | Z42: =SUMIFS((_xlfn.XLOOKUP('Weighting Set'!$Z26,Modellering!$K$45:$BH$45,Modellering!$K$46:$BH$57)),Modellering!$E$46:$E$57,Milieuprofielen!Z$18) -> 0 | AA42: 0 | AE42: 061. Resource use, minerals and metals | AF42: kg Sb eq | AG42: =SUMIFS((_xlfn.XLOOKUP('Weighting Set'!$Z26,Modellering!$K$65:$BH$65,Modellering!$K$66:$BH$77)),Modellering!$E$66:$E$77,Milieuprofielen!AG$18) -> 0 | AH42: =SUMIFS((_xlfn.XLOOKUP('Weighting Set'!$Z26,Modellering!$K$65:$BH$65,Modellering!$K$66:$BH$77)),Modellering!$E$66:$E$77,Milieuprofielen!AH$18) -> 0 | AI42: =SUMIFS((_xlfn.XLOOKUP('Weighting Set'!$Z26,Modellering!$K$65:$BH$65,Modellering!$K$66:$BH$77)),Modellering!$E$66:$E$77,Milieuprofielen!AI$18) -> 0 | AJ42: 0 | AN42: 061. Resource use, minerals and metals | AO42: kg Sb eq | AP42: =SUMIFS((_xlfn.XLOOKUP('Weighting Set'!$Z26,Modellering!$K$85:$BH$85,Modellering!$K$86:$BH$97)),Modellering!$E$86:$E$97,Milieuprofielen!AP$18) -> 0 | AQ42: =SUMIFS((_xlfn.XLOOKUP('Weighting Set'!$Z26,Modellering!$K$85:$BH$85,Modellering!$K$86:$BH$97)),Modellering!$E$86:$E$97,Milieuprofielen!AQ$18) -> 0 | AR42: =SUMIFS((_xlfn.XLOOKUP('Weighting Set'!$Z26,Modellering!$K$85:$BH$85,Modellering!$K$86:$BH$97)),Modellering!$E$86:$E$97,Milieuprofielen!AR$18) -> 0 | AS42: 0
D43: 062. Resource use, fossils | E43: MJ | F43: =SUMIFS((_xlfn.XLOOKUP('Weighting Set'!$Z27,Modellering!$K$5:$BH$5,Modellering!$K$6:$BH$17)),Modellering!$E$6:$E$17,Milieuprofielen!F$18) -> 54599.67414 | G43: =SUMIFS((_xlfn.XLOOKUP('Weighting Set'!$Z27,Modellering!$K$5:$BH$5,Modellering!$K$6:$BH$17)),Modellering!$E$6:$E$17,Milieuprofielen!G$18) -> 307.9965625 | H43: =SUMIFS((_xlfn.XLOOKUP('Weighting Set'!$Z27,Modellering!$K$5:$BH$5,Modellering!$K$6:$BH$17)),Modellering!$E$6:$E$17,Milieuprofielen!H$18) -> 800.935391 | I43: 55708.60609 | M43: 062. Resource use, fossils | N43: MJ | O43: =SUMIFS((_xlfn.XLOOKUP('Weighting Set'!$Z27,Modellering!$K$25:$BH$25,Modellering!$K$26:$BH$37)),Modellering!$E$26:$E$37,Milieuprofielen!O$18) -> 0 | P43: =SUMIFS((_xlfn.XLOOKUP('Weighting Set'!$Z27,Modellering!$K$25:$BH$25,Modellering!$K$26:$BH$37)),Modellering!$E$26:$E$37,Milieuprofielen!P$18) -> 0 | Q43: =SUMIFS((_xlfn.XLOOKUP('Weighting Set'!$Z27,Modellering!$K$25:$BH$25,Modellering!$K$26:$BH$37)),Modellering!$E$26:$E$37,Milieuprofielen!Q$18) -> 0 | R43: 0 | V43: 062. Resource use, fossils | W43: MJ | X43: =SUMIFS((_xlfn.XLOOKUP('Weighting Set'!$Z27,Modellering!$K$45:$BH$45,Modellering!$K$46:$BH$57)),Modellering!$E$46:$E$57,Milieuprofielen!X$18) -> 0 | Y43: =SUMIFS((_xlfn.XLOOKUP('Weighting Set'!$Z27,Modellering!$K$45:$BH$45,Modellering!$K$46:$BH$57)),Modellering!$E$46:$E$57,Milieuprofielen!Y$18) -> 0 | Z43: =SUMIFS((_xlfn.XLOOKUP('Weighting Set'!$Z27,Modellering!$K$45:$BH$45,Modellering!$K$46:$BH$57)),Modellering!$E$46:$E$57,Milieuprofielen!Z$18) -> 0 | AA43: 0 | AE43: 062. Resource use, fossils | AF43: MJ | AG43: =SUMIFS((_xlfn.XLOOKUP('Weighting Set'!$Z27,Modellering!$K$65:$BH$65,Modellering!$K$66:$BH$77)),Modellering!$E$66:$E$77,Milieuprofielen!AG$18) -> 0 | AH43: =SUMIFS((_xlfn.XLOOKUP('Weighting Set'!$Z27,Modellering!$K$65:$BH$65,Modellering!$K$66:$BH$77)),Modellering!$E$66:$E$77,Milieuprofielen!AH$18) -> 0 | AI43: =SUMIFS((_xlfn.XLOOKUP('Weighting Set'!$Z27,Modellering!$K$65:$BH$65,Modellering!$K$66:$BH$77)),Modellering!$E$66:$E$77,Milieuprofielen!AI$18) -> 0 | AJ43: 0 | AN43: 062. Resource use, fossils | AO43: MJ | AP43: =SUMIFS((_xlfn.XLOOKUP('Weighting Set'!$Z27,Modellering!$K$85:$BH$85,Modellering!$K$86:$BH$97)),Modellering!$E$86:$E$97,Milieuprofielen!AP$18) -> 0 | AQ43: =SUMIFS((_xlfn.XLOOKUP('Weighting Set'!$Z27,Modellering!$K$85:$BH$85,Modellering!$K$86:$BH$97)),Modellering!$E$86:$E$97,Milieuprofielen!AQ$18) -> 0 | AR43: =SUMIFS((_xlfn.XLOOKUP('Weighting Set'!$Z27,Modellering!$K$85:$BH$85,Modellering!$K$86:$BH$97)),Modellering!$E$86:$E$97,Milieuprofielen!AR$18) -> 0 | AS43: 0
D44: 063. Water use | E44: m3 depriv. | F44: =SUMIFS((_xlfn.XLOOKUP('Weighting Set'!$Z28,Modellering!$K$5:$BH$5,Modellering!$K$6:$BH$17)),Modellering!$E$6:$E$17,Milieuprofielen!F$18) -> 126.6013073 | G44: =SUMIFS((_xlfn.XLOOKUP('Weighting Set'!$Z28,Modellering!$K$5:$BH$5,Modellering!$K$6:$BH$17)),Modellering!$E$6:$E$17,Milieuprofielen!G$18) -> -1.105753388 | H44: =SUMIFS((_xlfn.XLOOKUP('Weighting Set'!$Z28,Modellering!$K$5:$BH$5,Modellering!$K$6:$BH$17)),Modellering!$E$6:$E$17,Milieuprofielen!H$18) -> 22.39469174 | I44: 147.8902456 | M44: 063. Water use | N44: m3 depriv. | O44: =SUMIFS((_xlfn.XLOOKUP('Weighting Set'!$Z28,Modellering!$K$25:$BH$25,Modellering!$K$26:$BH$37)),Modellering!$E$26:$E$37,Milieuprofielen!O$18) -> 0 | P44: =SUMIFS((_xlfn.XLOOKUP('Weighting Set'!$Z28,Modellering!$K$25:$BH$25,Modellering!$K$26:$BH$37)),Modellering!$E$26:$E$37,Milieuprofielen!P$18) -> 0 | Q44: =SUMIFS((_xlfn.XLOOKUP('Weighting Set'!$Z28,Modellering!$K$25:$BH$25,Modellering!$K$26:$BH$37)),Modellering!$E$26:$E$37,Milieuprofielen!Q$18) -> 0 | R44: 0 | V44: 063. Water use | W44: m3 depriv. | X44: =SUMIFS((_xlfn.XLOOKUP('Weighting Set'!$Z28,Modellering!$K$45:$BH$45,Modellering!$K$46:$BH$57)),Modellering!$E$46:$E$57,Milieuprofielen!X$18) -> 0 | Y44: =SUMIFS((_xlfn.XLOOKUP('Weighting Set'!$Z28,Modellering!$K$45:$BH$45,Modellering!$K$46:$BH$57)),Modellering!$E$46:$E$57,Milieuprofielen!Y$18) -> 0 | Z44: =SUMIFS((_xlfn.XLOOKUP('Weighting Set'!$Z28,Modellering!$K$45:$BH$45,Modellering!$K$46:$BH$57)),Modellering!$E$46:$E$57,Milieuprofielen!Z$18) -> 0 | AA44: 0 | AE44: 063. Water use | AF44: m3 depriv. | AG44: =SUMIFS((_xlfn.XLOOKUP('Weighting Set'!$Z28,Modellering!$K$65:$BH$65,Modellering!$K$66:$BH$77)),Modellering!$E$66:$E$77,Milieuprofielen!AG$18) -> 0 | AH44: =SUMIFS((_xlfn.XLOOKUP('Weighting Set'!$Z28,Modellering!$K$65:$BH$65,Modellering!$K$66:$BH$77)),Modellering!$E$66:$E$77,Milieuprofielen!AH$18) -> 0 | AI44: =SUMIFS((_xlfn.XLOOKUP('Weighting Set'!$Z28,Modellering!$K$65:$BH$65,Modellering!$K$66:$BH$77)),Modellering!$E$66:$E$77,Milieuprofielen!AI$18) -> 0 | AJ44: 0 | AN44: 063. Water use | AO44: m3 depriv. | AP44: =SUMIFS((_xlfn.XLOOKUP('Weighting Set'!$Z28,Modellering!$K$85:$BH$85,Modellering!$K$86:$BH$97)),Modellering!$E$86:$E$97,Milieuprofielen!AP$18) -> 0 | AQ44: =SUMIFS((_xlfn.XLOOKUP('Weighting Set'!$Z28,Modellering!$K$85:$BH$85,Modellering!$K$86:$BH$97)),Modellering!$E$86:$E$97,Milieuprofielen!AQ$18) -> 0 | AR44: =SUMIFS((_xlfn.XLOOKUP('Weighting Set'!$Z28,Modellering!$K$85:$BH$85,Modellering!$K$86:$BH$97)),Modellering!$E$86:$E$97,Milieuprofielen!AR$18) -> 0 | AS44: 0
D45: 064. Particulate matter | E45: disease inc. | F45: =SUMIFS((_xlfn.XLOOKUP('Weighting Set'!$Z29,Modellering!$K$5:$BH$5,Modellering!$K$6:$BH$17)),Modellering!$E$6:$E$17,Milieuprofielen!F$18) -> 3.633127844e-05 | G45: =SUMIFS((_xlfn.XLOOKUP('Weighting Set'!$Z29,Modellering!$K$5:$BH$5,Modellering!$K$6:$BH$17)),Modellering!$E$6:$E$17,Milieuprofielen!G$18) -> 1.655102252e-06 | H45: =SUMIFS((_xlfn.XLOOKUP('Weighting Set'!$Z29,Modellering!$K$5:$BH$5,Modellering!$K$6:$BH$17)),Modellering!$E$6:$E$17,Milieuprofielen!H$18) -> 9.798863583e-06 | I45: 4.778524427e-05 | M45: 064. Particulate matter | N45: disease inc. | O45: =SUMIFS((_xlfn.XLOOKUP('Weighting Set'!$Z29,Modellering!$K$25:$BH$25,Modellering!$K$26:$BH$37)),Modellering!$E$26:$E$37,Milieuprofielen!O$18) -> 0 | P45: =SUMIFS((_xlfn.XLOOKUP('Weighting Set'!$Z29,Modellering!$K$25:$BH$25,Modellering!$K$26:$BH$37)),Modellering!$E$26:$E$37,Milieuprofielen!P$18) -> 0 | Q45: =SUMIFS((_xlfn.XLOOKUP('Weighting Set'!$Z29,Modellering!$K$25:$BH$25,Modellering!$K$26:$BH$37)),Modellering!$E$26:$E$37,Milieuprofielen!Q$18) -> 0 | R45: 0 | V45: 064. Particulate matter | W45: disease inc. | X45: =SUMIFS((_xlfn.XLOOKUP('Weighting Set'!$Z29,Modellering!$K$45:$BH$45,Modellering!$K$46:$BH$57)),Modellering!$E$46:$E$57,Milieuprofielen!X$18) -> 0 | Y45: =SUMIFS((_xlfn.XLOOKUP('Weighting Set'!$Z29,Modellering!$K$45:$BH$45,Modellering!$K$46:$BH$57)),Modellering!$E$46:$E$57,Milieuprofielen!Y$18) -> 0 | Z45: =SUMIFS((_xlfn.XLOOKUP('Weighting Set'!$Z29,Modellering!$K$45:$BH$45,Modellering!$K$46:$BH$57)),Modellering!$E$46:$E$57,Milieuprofielen!Z$18) -> 0 | AA45: 0 | AE45: 064. Particulate matter | AF45: disease inc. | AG45: =SUMIFS((_xlfn.XLOOKUP('Weighting Set'!$Z29,Modellering!$K$65:$BH$65,Modellering!$K$66:$BH$77)),Modellering!$E$66:$E$77,Milieuprofielen!AG$18) -> 0 | AH45: =SUMIFS((_xlfn.XLOOKUP('Weighting Set'!$Z29,Modellering!$K$65:$BH$65,Modellering!$K$66:$BH$77)),Modellering!$E$66:$E$77,Milieuprofielen!AH$18) -> 0 | AI45: =SUMIFS((_xlfn.XLOOKUP('Weighting Set'!$Z29,Modellering!$K$65:$BH$65,Modellering!$K$66:$BH$77)),Modellering!$E$66:$E$77,Milieuprofielen!AI$18) -> 0 | AJ45: 0 | AN45: 064. Particulate matter | AO45: disease inc. | AP45: =SUMIFS((_xlfn.XLOOKUP('Weighting Set'!$Z29,Modellering!$K$85:$BH$85,Modellering!$K$86:$BH$97)),Modellering!$E$86:$E$97,Milieuprofielen!AP$18) -> 0 | AQ45: =SUMIFS((_xlfn.XLOOKUP('Weighting Set'!$Z29,Modellering!$K$85:$BH$85,Modellering!$K$86:$BH$97)),Modellering!$E$86:$E$97,Milieuprofielen!AQ$18) -> 0 | AR45: =SUMIFS((_xlfn.XLOOKUP('Weighting Set'!$Z29,Modellering!$K$85:$BH$85,Modellering!$K$86:$BH$97)),Modellering!$E$86:$E$97,Milieuprofielen!AR$18) -> 0 | AS45: 0
D46: 065. Ionising radiation | E46: kBq U-235 eq | F46: =SUMIFS((_xlfn.XLOOKUP('Weighting Set'!$Z30,Modellering!$K$5:$BH$5,Modellering!$K$6:$BH$17)),Modellering!$E$6:$E$17,Milieuprofielen!F$18) -> 9.377555928 | G46: =SUMIFS((_xlfn.XLOOKUP('Weighting Set'!$Z30,Modellering!$K$5:$BH$5,Modellering!$K$6:$BH$17)),Modellering!$E$6:$E$17,Milieuprofielen!G$18) -> 0.5939966614 | H46: =SUMIFS((_xlfn.XLOOKUP('Weighting Set'!$Z30,Modellering!$K$5:$BH$5,Modellering!$K$6:$BH$17)),Modellering!$E$6:$E$17,Milieuprofielen!H$18) -> 1.320588537 | I46: 11.29214113 | M46: 065. Ionising radiation | N46: kBq U-235 eq | O46: =SUMIFS((_xlfn.XLOOKUP('Weighting Set'!$Z30,Modellering!$K$25:$BH$25,Modellering!$K$26:$BH$37)),Modellering!$E$26:$E$37,Milieuprofielen!O$18) -> 0 | P46: =SUMIFS((_xlfn.XLOOKUP('Weighting Set'!$Z30,Modellering!$K$25:$BH$25,Modellering!$K$26:$BH$37)),Modellering!$E$26:$E$37,Milieuprofielen!P$18) -> 0 | Q46: =SUMIFS((_xlfn.XLOOKUP('Weighting Set'!$Z30,Modellering!$K$25:$BH$25,Modellering!$K$26:$BH$37)),Modellering!$E$26:$E$37,Milieuprofielen!Q$18) -> 0 | R46: 0 | V46: 065. Ionising radiation | W46: kBq U-235 eq | X46: =SUMIFS((_xlfn.XLOOKUP('Weighting Set'!$Z30,Modellering!$K$45:$BH$45,Modellering!$K$46:$BH$57)),Modellering!$E$46:$E$57,Milieuprofielen!X$18) -> 0 | Y46: =SUMIFS((_xlfn.XLOOKUP('Weighting Set'!$Z30,Modellering!$K$45:$BH$45,Modellering!$K$46:$BH$57)),Modellering!$E$46:$E$57,Milieuprofielen!Y$18) -> 0 | Z46: =SUMIFS((_xlfn.XLOOKUP('Weighting Set'!$Z30,Modellering!$K$45:$BH$45,Modellering!$K$46:$BH$57)),Modellering!$E$46:$E$57,Milieuprofielen!Z$18) -> 0 | AA46: 0 | AE46: 065. Ionising radiation | AF46: kBq U-235 eq | AG46: =SUMIFS((_xlfn.XLOOKUP('Weighting Set'!$Z30,Modellering!$K$65:$BH$65,Modellering!$K$66:$BH$77)),Modellering!$E$66:$E$77,Milieuprofielen!AG$18) -> 0 | AH46: =SUMIFS((_xlfn.XLOOKUP('Weighting Set'!$Z30,Modellering!$K$65:$BH$65,Modellering!$K$66:$BH$77)),Modellering!$E$66:$E$77,Milieuprofielen!AH$18) -> 0 | AI46: =SUMIFS((_xlfn.XLOOKUP('Weighting Set'!$Z30,Modellering!$K$65:$BH$65,Modellering!$K$66:$BH$77)),Modellering!$E$66:$E$77,Milieuprofielen!AI$18) -> 0 | AJ46: 0 | AN46: 065. Ionising radiation | AO46: kBq U-235 eq | AP46: =SUMIFS((_xlfn.XLOOKUP('Weighting Set'!$Z30,Modellering!$K$85:$BH$85,Modellering!$K$86:$BH$97)),Modellering!$E$86:$E$97,Milieuprofielen!AP$18) -> 0 | AQ46: =SUMIFS((_xlfn.XLOOKUP('Weighting Set'!$Z30,Modellering!$K$85:$BH$85,Modellering!$K$86:$BH$97)),Modellering!$E$86:$E$97,Milieuprofielen!AQ$18) -> 0 | AR46: =SUMIFS((_xlfn.XLOOKUP('Weighting Set'!$Z30,Modellering!$K$85:$BH$85,Modellering!$K$86:$BH$97)),Modellering!$E$86:$E$97,Milieuprofielen!AR$18) -> 0 | AS46: 0
D47: 066. Ecotoxicity, freshwater | E47: CTUe | F47: =SUMIFS((_xlfn.XLOOKUP('Weighting Set'!$Z31,Modellering!$K$5:$BH$5,Modellering!$K$6:$BH$17)),Modellering!$E$6:$E$17,Milieuprofielen!F$18) -> 16017.5815 | G47: =SUMIFS((_xlfn.XLOOKUP('Weighting Set'!$Z31,Modellering!$K$5:$BH$5,Modellering!$K$6:$BH$17)),Modellering!$E$6:$E$17,Milieuprofielen!G$18) -> 174.725141 | H47: =SUMIFS((_xlfn.XLOOKUP('Weighting Set'!$Z31,Modellering!$K$5:$BH$5,Modellering!$K$6:$BH$17)),Modellering!$E$6:$E$17,Milieuprofielen!H$18) -> 595.0149184 | I47: 16787.32156 | M47: 066. Ecotoxicity, freshwater | N47: CTUe | O47: =SUMIFS((_xlfn.XLOOKUP('Weighting Set'!$Z31,Modellering!$K$25:$BH$25,Modellering!$K$26:$BH$37)),Modellering!$E$26:$E$37,Milieuprofielen!O$18) -> 0 | P47: =SUMIFS((_xlfn.XLOOKUP('Weighting Set'!$Z31,Modellering!$K$25:$BH$25,Modellering!$K$26:$BH$37)),Modellering!$E$26:$E$37,Milieuprofielen!P$18) -> 0 | Q47: =SUMIFS((_xlfn.XLOOKUP('Weighting Set'!$Z31,Modellering!$K$25:$BH$25,Modellering!$K$26:$BH$37)),Modellering!$E$26:$E$37,Milieuprofielen!Q$18) -> 0 | R47: 0 | V47: 066. Ecotoxicity, freshwater | W47: CTUe | X47: =SUMIFS((_xlfn.XLOOKUP('Weighting Set'!$Z31,Modellering!$K$45:$BH$45,Modellering!$K$46:$BH$57)),Modellering!$E$46:$E$57,Milieuprofielen!X$18) -> 0 | Y47: =SUMIFS((_xlfn.XLOOKUP('Weighting Set'!$Z31,Modellering!$K$45:$BH$45,Modellering!$K$46:$BH$57)),Modellering!$E$46:$E$57,Milieuprofielen!Y$18) -> 0 | Z47: =SUMIFS((_xlfn.XLOOKUP('Weighting Set'!$Z31,Modellering!$K$45:$BH$45,Modellering!$K$46:$BH$57)),Modellering!$E$46:$E$57,Milieuprofielen!Z$18) -> 0 | AA47: 0 | AE47: 066. Ecotoxicity, freshwater | AF47: CTUe | AG47: =SUMIFS((_xlfn.XLOOKUP('Weighting Set'!$Z31,Modellering!$K$65:$BH$65,Modellering!$K$66:$BH$77)),Modellering!$E$66:$E$77,Milieuprofielen!AG$18) -> 0 | AH47: =SUMIFS((_xlfn.XLOOKUP('Weighting Set'!$Z31,Modellering!$K$65:$BH$65,Modellering!$K$66:$BH$77)),Modellering!$E$66:$E$77,Milieuprofielen!AH$18) -> 0 | AI47: =SUMIFS((_xlfn.XLOOKUP('Weighting Set'!$Z31,Modellering!$K$65:$BH$65,Modellering!$K$66:$BH$77)),Modellering!$E$66:$E$77,Milieuprofielen!AI$18) -> 0 | AJ47: 0 | AN47: 066. Ecotoxicity, freshwater | AO47: CTUe | AP47: =SUMIFS((_xlfn.XLOOKUP('Weighting Set'!$Z31,Modellering!$K$85:$BH$85,Modellering!$K$86:$BH$97)),Modellering!$E$86:$E$97,Milieuprofielen!AP$18) -> 0 | AQ47: =SUMIFS((_xlfn.XLOOKUP('Weighting Set'!$Z31,Modellering!$K$85:$BH$85,Modellering!$K$86:$BH$97)),Modellering!$E$86:$E$97,Milieuprofielen!AQ$18) -> 0 | AR47: =SUMIFS((_xlfn.XLOOKUP('Weighting Set'!$Z31,Modellering!$K$85:$BH$85,Modellering!$K$86:$BH$97)),Modellering!$E$86:$E$97,Milieuprofielen!AR$18) -> 0 | AS47: 0
D48: 067. Human toxicity, cancer | E48: CTUh | F48: =SUMIFS((_xlfn.XLOOKUP('Weighting Set'!$Z32,Modellering!$K$5:$BH$5,Modellering!$K$6:$BH$17)),Modellering!$E$6:$E$17,Milieuprofielen!F$18) -> 2.821255356e-07 | G48: =SUMIFS((_xlfn.XLOOKUP('Weighting Set'!$Z32,Modellering!$K$5:$BH$5,Modellering!$K$6:$BH$17)),Modellering!$E$6:$E$17,Milieuprofielen!G$18) -> 9.655123405e-09 | H48: =SUMIFS((_xlfn.XLOOKUP('Weighting Set'!$Z32,Modellering!$K$5:$BH$5,Modellering!$K$6:$BH$17)),Modellering!$E$6:$E$17,Milieuprofielen!H$18) -> 5.083926462e-07 | I48: 8.001733051e-07 | M48: 067. Human toxicity, cancer | N48: CTUh | O48: =SUMIFS((_xlfn.XLOOKUP('Weighting Set'!$Z32,Modellering!$K$25:$BH$25,Modellering!$K$26:$BH$37)),Modellering!$E$26:$E$37,Milieuprofielen!O$18) -> 0 | P48: =SUMIFS((_xlfn.XLOOKUP('Weighting Set'!$Z32,Modellering!$K$25:$BH$25,Modellering!$K$26:$BH$37)),Modellering!$E$26:$E$37,Milieuprofielen!P$18) -> 0 | Q48: =SUMIFS((_xlfn.XLOOKUP('Weighting Set'!$Z32,Modellering!$K$25:$BH$25,Modellering!$K$26:$BH$37)),Modellering!$E$26:$E$37,Milieuprofielen!Q$18) -> 0 | R48: 0 | V48: 067. Human toxicity, cancer | W48: CTUh | X48: =SUMIFS((_xlfn.XLOOKUP('Weighting Set'!$Z32,Modellering!$K$45:$BH$45,Modellering!$K$46:$BH$57)),Modellering!$E$46:$E$57,Milieuprofielen!X$18) -> 0 | Y48: =SUMIFS((_xlfn.XLOOKUP('Weighting Set'!$Z32,Modellering!$K$45:$BH$45,Modellering!$K$46:$BH$57)),Modellering!$E$46:$E$57,Milieuprofielen!Y$18) -> 0 | Z48: =SUMIFS((_xlfn.XLOOKUP('Weighting Set'!$Z32,Modellering!$K$45:$BH$45,Modellering!$K$46:$BH$57)),Modellering!$E$46:$E$57,Milieuprofielen!Z$18) -> 0 | AA48: 0 | AE48: 067. Human toxicity, cancer | AF48: CTUh | AG48: =SUMIFS((_xlfn.XLOOKUP('Weighting Set'!$Z32,Modellering!$K$65:$BH$65,Modellering!$K$66:$BH$77)),Modellering!$E$66:$E$77,Milieuprofielen!AG$18) -> 0 | AH48: =SUMIFS((_xlfn.XLOOKUP('Weighting Set'!$Z32,Modellering!$K$65:$BH$65,Modellering!$K$66:$BH$77)),Modellering!$E$66:$E$77,Milieuprofielen!AH$18) -> 0 | AI48: =SUMIFS((_xlfn.XLOOKUP('Weighting Set'!$Z32,Modellering!$K$65:$BH$65,Modellering!$K$66:$BH$77)),Modellering!$E$66:$E$77,Milieuprofielen!AI$18) -> 0 | AJ48: 0 | AN48: 067. Human toxicity, cancer | AO48: CTUh | AP48: =SUMIFS((_xlfn.XLOOKUP('Weighting Set'!$Z32,Modellering!$K$85:$BH$85,Modellering!$K$86:$BH$97)),Modellering!$E$86:$E$97,Milieuprofielen!AP$18) -> 0 | AQ48: =SUMIFS((_xlfn.XLOOKUP('Weighting Set'!$Z32,Modellering!$K$85:$BH$85,Modellering!$K$86:$BH$97)),Modellering!$E$86:$E$97,Milieuprofielen!AQ$18) -> 0 | AR48: =SUMIFS((_xlfn.XLOOKUP('Weighting Set'!$Z32,Modellering!$K$85:$BH$85,Modellering!$K$86:$BH$97)),Modellering!$E$86:$E$97,Milieuprofielen!AR$18) -> 0 | AS48: 0
D49: 068. Human toxicity, non-cancer | E49: CTUh | F49: =SUMIFS((_xlfn.XLOOKUP('Weighting Set'!$Z33,Modellering!$K$5:$BH$5,Modellering!$K$6:$BH$17)),Modellering!$E$6:$E$17,Milieuprofielen!F$18) -> 5.297356397e-06 | G49: =SUMIFS((_xlfn.XLOOKUP('Weighting Set'!$Z33,Modellering!$K$5:$BH$5,Modellering!$K$6:$BH$17)),Modellering!$E$6:$E$17,Milieuprofielen!G$18) -> 1.711579871e-07 | H49: =SUMIFS((_xlfn.XLOOKUP('Weighting Set'!$Z33,Modellering!$K$5:$BH$5,Modellering!$K$6:$BH$17)),Modellering!$E$6:$E$17,Milieuprofielen!H$18) -> 2.699469256e-06 | I49: 8.167983641e-06 | M49: 068. Human toxicity, non-cancer | N49: CTUh | O49: =SUMIFS((_xlfn.XLOOKUP('Weighting Set'!$Z33,Modellering!$K$25:$BH$25,Modellering!$K$26:$BH$37)),Modellering!$E$26:$E$37,Milieuprofielen!O$18) -> 0 | P49: =SUMIFS((_xlfn.XLOOKUP('Weighting Set'!$Z33,Modellering!$K$25:$BH$25,Modellering!$K$26:$BH$37)),Modellering!$E$26:$E$37,Milieuprofielen!P$18) -> 0 | Q49: =SUMIFS((_xlfn.XLOOKUP('Weighting Set'!$Z33,Modellering!$K$25:$BH$25,Modellering!$K$26:$BH$37)),Modellering!$E$26:$E$37,Milieuprofielen!Q$18) -> 0 | R49: 0 | V49: 068. Human toxicity, non-cancer | W49: CTUh | X49: =SUMIFS((_xlfn.XLOOKUP('Weighting Set'!$Z33,Modellering!$K$45:$BH$45,Modellering!$K$46:$BH$57)),Modellering!$E$46:$E$57,Milieuprofielen!X$18) -> 0 | Y49: =SUMIFS((_xlfn.XLOOKUP('Weighting Set'!$Z33,Modellering!$K$45:$BH$45,Modellering!$K$46:$BH$57)),Modellering!$E$46:$E$57,Milieuprofielen!Y$18) -> 0 | Z49: =SUMIFS((_xlfn.XLOOKUP('Weighting Set'!$Z33,Modellering!$K$45:$BH$45,Modellering!$K$46:$BH$57)),Modellering!$E$46:$E$57,Milieuprofielen!Z$18) -> 0 | AA49: 0 | AE49: 068. Human toxicity, non-cancer | AF49: CTUh | AG49: =SUMIFS((_xlfn.XLOOKUP('Weighting Set'!$Z33,Modellering!$K$65:$BH$65,Modellering!$K$66:$BH$77)),Modellering!$E$66:$E$77,Milieuprofielen!AG$18) -> 0 | AH49: =SUMIFS((_xlfn.XLOOKUP('Weighting Set'!$Z33,Modellering!$K$65:$BH$65,Modellering!$K$66:$BH$77)),Modellering!$E$66:$E$77,Milieuprofielen!AH$18) -> 0 | AI49: =SUMIFS((_xlfn.XLOOKUP('Weighting Set'!$Z33,Modellering!$K$65:$BH$65,Modellering!$K$66:$BH$77)),Modellering!$E$66:$E$77,Milieuprofielen!AI$18) -> 0 | AJ49: 0 | AN49: 068. Human toxicity, non-cancer | AO49: CTUh | AP49: =SUMIFS((_xlfn.XLOOKUP('Weighting Set'!$Z33,Modellering!$K$85:$BH$85,Modellering!$K$86:$BH$97)),Modellering!$E$86:$E$97,Milieuprofielen!AP$18) -> 0 | AQ49: =SUMIFS((_xlfn.XLOOKUP('Weighting Set'!$Z33,Modellering!$K$85:$BH$85,Modellering!$K$86:$BH$97)),Modellering!$E$86:$E$97,Milieuprofielen!AQ$18) -> 0 | AR49: =SUMIFS((_xlfn.XLOOKUP('Weighting Set'!$Z33,Modellering!$K$85:$BH$85,Modellering!$K$86:$BH$97)),Modellering!$E$86:$E$97,Milieuprofielen!AR$18) -> 0 | AS49: 0
D50: 069. Land use | E50: Pt | F50: =SUMIFS((_xlfn.XLOOKUP('Weighting Set'!$Z34,Modellering!$K$5:$BH$5,Modellering!$K$6:$BH$17)),Modellering!$E$6:$E$17,Milieuprofielen!F$18) -> 1081.938913 | G50: =SUMIFS((_xlfn.XLOOKUP('Weighting Set'!$Z34,Modellering!$K$5:$BH$5,Modellering!$K$6:$BH$17)),Modellering!$E$6:$E$17,Milieuprofielen!G$18) -> 531.2097916 | H50: =SUMIFS((_xlfn.XLOOKUP('Weighting Set'!$Z34,Modellering!$K$5:$BH$5,Modellering!$K$6:$BH$17)),Modellering!$E$6:$E$17,Milieuprofielen!H$18) -> 2004.190786 | I50: 3617.33949 | M50: 069. Land use | N50: Pt | O50: =SUMIFS((_xlfn.XLOOKUP('Weighting Set'!$Z34,Modellering!$K$25:$BH$25,Modellering!$K$26:$BH$37)),Modellering!$E$26:$E$37,Milieuprofielen!O$18) -> 0 | P50: =SUMIFS((_xlfn.XLOOKUP('Weighting Set'!$Z34,Modellering!$K$25:$BH$25,Modellering!$K$26:$BH$37)),Modellering!$E$26:$E$37,Milieuprofielen!P$18) -> 0 | Q50: =SUMIFS((_xlfn.XLOOKUP('Weighting Set'!$Z34,Modellering!$K$25:$BH$25,Modellering!$K$26:$BH$37)),Modellering!$E$26:$E$37,Milieuprofielen!Q$18) -> 0 | R50: 0 | V50: 069. Land use | W50: Pt | X50: =SUMIFS((_xlfn.XLOOKUP('Weighting Set'!$Z34,Modellering!$K$45:$BH$45,Modellering!$K$46:$BH$57)),Modellering!$E$46:$E$57,Milieuprofielen!X$18) -> 0 | Y50: =SUMIFS((_xlfn.XLOOKUP('Weighting Set'!$Z34,Modellering!$K$45:$BH$45,Modellering!$K$46:$BH$57)),Modellering!$E$46:$E$57,Milieuprofielen!Y$18) -> 0 | Z50: =SUMIFS((_xlfn.XLOOKUP('Weighting Set'!$Z34,Modellering!$K$45:$BH$45,Modellering!$K$46:$BH$57)),Modellering!$E$46:$E$57,Milieuprofielen!Z$18) -> 0 | AA50: 0 | AE50: 069. Land use | AF50: Pt | AG50: =SUMIFS((_xlfn.XLOOKUP('Weighting Set'!$Z34,Modellering!$K$65:$BH$65,Modellering!$K$66:$BH$77)),Modellering!$E$66:$E$77,Milieuprofielen!AG$18) -> 0 | AH50: =SUMIFS((_xlfn.XLOOKUP('Weighting Set'!$Z34,Modellering!$K$65:$BH$65,Modellering!$K$66:$BH$77)),Modellering!$E$66:$E$77,Milieuprofielen!AH$18) -> 0 | AI50: =SUMIFS((_xlfn.XLOOKUP('Weighting Set'!$Z34,Modellering!$K$65:$BH$65,Modellering!$K$66:$BH$77)),Modellering!$E$66:$E$77,Milieuprofielen!AI$18) -> 0 | AJ50: 0 | AN50: 069. Land use | AO50: Pt | AP50: =SUMIFS((_xlfn.XLOOKUP('Weighting Set'!$Z34,Modellering!$K$85:$BH$85,Modellering!$K$86:$BH$97)),Modellering!$E$86:$E$97,Milieuprofielen!AP$18) -> 0 | AQ50: =SUMIFS((_xlfn.XLOOKUP('Weighting Set'!$Z34,Modellering!$K$85:$BH$85,Modellering!$K$86:$BH$97)),Modellering!$E$86:$E$97,Milieuprofielen!AQ$18) -> 0 | AR50: =SUMIFS((_xlfn.XLOOKUP('Weighting Set'!$Z34,Modellering!$K$85:$BH$85,Modellering!$K$86:$BH$97)),Modellering!$E$86:$E$97,Milieuprofielen!AR$18) -> 0 | AS50: 0
C51: Parameters EN15804+A2 | D51: 111. Energy, primary, renewable, excludi | E51: MJ | F51: =SUMIFS((_xlfn.XLOOKUP('Weighting Set'!$Z35,Modellering!$K$5:$BH$5,Modellering!$K$6:$BH$17)),Modellering!$E$6:$E$17,Milieuprofielen!F$18) -> 0 | G51: =SUMIFS((_xlfn.XLOOKUP('Weighting Set'!$Z35,Modellering!$K$5:$BH$5,Modellering!$K$6:$BH$17)),Modellering!$E$6:$E$17,Milieuprofielen!G$18) -> 0 | H51: =SUMIFS((_xlfn.XLOOKUP('Weighting Set'!$Z35,Modellering!$K$5:$BH$5,Modellering!$K$6:$BH$17)),Modellering!$E$6:$E$17,Milieuprofielen!H$18) -> 0 | I51: 0 | L51: Parameters EN15804+A2 | M51: 111. Energy, primary, renewable, excludi | N51: MJ | O51: =SUMIFS((_xlfn.XLOOKUP('Weighting Set'!$Z35,Modellering!$K$25:$BH$25,Modellering!$K$26:$BH$37)),Modellering!$E$26:$E$37,Milieuprofielen!O$18) -> 0 | P51: =SUMIFS((_xlfn.XLOOKUP('Weighting Set'!$Z35,Modellering!$K$25:$BH$25,Modellering!$K$26:$BH$37)),Modellering!$E$26:$E$37,Milieuprofielen!P$18) -> 0 | Q51: =SUMIFS((_xlfn.XLOOKUP('Weighting Set'!$Z35,Modellering!$K$25:$BH$25,Modellering!$K$26:$BH$37)),Modellering!$E$26:$E$37,Milieuprofielen!Q$18) -> 0 | R51: 0 | U51: Parameters EN15804+A2 | V51: 111. Energy, primary, renewable, excludi | W51: MJ | X51: =SUMIFS((_xlfn.XLOOKUP('Weighting Set'!$Z35,Modellering!$K$45:$BH$45,Modellering!$K$46:$BH$57)),Modellering!$E$46:$E$57,Milieuprofielen!X$18) -> 0 | Y51: =SUMIFS((_xlfn.XLOOKUP('Weighting Set'!$Z35,Modellering!$K$45:$BH$45,Modellering!$K$46:$BH$57)),Modellering!$E$46:$E$57,Milieuprofielen!Y$18) -> 0 | Z51: =SUMIFS((_xlfn.XLOOKUP('Weighting Set'!$Z35,Modellering!$K$45:$BH$45,Modellering!$K$46:$BH$57)),Modellering!$E$46:$E$57,Milieuprofielen!Z$18) -> 0 | AA51: 0 | AD51: Parameters EN15804+A2 | AE51: 111. Energy, primary, renewable, excludi | AF51: MJ | AG51: =SUMIFS((_xlfn.XLOOKUP('Weighting Set'!$Z35,Modellering!$K$65:$BH$65,Modellering!$K$66:$BH$77)),Modellering!$E$66:$E$77,Milieuprofielen!AG$18) -> 0 | AH51: =SUMIFS((_xlfn.XLOOKUP('Weighting Set'!$Z35,Modellering!$K$65:$BH$65,Modellering!$K$66:$BH$77)),Modellering!$E$66:$E$77,Milieuprofielen!AH$18) -> 0 | AI51: =SUMIFS((_xlfn.XLOOKUP('Weighting Set'!$Z35,Modellering!$K$65:$BH$65,Modellering!$K$66:$BH$77)),Modellering!$E$66:$E$77,Milieuprofielen!AI$18) -> 0 | AJ51: 0 | AM51: Parameters EN15804+A2 | AN51: 111. Energy, primary, renewable, excludi | AO51: MJ | AP51: =SUMIFS((_xlfn.XLOOKUP('Weighting Set'!$Z35,Modellering!$K$85:$BH$85,Modellering!$K$86:$BH$97)),Modellering!$E$86:$E$97,Milieuprofielen!AP$18) -> 0 | AQ51: =SUMIFS((_xlfn.XLOOKUP('Weighting Set'!$Z35,Modellering!$K$85:$BH$85,Modellering!$K$86:$BH$97)),Modellering!$E$86:$E$97,Milieuprofielen!AQ$18) -> 0 | AR51: =SUMIFS((_xlfn.XLOOKUP('Weighting Set'!$Z35,Modellering!$K$85:$BH$85,Modellering!$K$86:$BH$97)),Modellering!$E$86:$E$97,Milieuprofielen!AR$18) -> 0 | AS51: 0
D52: 113. Energy, primary, renewable, materia | E52: MJ | F52: =SUMIFS((_xlfn.XLOOKUP('Weighting Set'!$Z36,Modellering!$K$5:$BH$5,Modellering!$K$6:$BH$17)),Modellering!$E$6:$E$17,Milieuprofielen!F$18) -> 0 | G52: =SUMIFS((_xlfn.XLOOKUP('Weighting Set'!$Z36,Modellering!$K$5:$BH$5,Modellering!$K$6:$BH$17)),Modellering!$E$6:$E$17,Milieuprofielen!G$18) -> 0 | H52: =SUMIFS((_xlfn.XLOOKUP('Weighting Set'!$Z36,Modellering!$K$5:$BH$5,Modellering!$K$6:$BH$17)),Modellering!$E$6:$E$17,Milieuprofielen!H$18) -> 0 | I52: 0 | M52: 113. Energy, primary, renewable, materia | N52: MJ | O52: =SUMIFS((_xlfn.XLOOKUP('Weighting Set'!$Z36,Modellering!$K$25:$BH$25,Modellering!$K$26:$BH$37)),Modellering!$E$26:$E$37,Milieuprofielen!O$18) -> 0 | P52: =SUMIFS((_xlfn.XLOOKUP('Weighting Set'!$Z36,Modellering!$K$25:$BH$25,Modellering!$K$26:$BH$37)),Modellering!$E$26:$E$37,Milieuprofielen!P$18) -> 0 | Q52: =SUMIFS((_xlfn.XLOOKUP('Weighting Set'!$Z36,Modellering!$K$25:$BH$25,Modellering!$K$26:$BH$37)),Modellering!$E$26:$E$37,Milieuprofielen!Q$18) -> 0 | R52: 0 | V52: 113. Energy, primary, renewable, materia | W52: MJ | X52: =SUMIFS((_xlfn.XLOOKUP('Weighting Set'!$Z36,Modellering!$K$45:$BH$45,Modellering!$K$46:$BH$57)),Modellering!$E$46:$E$57,Milieuprofielen!X$18) -> 0 | Y52: =SUMIFS((_xlfn.XLOOKUP('Weighting Set'!$Z36,Modellering!$K$45:$BH$45,Modellering!$K$46:$BH$57)),Modellering!$E$46:$E$57,Milieuprofielen!Y$18) -> 0 | Z52: =SUMIFS((_xlfn.XLOOKUP('Weighting Set'!$Z36,Modellering!$K$45:$BH$45,Modellering!$K$46:$BH$57)),Modellering!$E$46:$E$57,Milieuprofielen!Z$18) -> 0 | AA52: 0 | AE52: 113. Energy, primary, renewable, materia | AF52: MJ | AG52: =SUMIFS((_xlfn.XLOOKUP('Weighting Set'!$Z36,Modellering!$K$65:$BH$65,Modellering!$K$66:$BH$77)),Modellering!$E$66:$E$77,Milieuprofielen!AG$18) -> 0 | AH52: =SUMIFS((_xlfn.XLOOKUP('Weighting Set'!$Z36,Modellering!$K$65:$BH$65,Modellering!$K$66:$BH$77)),Modellering!$E$66:$E$77,Milieuprofielen!AH$18) -> 0 | AI52: =SUMIFS((_xlfn.XLOOKUP('Weighting Set'!$Z36,Modellering!$K$65:$BH$65,Modellering!$K$66:$BH$77)),Modellering!$E$66:$E$77,Milieuprofielen!AI$18) -> 0 | AJ52: 0 | AN52: 113. Energy, primary, renewable, materia | AO52: MJ | AP52: =SUMIFS((_xlfn.XLOOKUP('Weighting Set'!$Z36,Modellering!$K$85:$BH$85,Modellering!$K$86:$BH$97)),Modellering!$E$86:$E$97,Milieuprofielen!AP$18) -> 0 | AQ52: =SUMIFS((_xlfn.XLOOKUP('Weighting Set'!$Z36,Modellering!$K$85:$BH$85,Modellering!$K$86:$BH$97)),Modellering!$E$86:$E$97,Milieuprofielen!AQ$18) -> 0 | AR52: =SUMIFS((_xlfn.XLOOKUP('Weighting Set'!$Z36,Modellering!$K$85:$BH$85,Modellering!$K$86:$BH$97)),Modellering!$E$86:$E$97,Milieuprofielen!AR$18) -> 0 | AS52: 0
D53: 101. Energy, primary, renewable (MJ) | E53: MJ | F53: =SUMIFS((_xlfn.XLOOKUP('Weighting Set'!$Z37,Modellering!$K$5:$BH$5,Modellering!$K$6:$BH$17)),Modellering!$E$6:$E$17,Milieuprofielen!F$18) -> 164.3933975 | G53: =SUMIFS((_xlfn.XLOOKUP('Weighting Set'!$Z37,Modellering!$K$5:$BH$5,Modellering!$K$6:$BH$17)),Modellering!$E$6:$E$17,Milieuprofielen!G$18) -> 18.56942204 | H53: =SUMIFS((_xlfn.XLOOKUP('Weighting Set'!$Z37,Modellering!$K$5:$BH$5,Modellering!$K$6:$BH$17)),Modellering!$E$6:$E$17,Milieuprofielen!H$18) -> 56.2015865 | I53: 239.1644061 | M53: 101. Energy, primary, renewable (MJ) | N53: MJ | O53: =SUMIFS((_xlfn.XLOOKUP('Weighting Set'!$Z37,Modellering!$K$25:$BH$25,Modellering!$K$26:$BH$37)),Modellering!$E$26:$E$37,Milieuprofielen!O$18) -> 0 | P53: =SUMIFS((_xlfn.XLOOKUP('Weighting Set'!$Z37,Modellering!$K$25:$BH$25,Modellering!$K$26:$BH$37)),Modellering!$E$26:$E$37,Milieuprofielen!P$18) -> 0 | Q53: =SUMIFS((_xlfn.XLOOKUP('Weighting Set'!$Z37,Modellering!$K$25:$BH$25,Modellering!$K$26:$BH$37)),Modellering!$E$26:$E$37,Milieuprofielen!Q$18) -> 0 | R53: 0 | V53: 101. Energy, primary, renewable (MJ) | W53: MJ | X53: =SUMIFS((_xlfn.XLOOKUP('Weighting Set'!$Z37,Modellering!$K$45:$BH$45,Modellering!$K$46:$BH$57)),Modellering!$E$46:$E$57,Milieuprofielen!X$18) -> 0 | Y53: =SUMIFS((_xlfn.XLOOKUP('Weighting Set'!$Z37,Modellering!$K$45:$BH$45,Modellering!$K$46:$BH$57)),Modellering!$E$46:$E$57,Milieuprofielen!Y$18) -> 0 | Z53: =SUMIFS((_xlfn.XLOOKUP('Weighting Set'!$Z37,Modellering!$K$45:$BH$45,Modellering!$K$46:$BH$57)),Modellering!$E$46:$E$57,Milieuprofielen!Z$18) -> 0 | AA53: 0 | AE53: 101. Energy, primary, renewable (MJ) | AF53: MJ | AG53: =SUMIFS((_xlfn.XLOOKUP('Weighting Set'!$Z37,Modellering!$K$65:$BH$65,Modellering!$K$66:$BH$77)),Modellering!$E$66:$E$77,Milieuprofielen!AG$18) -> 0 | AH53: =SUMIFS((_xlfn.XLOOKUP('Weighting Set'!$Z37,Modellering!$K$65:$BH$65,Modellering!$K$66:$BH$77)),Modellering!$E$66:$E$77,Milieuprofielen!AH$18) -> 0 | AI53: =SUMIFS((_xlfn.XLOOKUP('Weighting Set'!$Z37,Modellering!$K$65:$BH$65,Modellering!$K$66:$BH$77)),Modellering!$E$66:$E$77,Milieuprofielen!AI$18) -> 0 | AJ53: 0 | AN53: 101. Energy, primary, renewable (MJ) | AO53: MJ | AP53: =SUMIFS((_xlfn.XLOOKUP('Weighting Set'!$Z37,Modellering!$K$85:$BH$85,Modellering!$K$86:$BH$97)),Modellering!$E$86:$E$97,Milieuprofielen!AP$18) -> 0 | AQ53: =SUMIFS((_xlfn.XLOOKUP('Weighting Set'!$Z37,Modellering!$K$85:$BH$85,Modellering!$K$86:$BH$97)),Modellering!$E$86:$E$97,Milieuprofielen!AQ$18) -> 0 | AR53: =SUMIFS((_xlfn.XLOOKUP('Weighting Set'!$Z37,Modellering!$K$85:$BH$85,Modellering!$K$86:$BH$97)),Modellering!$E$86:$E$97,Milieuprofielen!AR$18) -> 0 | AS53: 0
D54: 112. Energy, primary, non-renewable, exc | E54: MJ | F54: =SUMIFS((_xlfn.XLOOKUP('Weighting Set'!$Z38,Modellering!$K$5:$BH$5,Modellering!$K$6:$BH$17)),Modellering!$E$6:$E$17,Milieuprofielen!F$18) -> 0 | G54: =SUMIFS((_xlfn.XLOOKUP('Weighting Set'!$Z38,Modellering!$K$5:$BH$5,Modellering!$K$6:$BH$17)),Modellering!$E$6:$E$17,Milieuprofielen!G$18) -> 0 | H54: =SUMIFS((_xlfn.XLOOKUP('Weighting Set'!$Z38,Modellering!$K$5:$BH$5,Modellering!$K$6:$BH$17)),Modellering!$E$6:$E$17,Milieuprofielen!H$18) -> 0 | I54: 0 | M54: 112. Energy, primary, non-renewable, exc | N54: MJ | O54: =SUMIFS((_xlfn.XLOOKUP('Weighting Set'!$Z38,Modellering!$K$25:$BH$25,Modellering!$K$26:$BH$37)),Modellering!$E$26:$E$37,Milieuprofielen!O$18) -> 0 | P54: =SUMIFS((_xlfn.XLOOKUP('Weighting Set'!$Z38,Modellering!$K$25:$BH$25,Modellering!$K$26:$BH$37)),Modellering!$E$26:$E$37,Milieuprofielen!P$18) -> 0 | Q54: =SUMIFS((_xlfn.XLOOKUP('Weighting Set'!$Z38,Modellering!$K$25:$BH$25,Modellering!$K$26:$BH$37)),Modellering!$E$26:$E$37,Milieuprofielen!Q$18) -> 0 | R54: 0 | V54: 112. Energy, primary, non-renewable, exc | W54: MJ | X54: =SUMIFS((_xlfn.XLOOKUP('Weighting Set'!$Z38,Modellering!$K$45:$BH$45,Modellering!$K$46:$BH$57)),Modellering!$E$46:$E$57,Milieuprofielen!X$18) -> 0 | Y54: =SUMIFS((_xlfn.XLOOKUP('Weighting Set'!$Z38,Modellering!$K$45:$BH$45,Modellering!$K$46:$BH$57)),Modellering!$E$46:$E$57,Milieuprofielen!Y$18) -> 0 | Z54: =SUMIFS((_xlfn.XLOOKUP('Weighting Set'!$Z38,Modellering!$K$45:$BH$45,Modellering!$K$46:$BH$57)),Modellering!$E$46:$E$57,Milieuprofielen!Z$18) -> 0 | AA54: 0 | AE54: 112. Energy, primary, non-renewable, exc | AF54: MJ | AG54: =SUMIFS((_xlfn.XLOOKUP('Weighting Set'!$Z38,Modellering!$K$65:$BH$65,Modellering!$K$66:$BH$77)),Modellering!$E$66:$E$77,Milieuprofielen!AG$18) -> 0 | AH54: =SUMIFS((_xlfn.XLOOKUP('Weighting Set'!$Z38,Modellering!$K$65:$BH$65,Modellering!$K$66:$BH$77)),Modellering!$E$66:$E$77,Milieuprofielen!AH$18) -> 0 | AI54: =SUMIFS((_xlfn.XLOOKUP('Weighting Set'!$Z38,Modellering!$K$65:$BH$65,Modellering!$K$66:$BH$77)),Modellering!$E$66:$E$77,Milieuprofielen!AI$18) -> 0 | AJ54: 0 | AN54: 112. Energy, primary, non-renewable, exc | AO54: MJ | AP54: =SUMIFS((_xlfn.XLOOKUP('Weighting Set'!$Z38,Modellering!$K$85:$BH$85,Modellering!$K$86:$BH$97)),Modellering!$E$86:$E$97,Milieuprofielen!AP$18) -> 0 | AQ54: =SUMIFS((_xlfn.XLOOKUP('Weighting Set'!$Z38,Modellering!$K$85:$BH$85,Modellering!$K$86:$BH$97)),Modellering!$E$86:$E$97,Milieuprofielen!AQ$18) -> 0 | AR54: =SUMIFS((_xlfn.XLOOKUP('Weighting Set'!$Z38,Modellering!$K$85:$BH$85,Modellering!$K$86:$BH$97)),Modellering!$E$86:$E$97,Milieuprofielen!AR$18) -> 0 | AS54: 0
D55: 114. Energy, primary, non-renewable, mat | E55: MJ | F55: =SUMIFS((_xlfn.XLOOKUP('Weighting Set'!$Z39,Modellering!$K$5:$BH$5,Modellering!$K$6:$BH$17)),Modellering!$E$6:$E$17,Milieuprofielen!F$18) -> 0 | G55: =SUMIFS((_xlfn.XLOOKUP('Weighting Set'!$Z39,Modellering!$K$5:$BH$5,Modellering!$K$6:$BH$17)),Modellering!$E$6:$E$17,Milieuprofielen!G$18) -> 0 | H55: =SUMIFS((_xlfn.XLOOKUP('Weighting Set'!$Z39,Modellering!$K$5:$BH$5,Modellering!$K$6:$BH$17)),Modellering!$E$6:$E$17,Milieuprofielen!H$18) -> 0 | I55: 0 | M55: 114. Energy, primary, non-renewable, mat | N55: MJ | O55: =SUMIFS((_xlfn.XLOOKUP('Weighting Set'!$Z39,Modellering!$K$25:$BH$25,Modellering!$K$26:$BH$37)),Modellering!$E$26:$E$37,Milieuprofielen!O$18) -> 0 | P55: =SUMIFS((_xlfn.XLOOKUP('Weighting Set'!$Z39,Modellering!$K$25:$BH$25,Modellering!$K$26:$BH$37)),Modellering!$E$26:$E$37,Milieuprofielen!P$18) -> 0 | Q55: =SUMIFS((_xlfn.XLOOKUP('Weighting Set'!$Z39,Modellering!$K$25:$BH$25,Modellering!$K$26:$BH$37)),Modellering!$E$26:$E$37,Milieuprofielen!Q$18) -> 0 | R55: 0 | V55: 114. Energy, primary, non-renewable, mat | W55: MJ | X55: =SUMIFS((_xlfn.XLOOKUP('Weighting Set'!$Z39,Modellering!$K$45:$BH$45,Modellering!$K$46:$BH$57)),Modellering!$E$46:$E$57,Milieuprofielen!X$18) -> 0 | Y55: =SUMIFS((_xlfn.XLOOKUP('Weighting Set'!$Z39,Modellering!$K$45:$BH$45,Modellering!$K$46:$BH$57)),Modellering!$E$46:$E$57,Milieuprofielen!Y$18) -> 0 | Z55: =SUMIFS((_xlfn.XLOOKUP('Weighting Set'!$Z39,Modellering!$K$45:$BH$45,Modellering!$K$46:$BH$57)),Modellering!$E$46:$E$57,Milieuprofielen!Z$18) -> 0 | AA55: 0 | AE55: 114. Energy, primary, non-renewable, mat | AF55: MJ | AG55: =SUMIFS((_xlfn.XLOOKUP('Weighting Set'!$Z39,Modellering!$K$65:$BH$65,Modellering!$K$66:$BH$77)),Modellering!$E$66:$E$77,Milieuprofielen!AG$18) -> 0 | AH55: =SUMIFS((_xlfn.XLOOKUP('Weighting Set'!$Z39,Modellering!$K$65:$BH$65,Modellering!$K$66:$BH$77)),Modellering!$E$66:$E$77,Milieuprofielen!AH$18) -> 0 | AI55: =SUMIFS((_xlfn.XLOOKUP('Weighting Set'!$Z39,Modellering!$K$65:$BH$65,Modellering!$K$66:$BH$77)),Modellering!$E$66:$E$77,Milieuprofielen!AI$18) -> 0 | AJ55: 0 | AN55: 114. Energy, primary, non-renewable, mat | AO55: MJ | AP55: =SUMIFS((_xlfn.XLOOKUP('Weighting Set'!$Z39,Modellering!$K$85:$BH$85,Modellering!$K$86:$BH$97)),Modellering!$E$86:$E$97,Milieuprofielen!AP$18) -> 0 | AQ55: =SUMIFS((_xlfn.XLOOKUP('Weighting Set'!$Z39,Modellering!$K$85:$BH$85,Modellering!$K$86:$BH$97)),Modellering!$E$86:$E$97,Milieuprofielen!AQ$18) -> 0 | AR55: =SUMIFS((_xlfn.XLOOKUP('Weighting Set'!$Z39,Modellering!$K$85:$BH$85,Modellering!$K$86:$BH$97)),Modellering!$E$86:$E$97,Milieuprofielen!AR$18) -> 0 | AS55: 0
D56: 102. Energy, primary, non-renewable (MJ) | E56: MJ | F56: =SUMIFS((_xlfn.XLOOKUP('Weighting Set'!$Z40,Modellering!$K$5:$BH$5,Modellering!$K$6:$BH$17)),Modellering!$E$6:$E$17,Milieuprofielen!F$18) -> 54599.57393 | G56: =SUMIFS((_xlfn.XLOOKUP('Weighting Set'!$Z40,Modellering!$K$5:$BH$5,Modellering!$K$6:$BH$17)),Modellering!$E$6:$E$17,Milieuprofielen!G$18) -> 307.9755545 | H56: =SUMIFS((_xlfn.XLOOKUP('Weighting Set'!$Z40,Modellering!$K$5:$BH$5,Modellering!$K$6:$BH$17)),Modellering!$E$6:$E$17,Milieuprofielen!H$18) -> 801.0345365 | I56: 55708.58402 | M56: 102. Energy, primary, non-renewable (MJ) | N56: MJ | O56: =SUMIFS((_xlfn.XLOOKUP('Weighting Set'!$Z40,Modellering!$K$25:$BH$25,Modellering!$K$26:$BH$37)),Modellering!$E$26:$E$37,Milieuprofielen!O$18) -> 0 | P56: =SUMIFS((_xlfn.XLOOKUP('Weighting Set'!$Z40,Modellering!$K$25:$BH$25,Modellering!$K$26:$BH$37)),Modellering!$E$26:$E$37,Milieuprofielen!P$18) -> 0 | Q56: =SUMIFS((_xlfn.XLOOKUP('Weighting Set'!$Z40,Modellering!$K$25:$BH$25,Modellering!$K$26:$BH$37)),Modellering!$E$26:$E$37,Milieuprofielen!Q$18) -> 0 | R56: 0 | V56: 102. Energy, primary, non-renewable (MJ) | W56: MJ | X56: =SUMIFS((_xlfn.XLOOKUP('Weighting Set'!$Z40,Modellering!$K$45:$BH$45,Modellering!$K$46:$BH$57)),Modellering!$E$46:$E$57,Milieuprofielen!X$18) -> 0 | Y56: =SUMIFS((_xlfn.XLOOKUP('Weighting Set'!$Z40,Modellering!$K$45:$BH$45,Modellering!$K$46:$BH$57)),Modellering!$E$46:$E$57,Milieuprofielen!Y$18) -> 0 | Z56: =SUMIFS((_xlfn.XLOOKUP('Weighting Set'!$Z40,Modellering!$K$45:$BH$45,Modellering!$K$46:$BH$57)),Modellering!$E$46:$E$57,Milieuprofielen!Z$18) -> 0 | AA56: 0 | AE56: 102. Energy, primary, non-renewable (MJ) | AF56: MJ | AG56: =SUMIFS((_xlfn.XLOOKUP('Weighting Set'!$Z40,Modellering!$K$65:$BH$65,Modellering!$K$66:$BH$77)),Modellering!$E$66:$E$77,Milieuprofielen!AG$18) -> 0 | AH56: =SUMIFS((_xlfn.XLOOKUP('Weighting Set'!$Z40,Modellering!$K$65:$BH$65,Modellering!$K$66:$BH$77)),Modellering!$E$66:$E$77,Milieuprofielen!AH$18) -> 0 | AI56: =SUMIFS((_xlfn.XLOOKUP('Weighting Set'!$Z40,Modellering!$K$65:$BH$65,Modellering!$K$66:$BH$77)),Modellering!$E$66:$E$77,Milieuprofielen!AI$18) -> 0 | AJ56: 0 | AN56: 102. Energy, primary, non-renewable (MJ) | AO56: MJ | AP56: =SUMIFS((_xlfn.XLOOKUP('Weighting Set'!$Z40,Modellering!$K$85:$BH$85,Modellering!$K$86:$BH$97)),Modellering!$E$86:$E$97,Milieuprofielen!AP$18) -> 0 | AQ56: =SUMIFS((_xlfn.XLOOKUP('Weighting Set'!$Z40,Modellering!$K$85:$BH$85,Modellering!$K$86:$BH$97)),Modellering!$E$86:$E$97,Milieuprofielen!AQ$18) -> 0 | AR56: =SUMIFS((_xlfn.XLOOKUP('Weighting Set'!$Z40,Modellering!$K$85:$BH$85,Modellering!$K$86:$BH$97)),Modellering!$E$86:$E$97,Milieuprofielen!AR$18) -> 0 | AS56: 0
D57: 108. Secondary material (kg) | E57: kg | F57: =SUMIFS((_xlfn.XLOOKUP('Weighting Set'!$Z41,Modellering!$K$5:$BH$5,Modellering!$K$6:$BH$17)),Modellering!$E$6:$E$17,Milieuprofielen!F$18) -> 0 | G57: =SUMIFS((_xlfn.XLOOKUP('Weighting Set'!$Z41,Modellering!$K$5:$BH$5,Modellering!$K$6:$BH$17)),Modellering!$E$6:$E$17,Milieuprofielen!G$18) -> 0 | H57: =SUMIFS((_xlfn.XLOOKUP('Weighting Set'!$Z41,Modellering!$K$5:$BH$5,Modellering!$K$6:$BH$17)),Modellering!$E$6:$E$17,Milieuprofielen!H$18) -> 0 | I57: 0 | M57: 108. Secondary material (kg) | N57: kg | O57: =SUMIFS((_xlfn.XLOOKUP('Weighting Set'!$Z41,Modellering!$K$25:$BH$25,Modellering!$K$26:$BH$37)),Modellering!$E$26:$E$37,Milieuprofielen!O$18) -> 0 | P57: =SUMIFS((_xlfn.XLOOKUP('Weighting Set'!$Z41,Modellering!$K$25:$BH$25,Modellering!$K$26:$BH$37)),Modellering!$E$26:$E$37,Milieuprofielen!P$18) -> 0 | Q57: =SUMIFS((_xlfn.XLOOKUP('Weighting Set'!$Z41,Modellering!$K$25:$BH$25,Modellering!$K$26:$BH$37)),Modellering!$E$26:$E$37,Milieuprofielen!Q$18) -> 0 | R57: 0 | V57: 108. Secondary material (kg) | W57: kg | X57: =SUMIFS((_xlfn.XLOOKUP('Weighting Set'!$Z41,Modellering!$K$45:$BH$45,Modellering!$K$46:$BH$57)),Modellering!$E$46:$E$57,Milieuprofielen!X$18) -> 0 | Y57: =SUMIFS((_xlfn.XLOOKUP('Weighting Set'!$Z41,Modellering!$K$45:$BH$45,Modellering!$K$46:$BH$57)),Modellering!$E$46:$E$57,Milieuprofielen!Y$18) -> 0 | Z57: =SUMIFS((_xlfn.XLOOKUP('Weighting Set'!$Z41,Modellering!$K$45:$BH$45,Modellering!$K$46:$BH$57)),Modellering!$E$46:$E$57,Milieuprofielen!Z$18) -> 0 | AA57: 0 | AE57: 108. Secondary material (kg) | AF57: kg | AG57: =SUMIFS((_xlfn.XLOOKUP('Weighting Set'!$Z41,Modellering!$K$65:$BH$65,Modellering!$K$66:$BH$77)),Modellering!$E$66:$E$77,Milieuprofielen!AG$18) -> 0 | AH57: =SUMIFS((_xlfn.XLOOKUP('Weighting Set'!$Z41,Modellering!$K$65:$BH$65,Modellering!$K$66:$BH$77)),Modellering!$E$66:$E$77,Milieuprofielen!AH$18) -> 0 | AI57: =SUMIFS((_xlfn.XLOOKUP('Weighting Set'!$Z41,Modellering!$K$65:$BH$65,Modellering!$K$66:$BH$77)),Modellering!$E$66:$E$77,Milieuprofielen!AI$18) -> 0 | AJ57: 0 | AN57: 108. Secondary material (kg) | AO57: kg | AP57: =SUMIFS((_xlfn.XLOOKUP('Weighting Set'!$Z41,Modellering!$K$85:$BH$85,Modellering!$K$86:$BH$97)),Modellering!$E$86:$E$97,Milieuprofielen!AP$18) -> 0 | AQ57: =SUMIFS((_xlfn.XLOOKUP('Weighting Set'!$Z41,Modellering!$K$85:$BH$85,Modellering!$K$86:$BH$97)),Modellering!$E$86:$E$97,Milieuprofielen!AQ$18) -> 0 | AR57: =SUMIFS((_xlfn.XLOOKUP('Weighting Set'!$Z41,Modellering!$K$85:$BH$85,Modellering!$K$86:$BH$97)),Modellering!$E$86:$E$97,Milieuprofielen!AR$18) -> 0 | AS57: 0
D58: 109. Secondary fuel, renewable (kg) | E58: MJ | F58: =SUMIFS((_xlfn.XLOOKUP('Weighting Set'!$Z42,Modellering!$K$5:$BH$5,Modellering!$K$6:$BH$17)),Modellering!$E$6:$E$17,Milieuprofielen!F$18) -> 0 | G58: =SUMIFS((_xlfn.XLOOKUP('Weighting Set'!$Z42,Modellering!$K$5:$BH$5,Modellering!$K$6:$BH$17)),Modellering!$E$6:$E$17,Milieuprofielen!G$18) -> 0 | H58: =SUMIFS((_xlfn.XLOOKUP('Weighting Set'!$Z42,Modellering!$K$5:$BH$5,Modellering!$K$6:$BH$17)),Modellering!$E$6:$E$17,Milieuprofielen!H$18) -> 0 | I58: 0 | M58: 109. Secondary fuel, renewable (kg) | N58: MJ | O58: =SUMIFS((_xlfn.XLOOKUP('Weighting Set'!$Z42,Modellering!$K$25:$BH$25,Modellering!$K$26:$BH$37)),Modellering!$E$26:$E$37,Milieuprofielen!O$18) -> 0 | P58: =SUMIFS((_xlfn.XLOOKUP('Weighting Set'!$Z42,Modellering!$K$25:$BH$25,Modellering!$K$26:$BH$37)),Modellering!$E$26:$E$37,Milieuprofielen!P$18) -> 0 | Q58: =SUMIFS((_xlfn.XLOOKUP('Weighting Set'!$Z42,Modellering!$K$25:$BH$25,Modellering!$K$26:$BH$37)),Modellering!$E$26:$E$37,Milieuprofielen!Q$18) -> 0 | R58: 0 | V58: 109. Secondary fuel, renewable (kg) | W58: MJ | X58: =SUMIFS((_xlfn.XLOOKUP('Weighting Set'!$Z42,Modellering!$K$45:$BH$45,Modellering!$K$46:$BH$57)),Modellering!$E$46:$E$57,Milieuprofielen!X$18) -> 0 | Y58: =SUMIFS((_xlfn.XLOOKUP('Weighting Set'!$Z42,Modellering!$K$45:$BH$45,Modellering!$K$46:$BH$57)),Modellering!$E$46:$E$57,Milieuprofielen!Y$18) -> 0 | Z58: =SUMIFS((_xlfn.XLOOKUP('Weighting Set'!$Z42,Modellering!$K$45:$BH$45,Modellering!$K$46:$BH$57)),Modellering!$E$46:$E$57,Milieuprofielen!Z$18) -> 0 | AA58: 0 | AE58: 109. Secondary fuel, renewable (kg) | AF58: MJ | AG58: =SUMIFS((_xlfn.XLOOKUP('Weighting Set'!$Z42,Modellering!$K$65:$BH$65,Modellering!$K$66:$BH$77)),Modellering!$E$66:$E$77,Milieuprofielen!AG$18) -> 0 | AH58: =SUMIFS((_xlfn.XLOOKUP('Weighting Set'!$Z42,Modellering!$K$65:$BH$65,Modellering!$K$66:$BH$77)),Modellering!$E$66:$E$77,Milieuprofielen!AH$18) -> 0 | AI58: =SUMIFS((_xlfn.XLOOKUP('Weighting Set'!$Z42,Modellering!$K$65:$BH$65,Modellering!$K$66:$BH$77)),Modellering!$E$66:$E$77,Milieuprofielen!AI$18) -> 0 | AJ58: 0 | AN58: 109. Secondary fuel, renewable (kg) | AO58: MJ | AP58: =SUMIFS((_xlfn.XLOOKUP('Weighting Set'!$Z42,Modellering!$K$85:$BH$85,Modellering!$K$86:$BH$97)),Modellering!$E$86:$E$97,Milieuprofielen!AP$18) -> 0 | AQ58: =SUMIFS((_xlfn.XLOOKUP('Weighting Set'!$Z42,Modellering!$K$85:$BH$85,Modellering!$K$86:$BH$97)),Modellering!$E$86:$E$97,Milieuprofielen!AQ$18) -> 0 | AR58: =SUMIFS((_xlfn.XLOOKUP('Weighting Set'!$Z42,Modellering!$K$85:$BH$85,Modellering!$K$86:$BH$97)),Modellering!$E$86:$E$97,Milieuprofielen!AR$18) -> 0 | AS58: 0
D59: 110. Secondary fuel, non-renewable (kg) | E59: MJ | F59: =SUMIFS((_xlfn.XLOOKUP('Weighting Set'!$Z43,Modellering!$K$5:$BH$5,Modellering!$K$6:$BH$17)),Modellering!$E$6:$E$17,Milieuprofielen!F$18) -> 0 | G59: =SUMIFS((_xlfn.XLOOKUP('Weighting Set'!$Z43,Modellering!$K$5:$BH$5,Modellering!$K$6:$BH$17)),Modellering!$E$6:$E$17,Milieuprofielen!G$18) -> 0 | H59: =SUMIFS((_xlfn.XLOOKUP('Weighting Set'!$Z43,Modellering!$K$5:$BH$5,Modellering!$K$6:$BH$17)),Modellering!$E$6:$E$17,Milieuprofielen!H$18) -> 0 | I59: 0 | M59: 110. Secondary fuel, non-renewable (kg) | N59: MJ | O59: =SUMIFS((_xlfn.XLOOKUP('Weighting Set'!$Z43,Modellering!$K$25:$BH$25,Modellering!$K$26:$BH$37)),Modellering!$E$26:$E$37,Milieuprofielen!O$18) -> 0 | P59: =SUMIFS((_xlfn.XLOOKUP('Weighting Set'!$Z43,Modellering!$K$25:$BH$25,Modellering!$K$26:$BH$37)),Modellering!$E$26:$E$37,Milieuprofielen!P$18) -> 0 | Q59: =SUMIFS((_xlfn.XLOOKUP('Weighting Set'!$Z43,Modellering!$K$25:$BH$25,Modellering!$K$26:$BH$37)),Modellering!$E$26:$E$37,Milieuprofielen!Q$18) -> 0 | R59: 0 | V59: 110. Secondary fuel, non-renewable (kg) | W59: MJ | X59: =SUMIFS((_xlfn.XLOOKUP('Weighting Set'!$Z43,Modellering!$K$45:$BH$45,Modellering!$K$46:$BH$57)),Modellering!$E$46:$E$57,Milieuprofielen!X$18) -> 0 | Y59: =SUMIFS((_xlfn.XLOOKUP('Weighting Set'!$Z43,Modellering!$K$45:$BH$45,Modellering!$K$46:$BH$57)),Modellering!$E$46:$E$57,Milieuprofielen!Y$18) -> 0 | Z59: =SUMIFS((_xlfn.XLOOKUP('Weighting Set'!$Z43,Modellering!$K$45:$BH$45,Modellering!$K$46:$BH$57)),Modellering!$E$46:$E$57,Milieuprofielen!Z$18) -> 0 | AA59: 0 | AE59: 110. Secondary fuel, non-renewable (kg) | AF59: MJ | AG59: =SUMIFS((_xlfn.XLOOKUP('Weighting Set'!$Z43,Modellering!$K$65:$BH$65,Modellering!$K$66:$BH$77)),Modellering!$E$66:$E$77,Milieuprofielen!AG$18) -> 0 | AH59: =SUMIFS((_xlfn.XLOOKUP('Weighting Set'!$Z43,Modellering!$K$65:$BH$65,Modellering!$K$66:$BH$77)),Modellering!$E$66:$E$77,Milieuprofielen!AH$18) -> 0 | AI59: =SUMIFS((_xlfn.XLOOKUP('Weighting Set'!$Z43,Modellering!$K$65:$BH$65,Modellering!$K$66:$BH$77)),Modellering!$E$66:$E$77,Milieuprofielen!AI$18) -> 0 | AJ59: 0 | AN59: 110. Secondary fuel, non-renewable (kg) | AO59: MJ | AP59: =SUMIFS((_xlfn.XLOOKUP('Weighting Set'!$Z43,Modellering!$K$85:$BH$85,Modellering!$K$86:$BH$97)),Modellering!$E$86:$E$97,Milieuprofielen!AP$18) -> 0 | AQ59: =SUMIFS((_xlfn.XLOOKUP('Weighting Set'!$Z43,Modellering!$K$85:$BH$85,Modellering!$K$86:$BH$97)),Modellering!$E$86:$E$97,Milieuprofielen!AQ$18) -> 0 | AR59: =SUMIFS((_xlfn.XLOOKUP('Weighting Set'!$Z43,Modellering!$K$85:$BH$85,Modellering!$K$86:$BH$97)),Modellering!$E$86:$E$97,Milieuprofielen!AR$18) -> 0 | AS59: 0
D60: 104. Water, fresh water use (m3) | E60: m3 | F60: =SUMIFS((_xlfn.XLOOKUP('Weighting Set'!$Z44,Modellering!$K$5:$BH$5,Modellering!$K$6:$BH$17)),Modellering!$E$6:$E$17,Milieuprofielen!F$18) -> 4.14682151 | G60: =SUMIFS((_xlfn.XLOOKUP('Weighting Set'!$Z44,Modellering!$K$5:$BH$5,Modellering!$K$6:$BH$17)),Modellering!$E$6:$E$17,Milieuprofielen!G$18) -> 0.01419274545 | H60: =SUMIFS((_xlfn.XLOOKUP('Weighting Set'!$Z44,Modellering!$K$5:$BH$5,Modellering!$K$6:$BH$17)),Modellering!$E$6:$E$17,Milieuprofielen!H$18) -> 0.7092988177 | I60: 4.870313073 | M60: 104. Water, fresh water use (m3) | N60: m3 | O60: =SUMIFS((_xlfn.XLOOKUP('Weighting Set'!$Z44,Modellering!$K$25:$BH$25,Modellering!$K$26:$BH$37)),Modellering!$E$26:$E$37,Milieuprofielen!O$18) -> 0 | P60: =SUMIFS((_xlfn.XLOOKUP('Weighting Set'!$Z44,Modellering!$K$25:$BH$25,Modellering!$K$26:$BH$37)),Modellering!$E$26:$E$37,Milieuprofielen!P$18) -> 0 | Q60: =SUMIFS((_xlfn.XLOOKUP('Weighting Set'!$Z44,Modellering!$K$25:$BH$25,Modellering!$K$26:$BH$37)),Modellering!$E$26:$E$37,Milieuprofielen!Q$18) -> 0 | R60: 0 | V60: 104. Water, fresh water use (m3) | W60: m3 | X60: =SUMIFS((_xlfn.XLOOKUP('Weighting Set'!$Z44,Modellering!$K$45:$BH$45,Modellering!$K$46:$BH$57)),Modellering!$E$46:$E$57,Milieuprofielen!X$18) -> 0 | Y60: =SUMIFS((_xlfn.XLOOKUP('Weighting Set'!$Z44,Modellering!$K$45:$BH$45,Modellering!$K$46:$BH$57)),Modellering!$E$46:$E$57,Milieuprofielen!Y$18) -> 0 | Z60: =SUMIFS((_xlfn.XLOOKUP('Weighting Set'!$Z44,Modellering!$K$45:$BH$45,Modellering!$K$46:$BH$57)),Modellering!$E$46:$E$57,Milieuprofielen!Z$18) -> 0 | AA60: 0 | AE60: 104. Water, fresh water use (m3) | AF60: m3 | AG60: =SUMIFS((_xlfn.XLOOKUP('Weighting Set'!$Z44,Modellering!$K$65:$BH$65,Modellering!$K$66:$BH$77)),Modellering!$E$66:$E$77,Milieuprofielen!AG$18) -> 0 | AH60: =SUMIFS((_xlfn.XLOOKUP('Weighting Set'!$Z44,Modellering!$K$65:$BH$65,Modellering!$K$66:$BH$77)),Modellering!$E$66:$E$77,Milieuprofielen!AH$18) -> 0 | AI60: =SUMIFS((_xlfn.XLOOKUP('Weighting Set'!$Z44,Modellering!$K$65:$BH$65,Modellering!$K$66:$BH$77)),Modellering!$E$66:$E$77,Milieuprofielen!AI$18) -> 0 | AJ60: 0 | AN60: 104. Water, fresh water use (m3) | AO60: m3 | AP60: =SUMIFS((_xlfn.XLOOKUP('Weighting Set'!$Z44,Modellering!$K$85:$BH$85,Modellering!$K$86:$BH$97)),Modellering!$E$86:$E$97,Milieuprofielen!AP$18) -> 0 | AQ60: =SUMIFS((_xlfn.XLOOKUP('Weighting Set'!$Z44,Modellering!$K$85:$BH$85,Modellering!$K$86:$BH$97)),Modellering!$E$86:$E$97,Milieuprofielen!AQ$18) -> 0 | AR60: =SUMIFS((_xlfn.XLOOKUP('Weighting Set'!$Z44,Modellering!$K$85:$BH$85,Modellering!$K$86:$BH$97)),Modellering!$E$86:$E$97,Milieuprofielen!AR$18) -> 0 | AS60: 0
D61: 106. Waste, hazardous (kg) | E61: kg | F61: =SUMIFS((_xlfn.XLOOKUP('Weighting Set'!$Z45,Modellering!$K$5:$BH$5,Modellering!$K$6:$BH$17)),Modellering!$E$6:$E$17,Milieuprofielen!F$18) -> 0.3070966862 | G61: =SUMIFS((_xlfn.XLOOKUP('Weighting Set'!$Z45,Modellering!$K$5:$BH$5,Modellering!$K$6:$BH$17)),Modellering!$E$6:$E$17,Milieuprofielen!G$18) -> 0.001791002743 | H61: =SUMIFS((_xlfn.XLOOKUP('Weighting Set'!$Z45,Modellering!$K$5:$BH$5,Modellering!$K$6:$BH$17)),Modellering!$E$6:$E$17,Milieuprofielen!H$18) -> 0.004532565444 | I61: 0.3134202544 | M61: 106. Waste, hazardous (kg) | N61: kg | O61: =SUMIFS((_xlfn.XLOOKUP('Weighting Set'!$Z45,Modellering!$K$25:$BH$25,Modellering!$K$26:$BH$37)),Modellering!$E$26:$E$37,Milieuprofielen!O$18) -> 0 | P61: =SUMIFS((_xlfn.XLOOKUP('Weighting Set'!$Z45,Modellering!$K$25:$BH$25,Modellering!$K$26:$BH$37)),Modellering!$E$26:$E$37,Milieuprofielen!P$18) -> 0 | Q61: =SUMIFS((_xlfn.XLOOKUP('Weighting Set'!$Z45,Modellering!$K$25:$BH$25,Modellering!$K$26:$BH$37)),Modellering!$E$26:$E$37,Milieuprofielen!Q$18) -> 0 | R61: 0 | V61: 106. Waste, hazardous (kg) | W61: kg | X61: =SUMIFS((_xlfn.XLOOKUP('Weighting Set'!$Z45,Modellering!$K$45:$BH$45,Modellering!$K$46:$BH$57)),Modellering!$E$46:$E$57,Milieuprofielen!X$18) -> 0 | Y61: =SUMIFS((_xlfn.XLOOKUP('Weighting Set'!$Z45,Modellering!$K$45:$BH$45,Modellering!$K$46:$BH$57)),Modellering!$E$46:$E$57,Milieuprofielen!Y$18) -> 0 | Z61: =SUMIFS((_xlfn.XLOOKUP('Weighting Set'!$Z45,Modellering!$K$45:$BH$45,Modellering!$K$46:$BH$57)),Modellering!$E$46:$E$57,Milieuprofielen!Z$18) -> 0 | AA61: 0 | AE61: 106. Waste, hazardous (kg) | AF61: kg | AG61: =SUMIFS((_xlfn.XLOOKUP('Weighting Set'!$Z45,Modellering!$K$65:$BH$65,Modellering!$K$66:$BH$77)),Modellering!$E$66:$E$77,Milieuprofielen!AG$18) -> 0 | AH61: =SUMIFS((_xlfn.XLOOKUP('Weighting Set'!$Z45,Modellering!$K$65:$BH$65,Modellering!$K$66:$BH$77)),Modellering!$E$66:$E$77,Milieuprofielen!AH$18) -> 0 | AI61: =SUMIFS((_xlfn.XLOOKUP('Weighting Set'!$Z45,Modellering!$K$65:$BH$65,Modellering!$K$66:$BH$77)),Modellering!$E$66:$E$77,Milieuprofielen!AI$18) -> 0 | AJ61: 0 | AN61: 106. Waste, hazardous (kg) | AO61: kg | AP61: =SUMIFS((_xlfn.XLOOKUP('Weighting Set'!$Z45,Modellering!$K$85:$BH$85,Modellering!$K$86:$BH$97)),Modellering!$E$86:$E$97,Milieuprofielen!AP$18) -> 0 | AQ61: =SUMIFS((_xlfn.XLOOKUP('Weighting Set'!$Z45,Modellering!$K$85:$BH$85,Modellering!$K$86:$BH$97)),Modellering!$E$86:$E$97,Milieuprofielen!AQ$18) -> 0 | AR61: =SUMIFS((_xlfn.XLOOKUP('Weighting Set'!$Z45,Modellering!$K$85:$BH$85,Modellering!$K$86:$BH$97)),Modellering!$E$86:$E$97,Milieuprofielen!AR$18) -> 0 | AS61: 0
D62: 105. Waste, non hazardous (kg) | E62: kg | F62: =SUMIFS((_xlfn.XLOOKUP('Weighting Set'!$Z46,Modellering!$K$5:$BH$5,Modellering!$K$6:$BH$17)),Modellering!$E$6:$E$17,Milieuprofielen!F$18) -> 19.29726113 | G62: =SUMIFS((_xlfn.XLOOKUP('Weighting Set'!$Z46,Modellering!$K$5:$BH$5,Modellering!$K$6:$BH$17)),Modellering!$E$6:$E$17,Milieuprofielen!G$18) -> 23.43717499 | H62: =SUMIFS((_xlfn.XLOOKUP('Weighting Set'!$Z46,Modellering!$K$5:$BH$5,Modellering!$K$6:$BH$17)),Modellering!$E$6:$E$17,Milieuprofielen!H$18) -> 28.03232995 | I62: 70.76676608 | M62: 105. Waste, non hazardous (kg) | N62: kg | O62: =SUMIFS((_xlfn.XLOOKUP('Weighting Set'!$Z46,Modellering!$K$25:$BH$25,Modellering!$K$26:$BH$37)),Modellering!$E$26:$E$37,Milieuprofielen!O$18) -> 0 | P62: =SUMIFS((_xlfn.XLOOKUP('Weighting Set'!$Z46,Modellering!$K$25:$BH$25,Modellering!$K$26:$BH$37)),Modellering!$E$26:$E$37,Milieuprofielen!P$18) -> 0 | Q62: =SUMIFS((_xlfn.XLOOKUP('Weighting Set'!$Z46,Modellering!$K$25:$BH$25,Modellering!$K$26:$BH$37)),Modellering!$E$26:$E$37,Milieuprofielen!Q$18) -> 0 | R62: 0 | V62: 105. Waste, non hazardous (kg) | W62: kg | X62: =SUMIFS((_xlfn.XLOOKUP('Weighting Set'!$Z46,Modellering!$K$45:$BH$45,Modellering!$K$46:$BH$57)),Modellering!$E$46:$E$57,Milieuprofielen!X$18) -> 0 | Y62: =SUMIFS((_xlfn.XLOOKUP('Weighting Set'!$Z46,Modellering!$K$45:$BH$45,Modellering!$K$46:$BH$57)),Modellering!$E$46:$E$57,Milieuprofielen!Y$18) -> 0 | Z62: =SUMIFS((_xlfn.XLOOKUP('Weighting Set'!$Z46,Modellering!$K$45:$BH$45,Modellering!$K$46:$BH$57)),Modellering!$E$46:$E$57,Milieuprofielen!Z$18) -> 0 | AA62: 0 | AE62: 105. Waste, non hazardous (kg) | AF62: kg | AG62: =SUMIFS((_xlfn.XLOOKUP('Weighting Set'!$Z46,Modellering!$K$65:$BH$65,Modellering!$K$66:$BH$77)),Modellering!$E$66:$E$77,Milieuprofielen!AG$18) -> 0 | AH62: =SUMIFS((_xlfn.XLOOKUP('Weighting Set'!$Z46,Modellering!$K$65:$BH$65,Modellering!$K$66:$BH$77)),Modellering!$E$66:$E$77,Milieuprofielen!AH$18) -> 0 | AI62: =SUMIFS((_xlfn.XLOOKUP('Weighting Set'!$Z46,Modellering!$K$65:$BH$65,Modellering!$K$66:$BH$77)),Modellering!$E$66:$E$77,Milieuprofielen!AI$18) -> 0 | AJ62: 0 | AN62: 105. Waste, non hazardous (kg) | AO62: kg | AP62: =SUMIFS((_xlfn.XLOOKUP('Weighting Set'!$Z46,Modellering!$K$85:$BH$85,Modellering!$K$86:$BH$97)),Modellering!$E$86:$E$97,Milieuprofielen!AP$18) -> 0 | AQ62: =SUMIFS((_xlfn.XLOOKUP('Weighting Set'!$Z46,Modellering!$K$85:$BH$85,Modellering!$K$86:$BH$97)),Modellering!$E$86:$E$97,Milieuprofielen!AQ$18) -> 0 | AR62: =SUMIFS((_xlfn.XLOOKUP('Weighting Set'!$Z46,Modellering!$K$85:$BH$85,Modellering!$K$86:$BH$97)),Modellering!$E$86:$E$97,Milieuprofielen!AR$18) -> 0 | AS62: 0
D63: 107. Waste, radioactive (kg) | E63: kg | F63: =SUMIFS((_xlfn.XLOOKUP('Weighting Set'!$Z47,Modellering!$K$5:$BH$5,Modellering!$K$6:$BH$17)),Modellering!$E$6:$E$17,Milieuprofielen!F$18) -> 0.006208497967 | G63: =SUMIFS((_xlfn.XLOOKUP('Weighting Set'!$Z47,Modellering!$K$5:$BH$5,Modellering!$K$6:$BH$17)),Modellering!$E$6:$E$17,Milieuprofielen!G$18) -> 0.0004581877228 | H63: =SUMIFS((_xlfn.XLOOKUP('Weighting Set'!$Z47,Modellering!$K$5:$BH$5,Modellering!$K$6:$BH$17)),Modellering!$E$6:$E$17,Milieuprofielen!H$18) -> 0.0008856533583 | I63: 0.007552339048 | M63: 107. Waste, radioactive (kg) | N63: kg | O63: =SUMIFS((_xlfn.XLOOKUP('Weighting Set'!$Z47,Modellering!$K$25:$BH$25,Modellering!$K$26:$BH$37)),Modellering!$E$26:$E$37,Milieuprofielen!O$18) -> 0 | P63: =SUMIFS((_xlfn.XLOOKUP('Weighting Set'!$Z47,Modellering!$K$25:$BH$25,Modellering!$K$26:$BH$37)),Modellering!$E$26:$E$37,Milieuprofielen!P$18) -> 0 | Q63: =SUMIFS((_xlfn.XLOOKUP('Weighting Set'!$Z47,Modellering!$K$25:$BH$25,Modellering!$K$26:$BH$37)),Modellering!$E$26:$E$37,Milieuprofielen!Q$18) -> 0 | R63: 0 | V63: 107. Waste, radioactive (kg) | W63: kg | X63: =SUMIFS((_xlfn.XLOOKUP('Weighting Set'!$Z47,Modellering!$K$45:$BH$45,Modellering!$K$46:$BH$57)),Modellering!$E$46:$E$57,Milieuprofielen!X$18) -> 0 | Y63: =SUMIFS((_xlfn.XLOOKUP('Weighting Set'!$Z47,Modellering!$K$45:$BH$45,Modellering!$K$46:$BH$57)),Modellering!$E$46:$E$57,Milieuprofielen!Y$18) -> 0 | Z63: =SUMIFS((_xlfn.XLOOKUP('Weighting Set'!$Z47,Modellering!$K$45:$BH$45,Modellering!$K$46:$BH$57)),Modellering!$E$46:$E$57,Milieuprofielen!Z$18) -> 0 | AA63: 0 | AE63: 107. Waste, radioactive (kg) | AF63: kg | AG63: =SUMIFS((_xlfn.XLOOKUP('Weighting Set'!$Z47,Modellering!$K$65:$BH$65,Modellering!$K$66:$BH$77)),Modellering!$E$66:$E$77,Milieuprofielen!AG$18) -> 0 | AH63: =SUMIFS((_xlfn.XLOOKUP('Weighting Set'!$Z47,Modellering!$K$65:$BH$65,Modellering!$K$66:$BH$77)),Modellering!$E$66:$E$77,Milieuprofielen!AH$18) -> 0 | AI63: =SUMIFS((_xlfn.XLOOKUP('Weighting Set'!$Z47,Modellering!$K$65:$BH$65,Modellering!$K$66:$BH$77)),Modellering!$E$66:$E$77,Milieuprofielen!AI$18) -> 0 | AJ63: 0 | AN63: 107. Waste, radioactive (kg) | AO63: kg | AP63: =SUMIFS((_xlfn.XLOOKUP('Weighting Set'!$Z47,Modellering!$K$85:$BH$85,Modellering!$K$86:$BH$97)),Modellering!$E$86:$E$97,Milieuprofielen!AP$18) -> 0 | AQ63: =SUMIFS((_xlfn.XLOOKUP('Weighting Set'!$Z47,Modellering!$K$85:$BH$85,Modellering!$K$86:$BH$97)),Modellering!$E$86:$E$97,Milieuprofielen!AQ$18) -> 0 | AR63: =SUMIFS((_xlfn.XLOOKUP('Weighting Set'!$Z47,Modellering!$K$85:$BH$85,Modellering!$K$86:$BH$97)),Modellering!$E$86:$E$97,Milieuprofielen!AR$18) -> 0 | AS63: 0
D64: 120. Components for re-use (kg) | E64: kg | F64: =SUMIFS((_xlfn.XLOOKUP('Weighting Set'!$Z48,Modellering!$K$5:$BH$5,Modellering!$K$6:$BH$17)),Modellering!$E$6:$E$17,Milieuprofielen!F$18) -> 0 | G64: =SUMIFS((_xlfn.XLOOKUP('Weighting Set'!$Z48,Modellering!$K$5:$BH$5,Modellering!$K$6:$BH$17)),Modellering!$E$6:$E$17,Milieuprofielen!G$18) -> 0 | H64: =SUMIFS((_xlfn.XLOOKUP('Weighting Set'!$Z48,Modellering!$K$5:$BH$5,Modellering!$K$6:$BH$17)),Modellering!$E$6:$E$17,Milieuprofielen!H$18) -> 0 | I64: 0 | M64: 120. Components for re-use (kg) | N64: kg | O64: =SUMIFS((_xlfn.XLOOKUP('Weighting Set'!$Z48,Modellering!$K$25:$BH$25,Modellering!$K$26:$BH$37)),Modellering!$E$26:$E$37,Milieuprofielen!O$18) -> 0 | P64: =SUMIFS((_xlfn.XLOOKUP('Weighting Set'!$Z48,Modellering!$K$25:$BH$25,Modellering!$K$26:$BH$37)),Modellering!$E$26:$E$37,Milieuprofielen!P$18) -> 0 | Q64: =SUMIFS((_xlfn.XLOOKUP('Weighting Set'!$Z48,Modellering!$K$25:$BH$25,Modellering!$K$26:$BH$37)),Modellering!$E$26:$E$37,Milieuprofielen!Q$18) -> 0 | R64: 0 | V64: 120. Components for re-use (kg) | W64: kg | X64: =SUMIFS((_xlfn.XLOOKUP('Weighting Set'!$Z48,Modellering!$K$45:$BH$45,Modellering!$K$46:$BH$57)),Modellering!$E$46:$E$57,Milieuprofielen!X$18) -> 0 | Y64: =SUMIFS((_xlfn.XLOOKUP('Weighting Set'!$Z48,Modellering!$K$45:$BH$45,Modellering!$K$46:$BH$57)),Modellering!$E$46:$E$57,Milieuprofielen!Y$18) -> 0 | Z64: =SUMIFS((_xlfn.XLOOKUP('Weighting Set'!$Z48,Modellering!$K$45:$BH$45,Modellering!$K$46:$BH$57)),Modellering!$E$46:$E$57,Milieuprofielen!Z$18) -> 0 | AA64: 0 | AE64: 120. Components for re-use (kg) | AF64: kg | AG64: =SUMIFS((_xlfn.XLOOKUP('Weighting Set'!$Z48,Modellering!$K$65:$BH$65,Modellering!$K$66:$BH$77)),Modellering!$E$66:$E$77,Milieuprofielen!AG$18) -> 0 | AH64: =SUMIFS((_xlfn.XLOOKUP('Weighting Set'!$Z48,Modellering!$K$65:$BH$65,Modellering!$K$66:$BH$77)),Modellering!$E$66:$E$77,Milieuprofielen!AH$18) -> 0 | AI64: =SUMIFS((_xlfn.XLOOKUP('Weighting Set'!$Z48,Modellering!$K$65:$BH$65,Modellering!$K$66:$BH$77)),Modellering!$E$66:$E$77,Milieuprofielen!AI$18) -> 0 | AJ64: 0 | AN64: 120. Components for re-use (kg) | AO64: kg | AP64: =SUMIFS((_xlfn.XLOOKUP('Weighting Set'!$Z48,Modellering!$K$85:$BH$85,Modellering!$K$86:$BH$97)),Modellering!$E$86:$E$97,Milieuprofielen!AP$18) -> 0 | AQ64: =SUMIFS((_xlfn.XLOOKUP('Weighting Set'!$Z48,Modellering!$K$85:$BH$85,Modellering!$K$86:$BH$97)),Modellering!$E$86:$E$97,Milieuprofielen!AQ$18) -> 0 | AR64: =SUMIFS((_xlfn.XLOOKUP('Weighting Set'!$Z48,Modellering!$K$85:$BH$85,Modellering!$K$86:$BH$97)),Modellering!$E$86:$E$97,Milieuprofielen!AR$18) -> 0 | AS64: 0
D65: 121. Materials for recycling (kg) | E65: kg | F65: =SUMIFS((_xlfn.XLOOKUP('Weighting Set'!$Z49,Modellering!$K$5:$BH$5,Modellering!$K$6:$BH$17)),Modellering!$E$6:$E$17,Milieuprofielen!F$18) -> 0 | G65: =SUMIFS((_xlfn.XLOOKUP('Weighting Set'!$Z49,Modellering!$K$5:$BH$5,Modellering!$K$6:$BH$17)),Modellering!$E$6:$E$17,Milieuprofielen!G$18) -> 0 | H65: =SUMIFS((_xlfn.XLOOKUP('Weighting Set'!$Z49,Modellering!$K$5:$BH$5,Modellering!$K$6:$BH$17)),Modellering!$E$6:$E$17,Milieuprofielen!H$18) -> 0 | I65: 0 | M65: 121. Materials for recycling (kg) | N65: kg | O65: =SUMIFS((_xlfn.XLOOKUP('Weighting Set'!$Z49,Modellering!$K$25:$BH$25,Modellering!$K$26:$BH$37)),Modellering!$E$26:$E$37,Milieuprofielen!O$18) -> 0 | P65: =SUMIFS((_xlfn.XLOOKUP('Weighting Set'!$Z49,Modellering!$K$25:$BH$25,Modellering!$K$26:$BH$37)),Modellering!$E$26:$E$37,Milieuprofielen!P$18) -> 0 | Q65: =SUMIFS((_xlfn.XLOOKUP('Weighting Set'!$Z49,Modellering!$K$25:$BH$25,Modellering!$K$26:$BH$37)),Modellering!$E$26:$E$37,Milieuprofielen!Q$18) -> 0 | R65: 0 | V65: 121. Materials for recycling (kg) | W65: kg | X65: =SUMIFS((_xlfn.XLOOKUP('Weighting Set'!$Z49,Modellering!$K$45:$BH$45,Modellering!$K$46:$BH$57)),Modellering!$E$46:$E$57,Milieuprofielen!X$18) -> 0 | Y65: =SUMIFS((_xlfn.XLOOKUP('Weighting Set'!$Z49,Modellering!$K$45:$BH$45,Modellering!$K$46:$BH$57)),Modellering!$E$46:$E$57,Milieuprofielen!Y$18) -> 0 | Z65: =SUMIFS((_xlfn.XLOOKUP('Weighting Set'!$Z49,Modellering!$K$45:$BH$45,Modellering!$K$46:$BH$57)),Modellering!$E$46:$E$57,Milieuprofielen!Z$18) -> 0 | AA65: 0 | AE65: 121. Materials for recycling (kg) | AF65: kg | AG65: =SUMIFS((_xlfn.XLOOKUP('Weighting Set'!$Z49,Modellering!$K$65:$BH$65,Modellering!$K$66:$BH$77)),Modellering!$E$66:$E$77,Milieuprofielen!AG$18) -> 0 | AH65: =SUMIFS((_xlfn.XLOOKUP('Weighting Set'!$Z49,Modellering!$K$65:$BH$65,Modellering!$K$66:$BH$77)),Modellering!$E$66:$E$77,Milieuprofielen!AH$18) -> 0 | AI65: =SUMIFS((_xlfn.XLOOKUP('Weighting Set'!$Z49,Modellering!$K$65:$BH$65,Modellering!$K$66:$BH$77)),Modellering!$E$66:$E$77,Milieuprofielen!AI$18) -> 0 | AJ65: 0 | AN65: 121. Materials for recycling (kg) | AO65: kg | AP65: =SUMIFS((_xlfn.XLOOKUP('Weighting Set'!$Z49,Modellering!$K$85:$BH$85,Modellering!$K$86:$BH$97)),Modellering!$E$86:$E$97,Milieuprofielen!AP$18) -> 0 | AQ65: =SUMIFS((_xlfn.XLOOKUP('Weighting Set'!$Z49,Modellering!$K$85:$BH$85,Modellering!$K$86:$BH$97)),Modellering!$E$86:$E$97,Milieuprofielen!AQ$18) -> 0 | AR65: =SUMIFS((_xlfn.XLOOKUP('Weighting Set'!$Z49,Modellering!$K$85:$BH$85,Modellering!$K$86:$BH$97)),Modellering!$E$86:$E$97,Milieuprofielen!AR$18) -> 0 | AS65: 0
D66: 122. Materials for energy recovery (kg) | E66: kg | F66: =SUMIFS((_xlfn.XLOOKUP('Weighting Set'!$Z50,Modellering!$K$5:$BH$5,Modellering!$K$6:$BH$17)),Modellering!$E$6:$E$17,Milieuprofielen!F$18) -> 0 | G66: =SUMIFS((_xlfn.XLOOKUP('Weighting Set'!$Z50,Modellering!$K$5:$BH$5,Modellering!$K$6:$BH$17)),Modellering!$E$6:$E$17,Milieuprofielen!G$18) -> 0 | H66: =SUMIFS((_xlfn.XLOOKUP('Weighting Set'!$Z50,Modellering!$K$5:$BH$5,Modellering!$K$6:$BH$17)),Modellering!$E$6:$E$17,Milieuprofielen!H$18) -> 0 | I66: 0 | M66: 122. Materials for energy recovery (kg) | N66: kg | O66: =SUMIFS((_xlfn.XLOOKUP('Weighting Set'!$Z50,Modellering!$K$25:$BH$25,Modellering!$K$26:$BH$37)),Modellering!$E$26:$E$37,Milieuprofielen!O$18) -> 0 | P66: =SUMIFS((_xlfn.XLOOKUP('Weighting Set'!$Z50,Modellering!$K$25:$BH$25,Modellering!$K$26:$BH$37)),Modellering!$E$26:$E$37,Milieuprofielen!P$18) -> 0 | Q66: =SUMIFS((_xlfn.XLOOKUP('Weighting Set'!$Z50,Modellering!$K$25:$BH$25,Modellering!$K$26:$BH$37)),Modellering!$E$26:$E$37,Milieuprofielen!Q$18) -> 0 | R66: 0 | V66: 122. Materials for energy recovery (kg) | W66: kg | X66: =SUMIFS((_xlfn.XLOOKUP('Weighting Set'!$Z50,Modellering!$K$45:$BH$45,Modellering!$K$46:$BH$57)),Modellering!$E$46:$E$57,Milieuprofielen!X$18) -> 0 | Y66: =SUMIFS((_xlfn.XLOOKUP('Weighting Set'!$Z50,Modellering!$K$45:$BH$45,Modellering!$K$46:$BH$57)),Modellering!$E$46:$E$57,Milieuprofielen!Y$18) -> 0 | Z66: =SUMIFS((_xlfn.XLOOKUP('Weighting Set'!$Z50,Modellering!$K$45:$BH$45,Modellering!$K$46:$BH$57)),Modellering!$E$46:$E$57,Milieuprofielen!Z$18) -> 0 | AA66: 0 | AE66: 122. Materials for energy recovery (kg) | AF66: kg | AG66: =SUMIFS((_xlfn.XLOOKUP('Weighting Set'!$Z50,Modellering!$K$65:$BH$65,Modellering!$K$66:$BH$77)),Modellering!$E$66:$E$77,Milieuprofielen!AG$18) -> 0 | AH66: =SUMIFS((_xlfn.XLOOKUP('Weighting Set'!$Z50,Modellering!$K$65:$BH$65,Modellering!$K$66:$BH$77)),Modellering!$E$66:$E$77,Milieuprofielen!AH$18) -> 0 | AI66: =SUMIFS((_xlfn.XLOOKUP('Weighting Set'!$Z50,Modellering!$K$65:$BH$65,Modellering!$K$66:$BH$77)),Modellering!$E$66:$E$77,Milieuprofielen!AI$18) -> 0 | AJ66: 0 | AN66: 122. Materials for energy recovery (kg) | AO66: kg | AP66: =SUMIFS((_xlfn.XLOOKUP('Weighting Set'!$Z50,Modellering!$K$85:$BH$85,Modellering!$K$86:$BH$97)),Modellering!$E$86:$E$97,Milieuprofielen!AP$18) -> 0 | AQ66: =SUMIFS((_xlfn.XLOOKUP('Weighting Set'!$Z50,Modellering!$K$85:$BH$85,Modellering!$K$86:$BH$97)),Modellering!$E$86:$E$97,Milieuprofielen!AQ$18) -> 0 | AR66: =SUMIFS((_xlfn.XLOOKUP('Weighting Set'!$Z50,Modellering!$K$85:$BH$85,Modellering!$K$86:$BH$97)),Modellering!$E$86:$E$97,Milieuprofielen!AR$18) -> 0 | AS66: 0
D67: 123. Exported energy, electric (MJ) | E67: MJ | F67: =SUMIFS((_xlfn.XLOOKUP('Weighting Set'!$Z51,Modellering!$K$5:$BH$5,Modellering!$K$6:$BH$17)),Modellering!$E$6:$E$17,Milieuprofielen!F$18) -> 0 | G67: =SUMIFS((_xlfn.XLOOKUP('Weighting Set'!$Z51,Modellering!$K$5:$BH$5,Modellering!$K$6:$BH$17)),Modellering!$E$6:$E$17,Milieuprofielen!G$18) -> 0 | H67: =SUMIFS((_xlfn.XLOOKUP('Weighting Set'!$Z51,Modellering!$K$5:$BH$5,Modellering!$K$6:$BH$17)),Modellering!$E$6:$E$17,Milieuprofielen!H$18) -> 0 | I67: 0 | M67: 123. Exported energy, electric (MJ) | N67: MJ | O67: =SUMIFS((_xlfn.XLOOKUP('Weighting Set'!$Z51,Modellering!$K$25:$BH$25,Modellering!$K$26:$BH$37)),Modellering!$E$26:$E$37,Milieuprofielen!O$18) -> 0 | P67: =SUMIFS((_xlfn.XLOOKUP('Weighting Set'!$Z51,Modellering!$K$25:$BH$25,Modellering!$K$26:$BH$37)),Modellering!$E$26:$E$37,Milieuprofielen!P$18) -> 0 | Q67: =SUMIFS((_xlfn.XLOOKUP('Weighting Set'!$Z51,Modellering!$K$25:$BH$25,Modellering!$K$26:$BH$37)),Modellering!$E$26:$E$37,Milieuprofielen!Q$18) -> 0 | R67: 0 | V67: 123. Exported energy, electric (MJ) | W67: MJ | X67: =SUMIFS((_xlfn.XLOOKUP('Weighting Set'!$Z51,Modellering!$K$45:$BH$45,Modellering!$K$46:$BH$57)),Modellering!$E$46:$E$57,Milieuprofielen!X$18) -> 0 | Y67: =SUMIFS((_xlfn.XLOOKUP('Weighting Set'!$Z51,Modellering!$K$45:$BH$45,Modellering!$K$46:$BH$57)),Modellering!$E$46:$E$57,Milieuprofielen!Y$18) -> 0 | Z67: =SUMIFS((_xlfn.XLOOKUP('Weighting Set'!$Z51,Modellering!$K$45:$BH$45,Modellering!$K$46:$BH$57)),Modellering!$E$46:$E$57,Milieuprofielen!Z$18) -> 0 | AA67: 0 | AE67: 123. Exported energy, electric (MJ) | AF67: MJ | AG67: =SUMIFS((_xlfn.XLOOKUP('Weighting Set'!$Z51,Modellering!$K$65:$BH$65,Modellering!$K$66:$BH$77)),Modellering!$E$66:$E$77,Milieuprofielen!AG$18) -> 0 | AH67: =SUMIFS((_xlfn.XLOOKUP('Weighting Set'!$Z51,Modellering!$K$65:$BH$65,Modellering!$K$66:$BH$77)),Modellering!$E$66:$E$77,Milieuprofielen!AH$18) -> 0 | AI67: =SUMIFS((_xlfn.XLOOKUP('Weighting Set'!$Z51,Modellering!$K$65:$BH$65,Modellering!$K$66:$BH$77)),Modellering!$E$66:$E$77,Milieuprofielen!AI$18) -> 0 | AJ67: 0 | AN67: 123. Exported energy, electric (MJ) | AO67: MJ | AP67: =SUMIFS((_xlfn.XLOOKUP('Weighting Set'!$Z51,Modellering!$K$85:$BH$85,Modellering!$K$86:$BH$97)),Modellering!$E$86:$E$97,Milieuprofielen!AP$18) -> 0 | AQ67: =SUMIFS((_xlfn.XLOOKUP('Weighting Set'!$Z51,Modellering!$K$85:$BH$85,Modellering!$K$86:$BH$97)),Modellering!$E$86:$E$97,Milieuprofielen!AQ$18) -> 0 | AR67: =SUMIFS((_xlfn.XLOOKUP('Weighting Set'!$Z51,Modellering!$K$85:$BH$85,Modellering!$K$86:$BH$97)),Modellering!$E$86:$E$97,Milieuprofielen!AR$18) -> 0 | AS67: 0
D68: 124. Exported energy, thermal (MJ) | E68: MJ | F68: =SUMIFS((_xlfn.XLOOKUP('Weighting Set'!$Z52,Modellering!$K$5:$BH$5,Modellering!$K$6:$BH$17)),Modellering!$E$6:$E$17,Milieuprofielen!F$18) -> 0 | G68: =SUMIFS((_xlfn.XLOOKUP('Weighting Set'!$Z52,Modellering!$K$5:$BH$5,Modellering!$K$6:$BH$17)),Modellering!$E$6:$E$17,Milieuprofielen!G$18) -> 0 | H68: =SUMIFS((_xlfn.XLOOKUP('Weighting Set'!$Z52,Modellering!$K$5:$BH$5,Modellering!$K$6:$BH$17)),Modellering!$E$6:$E$17,Milieuprofielen!H$18) -> 0 | I68: 0 | M68: 124. Exported energy, thermal (MJ) | N68: MJ | O68: =SUMIFS((_xlfn.XLOOKUP('Weighting Set'!$Z52,Modellering!$K$25:$BH$25,Modellering!$K$26:$BH$37)),Modellering!$E$26:$E$37,Milieuprofielen!O$18) -> 0 | P68: =SUMIFS((_xlfn.XLOOKUP('Weighting Set'!$Z52,Modellering!$K$25:$BH$25,Modellering!$K$26:$BH$37)),Modellering!$E$26:$E$37,Milieuprofielen!P$18) -> 0 | Q68: =SUMIFS((_xlfn.XLOOKUP('Weighting Set'!$Z52,Modellering!$K$25:$BH$25,Modellering!$K$26:$BH$37)),Modellering!$E$26:$E$37,Milieuprofielen!Q$18) -> 0 | R68: 0 | V68: 124. Exported energy, thermal (MJ) | W68: MJ | X68: =SUMIFS((_xlfn.XLOOKUP('Weighting Set'!$Z52,Modellering!$K$45:$BH$45,Modellering!$K$46:$BH$57)),Modellering!$E$46:$E$57,Milieuprofielen!X$18) -> 0 | Y68: =SUMIFS((_xlfn.XLOOKUP('Weighting Set'!$Z52,Modellering!$K$45:$BH$45,Modellering!$K$46:$BH$57)),Modellering!$E$46:$E$57,Milieuprofielen!Y$18) -> 0 | Z68: =SUMIFS((_xlfn.XLOOKUP('Weighting Set'!$Z52,Modellering!$K$45:$BH$45,Modellering!$K$46:$BH$57)),Modellering!$E$46:$E$57,Milieuprofielen!Z$18) -> 0 | AA68: 0 | AE68: 124. Exported energy, thermal (MJ) | AF68: MJ | AG68: =SUMIFS((_xlfn.XLOOKUP('Weighting Set'!$Z52,Modellering!$K$65:$BH$65,Modellering!$K$66:$BH$77)),Modellering!$E$66:$E$77,Milieuprofielen!AG$18) -> 0 | AH68: =SUMIFS((_xlfn.XLOOKUP('Weighting Set'!$Z52,Modellering!$K$65:$BH$65,Modellering!$K$66:$BH$77)),Modellering!$E$66:$E$77,Milieuprofielen!AH$18) -> 0 | AI68: =SUMIFS((_xlfn.XLOOKUP('Weighting Set'!$Z52,Modellering!$K$65:$BH$65,Modellering!$K$66:$BH$77)),Modellering!$E$66:$E$77,Milieuprofielen!AI$18) -> 0 | AJ68: 0 | AN68: 124. Exported energy, thermal (MJ) | AO68: MJ | AP68: =SUMIFS((_xlfn.XLOOKUP('Weighting Set'!$Z52,Modellering!$K$85:$BH$85,Modellering!$K$86:$BH$97)),Modellering!$E$86:$E$97,Milieuprofielen!AP$18) -> 0 | AQ68: =SUMIFS((_xlfn.XLOOKUP('Weighting Set'!$Z52,Modellering!$K$85:$BH$85,Modellering!$K$86:$BH$97)),Modellering!$E$86:$E$97,Milieuprofielen!AQ$18) -> 0 | AR68: =SUMIFS((_xlfn.XLOOKUP('Weighting Set'!$Z52,Modellering!$K$85:$BH$85,Modellering!$K$86:$BH$97)),Modellering!$E$86:$E$97,Milieuprofielen!AR$18) -> 0 | AS68: 0

Sheet MP per Liter
C6: Milieuprofielen
C7: In dit onderdeel worden de volledige milieuprofielen van het schip en/of de motoren weergegeven. Alle relevante indicatoren voor EN15804+A1, EN15804+A2 en bijbehorende parameters zijn opgenomen en weergegeven per relevante LCA module. Motoren zijn weergegeven op volgorde van links naar rechts. Databases & Karakterisatie: EN15804+A1: NMD 3.9 + EcoInvent 3.6 - ECI SBK Single Score EN15804+A2: NMD 3.9 + EcoInvent 3.9.1 - EF 3.1 Weighting Set
C14: ="Milieuprofiel 1: "&Invoerblad!D43&" (per "&(IF(Invoerblad!D56="n.v.t.","kWh","liter"))&")" -> Milieuprofiel 1: Milieuprofiel 1 (per liter) | L14: ="Milieuprofiel 2: "&Invoerblad!E43&" (per "&(IF(Invoerblad!E56="n.v.t.","kWh","liter"))&")" -> Milieuprofiel 2: Milieuprofiel 2 (per liter) | U14: ="Mileuprofiel 3: "&Invoerblad!F43&" (per "&(IF(Invoerblad!F56="n.v.t.","kWh","liter"))&")" -> Mileuprofiel 3: Milieuprofiel 3 (per liter) | AD14: ="Milieuprofiel 4: "&Invoerblad!G43&" (per "&(IF(Invoerblad!G56="n.v.t.","kWh","liter"))&")" -> Milieuprofiel 4: Milieuprofiel 4 (per liter) | AM14: ="Milieuprofiel 5: "&Invoerblad!H43&" (per "&(IF(Invoerblad!H56="n.v.t.","kWh","liter"))&")" -> Milieuprofiel 5: Milieuprofiel 5 (per liter)
C15: Energiedrager | E15: =Invoerblad!D44 -> Diesel (ULSD) | L15: Energiedrager | N15: =Invoerblad!E44 -> 0 | U15: Energiedrager | W15: =Invoerblad!F44 -> 0 | AD15: Energiedrager | AF15: =Invoerblad!G43 -> Milieuprofiel 4 | AM15: Energiedrager | AO15: =Invoerblad!H44 -> 0
C16: Verdieping Energiedrager | E16: =Invoerblad!D45 -> Diesel, Algemeen | L16: Verdieping Energiedrager | N16: =Invoerblad!E45 -> 0 | U16: Verdieping Energiedrager | W16: =Invoerblad!F45 -> 0 | AD16: Verdieping Energiedrager | AF16: =Invoerblad!G44 -> 0 | AM16: Verdieping Energiedrager | AO16: =Invoerblad!H45 -> 0
C17: Classificatie Motor | E17: =Invoerblad!D46 -> ULEV (Stage V IWP/IWA) | L17: Classificatie Motor | N17: =Invoerblad!E46 -> 0 | U17: Classificatie Motor | W17: =Invoerblad!F46 -> 0 | AD17: Classificatie Motor | AF17: =Invoerblad!G46 -> 0 | AM17: Classificatie Motor | AO17: =Invoerblad!H46 -> 0
C18: Module | D18: Impact Category | E18: Unit | F18: A1-A3 | G18: A4 | H18: B1 | I18: Total | L18: Module | M18: Impact Category | N18: Unit | O18: A1-A3 | P18: A4 | Q18: B1 | R18: Total | U18: Module | V18: Impact Category | W18: Unit | X18: A1-A3 | Y18: A4 | Z18: B1 | AA18: Total | AD18: Module | AE18: Impact Category | AF18: Unit | AG18: A1-A3 | AH18: A4 | AI18: B1 | AJ18: Total | AM18: Module | AN18: Impact Category | AO18: Unit | AP18: A1-A3 | AQ18: A4 | AR18: B1 | AS18: Total
C19: ECI-A1 | D19: Environmental Cost Indicator (ECI) - Set 1 | E19: € | F19: =IFERROR(IF(Invoerblad!$D$56="n.v.t.",(Milieuprofielen!F19),(Milieuprofielen!F19/Invoerblad!$D$56)),0) -> 0.08748797959 | G19: =IFERROR(IF(Invoerblad!$D$56="n.v.t.",(Milieuprofielen!G19),(Milieuprofielen!G19/Invoerblad!$D$56)),0) -> 0.001670395742 | H19: =IFERROR(IF(Invoerblad!$D$56="n.v.t.",(Milieuprofielen!H19),(Milieuprofielen!H19/Invoerblad!$D$56)),0) -> 0.2051489141 | I19: =IFERROR(IF(Invoerblad!$D$56="n.v.t.",(Milieuprofielen!I19),(Milieuprofielen!I19/Invoerblad!$D$56)),0) -> 0.2943072895 | L19: ECI-A1 | M19: Environmental Cost Indicator (ECI) - Set 1 | N19: € | O19: =IFERROR(IF(Invoerblad!$E$56="n.v.t.",(Milieuprofielen!O19),(Milieuprofielen!O19/Invoerblad!$E$56)),0) -> 0 | P19: =IFERROR(IF(Invoerblad!$E$56="n.v.t.",(Milieuprofielen!P19),(Milieuprofielen!P19/Invoerblad!$E$56)),0) -> 0 | Q19: =IFERROR(IF(Invoerblad!$E$56="n.v.t.",(Milieuprofielen!Q19),(Milieuprofielen!Q19/Invoerblad!$E$56)),0) -> 0 | R19: =IFERROR(IF(Invoerblad!$E$56="n.v.t.",(Milieuprofielen!R19),(Milieuprofielen!R19/Invoerblad!$E$56)),0) -> 0 | U19: ECI-A1 | V19: Environmental Cost Indicator (ECI) - Set 1 | W19: € | X19: =IFERROR(IF(Invoerblad!$F$56="n.v.t.",(Milieuprofielen!X19),(Milieuprofielen!X19/Invoerblad!$F$56)),0) -> 0 | Y19: =IFERROR(IF(Invoerblad!$F$56="n.v.t.",(Milieuprofielen!Y19),(Milieuprofielen!Y19/Invoerblad!$F$56)),0) -> 0 | Z19: =IFERROR(IF(Invoerblad!$F$56="n.v.t.",(Milieuprofielen!Z19),(Milieuprofielen!Z19/Invoerblad!$F$56)),0) -> 0 | AA19: =IFERROR(IF(Invoerblad!$F$56="n.v.t.",(Milieuprofielen!AA19),(Milieuprofielen!AA19/Invoerblad!$F$56)),0) -> 0 | AD19: ECI-A1 | AE19: Environmental Cost Indicator (ECI) - Set 1 | AF19: € | AG19: =IFERROR(IF(Invoerblad!$G$56="n.v.t.",(Milieuprofielen!AG19),(Milieuprofielen!AG19/Invoerblad!$G$56)),0) -> 0 | AH19: =IFERROR(IF(Invoerblad!$G$56="n.v.t.",(Milieuprofielen!AH19),(Milieuprofielen!AH19/Invoerblad!$G$56)),0) -> 0 | AI19: =IFERROR(IF(Invoerblad!$G$56="n.v.t.",(Milieuprofielen!AI19),(Milieuprofielen!AI19/Invoerblad!$G$56)),0) -> 0 | AJ19: =IFERROR(IF(Invoerblad!$G$56="n.v.t.",(Milieuprofielen!AJ19),(Milieuprofielen!AJ19/Invoerblad!$G$56)),0) -> 0 | AM19: ECI-A1 | AN19: Environmental Cost Indicator (ECI) - Set 1 | AO19: € | AP19: =IFERROR(IF(Invoerblad!$H$56="n.v.t.",(Milieuprofielen!AP19),(Milieuprofielen!AP19/Invoerblad!$H$56)),0) -> 0 | AQ19: =IFERROR(IF(Invoerblad!$H$56="n.v.t.",(Milieuprofielen!AQ19),(Milieuprofielen!AQ19/Invoerblad!$H$56)),0) -> 0 | AR19: =IFERROR(IF(Invoerblad!$H$56="n.v.t.",(Milieuprofielen!AR19),(Milieuprofielen!AR19/Invoerblad!$H$56)),0) -> 0 | AS19: =IFERROR(IF(Invoerblad!$H$56="n.v.t.",(Milieuprofielen!AS19),(Milieuprofielen!AS19/Invoerblad!$H$56)),0) -> 0
C20: ECI-A2 | D20: Environmental Cost Indicator (ECI) - Set 2 | E20: € | F20: =IFERROR(IF(Invoerblad!$D$56="n.v.t.",(Milieuprofielen!F20),(Milieuprofielen!F20/Invoerblad!$D$56)),0) -> 0.1169500142 | G20: =IFERROR(IF(Invoerblad!$D$56="n.v.t.",(Milieuprofielen!G20),(Milieuprofielen!G20/Invoerblad!$D$56)),0) -> 0.003225165679 | H20: =IFERROR(IF(Invoerblad!$D$56="n.v.t.",(Milieuprofielen!H20),(Milieuprofielen!H20/Invoerblad!$D$56)),0) -> 0.3985385483 | I20: =IFERROR(IF(Invoerblad!$D$56="n.v.t.",(Milieuprofielen!I20),(Milieuprofielen!I20/Invoerblad!$D$56)),0) -> 0.5187137282 | L20: ECI-A2 | M20: Environmental Cost Indicator (ECI) - Set 2 | N20: € | O20: =IFERROR(IF(Invoerblad!$E$56="n.v.t.",(Milieuprofielen!O20),(Milieuprofielen!O20/Invoerblad!$E$56)),0) -> 0 | P20: =IFERROR(IF(Invoerblad!$E$56="n.v.t.",(Milieuprofielen!P20),(Milieuprofielen!P20/Invoerblad!$E$56)),0) -> 0 | Q20: =IFERROR(IF(Invoerblad!$E$56="n.v.t.",(Milieuprofielen!Q20),(Milieuprofielen!Q20/Invoerblad!$E$56)),0) -> 0 | R20: =IFERROR(IF(Invoerblad!$E$56="n.v.t.",(Milieuprofielen!R20),(Milieuprofielen!R20/Invoerblad!$E$56)),0) -> 0 | U20: ECI-A2 | V20: Environmental Cost Indicator (ECI) - Set 2 | W20: € | X20: =IFERROR(IF(Invoerblad!$F$56="n.v.t.",(Milieuprofielen!X20),(Milieuprofielen!X20/Invoerblad!$F$56)),0) -> 0 | Y20: =IFERROR(IF(Invoerblad!$F$56="n.v.t.",(Milieuprofielen!Y20),(Milieuprofielen!Y20/Invoerblad!$F$56)),0) -> 0 | Z20: =IFERROR(IF(Invoerblad!$F$56="n.v.t.",(Milieuprofielen!Z20),(Milieuprofielen!Z20/Invoerblad!$F$56)),0) -> 0 | AA20: =IFERROR(IF(Invoerblad!$F$56="n.v.t.",(Milieuprofielen!AA20),(Milieuprofielen!AA20/Invoerblad!$F$56)),0) -> 0 | AD20: ECI-A2 | AE20: Environmental Cost Indicator (ECI) - Set 2 | AF20: € | AG20: =IFERROR(IF(Invoerblad!$G$56="n.v.t.",(Milieuprofielen!AG20),(Milieuprofielen!AG20/Invoerblad!$G$56)),0) -> 0 | AH20: =IFERROR(IF(Invoerblad!$G$56="n.v.t.",(Milieuprofielen!AH20),(Milieuprofielen!AH20/Invoerblad!$G$56)),0) -> 0 | AI20: =IFERROR(IF(Invoerblad!$G$56="n.v.t.",(Milieuprofielen!AI20),(Milieuprofielen!AI20/Invoerblad!$G$56)),0) -> 0 | AJ20: =IFERROR(IF(Invoerblad!$G$56="n.v.t.",(Milieuprofielen!AJ20),(Milieuprofielen!AJ20/Invoerblad!$G$56)),0) -> 0 | AM20: ECI-A2 | AN20: Environmental Cost Indicator (ECI) - Set 2 | AO20: € | AP20: =IFERROR(IF(Invoerblad!$H$56="n.v.t.",(Milieuprofielen!AP20),(Milieuprofielen!AP20/Invoerblad!$H$56)),0) -> 0 | AQ20: =IFERROR(IF(Invoerblad!$H$56="n.v.t.",(Milieuprofielen!AQ20),(Milieuprofielen!AQ20/Invoerblad!$H$56)),0) -> 0 | AR20: =IFERROR(IF(Invoerblad!$H$56="n.v.t.",(Milieuprofielen!AR20),(Milieuprofielen!AR20/Invoerblad!$H$56)),0) -> 0 | AS20: =IFERROR(IF(Invoerblad!$H$56="n.v.t.",(Milieuprofielen!AS20),(Milieuprofielen!AS20/Invoerblad!$H$56)),0) -> 0
C21: Characterized EN15804+A1 | D21: 001. abiotic depletion, non fuel (AD) | E21: kg Sb eq | F21: =IFERROR(IF(Invoerblad!$D$56="n.v.t.",(Milieuprofielen!F21),(Milieuprofielen!F21/Invoerblad!$D$56)),0) -> 2.289065676e-06 | G21: =IFERROR(IF(Invoerblad!$D$56="n.v.t.",(Milieuprofielen!G21),(Milieuprofielen!G21/Invoerblad!$D$56)),0) -> 1.113093763e-06 | H21: =IFERROR(IF(Invoerblad!$D$56="n.v.t.",(Milieuprofielen!H21),(Milieuprofielen!H21/Invoerblad!$D$56)),0) -> 4.944813368e-06 | I21: =IFERROR(IF(Invoerblad!$D$56="n.v.t.",(Milieuprofielen!I21),(Milieuprofielen!I21/Invoerblad!$D$56)),0) -> 8.346972807e-06 | L21: Characterized EN15804+A1 | M21: 001. abiotic depletion, non fuel (AD) | N21: kg Sb eq | O21: =IFERROR(IF(Invoerblad!$E$56="n.v.t.",(Milieuprofielen!O21),(Milieuprofielen!O21/Invoerblad!$E$56)),0) -> 0 | P21: =IFERROR(IF(Invoerblad!$E$56="n.v.t.",(Milieuprofielen!P21),(Milieuprofielen!P21/Invoerblad!$E$56)),0) -> 0 | Q21: =IFERROR(IF(Invoerblad!$E$56="n.v.t.",(Milieuprofielen!Q21),(Milieuprofielen!Q21/Invoerblad!$E$56)),0) -> 0 | R21: =IFERROR(IF(Invoerblad!$E$56="n.v.t.",(Milieuprofielen!R21),(Milieuprofielen!R21/Invoerblad!$E$56)),0) -> 0 | U21: Characterized EN15804+A1 | V21: 001. abiotic depletion, non fuel (AD) | W21: kg Sb eq | X21: =IFERROR(IF(Invoerblad!$F$56="n.v.t.",(Milieuprofielen!X21),(Milieuprofielen!X21/Invoerblad!$F$56)),0) -> 0 | Y21: =IFERROR(IF(Invoerblad!$F$56="n.v.t.",(Milieuprofielen!Y21),(Milieuprofielen!Y21/Invoerblad!$F$56)),0) -> 0 | Z21: =IFERROR(IF(Invoerblad!$F$56="n.v.t.",(Milieuprofielen!Z21),(Milieuprofielen!Z21/Invoerblad!$F$56)),0) -> 0 | AA21: =IFERROR(IF(Invoerblad!$F$56="n.v.t.",(Milieuprofielen!AA21),(Milieuprofielen!AA21/Invoerblad!$F$56)),0) -> 0 | AD21: Characterized EN15804+A1 | AE21: 001. abiotic depletion, non fuel (AD) | AF21: kg Sb eq | AG21: =IFERROR(IF(Invoerblad!$G$56="n.v.t.",(Milieuprofielen!AG21),(Milieuprofielen!AG21/Invoerblad!$G$56)),0) -> 0 | AH21: =IFERROR(IF(Invoerblad!$G$56="n.v.t.",(Milieuprofielen!AH21),(Milieuprofielen!AH21/Invoerblad!$G$56)),0) -> 0 | AI21: =IFERROR(IF(Invoerblad!$G$56="n.v.t.",(Milieuprofielen!AI21),(Milieuprofielen!AI21/Invoerblad!$G$56)),0) -> 0 | AJ21: =IFERROR(IF(Invoerblad!$G$56="n.v.t.",(Milieuprofielen!AJ21),(Milieuprofielen!AJ21/Invoerblad!$G$56)),0) -> 0 | AM21: Characterized EN15804+A1 | AN21: 001. abiotic depletion, non fuel (AD) | AO21: kg Sb eq | AP21: =IFERROR(IF(Invoerblad!$H$56="n.v.t.",(Milieuprofielen!AP21),(Milieuprofielen!AP21/Invoerblad!$H$56)),0) -> 0 | AQ21: =IFERROR(IF(Invoerblad!$H$56="n.v.t.",(Milieuprofielen!AQ21),(Milieuprofielen!AQ21/Invoerblad!$H$56)),0) -> 0 | AR21: =IFERROR(IF(Invoerblad!$H$56="n.v.t.",(Milieuprofielen!AR21),(Milieuprofielen!AR21/Invoerblad!$H$56)),0) -> 0 | AS21: =IFERROR(IF(Invoerblad!$H$56="n.v.t.",(Milieuprofielen!AS21),(Milieuprofielen!AS21/Invoerblad!$H$56)),0) -> 0
D22: 002. abiotic depletion, fuel (AD) | E22: kg Sb eq | F22: =IFERROR(IF(Invoerblad!$D$56="n.v.t.",(Milieuprofielen!F22),(Milieuprofielen!F22/Invoerblad!$D$56)),0) -> 0.02146625801 | G22: =IFERROR(IF(Invoerblad!$D$56="n.v.t.",(Milieuprofielen!G22),(Milieuprofielen!G22/Invoerblad!$D$56)),0) -> 0.0001159269727 | H22: =IFERROR(IF(Invoerblad!$D$56="n.v.t.",(Milieuprofielen!H22),(Milieuprofielen!H22/Invoerblad!$D$56)),0) -> 0.0003293719388 | I22: =IFERROR(IF(Invoerblad!$D$56="n.v.t.",(Milieuprofielen!I22),(Milieuprofielen!I22/Invoerblad!$D$56)),0) -> 0.02191155692 | M22: 002. abiotic depletion, fuel (AD) | N22: kg Sb eq | O22: =IFERROR(IF(Invoerblad!$E$56="n.v.t.",(Milieuprofielen!O22),(Milieuprofielen!O22/Invoerblad!$E$56)),0) -> 0 | P22: =IFERROR(IF(Invoerblad!$E$56="n.v.t.",(Milieuprofielen!P22),(Milieuprofielen!P22/Invoerblad!$E$56)),0) -> 0 | Q22: =IFERROR(IF(Invoerblad!$E$56="n.v.t.",(Milieuprofielen!Q22),(Milieuprofielen!Q22/Invoerblad!$E$56)),0) -> 0 | R22: =IFERROR(IF(Invoerblad!$E$56="n.v.t.",(Milieuprofielen!R22),(Milieuprofielen!R22/Invoerblad!$E$56)),0) -> 0 | V22: 002. abiotic depletion, fuel (AD) | W22: kg Sb eq | X22: =IFERROR(IF(Invoerblad!$F$56="n.v.t.",(Milieuprofielen!X22),(Milieuprofielen!X22/Invoerblad!$F$56)),0) -> 0 | Y22: =IFERROR(IF(Invoerblad!$F$56="n.v.t.",(Milieuprofielen!Y22),(Milieuprofielen!Y22/Invoerblad!$F$56)),0) -> 0 | Z22: =IFERROR(IF(Invoerblad!$F$56="n.v.t.",(Milieuprofielen!Z22),(Milieuprofielen!Z22/Invoerblad!$F$56)),0) -> 0 | AA22: =IFERROR(IF(Invoerblad!$F$56="n.v.t.",(Milieuprofielen!AA22),(Milieuprofielen!AA22/Invoerblad!$F$56)),0) -> 0 | AE22: 002. abiotic depletion, fuel (AD) | AF22: kg Sb eq | AG22: =IFERROR(IF(Invoerblad!$G$56="n.v.t.",(Milieuprofielen!AG22),(Milieuprofielen!AG22/Invoerblad!$G$56)),0) -> 0 | AH22: =IFERROR(IF(Invoerblad!$G$56="n.v.t.",(Milieuprofielen!AH22),(Milieuprofielen!AH22/Invoerblad!$G$56)),0) -> 0 | AI22: =IFERROR(IF(Invoerblad!$G$56="n.v.t.",(Milieuprofielen!AI22),(Milieuprofielen!AI22/Invoerblad!$G$56)),0) -> 0 | AJ22: =IFERROR(IF(Invoerblad!$G$56="n.v.t.",(Milieuprofielen!AJ22),(Milieuprofielen!AJ22/Invoerblad!$G$56)),0) -> 0 | AN22: 002. abiotic depletion, fuel (AD) | AO22: kg Sb eq | AP22: =IFERROR(IF(Invoerblad!$H$56="n.v.t.",(Milieuprofielen!AP22),(Milieuprofielen!AP22/Invoerblad!$H$56)),0) -> 0 | AQ22: =IFERROR(IF(Invoerblad!$H$56="n.v.t.",(Milieuprofielen!AQ22),(Milieuprofielen!AQ22/Invoerblad!$H$56)),0) -> 0 | AR22: =IFERROR(IF(Invoerblad!$H$56="n.v.t.",(Milieuprofielen!AR22),(Milieuprofielen!AR22/Invoerblad!$H$56)),0) -> 0 | AS22: =IFERROR(IF(Invoerblad!$H$56="n.v.t.",(Milieuprofielen!AS22),(Milieuprofielen!AS22/Invoerblad!$H$56)),0) -> 0
D23: 004. global warming (GWP) | E23: kg CO2 eq | F23: =IFERROR(IF(Invoerblad!$D$56="n.v.t.",(Milieuprofielen!F23),(Milieuprofielen!F23/Invoerblad!$D$56)),0) -> 0.5399779248 | G23: =IFERROR(IF(Invoerblad!$D$56="n.v.t.",(Milieuprofielen!G23),(Milieuprofielen!G23/Invoerblad!$D$56)),0) -> 0.01592468376 | H23: =IFERROR(IF(Invoerblad!$D$56="n.v.t.",(Milieuprofielen!H23),(Milieuprofielen!H23/Invoerblad!$D$56)),0) -> 2.750251932 | I23: =IFERROR(IF(Invoerblad!$D$56="n.v.t.",(Milieuprofielen!I23),(Milieuprofielen!I23/Invoerblad!$D$56)),0) -> 3.30615454 | M23: 004. global warming (GWP) | N23: kg CO2 eq | O23: =IFERROR(IF(Invoerblad!$E$56="n.v.t.",(Milieuprofielen!O23),(Milieuprofielen!O23/Invoerblad!$E$56)),0) -> 0 | P23: =IFERROR(IF(Invoerblad!$E$56="n.v.t.",(Milieuprofielen!P23),(Milieuprofielen!P23/Invoerblad!$E$56)),0) -> 0 | Q23: =IFERROR(IF(Invoerblad!$E$56="n.v.t.",(Milieuprofielen!Q23),(Milieuprofielen!Q23/Invoerblad!$E$56)),0) -> 0 | R23: =IFERROR(IF(Invoerblad!$E$56="n.v.t.",(Milieuprofielen!R23),(Milieuprofielen!R23/Invoerblad!$E$56)),0) -> 0 | V23: 004. global warming (GWP) | W23: kg CO2 eq | X23: =IFERROR(IF(Invoerblad!$F$56="n.v.t.",(Milieuprofielen!X23),(Milieuprofielen!X23/Invoerblad!$F$56)),0) -> 0 | Y23: =IFERROR(IF(Invoerblad!$F$56="n.v.t.",(Milieuprofielen!Y23),(Milieuprofielen!Y23/Invoerblad!$F$56)),0) -> 0 | Z23: =IFERROR(IF(Invoerblad!$F$56="n.v.t.",(Milieuprofielen!Z23),(Milieuprofielen!Z23/Invoerblad!$F$56)),0) -> 0 | AA23: =IFERROR(IF(Invoerblad!$F$56="n.v.t.",(Milieuprofielen!AA23),(Milieuprofielen!AA23/Invoerblad!$F$56)),0) -> 0 | AE23: 004. global warming (GWP) | AF23: kg CO2 eq | AG23: =IFERROR(IF(Invoerblad!$G$56="n.v.t.",(Milieuprofielen!AG23),(Milieuprofielen!AG23/Invoerblad!$G$56)),0) -> 0 | AH23: =IFERROR(IF(Invoerblad!$G$56="n.v.t.",(Milieuprofielen!AH23),(Milieuprofielen!AH23/Invoerblad!$G$56)),0) -> 0 | AI23: =IFERROR(IF(Invoerblad!$G$56="n.v.t.",(Milieuprofielen!AI23),(Milieuprofielen!AI23/Invoerblad!$G$56)),0) -> 0 | AJ23: =IFERROR(IF(Invoerblad!$G$56="n.v.t.",(Milieuprofielen!AJ23),(Milieuprofielen!AJ23/Invoerblad!$G$56)),0) -> 0 | AN23: 004. global warming (GWP) | AO23: kg CO2 eq | AP23: =IFERROR(IF(Invoerblad!$H$56="n.v.t.",(Milieuprofielen!AP23),(Milieuprofielen!AP23/Invoerblad!$H$56)),0) -> 0 | AQ23: =IFERROR(IF(Invoerblad!$H$56="n.v.t.",(Milieuprofielen!AQ23),(Milieuprofielen!AQ23/Invoerblad!$H$56)),0) -> 0 | AR23: =IFERROR(IF(Invoerblad!$H$56="n.v.t.",(Milieuprofielen!AR23),(Milieuprofielen!AR23/Invoerblad!$H$56)),0) -> 0 | AS23: =IFERROR(IF(Invoerblad!$H$56="n.v.t.",(Milieuprofielen!AS23),(Milieuprofielen!AS23/Invoerblad!$H$56)),0) -> 0
D24: 005. ozone layer depletion (ODP) | E24: kg CFC-11 eq | F24: =IFERROR(IF(Invoerblad!$D$56="n.v.t.",(Milieuprofielen!F24),(Milieuprofielen!F24/Invoerblad!$D$56)),0) -> 5.17666153e-07 | G24: =IFERROR(IF(Invoerblad!$D$56="n.v.t.",(Milieuprofielen!G24),(Milieuprofielen!G24/Invoerblad!$D$56)),0) -> 2.628515917e-09 | H24: =IFERROR(IF(Invoerblad!$D$56="n.v.t.",(Milieuprofielen!H24),(Milieuprofielen!H24/Invoerblad!$D$56)),0) -> 1.700188618e-08 | I24: =IFERROR(IF(Invoerblad!$D$56="n.v.t.",(Milieuprofielen!I24),(Milieuprofielen!I24/Invoerblad!$D$56)),0) -> 5.372965551e-07 | M24: 005. ozone layer depletion (ODP) | N24: kg CFC-11 eq | O24: =IFERROR(IF(Invoerblad!$E$56="n.v.t.",(Milieuprofielen!O24),(Milieuprofielen!O24/Invoerblad!$E$56)),0) -> 0 | P24: =IFERROR(IF(Invoerblad!$E$56="n.v.t.",(Milieuprofielen!P24),(Milieuprofielen!P24/Invoerblad!$E$56)),0) -> 0 | Q24: =IFERROR(IF(Invoerblad!$E$56="n.v.t.",(Milieuprofielen!Q24),(Milieuprofielen!Q24/Invoerblad!$E$56)),0) -> 0 | R24: =IFERROR(IF(Invoerblad!$E$56="n.v.t.",(Milieuprofielen!R24),(Milieuprofielen!R24/Invoerblad!$E$56)),0) -> 0 | V24: 005. ozone layer depletion (ODP) | W24: kg CFC-11 eq | X24: =IFERROR(IF(Invoerblad!$F$56="n.v.t.",(Milieuprofielen!X24),(Milieuprofielen!X24/Invoerblad!$F$56)),0) -> 0 | Y24: =IFERROR(IF(Invoerblad!$F$56="n.v.t.",(Milieuprofielen!Y24),(Milieuprofielen!Y24/Invoerblad!$F$56)),0) -> 0 | Z24: =IFERROR(IF(Invoerblad!$F$56="n.v.t.",(Milieuprofielen!Z24),(Milieuprofielen!Z24/Invoerblad!$F$56)),0) -> 0 | AA24: =IFERROR(IF(Invoerblad!$F$56="n.v.t.",(Milieuprofielen!AA24),(Milieuprofielen!AA24/Invoerblad!$F$56)),0) -> 0 | AE24: 005. ozone layer depletion (ODP) | AF24: kg CFC-11 eq | AG24: =IFERROR(IF(Invoerblad!$G$56="n.v.t.",(Milieuprofielen!AG24),(Milieuprofielen!AG24/Invoerblad!$G$56)),0) -> 0 | AH24: =IFERROR(IF(Invoerblad!$G$56="n.v.t.",(Milieuprofielen!AH24),(Milieuprofielen!AH24/Invoerblad!$G$56)),0) -> 0 | AI24: =IFERROR(IF(Invoerblad!$G$56="n.v.t.",(Milieuprofielen!AI24),(Milieuprofielen!AI24/Invoerblad!$G$56)),0) -> 0 | AJ24: =IFERROR(IF(Invoerblad!$G$56="n.v.t.",(Milieuprofielen!AJ24),(Milieuprofielen!AJ24/Invoerblad!$G$56)),0) -> 0 | AN24: 005. ozone layer depletion (ODP) | AO24: kg CFC-11 eq | AP24: =IFERROR(IF(Invoerblad!$H$56="n.v.t.",(Milieuprofielen!AP24),(Milieuprofielen!AP24/Invoerblad!$H$56)),0) -> 0 | AQ24: =IFERROR(IF(Invoerblad!$H$56="n.v.t.",(Milieuprofielen!AQ24),(Milieuprofielen!AQ24/Invoerblad!$H$56)),0) -> 0 | AR24: =IFERROR(IF(Invoerblad!$H$56="n.v.t.",(Milieuprofielen!AR24),(Milieuprofielen!AR24/Invoerblad!$H$56)),0) -> 0 | AS24: =IFERROR(IF(Invoerblad!$H$56="n.v.t.",(Milieuprofielen!AS24),(Milieuprofielen!AS24/Invoerblad!$H$56)),0) -> 0
D25: 006. photochemical oxidation (POCP) | E25: kg C2H4 | F25: =IFERROR(IF(Invoerblad!$D$56="n.v.t.",(Milieuprofielen!F25),(Milieuprofielen!F25/Invoerblad!$D$56)),0) -> 0.0007614380233 | G25: =IFERROR(IF(Invoerblad!$D$56="n.v.t.",(Milieuprofielen!G25),(Milieuprofielen!G25/Invoerblad!$D$56)),0) -> 9.911577314e-06 | H25: =IFERROR(IF(Invoerblad!$D$56="n.v.t.",(Milieuprofielen!H25),(Milieuprofielen!H25/Invoerblad!$D$56)),0) -> 0.0001627230933 | I25: =IFERROR(IF(Invoerblad!$D$56="n.v.t.",(Milieuprofielen!I25),(Milieuprofielen!I25/Invoerblad!$D$56)),0) -> 0.0009340726939 | M25: 006. photochemical oxidation (POCP) | N25: kg C2H4 | O25: =IFERROR(IF(Invoerblad!$E$56="n.v.t.",(Milieuprofielen!O25),(Milieuprofielen!O25/Invoerblad!$E$56)),0) -> 0 | P25: =IFERROR(IF(Invoerblad!$E$56="n.v.t.",(Milieuprofielen!P25),(Milieuprofielen!P25/Invoerblad!$E$56)),0) -> 0 | Q25: =IFERROR(IF(Invoerblad!$E$56="n.v.t.",(Milieuprofielen!Q25),(Milieuprofielen!Q25/Invoerblad!$E$56)),0) -> 0 | R25: =IFERROR(IF(Invoerblad!$E$56="n.v.t.",(Milieuprofielen!R25),(Milieuprofielen!R25/Invoerblad!$E$56)),0) -> 0 | V25: 006. photochemical oxidation (POCP) | W25: kg C2H4 | X25: =IFERROR(IF(Invoerblad!$F$56="n.v.t.",(Milieuprofielen!X25),(Milieuprofielen!X25/Invoerblad!$F$56)),0) -> 0 | Y25: =IFERROR(IF(Invoerblad!$F$56="n.v.t.",(Milieuprofielen!Y25),(Milieuprofielen!Y25/Invoerblad!$F$56)),0) -> 0 | Z25: =IFERROR(IF(Invoerblad!$F$56="n.v.t.",(Milieuprofielen!Z25),(Milieuprofielen!Z25/Invoerblad!$F$56)),0) -> 0 | AA25: =IFERROR(IF(Invoerblad!$F$56="n.v.t.",(Milieuprofielen!AA25),(Milieuprofielen!AA25/Invoerblad!$F$56)),0) -> 0 | AE25: 006. photochemical oxidation (POCP) | AF25: kg C2H4 | AG25: =IFERROR(IF(Invoerblad!$G$56="n.v.t.",(Milieuprofielen!AG25),(Milieuprofielen!AG25/Invoerblad!$G$56)),0) -> 0 | AH25: =IFERROR(IF(Invoerblad!$G$56="n.v.t.",(Milieuprofielen!AH25),(Milieuprofielen!AH25/Invoerblad!$G$56)),0) -> 0 | AI25: =IFERROR(IF(Invoerblad!$G$56="n.v.t.",(Milieuprofielen!AI25),(Milieuprofielen!AI25/Invoerblad!$G$56)),0) -> 0 | AJ25: =IFERROR(IF(Invoerblad!$G$56="n.v.t.",(Milieuprofielen!AJ25),(Milieuprofielen!AJ25/Invoerblad!$G$56)),0) -> 0 | AN25: 006. photochemical oxidation (POCP) | AO25: kg C2H4 | AP25: =IFERROR(IF(Invoerblad!$H$56="n.v.t.",(Milieuprofielen!AP25),(Milieuprofielen!AP25/Invoerblad!$H$56)),0) -> 0 | AQ25: =IFERROR(IF(Invoerblad!$H$56="n.v.t.",(Milieuprofielen!AQ25),(Milieuprofielen!AQ25/Invoerblad!$H$56)),0) -> 0 | AR25: =IFERROR(IF(Invoerblad!$H$56="n.v.t.",(Milieuprofielen!AR25),(Milieuprofielen!AR25/Invoerblad!$H$56)),0) -> 0 | AS25: =IFERROR(IF(Invoerblad!$H$56="n.v.t.",(Milieuprofielen!AS25),(Milieuprofielen!AS25/Invoerblad!$H$56)),0) -> 0
D26: 007. acidification (AP) | E26: kg SO2 eq | F26: =IFERROR(IF(Invoerblad!$D$56="n.v.t.",(Milieuprofielen!F26),(Milieuprofielen!F26/Invoerblad!$D$56)),0) -> 0.004374921814 | G26: =IFERROR(IF(Invoerblad!$D$56="n.v.t.",(Milieuprofielen!G26),(Milieuprofielen!G26/Invoerblad!$D$56)),0) -> 6.588402926e-05 | H26: =IFERROR(IF(Invoerblad!$D$56="n.v.t.",(Milieuprofielen!H26),(Milieuprofielen!H26/Invoerblad!$D$56)),0) -> 0.008959879468 | I26: =IFERROR(IF(Invoerblad!$D$56="n.v.t.",(Milieuprofielen!I26),(Milieuprofielen!I26/Invoerblad!$D$56)),0) -> 0.01340068531 | M26: 007. acidification (AP) | N26: kg SO2 eq | O26: =IFERROR(IF(Invoerblad!$E$56="n.v.t.",(Milieuprofielen!O26),(Milieuprofielen!O26/Invoerblad!$E$56)),0) -> 0 | P26: =IFERROR(IF(Invoerblad!$E$56="n.v.t.",(Milieuprofielen!P26),(Milieuprofielen!P26/Invoerblad!$E$56)),0) -> 0 | Q26: =IFERROR(IF(Invoerblad!$E$56="n.v.t.",(Milieuprofielen!Q26),(Milieuprofielen!Q26/Invoerblad!$E$56)),0) -> 0 | R26: =IFERROR(IF(Invoerblad!$E$56="n.v.t.",(Milieuprofielen!R26),(Milieuprofielen!R26/Invoerblad!$E$56)),0) -> 0 | V26: 007. acidification (AP) | W26: kg SO2 eq | X26: =IFERROR(IF(Invoerblad!$F$56="n.v.t.",(Milieuprofielen!X26),(Milieuprofielen!X26/Invoerblad!$F$56)),0) -> 0 | Y26: =IFERROR(IF(Invoerblad!$F$56="n.v.t.",(Milieuprofielen!Y26),(Milieuprofielen!Y26/Invoerblad!$F$56)),0) -> 0 | Z26: =IFERROR(IF(Invoerblad!$F$56="n.v.t.",(Milieuprofielen!Z26),(Milieuprofielen!Z26/Invoerblad!$F$56)),0) -> 0 | AA26: =IFERROR(IF(Invoerblad!$F$56="n.v.t.",(Milieuprofielen!AA26),(Milieuprofielen!AA26/Invoerblad!$F$56)),0) -> 0 | AE26: 007. acidification (AP) | AF26: kg SO2 eq | AG26: =IFERROR(IF(Invoerblad!$G$56="n.v.t.",(Milieuprofielen!AG26),(Milieuprofielen!AG26/Invoerblad!$G$56)),0) -> 0 | AH26: =IFERROR(IF(Invoerblad!$G$56="n.v.t.",(Milieuprofielen!AH26),(Milieuprofielen!AH26/Invoerblad!$G$56)),0) -> 0 | AI26: =IFERROR(IF(Invoerblad!$G$56="n.v.t.",(Milieuprofielen!AI26),(Milieuprofielen!AI26/Invoerblad!$G$56)),0) -> 0 | AJ26: =IFERROR(IF(Invoerblad!$G$56="n.v.t.",(Milieuprofielen!AJ26),(Milieuprofielen!AJ26/Invoerblad!$G$56)),0) -> 0 | AN26: 007. acidification (AP) | AO26: kg SO2 eq | AP26: =IFERROR(IF(Invoerblad!$H$56="n.v.t.",(Milieuprofielen!AP26),(Milieuprofielen!AP26/Invoerblad!$H$56)),0) -> 0 | AQ26: =IFERROR(IF(Invoerblad!$H$56="n.v.t.",(Milieuprofielen!AQ26),(Milieuprofielen!AQ26/Invoerblad!$H$56)),0) -> 0 | AR26: =IFERROR(IF(Invoerblad!$H$56="n.v.t.",(Milieuprofielen!AR26),(Milieuprofielen!AR26/Invoerblad!$H$56)),0) -> 0 | AS26: =IFERROR(IF(Invoerblad!$H$56="n.v.t.",(Milieuprofielen!AS26),(Milieuprofielen!AS26/Invoerblad!$H$56)),0) -> 0
D27: 008. eutrophication (EP) | E27: kg PO4--- eq | F27: =IFERROR(IF(Invoerblad!$D$56="n.v.t.",(Milieuprofielen!F27),(Milieuprofielen!F27/Invoerblad!$D$56)),0) -> 0.0005859251676 | G27: =IFERROR(IF(Invoerblad!$D$56="n.v.t.",(Milieuprofielen!G27),(Milieuprofielen!G27/Invoerblad!$D$56)),0) -> 1.165631009e-05 | H27: =IFERROR(IF(Invoerblad!$D$56="n.v.t.",(Milieuprofielen!H27),(Milieuprofielen!H27/Invoerblad!$D$56)),0) -> 0.002223949681 | I27: =IFERROR(IF(Invoerblad!$D$56="n.v.t.",(Milieuprofielen!I27),(Milieuprofielen!I27/Invoerblad!$D$56)),0) -> 0.002821531159 | M27: 008. eutrophication (EP) | N27: kg PO4--- eq | O27: =IFERROR(IF(Invoerblad!$E$56="n.v.t.",(Milieuprofielen!O27),(Milieuprofielen!O27/Invoerblad!$E$56)),0) -> 0 | P27: =IFERROR(IF(Invoerblad!$E$56="n.v.t.",(Milieuprofielen!P27),(Milieuprofielen!P27/Invoerblad!$E$56)),0) -> 0 | Q27: =IFERROR(IF(Invoerblad!$E$56="n.v.t.",(Milieuprofielen!Q27),(Milieuprofielen!Q27/Invoerblad!$E$56)),0) -> 0 | R27: =IFERROR(IF(Invoerblad!$E$56="n.v.t.",(Milieuprofielen!R27),(Milieuprofielen!R27/Invoerblad!$E$56)),0) -> 0 | V27: 008. eutrophication (EP) | W27: kg PO4--- eq | X27: =IFERROR(IF(Invoerblad!$F$56="n.v.t.",(Milieuprofielen!X27),(Milieuprofielen!X27/Invoerblad!$F$56)),0) -> 0 | Y27: =IFERROR(IF(Invoerblad!$F$56="n.v.t.",(Milieuprofielen!Y27),(Milieuprofielen!Y27/Invoerblad!$F$56)),0) -> 0 | Z27: =IFERROR(IF(Invoerblad!$F$56="n.v.t.",(Milieuprofielen!Z27),(Milieuprofielen!Z27/Invoerblad!$F$56)),0) -> 0 | AA27: =IFERROR(IF(Invoerblad!$F$56="n.v.t.",(Milieuprofielen!AA27),(Milieuprofielen!AA27/Invoerblad!$F$56)),0) -> 0 | AE27: 008. eutrophication (EP) | AF27: kg PO4--- eq | AG27: =IFERROR(IF(Invoerblad!$G$56="n.v.t.",(Milieuprofielen!AG27),(Milieuprofielen!AG27/Invoerblad!$G$56)),0) -> 0 | AH27: =IFERROR(IF(Invoerblad!$G$56="n.v.t.",(Milieuprofielen!AH27),(Milieuprofielen!AH27/Invoerblad!$G$56)),0) -> 0 | AI27: =IFERROR(IF(Invoerblad!$G$56="n.v.t.",(Milieuprofielen!AI27),(Milieuprofielen!AI27/Invoerblad!$G$56)),0) -> 0 | AJ27: =IFERROR(IF(Invoerblad!$G$56="n.v.t.",(Milieuprofielen!AJ27),(Milieuprofielen!AJ27/Invoerblad!$G$56)),0) -> 0 | AN27: 008. eutrophication (EP) | AO27: kg PO4--- eq | AP27: =IFERROR(IF(Invoerblad!$H$56="n.v.t.",(Milieuprofielen!AP27),(Milieuprofielen!AP27/Invoerblad!$H$56)),0) -> 0 | AQ27: =IFERROR(IF(Invoerblad!$H$56="n.v.t.",(Milieuprofielen!AQ27),(Milieuprofielen!AQ27/Invoerblad!$H$56)),0) -> 0 | AR27: =IFERROR(IF(Invoerblad!$H$56="n.v.t.",(Milieuprofielen!AR27),(Milieuprofielen!AR27/Invoerblad!$H$56)),0) -> 0 | AS27: =IFERROR(IF(Invoerblad!$H$56="n.v.t.",(Milieuprofielen!AS27),(Milieuprofielen!AS27/Invoerblad!$H$56)),0) -> 0
D28: 009. human toxicity (HT) | E28: kg 1,4-DB eq | F28: =IFERROR(IF(Invoerblad!$D$56="n.v.t.",(Milieuprofielen!F28),(Milieuprofielen!F28/Invoerblad!$D$56)),0) -> 0.2992080377 | G28: =IFERROR(IF(Invoerblad!$D$56="n.v.t.",(Milieuprofielen!G28),(Milieuprofielen!G28/Invoerblad!$D$56)),0) -> 0.004657924697 | H28: =IFERROR(IF(Invoerblad!$D$56="n.v.t.",(Milieuprofielen!H28),(Milieuprofielen!H28/Invoerblad!$D$56)),0) -> 0.1234444323 | I28: =IFERROR(IF(Invoerblad!$D$56="n.v.t.",(Milieuprofielen!I28),(Milieuprofielen!I28/Invoerblad!$D$56)),0) -> 0.4273103947 | M28: 009. human toxicity (HT) | N28: kg 1,4-DB eq | O28: =IFERROR(IF(Invoerblad!$E$56="n.v.t.",(Milieuprofielen!O28),(Milieuprofielen!O28/Invoerblad!$E$56)),0) -> 0 | P28: =IFERROR(IF(Invoerblad!$E$56="n.v.t.",(Milieuprofielen!P28),(Milieuprofielen!P28/Invoerblad!$E$56)),0) -> 0 | Q28: =IFERROR(IF(Invoerblad!$E$56="n.v.t.",(Milieuprofielen!Q28),(Milieuprofielen!Q28/Invoerblad!$E$56)),0) -> 0 | R28: =IFERROR(IF(Invoerblad!$E$56="n.v.t.",(Milieuprofielen!R28),(Milieuprofielen!R28/Invoerblad!$E$56)),0) -> 0 | V28: 009. human toxicity (HT) | W28: kg 1,4-DB eq | X28: =IFERROR(IF(Invoerblad!$F$56="n.v.t.",(Milieuprofielen!X28),(Milieuprofielen!X28/Invoerblad!$F$56)),0) -> 0 | Y28: =IFERROR(IF(Invoerblad!$F$56="n.v.t.",(Milieuprofielen!Y28),(Milieuprofielen!Y28/Invoerblad!$F$56)),0) -> 0 | Z28: =IFERROR(IF(Invoerblad!$F$56="n.v.t.",(Milieuprofielen!Z28),(Milieuprofielen!Z28/Invoerblad!$F$56)),0) -> 0 | AA28: =IFERROR(IF(Invoerblad!$F$56="n.v.t.",(Milieuprofielen!AA28),(Milieuprofielen!AA28/Invoerblad!$F$56)),0) -> 0 | AE28: 009. human toxicity (HT) | AF28: kg 1,4-DB eq | AG28: =IFERROR(IF(Invoerblad!$G$56="n.v.t.",(Milieuprofielen!AG28),(Milieuprofielen!AG28/Invoerblad!$G$56)),0) -> 0 | AH28: =IFERROR(IF(Invoerblad!$G$56="n.v.t.",(Milieuprofielen!AH28),(Milieuprofielen!AH28/Invoerblad!$G$56)),0) -> 0 | AI28: =IFERROR(IF(Invoerblad!$G$56="n.v.t.",(Milieuprofielen!AI28),(Milieuprofielen!AI28/Invoerblad!$G$56)),0) -> 0 | AJ28: =IFERROR(IF(Invoerblad!$G$56="n.v.t.",(Milieuprofielen!AJ28),(Milieuprofielen!AJ28/Invoerblad!$G$56)),0) -> 0 | AN28: 009. human toxicity (HT) | AO28: kg 1,4-DB eq | AP28: =IFERROR(IF(Invoerblad!$H$56="n.v.t.",(Milieuprofielen!AP28),(Milieuprofielen!AP28/Invoerblad!$H$56)),0) -> 0 | AQ28: =IFERROR(IF(Invoerblad!$H$56="n.v.t.",(Milieuprofielen!AQ28),(Milieuprofielen!AQ28/Invoerblad!$H$56)),0) -> 0 | AR28: =IFERROR(IF(Invoerblad!$H$56="n.v.t.",(Milieuprofielen!AR28),(Milieuprofielen!AR28/Invoerblad!$H$56)),0) -> 0 | AS28: =IFERROR(IF(Invoerblad!$H$56="n.v.t.",(Milieuprofielen!AS28),(Milieuprofielen!AS28/Invoerblad!$H$56)),0) -> 0
D29: 010. Ecotoxicity, fresh water (FAETP) | E29: kg 1,4-DB eq | F29: =IFERROR(IF(Invoerblad!$D$56="n.v.t.",(Milieuprofielen!F29),(Milieuprofielen!F29/Invoerblad!$D$56)),0) -> 0.01197848748 | G29: =IFERROR(IF(Invoerblad!$D$56="n.v.t.",(Milieuprofielen!G29),(Milieuprofielen!G29/Invoerblad!$D$56)),0) -> 0.0001523763505 | H29: =IFERROR(IF(Invoerblad!$D$56="n.v.t.",(Milieuprofielen!H29),(Milieuprofielen!H29/Invoerblad!$D$56)),0) -> 0.0007403804021 | I29: =IFERROR(IF(Invoerblad!$D$56="n.v.t.",(Milieuprofielen!I29),(Milieuprofielen!I29/Invoerblad!$D$56)),0) -> 0.01287124423 | M29: 010. Ecotoxicity, fresh water (FAETP) | N29: kg 1,4-DB eq | O29: =IFERROR(IF(Invoerblad!$E$56="n.v.t.",(Milieuprofielen!O29),(Milieuprofielen!O29/Invoerblad!$E$56)),0) -> 0 | P29: =IFERROR(IF(Invoerblad!$E$56="n.v.t.",(Milieuprofielen!P29),(Milieuprofielen!P29/Invoerblad!$E$56)),0) -> 0 | Q29: =IFERROR(IF(Invoerblad!$E$56="n.v.t.",(Milieuprofielen!Q29),(Milieuprofielen!Q29/Invoerblad!$E$56)),0) -> 0 | R29: =IFERROR(IF(Invoerblad!$E$56="n.v.t.",(Milieuprofielen!R29),(Milieuprofielen!R29/Invoerblad!$E$56)),0) -> 0 | V29: 010. Ecotoxicity, fresh water (FAETP) | W29: kg 1,4-DB eq | X29: =IFERROR(IF(Invoerblad!$F$56="n.v.t.",(Milieuprofielen!X29),(Milieuprofielen!X29/Invoerblad!$F$56)),0) -> 0 | Y29: =IFERROR(IF(Invoerblad!$F$56="n.v.t.",(Milieuprofielen!Y29),(Milieuprofielen!Y29/Invoerblad!$F$56)),0) -> 0 | Z29: =IFERROR(IF(Invoerblad!$F$56="n.v.t.",(Milieuprofielen!Z29),(Milieuprofielen!Z29/Invoerblad!$F$56)),0) -> 0 | AA29: =IFERROR(IF(Invoerblad!$F$56="n.v.t.",(Milieuprofielen!AA29),(Milieuprofielen!AA29/Invoerblad!$F$56)),0) -> 0 | AE29: 010. Ecotoxicity, fresh water (FAETP) | AF29: kg 1,4-DB eq | AG29: =IFERROR(IF(Invoerblad!$G$56="n.v.t.",(Milieuprofielen!AG29),(Milieuprofielen!AG29/Invoerblad!$G$56)),0) -> 0 | AH29: =IFERROR(IF(Invoerblad!$G$56="n.v.t.",(Milieuprofielen!AH29),(Milieuprofielen!AH29/Invoerblad!$G$56)),0) -> 0 | AI29: =IFERROR(IF(Invoerblad!$G$56="n.v.t.",(Milieuprofielen!AI29),(Milieuprofielen!AI29/Invoerblad!$G$56)),0) -> 0 | AJ29: =IFERROR(IF(Invoerblad!$G$56="n.v.t.",(Milieuprofielen!AJ29),(Milieuprofielen!AJ29/Invoerblad!$G$56)),0) -> 0 | AN29: 010. Ecotoxicity, fresh water (FAETP) | AO29: kg 1,4-DB eq | AP29: =IFERROR(IF(Invoerblad!$H$56="n.v.t.",(Milieuprofielen!AP29),(Milieuprofielen!AP29/Invoerblad!$H$56)),0) -> 0 | AQ29: =IFERROR(IF(Invoerblad!$H$56="n.v.t.",(Milieuprofielen!AQ29),(Milieuprofielen!AQ29/Invoerblad!$H$56)),0) -> 0 | AR29: =IFERROR(IF(Invoerblad!$H$56="n.v.t.",(Milieuprofielen!AR29),(Milieuprofielen!AR29/Invoerblad!$H$56)),0) -> 0 | AS29: =IFERROR(IF(Invoerblad!$H$56="n.v.t.",(Milieuprofielen!AS29),(Milieuprofielen!AS29/Invoerblad!$H$56)),0) -> 0
D30: 012. Ecotoxcity, marine water (MAETP) | E30: kg 1,4-DB eq | F30: =IFERROR(IF(Invoerblad!$D$56="n.v.t.",(Milieuprofielen!F30),(Milieuprofielen!F30/Invoerblad!$D$56)),0) -> 54.08177449 | G30: =IFERROR(IF(Invoerblad!$D$56="n.v.t.",(Milieuprofielen!G30),(Milieuprofielen!G30/Invoerblad!$D$56)),0) -> 0.4097354851 | H30: =IFERROR(IF(Invoerblad!$D$56="n.v.t.",(Milieuprofielen!H30),(Milieuprofielen!H30/Invoerblad!$D$56)),0) -> 1.946043672 | I30: =IFERROR(IF(Invoerblad!$D$56="n.v.t.",(Milieuprofielen!I30),(Milieuprofielen!I30/Invoerblad!$D$56)),0) -> 56.43755364 | M30: 012. Ecotoxcity, marine water (MAETP) | N30: kg 1,4-DB eq | O30: =IFERROR(IF(Invoerblad!$E$56="n.v.t.",(Milieuprofielen!O30),(Milieuprofielen!O30/Invoerblad!$E$56)),0) -> 0 | P30: =IFERROR(IF(Invoerblad!$E$56="n.v.t.",(Milieuprofielen!P30),(Milieuprofielen!P30/Invoerblad!$E$56)),0) -> 0 | Q30: =IFERROR(IF(Invoerblad!$E$56="n.v.t.",(Milieuprofielen!Q30),(Milieuprofielen!Q30/Invoerblad!$E$56)),0) -> 0 | R30: =IFERROR(IF(Invoerblad!$E$56="n.v.t.",(Milieuprofielen!R30),(Milieuprofielen!R30/Invoerblad!$E$56)),0) -> 0 | V30: 012. Ecotoxcity, marine water (MAETP) | W30: kg 1,4-DB eq | X30: =IFERROR(IF(Invoerblad!$F$56="n.v.t.",(Milieuprofielen!X30),(Milieuprofielen!X30/Invoerblad!$F$56)),0) -> 0 | Y30: =IFERROR(IF(Invoerblad!$F$56="n.v.t.",(Milieuprofielen!Y30),(Milieuprofielen!Y30/Invoerblad!$F$56)),0) -> 0 | Z30: =IFERROR(IF(Invoerblad!$F$56="n.v.t.",(Milieuprofielen!Z30),(Milieuprofielen!Z30/Invoerblad!$F$56)),0) -> 0 | AA30: =IFERROR(IF(Invoerblad!$F$56="n.v.t.",(Milieuprofielen!AA30),(Milieuprofielen!AA30/Invoerblad!$F$56)),0) -> 0 | AE30: 012. Ecotoxcity, marine water (MAETP) | AF30: kg 1,4-DB eq | AG30: =IFERROR(IF(Invoerblad!$G$56="n.v.t.",(Milieuprofielen!AG30),(Milieuprofielen!AG30/Invoerblad!$G$56)),0) -> 0 | AH30: =IFERROR(IF(Invoerblad!$G$56="n.v.t.",(Milieuprofielen!AH30),(Milieuprofielen!AH30/Invoerblad!$G$56)),0) -> 0 | AI30: =IFERROR(IF(Invoerblad!$G$56="n.v.t.",(Milieuprofielen!AI30),(Milieuprofielen!AI30/Invoerblad!$G$56)),0) -> 0 | AJ30: =IFERROR(IF(Invoerblad!$G$56="n.v.t.",(Milieuprofielen!AJ30),(Milieuprofielen!AJ30/Invoerblad!$G$56)),0) -> 0 | AN30: 012. Ecotoxcity, marine water (MAETP) | AO30: kg 1,4-DB eq | AP30: =IFERROR(IF(Invoerblad!$H$56="n.v.t.",(Milieuprofielen!AP30),(Milieuprofielen!AP30/Invoerblad!$H$56)),0) -> 0 | AQ30: =IFERROR(IF(Invoerblad!$H$56="n.v.t.",(Milieuprofielen!AQ30),(Milieuprofielen!AQ30/Invoerblad!$H$56)),0) -> 0 | AR30: =IFERROR(IF(Invoerblad!$H$56="n.v.t.",(Milieuprofielen!AR30),(Milieuprofielen!AR30/Invoerblad!$H$56)),0) -> 0 | AS30: =IFERROR(IF(Invoerblad!$H$56="n.v.t.",(Milieuprofielen!AS30),(Milieuprofielen!AS30/Invoerblad!$H$56)),0) -> 0
D31: 014. Ecotoxicity, terrestric (TETP) | E31: kg 1,4-DB eq | F31: =IFERROR(IF(Invoerblad!$D$56="n.v.t.",(Milieuprofielen!F31),(Milieuprofielen!F31/Invoerblad!$D$56)),0) -> 0.0007740093427 | G31: =IFERROR(IF(Invoerblad!$D$56="n.v.t.",(Milieuprofielen!G31),(Milieuprofielen!G31/Invoerblad!$D$56)),0) -> 3.886939917e-05 | H31: =IFERROR(IF(Invoerblad!$D$56="n.v.t.",(Milieuprofielen!H31),(Milieuprofielen!H31/Invoerblad!$D$56)),0) -> 0.001249848894 | I31: =IFERROR(IF(Invoerblad!$D$56="n.v.t.",(Milieuprofielen!I31),(Milieuprofielen!I31/Invoerblad!$D$56)),0) -> 0.002062727636 | M31: 014. Ecotoxicity, terrestric (TETP) | N31: kg 1,4-DB eq | O31: =IFERROR(IF(Invoerblad!$E$56="n.v.t.",(Milieuprofielen!O31),(Milieuprofielen!O31/Invoerblad!$E$56)),0) -> 0 | P31: =IFERROR(IF(Invoerblad!$E$56="n.v.t.",(Milieuprofielen!P31),(Milieuprofielen!P31/Invoerblad!$E$56)),0) -> 0 | Q31: =IFERROR(IF(Invoerblad!$E$56="n.v.t.",(Milieuprofielen!Q31),(Milieuprofielen!Q31/Invoerblad!$E$56)),0) -> 0 | R31: =IFERROR(IF(Invoerblad!$E$56="n.v.t.",(Milieuprofielen!R31),(Milieuprofielen!R31/Invoerblad!$E$56)),0) -> 0 | V31: 014. Ecotoxicity, terrestric (TETP) | W31: kg 1,4-DB eq | X31: =IFERROR(IF(Invoerblad!$F$56="n.v.t.",(Milieuprofielen!X31),(Milieuprofielen!X31/Invoerblad!$F$56)),0) -> 0 | Y31: =IFERROR(IF(Invoerblad!$F$56="n.v.t.",(Milieuprofielen!Y31),(Milieuprofielen!Y31/Invoerblad!$F$56)),0) -> 0 | Z31: =IFERROR(IF(Invoerblad!$F$56="n.v.t.",(Milieuprofielen!Z31),(Milieuprofielen!Z31/Invoerblad!$F$56)),0) -> 0 | AA31: =IFERROR(IF(Invoerblad!$F$56="n.v.t.",(Milieuprofielen!AA31),(Milieuprofielen!AA31/Invoerblad!$F$56)),0) -> 0 | AE31: 014. Ecotoxicity, terrestric (TETP) | AF31: kg 1,4-DB eq | AG31: =IFERROR(IF(Invoerblad!$G$56="n.v.t.",(Milieuprofielen!AG31),(Milieuprofielen!AG31/Invoerblad!$G$56)),0) -> 0 | AH31: =IFERROR(IF(Invoerblad!$G$56="n.v.t.",(Milieuprofielen!AH31),(Milieuprofielen!AH31/Invoerblad!$G$56)),0) -> 0 | AI31: =IFERROR(IF(Invoerblad!$G$56="n.v.t.",(Milieuprofielen!AI31),(Milieuprofielen!AI31/Invoerblad!$G$56)),0) -> 0 | AJ31: =IFERROR(IF(Invoerblad!$G$56="n.v.t.",(Milieuprofielen!AJ31),(Milieuprofielen!AJ31/Invoerblad!$G$56)),0) -> 0 | AN31: 014. Ecotoxicity, terrestric (TETP) | AO31: kg 1,4-DB eq | AP31: =IFERROR(IF(Invoerblad!$H$56="n.v.t.",(Milieuprofielen!AP31),(Milieuprofielen!AP31/Invoerblad!$H$56)),0) -> 0 | AQ31: =IFERROR(IF(Invoerblad!$H$56="n.v.t.",(Milieuprofielen!AQ31),(Milieuprofielen!AQ31/Invoerblad!$H$56)),0) -> 0 | AR31: =IFERROR(IF(Invoerblad!$H$56="n.v.t.",(Milieuprofielen!AR31),(Milieuprofielen!AR31/Invoerblad!$H$56)),0) -> 0 | AS31: =IFERROR(IF(Invoerblad!$H$56="n.v.t.",(Milieuprofielen!AS31),(Milieuprofielen!AS31/Invoerblad!$H$56)),0) -> 0
C32: Characterized EN15804+A2 | D32: 051. Climate change | E32: kg CO2 eq | F32: =IFERROR(IF(Invoerblad!$D$56="n.v.t.",(Milieuprofielen!F32),(Milieuprofielen!F32/Invoerblad!$D$56)),0) -> 0.6170637133 | G32: =IFERROR(IF(Invoerblad!$D$56="n.v.t.",(Milieuprofielen!G32),(Milieuprofielen!G32/Invoerblad!$D$56)),0) -> 0.01692959557 | H32: =IFERROR(IF(Invoerblad!$D$56="n.v.t.",(Milieuprofielen!H32),(Milieuprofielen!H32/Invoerblad!$D$56)),0) -> 2.761250502 | I32: =IFERROR(IF(Invoerblad!$D$56="n.v.t.",(Milieuprofielen!I32),(Milieuprofielen!I32/Invoerblad!$D$56)),0) -> 3.39524381 | L32: Characterized EN15804+A2 | M32: 051. Climate change | N32: kg CO2 eq | O32: =IFERROR(IF(Invoerblad!$E$56="n.v.t.",(Milieuprofielen!O32),(Milieuprofielen!O32/Invoerblad!$E$56)),0) -> 0 | P32: =IFERROR(IF(Invoerblad!$E$56="n.v.t.",(Milieuprofielen!P32),(Milieuprofielen!P32/Invoerblad!$E$56)),0) -> 0 | Q32: =IFERROR(IF(Invoerblad!$E$56="n.v.t.",(Milieuprofielen!Q32),(Milieuprofielen!Q32/Invoerblad!$E$56)),0) -> 0 | R32: =IFERROR(IF(Invoerblad!$E$56="n.v.t.",(Milieuprofielen!R32),(Milieuprofielen!R32/Invoerblad!$E$56)),0) -> 0 | U32: Characterized EN15804+A2 | V32: 051. Climate change | W32: kg CO2 eq | X32: =IFERROR(IF(Invoerblad!$F$56="n.v.t.",(Milieuprofielen!X32),(Milieuprofielen!X32/Invoerblad!$F$56)),0) -> 0 | Y32: =IFERROR(IF(Invoerblad!$F$56="n.v.t.",(Milieuprofielen!Y32),(Milieuprofielen!Y32/Invoerblad!$F$56)),0) -> 0 | Z32: =IFERROR(IF(Invoerblad!$F$56="n.v.t.",(Milieuprofielen!Z32),(Milieuprofielen!Z32/Invoerblad!$F$56)),0) -> 0 | AA32: =IFERROR(IF(Invoerblad!$F$56="n.v.t.",(Milieuprofielen!AA32),(Milieuprofielen!AA32/Invoerblad!$F$56)),0) -> 0 | AD32: Characterized EN15804+A2 | AE32: 051. Climate change | AF32: kg CO2 eq | AG32: =IFERROR(IF(Invoerblad!$G$56="n.v.t.",(Milieuprofielen!AG32),(Milieuprofielen!AG32/Invoerblad!$G$56)),0) -> 0 | AH32: =IFERROR(IF(Invoerblad!$G$56="n.v.t.",(Milieuprofielen!AH32),(Milieuprofielen!AH32/Invoerblad!$G$56)),0) -> 0 | AI32: =IFERROR(IF(Invoerblad!$G$56="n.v.t.",(Milieuprofielen!AI32),(Milieuprofielen!AI32/Invoerblad!$G$56)),0) -> 0 | AJ32: =IFERROR(IF(Invoerblad!$G$56="n.v.t.",(Milieuprofielen!AJ32),(Milieuprofielen!AJ32/Invoerblad!$G$56)),0) -> 0 | AM32: Characterized EN15804+A2 | AN32: 051. Climate change | AO32: kg CO2 eq | AP32: =IFERROR(IF(Invoerblad!$H$56="n.v.t.",(Milieuprofielen!AP32),(Milieuprofielen!AP32/Invoerblad!$H$56)),0) -> 0 | AQ32: =IFERROR(IF(Invoerblad!$H$56="n.v.t.",(Milieuprofielen!AQ32),(Milieuprofielen!AQ32/Invoerblad!$H$56)),0) -> 0 | AR32: =IFERROR(IF(Invoerblad!$H$56="n.v.t.",(Milieuprofielen!AR32),(Milieuprofielen!AR32/Invoerblad!$H$56)),0) -> 0 | AS32: =IFERROR(IF(Invoerblad!$H$56="n.v.t.",(Milieuprofielen!AS32),(Milieuprofielen!AS32/Invoerblad!$H$56)),0) -> 0
D33: 052. Climate change - Fossil | E33: kg CO2 eq | F33: =IFERROR(IF(Invoerblad!$D$56="n.v.t.",(Milieuprofielen!F33),(Milieuprofielen!F33/Invoerblad!$D$56)),0) -> 0.615983987 | G33: =IFERROR(IF(Invoerblad!$D$56="n.v.t.",(Milieuprofielen!G33),(Milieuprofielen!G33/Invoerblad!$D$56)),0) -> 0.01689587542 | H33: =IFERROR(IF(Invoerblad!$D$56="n.v.t.",(Milieuprofielen!H33),(Milieuprofielen!H33/Invoerblad!$D$56)),0) -> 2.760836047 | I33: =IFERROR(IF(Invoerblad!$D$56="n.v.t.",(Milieuprofielen!I33),(Milieuprofielen!I33/Invoerblad!$D$56)),0) -> 3.39371591 | M33: 052. Climate change - Fossil | N33: kg CO2 eq | O33: =IFERROR(IF(Invoerblad!$E$56="n.v.t.",(Milieuprofielen!O33),(Milieuprofielen!O33/Invoerblad!$E$56)),0) -> 0 | P33: =IFERROR(IF(Invoerblad!$E$56="n.v.t.",(Milieuprofielen!P33),(Milieuprofielen!P33/Invoerblad!$E$56)),0) -> 0 | Q33: =IFERROR(IF(Invoerblad!$E$56="n.v.t.",(Milieuprofielen!Q33),(Milieuprofielen!Q33/Invoerblad!$E$56)),0) -> 0 | R33: =IFERROR(IF(Invoerblad!$E$56="n.v.t.",(Milieuprofielen!R33),(Milieuprofielen!R33/Invoerblad!$E$56)),0) -> 0 | V33: 052. Climate change - Fossil | W33: kg CO2 eq | X33: =IFERROR(IF(Invoerblad!$F$56="n.v.t.",(Milieuprofielen!X33),(Milieuprofielen!X33/Invoerblad!$F$56)),0) -> 0 | Y33: =IFERROR(IF(Invoerblad!$F$56="n.v.t.",(Milieuprofielen!Y33),(Milieuprofielen!Y33/Invoerblad!$F$56)),0) -> 0 | Z33: =IFERROR(IF(Invoerblad!$F$56="n.v.t.",(Milieuprofielen!Z33),(Milieuprofielen!Z33/Invoerblad!$F$56)),0) -> 0 | AA33: =IFERROR(IF(Invoerblad!$F$56="n.v.t.",(Milieuprofielen!AA33),(Milieuprofielen!AA33/Invoerblad!$F$56)),0) -> 0 | AE33: 052. Climate change - Fossil | AF33: kg CO2 eq | AG33: =IFERROR(IF(Invoerblad!$G$56="n.v.t.",(Milieuprofielen!AG33),(Milieuprofielen!AG33/Invoerblad!$G$56)),0) -> 0 | AH33: =IFERROR(IF(Invoerblad!$G$56="n.v.t.",(Milieuprofielen!AH33),(Milieuprofielen!AH33/Invoerblad!$G$56)),0) -> 0 | AI33: =IFERROR(IF(Invoerblad!$G$56="n.v.t.",(Milieuprofielen!AI33),(Milieuprofielen!AI33/Invoerblad!$G$56)),0) -> 0 | AJ33: =IFERROR(IF(Invoerblad!$G$56="n.v.t.",(Milieuprofielen!AJ33),(Milieuprofielen!AJ33/Invoerblad!$G$56)),0) -> 0 | AN33: 052. Climate change - Fossil | AO33: kg CO2 eq | AP33: =IFERROR(IF(Invoerblad!$H$56="n.v.t.",(Milieuprofielen!AP33),(Milieuprofielen!AP33/Invoerblad!$H$56)),0) -> 0 | AQ33: =IFERROR(IF(Invoerblad!$H$56="n.v.t.",(Milieuprofielen!AQ33),(Milieuprofielen!AQ33/Invoerblad!$H$56)),0) -> 0 | AR33: =IFERROR(IF(Invoerblad!$H$56="n.v.t.",(Milieuprofielen!AR33),(Milieuprofielen!AR33/Invoerblad!$H$56)),0) -> 0 | AS33: =IFERROR(IF(Invoerblad!$H$56="n.v.t.",(Milieuprofielen!AS33),(Milieuprofielen!AS33/Invoerblad!$H$56)),0) -> 0
D34: 053. Climate change - Biogenic | E34: kg CO2 eq | F34: =IFERROR(IF(Invoerblad!$D$56="n.v.t.",(Milieuprofielen!F34),(Milieuprofielen!F34/Invoerblad!$D$56)),0) -> 0.0009319751605 | G34: =IFERROR(IF(Invoerblad!$D$56="n.v.t.",(Milieuprofielen!G34),(Milieuprofielen!G34/Invoerblad!$D$56)),0) -> 2.35002335e-05 | H34: =IFERROR(IF(Invoerblad!$D$56="n.v.t.",(Milieuprofielen!H34),(Milieuprofielen!H34/Invoerblad!$D$56)),0) -> 0.0002989174677 | I34: =IFERROR(IF(Invoerblad!$D$56="n.v.t.",(Milieuprofielen!I34),(Milieuprofielen!I34/Invoerblad!$D$56)),0) -> 0.001254392862 | M34: 053. Climate change - Biogenic | N34: kg CO2 eq | O34: =IFERROR(IF(Invoerblad!$E$56="n.v.t.",(Milieuprofielen!O34),(Milieuprofielen!O34/Invoerblad!$E$56)),0) -> 0 | P34: =IFERROR(IF(Invoerblad!$E$56="n.v.t.",(Milieuprofielen!P34),(Milieuprofielen!P34/Invoerblad!$E$56)),0) -> 0 | Q34: =IFERROR(IF(Invoerblad!$E$56="n.v.t.",(Milieuprofielen!Q34),(Milieuprofielen!Q34/Invoerblad!$E$56)),0) -> 0 | R34: =IFERROR(IF(Invoerblad!$E$56="n.v.t.",(Milieuprofielen!R34),(Milieuprofielen!R34/Invoerblad!$E$56)),0) -> 0 | V34: 053. Climate change - Biogenic | W34: kg CO2 eq | X34: =IFERROR(IF(Invoerblad!$F$56="n.v.t.",(Milieuprofielen!X34),(Milieuprofielen!X34/Invoerblad!$F$56)),0) -> 0 | Y34: =IFERROR(IF(Invoerblad!$F$56="n.v.t.",(Milieuprofielen!Y34),(Milieuprofielen!Y34/Invoerblad!$F$56)),0) -> 0 | Z34: =IFERROR(IF(Invoerblad!$F$56="n.v.t.",(Milieuprofielen!Z34),(Milieuprofielen!Z34/Invoerblad!$F$56)),0) -> 0 | AA34: =IFERROR(IF(Invoerblad!$F$56="n.v.t.",(Milieuprofielen!AA34),(Milieuprofielen!AA34/Invoerblad!$F$56)),0) -> 0 | AE34: 053. Climate change - Biogenic | AF34: kg CO2 eq | AG34: =IFERROR(IF(Invoerblad!$G$56="n.v.t.",(Milieuprofielen!AG34),(Milieuprofielen!AG34/Invoerblad!$G$56)),0) -> 0 | AH34: =IFERROR(IF(Invoerblad!$G$56="n.v.t.",(Milieuprofielen!AH34),(Milieuprofielen!AH34/Invoerblad!$G$56)),0) -> 0 | AI34: =IFERROR(IF(Invoerblad!$G$56="n.v.t.",(Milieuprofielen!AI34),(Milieuprofielen!AI34/Invoerblad!$G$56)),0) -> 0 | AJ34: =IFERROR(IF(Invoerblad!$G$56="n.v.t.",(Milieuprofielen!AJ34),(Milieuprofielen!AJ34/Invoerblad!$G$56)),0) -> 0 | AN34: 053. Climate change - Biogenic | AO34: kg CO2 eq | AP34: =IFERROR(IF(Invoerblad!$H$56="n.v.t.",(Milieuprofielen!AP34),(Milieuprofielen!AP34/Invoerblad!$H$56)),0) -> 0 | AQ34: =IFERROR(IF(Invoerblad!$H$56="n.v.t.",(Milieuprofielen!AQ34),(Milieuprofielen!AQ34/Invoerblad!$H$56)),0) -> 0 | AR34: =IFERROR(IF(Invoerblad!$H$56="n.v.t.",(Milieuprofielen!AR34),(Milieuprofielen!AR34/Invoerblad!$H$56)),0) -> 0 | AS34: =IFERROR(IF(Invoerblad!$H$56="n.v.t.",(Milieuprofielen!AS34),(Milieuprofielen!AS34/Invoerblad!$H$56)),0) -> 0
D35: 054. Climate change - Land use and LU ch | E35: kg CO2 eq | F35: =IFERROR(IF(Invoerblad!$D$56="n.v.t.",(Milieuprofielen!F35),(Milieuprofielen!F35/Invoerblad!$D$56)),0) -> 0.0001477511647 | G35: =IFERROR(IF(Invoerblad!$D$56="n.v.t.",(Milieuprofielen!G35),(Milieuprofielen!G35/Invoerblad!$D$56)),0) -> 1.02199022e-05 | H35: =IFERROR(IF(Invoerblad!$D$56="n.v.t.",(Milieuprofielen!H35),(Milieuprofielen!H35/Invoerblad!$D$56)),0) -> 0.0001155367017 | I35: =IFERROR(IF(Invoerblad!$D$56="n.v.t.",(Milieuprofielen!I35),(Milieuprofielen!I35/Invoerblad!$D$56)),0) -> 0.0002735077686 | M35: 054. Climate change - Land use and LU ch | N35: kg CO2 eq | O35: =IFERROR(IF(Invoerblad!$E$56="n.v.t.",(Milieuprofielen!O35),(Milieuprofielen!O35/Invoerblad!$E$56)),0) -> 0 | P35: =IFERROR(IF(Invoerblad!$E$56="n.v.t.",(Milieuprofielen!P35),(Milieuprofielen!P35/Invoerblad!$E$56)),0) -> 0 | Q35: =IFERROR(IF(Invoerblad!$E$56="n.v.t.",(Milieuprofielen!Q35),(Milieuprofielen!Q35/Invoerblad!$E$56)),0) -> 0 | R35: =IFERROR(IF(Invoerblad!$E$56="n.v.t.",(Milieuprofielen!R35),(Milieuprofielen!R35/Invoerblad!$E$56)),0) -> 0 | V35: 054. Climate change - Land use and LU ch | W35: kg CO2 eq | X35: =IFERROR(IF(Invoerblad!$F$56="n.v.t.",(Milieuprofielen!X35),(Milieuprofielen!X35/Invoerblad!$F$56)),0) -> 0 | Y35: =IFERROR(IF(Invoerblad!$F$56="n.v.t.",(Milieuprofielen!Y35),(Milieuprofielen!Y35/Invoerblad!$F$56)),0) -> 0 | Z35: =IFERROR(IF(Invoerblad!$F$56="n.v.t.",(Milieuprofielen!Z35),(Milieuprofielen!Z35/Invoerblad!$F$56)),0) -> 0 | AA35: =IFERROR(IF(Invoerblad!$F$56="n.v.t.",(Milieuprofielen!AA35),(Milieuprofielen!AA35/Invoerblad!$F$56)),0) -> 0 | AE35: 054. Climate change - Land use and LU ch | AF35: kg CO2 eq | AG35: =IFERROR(IF(Invoerblad!$G$56="n.v.t.",(Milieuprofielen!AG35),(Milieuprofielen!AG35/Invoerblad!$G$56)),0) -> 0 | AH35: =IFERROR(IF(Invoerblad!$G$56="n.v.t.",(Milieuprofielen!AH35),(Milieuprofielen!AH35/Invoerblad!$G$56)),0) -> 0 | AI35: =IFERROR(IF(Invoerblad!$G$56="n.v.t.",(Milieuprofielen!AI35),(Milieuprofielen!AI35/Invoerblad!$G$56)),0) -> 0 | AJ35: =IFERROR(IF(Invoerblad!$G$56="n.v.t.",(Milieuprofielen!AJ35),(Milieuprofielen!AJ35/Invoerblad!$G$56)),0) -> 0 | AN35: 054. Climate change - Land use and LU ch | AO35: kg CO2 eq | AP35: =IFERROR(IF(Invoerblad!$H$56="n.v.t.",(Milieuprofielen!AP35),(Milieuprofielen!AP35/Invoerblad!$H$56)),0) -> 0 | AQ35: =IFERROR(IF(Invoerblad!$H$56="n.v.t.",(Milieuprofielen!AQ35),(Milieuprofielen!AQ35/Invoerblad!$H$56)),0) -> 0 | AR35: =IFERROR(IF(Invoerblad!$H$56="n.v.t.",(Milieuprofielen!AR35),(Milieuprofielen!AR35/Invoerblad!$H$56)),0) -> 0 | AS35: =IFERROR(IF(Invoerblad!$H$56="n.v.t.",(Milieuprofielen!AS35),(Milieuprofielen!AS35/Invoerblad!$H$56)),0) -> 0
D36: 055. Ozone depletion | E36: kg CFC11 eq | F36: =IFERROR(IF(Invoerblad!$D$56="n.v.t.",(Milieuprofielen!F36),(Milieuprofielen!F36/Invoerblad!$D$56)),0) -> 3.087949493e-07 | G36: =IFERROR(IF(Invoerblad!$D$56="n.v.t.",(Milieuprofielen!G36),(Milieuprofielen!G36/Invoerblad!$D$56)),0) -> 3.551307696e-10 | H36: =IFERROR(IF(Invoerblad!$D$56="n.v.t.",(Milieuprofielen!H36),(Milieuprofielen!H36/Invoerblad!$D$56)),0) -> 1.136596328e-08 | I36: =IFERROR(IF(Invoerblad!$D$56="n.v.t.",(Milieuprofielen!I36),(Milieuprofielen!I36/Invoerblad!$D$56)),0) -> 3.205160434e-07 | M36: 055. Ozone depletion | N36: kg CFC11 eq | O36: =IFERROR(IF(Invoerblad!$E$56="n.v.t.",(Milieuprofielen!O36),(Milieuprofielen!O36/Invoerblad!$E$56)),0) -> 0 | P36: =IFERROR(IF(Invoerblad!$E$56="n.v.t.",(Milieuprofielen!P36),(Milieuprofielen!P36/Invoerblad!$E$56)),0) -> 0 | Q36: =IFERROR(IF(Invoerblad!$E$56="n.v.t.",(Milieuprofielen!Q36),(Milieuprofielen!Q36/Invoerblad!$E$56)),0) -> 0 | R36: =IFERROR(IF(Invoerblad!$E$56="n.v.t.",(Milieuprofielen!R36),(Milieuprofielen!R36/Invoerblad!$E$56)),0) -> 0 | V36: 055. Ozone depletion | W36: kg CFC11 eq | X36: =IFERROR(IF(Invoerblad!$F$56="n.v.t.",(Milieuprofielen!X36),(Milieuprofielen!X36/Invoerblad!$F$56)),0) -> 0 | Y36: =IFERROR(IF(Invoerblad!$F$56="n.v.t.",(Milieuprofielen!Y36),(Milieuprofielen!Y36/Invoerblad!$F$56)),0) -> 0 | Z36: =IFERROR(IF(Invoerblad!$F$56="n.v.t.",(Milieuprofielen!Z36),(Milieuprofielen!Z36/Invoerblad!$F$56)),0) -> 0 | AA36: =IFERROR(IF(Invoerblad!$F$56="n.v.t.",(Milieuprofielen!AA36),(Milieuprofielen!AA36/Invoerblad!$F$56)),0) -> 0 | AE36: 055. Ozone depletion | AF36: kg CFC11 eq | AG36: =IFERROR(IF(Invoerblad!$G$56="n.v.t.",(Milieuprofielen!AG36),(Milieuprofielen!AG36/Invoerblad!$G$56)),0) -> 0 | AH36: =IFERROR(IF(Invoerblad!$G$56="n.v.t.",(Milieuprofielen!AH36),(Milieuprofielen!AH36/Invoerblad!$G$56)),0) -> 0 | AI36: =IFERROR(IF(Invoerblad!$G$56="n.v.t.",(Milieuprofielen!AI36),(Milieuprofielen!AI36/Invoerblad!$G$56)),0) -> 0 | AJ36: =IFERROR(IF(Invoerblad!$G$56="n.v.t.",(Milieuprofielen!AJ36),(Milieuprofielen!AJ36/Invoerblad!$G$56)),0) -> 0 | AN36: 055. Ozone depletion | AO36: kg CFC11 eq | AP36: =IFERROR(IF(Invoerblad!$H$56="n.v.t.",(Milieuprofielen!AP36),(Milieuprofielen!AP36/Invoerblad!$H$56)),0) -> 0 | AQ36: =IFERROR(IF(Invoerblad!$H$56="n.v.t.",(Milieuprofielen!AQ36),(Milieuprofielen!AQ36/Invoerblad!$H$56)),0) -> 0 | AR36: =IFERROR(IF(Invoerblad!$H$56="n.v.t.",(Milieuprofielen!AR36),(Milieuprofielen!AR36/Invoerblad!$H$56)),0) -> 0 | AS36: =IFERROR(IF(Invoerblad!$H$56="n.v.t.",(Milieuprofielen!AS36),(Milieuprofielen!AS36/Invoerblad!$H$56)),0) -> 0
D37: 056. Acidification | E37: mol H+ eq | F37: =IFERROR(IF(Invoerblad!$D$56="n.v.t.",(Milieuprofielen!F37),(Milieuprofielen!F37/Invoerblad!$D$56)),0) -> 0.003284428588 | G37: =IFERROR(IF(Invoerblad!$D$56="n.v.t.",(Milieuprofielen!G37),(Milieuprofielen!G37/Invoerblad!$D$56)),0) -> 7.465749096e-05 | H37: =IFERROR(IF(Invoerblad!$D$56="n.v.t.",(Milieuprofielen!H37),(Milieuprofielen!H37/Invoerblad!$D$56)),0) -> 0.01299159241 | I37: =IFERROR(IF(Invoerblad!$D$56="n.v.t.",(Milieuprofielen!I37),(Milieuprofielen!I37/Invoerblad!$D$56)),0) -> 0.01635067849 | M37: 056. Acidification | N37: mol H+ eq | O37: =IFERROR(IF(Invoerblad!$E$56="n.v.t.",(Milieuprofielen!O37),(Milieuprofielen!O37/Invoerblad!$E$56)),0) -> 0 | P37: =IFERROR(IF(Invoerblad!$E$56="n.v.t.",(Milieuprofielen!P37),(Milieuprofielen!P37/Invoerblad!$E$56)),0) -> 0 | Q37: =IFERROR(IF(Invoerblad!$E$56="n.v.t.",(Milieuprofielen!Q37),(Milieuprofielen!Q37/Invoerblad!$E$56)),0) -> 0 | R37: =IFERROR(IF(Invoerblad!$E$56="n.v.t.",(Milieuprofielen!R37),(Milieuprofielen!R37/Invoerblad!$E$56)),0) -> 0 | V37: 056. Acidification | W37: mol H+ eq | X37: =IFERROR(IF(Invoerblad!$F$56="n.v.t.",(Milieuprofielen!X37),(Milieuprofielen!X37/Invoerblad!$F$56)),0) -> 0 | Y37: =IFERROR(IF(Invoerblad!$F$56="n.v.t.",(Milieuprofielen!Y37),(Milieuprofielen!Y37/Invoerblad!$F$56)),0) -> 0 | Z37: =IFERROR(IF(Invoerblad!$F$56="n.v.t.",(Milieuprofielen!Z37),(Milieuprofielen!Z37/Invoerblad!$F$56)),0) -> 0 | AA37: =IFERROR(IF(Invoerblad!$F$56="n.v.t.",(Milieuprofielen!AA37),(Milieuprofielen!AA37/Invoerblad!$F$56)),0) -> 0 | AE37: 056. Acidification | AF37: mol H+ eq | AG37: =IFERROR(IF(Invoerblad!$G$56="n.v.t.",(Milieuprofielen!AG37),(Milieuprofielen!AG37/Invoerblad!$G$56)),0) -> 0 | AH37: =IFERROR(IF(Invoerblad!$G$56="n.v.t.",(Milieuprofielen!AH37),(Milieuprofielen!AH37/Invoerblad!$G$56)),0) -> 0 | AI37: =IFERROR(IF(Invoerblad!$G$56="n.v.t.",(Milieuprofielen!AI37),(Milieuprofielen!AI37/Invoerblad!$G$56)),0) -> 0 | AJ37: =IFERROR(IF(Invoerblad!$G$56="n.v.t.",(Milieuprofielen!AJ37),(Milieuprofielen!AJ37/Invoerblad!$G$56)),0) -> 0 | AN37: 056. Acidification | AO37: mol H+ eq | AP37: =IFERROR(IF(Invoerblad!$H$56="n.v.t.",(Milieuprofielen!AP37),(Milieuprofielen!AP37/Invoerblad!$H$56)),0) -> 0 | AQ37: =IFERROR(IF(Invoerblad!$H$56="n.v.t.",(Milieuprofielen!AQ37),(Milieuprofielen!AQ37/Invoerblad!$H$56)),0) -> 0 | AR37: =IFERROR(IF(Invoerblad!$H$56="n.v.t.",(Milieuprofielen!AR37),(Milieuprofielen!AR37/Invoerblad!$H$56)),0) -> 0 | AS37: =IFERROR(IF(Invoerblad!$H$56="n.v.t.",(Milieuprofielen!AS37),(Milieuprofielen!AS37/Invoerblad!$H$56)),0) -> 0
D38: 057. Eutrophication, freshwater | E38: kg P eq | F38: =IFERROR(IF(Invoerblad!$D$56="n.v.t.",(Milieuprofielen!F38),(Milieuprofielen!F38/Invoerblad!$D$56)),0) -> 4.518011321e-06 | G38: =IFERROR(IF(Invoerblad!$D$56="n.v.t.",(Milieuprofielen!G38),(Milieuprofielen!G38/Invoerblad!$D$56)),0) -> 3.33784923e-07 | H38: =IFERROR(IF(Invoerblad!$D$56="n.v.t.",(Milieuprofielen!H38),(Milieuprofielen!H38/Invoerblad!$D$56)),0) -> 3.540224952e-06 | I38: =IFERROR(IF(Invoerblad!$D$56="n.v.t.",(Milieuprofielen!I38),(Milieuprofielen!I38/Invoerblad!$D$56)),0) -> 8.392021196e-06 | M38: 057. Eutrophication, freshwater | N38: kg P eq | O38: =IFERROR(IF(Invoerblad!$E$56="n.v.t.",(Milieuprofielen!O38),(Milieuprofielen!O38/Invoerblad!$E$56)),0) -> 0 | P38: =IFERROR(IF(Invoerblad!$E$56="n.v.t.",(Milieuprofielen!P38),(Milieuprofielen!P38/Invoerblad!$E$56)),0) -> 0 | Q38: =IFERROR(IF(Invoerblad!$E$56="n.v.t.",(Milieuprofielen!Q38),(Milieuprofielen!Q38/Invoerblad!$E$56)),0) -> 0 | R38: =IFERROR(IF(Invoerblad!$E$56="n.v.t.",(Milieuprofielen!R38),(Milieuprofielen!R38/Invoerblad!$E$56)),0) -> 0 | V38: 057. Eutrophication, freshwater | W38: kg P eq | X38: =IFERROR(IF(Invoerblad!$F$56="n.v.t.",(Milieuprofielen!X38),(Milieuprofielen!X38/Invoerblad!$F$56)),0) -> 0 | Y38: =IFERROR(IF(Invoerblad!$F$56="n.v.t.",(Milieuprofielen!Y38),(Milieuprofielen!Y38/Invoerblad!$F$56)),0) -> 0 | Z38: =IFERROR(IF(Invoerblad!$F$56="n.v.t.",(Milieuprofielen!Z38),(Milieuprofielen!Z38/Invoerblad!$F$56)),0) -> 0 | AA38: =IFERROR(IF(Invoerblad!$F$56="n.v.t.",(Milieuprofielen!AA38),(Milieuprofielen!AA38/Invoerblad!$F$56)),0) -> 0 | AE38: 057. Eutrophication, freshwater | AF38: kg P eq | AG38: =IFERROR(IF(Invoerblad!$G$56="n.v.t.",(Milieuprofielen!AG38),(Milieuprofielen!AG38/Invoerblad!$G$56)),0) -> 0 | AH38: =IFERROR(IF(Invoerblad!$G$56="n.v.t.",(Milieuprofielen!AH38),(Milieuprofielen!AH38/Invoerblad!$G$56)),0) -> 0 | AI38: =IFERROR(IF(Invoerblad!$G$56="n.v.t.",(Milieuprofielen!AI38),(Milieuprofielen!AI38/Invoerblad!$G$56)),0) -> 0 | AJ38: =IFERROR(IF(Invoerblad!$G$56="n.v.t.",(Milieuprofielen!AJ38),(Milieuprofielen!AJ38/Invoerblad!$G$56)),0) -> 0 | AN38: 057. Eutrophication, freshwater | AO38: kg P eq | AP38: =IFERROR(IF(Invoerblad!$H$56="n.v.t.",(Milieuprofielen!AP38),(Milieuprofielen!AP38/Invoerblad!$H$56)),0) -> 0 | AQ38: =IFERROR(IF(Invoerblad!$H$56="n.v.t.",(Milieuprofielen!AQ38),(Milieuprofielen!AQ38/Invoerblad!$H$56)),0) -> 0 | AR38: =IFERROR(IF(Invoerblad!$H$56="n.v.t.",(Milieuprofielen!AR38),(Milieuprofielen!AR38/Invoerblad!$H$56)),0) -> 0 | AS38: =IFERROR(IF(Invoerblad!$H$56="n.v.t.",(Milieuprofielen!AS38),(Milieuprofielen!AS38/Invoerblad!$H$56)),0) -> 0
D39: 058. Eutrophication, marine | E39: kg N eq | F39: =IFERROR(IF(Invoerblad!$D$56="n.v.t.",(Milieuprofielen!F39),(Milieuprofielen!F39/Invoerblad!$D$56)),0) -> 0.0005740765305 | G39: =IFERROR(IF(Invoerblad!$D$56="n.v.t.",(Milieuprofielen!G39),(Milieuprofielen!G39/Invoerblad!$D$56)),0) -> 2.271181779e-05 | H39: =IFERROR(IF(Invoerblad!$D$56="n.v.t.",(Milieuprofielen!H39),(Milieuprofielen!H39/Invoerblad!$D$56)),0) -> 0.006345990313 | I39: =IFERROR(IF(Invoerblad!$D$56="n.v.t.",(Milieuprofielen!I39),(Milieuprofielen!I39/Invoerblad!$D$56)),0) -> 0.006942778662 | M39: 058. Eutrophication, marine | N39: kg N eq | O39: =IFERROR(IF(Invoerblad!$E$56="n.v.t.",(Milieuprofielen!O39),(Milieuprofielen!O39/Invoerblad!$E$56)),0) -> 0 | P39: =IFERROR(IF(Invoerblad!$E$56="n.v.t.",(Milieuprofielen!P39),(Milieuprofielen!P39/Invoerblad!$E$56)),0) -> 0 | Q39: =IFERROR(IF(Invoerblad!$E$56="n.v.t.",(Milieuprofielen!Q39),(Milieuprofielen!Q39/Invoerblad!$E$56)),0) -> 0 | R39: =IFERROR(IF(Invoerblad!$E$56="n.v.t.",(Milieuprofielen!R39),(Milieuprofielen!R39/Invoerblad!$E$56)),0) -> 0 | V39: 058. Eutrophication, marine | W39: kg N eq | X39: =IFERROR(IF(Invoerblad!$F$56="n.v.t.",(Milieuprofielen!X39),(Milieuprofielen!X39/Invoerblad!$F$56)),0) -> 0 | Y39: =IFERROR(IF(Invoerblad!$F$56="n.v.t.",(Milieuprofielen!Y39),(Milieuprofielen!Y39/Invoerblad!$F$56)),0) -> 0 | Z39: =IFERROR(IF(Invoerblad!$F$56="n.v.t.",(Milieuprofielen!Z39),(Milieuprofielen!Z39/Invoerblad!$F$56)),0) -> 0 | AA39: =IFERROR(IF(Invoerblad!$F$56="n.v.t.",(Milieuprofielen!AA39),(Milieuprofielen!AA39/Invoerblad!$F$56)),0) -> 0 | AE39: 058. Eutrophication, marine | AF39: kg N eq | AG39: =IFERROR(IF(Invoerblad!$G$56="n.v.t.",(Milieuprofielen!AG39),(Milieuprofielen!AG39/Invoerblad!$G$56)),0) -> 0 | AH39: =IFERROR(IF(Invoerblad!$G$56="n.v.t.",(Milieuprofielen!AH39),(Milieuprofielen!AH39/Invoerblad!$G$56)),0) -> 0 | AI39: =IFERROR(IF(Invoerblad!$G$56="n.v.t.",(Milieuprofielen!AI39),(Milieuprofielen!AI39/Invoerblad!$G$56)),0) -> 0 | AJ39: =IFERROR(IF(Invoerblad!$G$56="n.v.t.",(Milieuprofielen!AJ39),(Milieuprofielen!AJ39/Invoerblad!$G$56)),0) -> 0 | AN39: 058. Eutrophication, marine | AO39: kg N eq | AP39: =IFERROR(IF(Invoerblad!$H$56="n.v.t.",(Milieuprofielen!AP39),(Milieuprofielen!AP39/Invoerblad!$H$56)),0) -> 0 | AQ39: =IFERROR(IF(Invoerblad!$H$56="n.v.t.",(Milieuprofielen!AQ39),(Milieuprofielen!AQ39/Invoerblad!$H$56)),0) -> 0 | AR39: =IFERROR(IF(Invoerblad!$H$56="n.v.t.",(Milieuprofielen!AR39),(Milieuprofielen!AR39/Invoerblad!$H$56)),0) -> 0 | AS39: =IFERROR(IF(Invoerblad!$H$56="n.v.t.",(Milieuprofielen!AS39),(Milieuprofielen!AS39/Invoerblad!$H$56)),0) -> 0
D40: 059. Eutrophication, terrestrial | E40: mol N eq | F40: =IFERROR(IF(Invoerblad!$D$56="n.v.t.",(Milieuprofielen!F40),(Milieuprofielen!F40/Invoerblad!$D$56)),0) -> 0.005257679198 | G40: =IFERROR(IF(Invoerblad!$D$56="n.v.t.",(Milieuprofielen!G40),(Milieuprofielen!G40/Invoerblad!$D$56)),0) -> 0.000267379701 | H40: =IFERROR(IF(Invoerblad!$D$56="n.v.t.",(Milieuprofielen!H40),(Milieuprofielen!H40/Invoerblad!$D$56)),0) -> 0.0699993048 | I40: =IFERROR(IF(Invoerblad!$D$56="n.v.t.",(Milieuprofielen!I40),(Milieuprofielen!I40/Invoerblad!$D$56)),0) -> 0.0755243637 | M40: 059. Eutrophication, terrestrial | N40: mol N eq | O40: =IFERROR(IF(Invoerblad!$E$56="n.v.t.",(Milieuprofielen!O40),(Milieuprofielen!O40/Invoerblad!$E$56)),0) -> 0 | P40: =IFERROR(IF(Invoerblad!$E$56="n.v.t.",(Milieuprofielen!P40),(Milieuprofielen!P40/Invoerblad!$E$56)),0) -> 0 | Q40: =IFERROR(IF(Invoerblad!$E$56="n.v.t.",(Milieuprofielen!Q40),(Milieuprofielen!Q40/Invoerblad!$E$56)),0) -> 0 | R40: =IFERROR(IF(Invoerblad!$E$56="n.v.t.",(Milieuprofielen!R40),(Milieuprofielen!R40/Invoerblad!$E$56)),0) -> 0 | V40: 059. Eutrophication, terrestrial | W40: mol N eq | X40: =IFERROR(IF(Invoerblad!$F$56="n.v.t.",(Milieuprofielen!X40),(Milieuprofielen!X40/Invoerblad!$F$56)),0) -> 0 | Y40: =IFERROR(IF(Invoerblad!$F$56="n.v.t.",(Milieuprofielen!Y40),(Milieuprofielen!Y40/Invoerblad!$F$56)),0) -> 0 | Z40: =IFERROR(IF(Invoerblad!$F$56="n.v.t.",(Milieuprofielen!Z40),(Milieuprofielen!Z40/Invoerblad!$F$56)),0) -> 0 | AA40: =IFERROR(IF(Invoerblad!$F$56="n.v.t.",(Milieuprofielen!AA40),(Milieuprofielen!AA40/Invoerblad!$F$56)),0) -> 0 | AE40: 059. Eutrophication, terrestrial | AF40: mol N eq | AG40: =IFERROR(IF(Invoerblad!$G$56="n.v.t.",(Milieuprofielen!AG40),(Milieuprofielen!AG40/Invoerblad!$G$56)),0) -> 0 | AH40: =IFERROR(IF(Invoerblad!$G$56="n.v.t.",(Milieuprofielen!AH40),(Milieuprofielen!AH40/Invoerblad!$G$56)),0) -> 0 | AI40: =IFERROR(IF(Invoerblad!$G$56="n.v.t.",(Milieuprofielen!AI40),(Milieuprofielen!AI40/Invoerblad!$G$56)),0) -> 0 | AJ40: =IFERROR(IF(Invoerblad!$G$56="n.v.t.",(Milieuprofielen!AJ40),(Milieuprofielen!AJ40/Invoerblad!$G$56)),0) -> 0 | AN40: 059. Eutrophication, terrestrial | AO40: mol N eq | AP40: =IFERROR(IF(Invoerblad!$H$56="n.v.t.",(Milieuprofielen!AP40),(Milieuprofielen!AP40/Invoerblad!$H$56)),0) -> 0 | AQ40: =IFERROR(IF(Invoerblad!$H$56="n.v.t.",(Milieuprofielen!AQ40),(Milieuprofielen!AQ40/Invoerblad!$H$56)),0) -> 0 | AR40: =IFERROR(IF(Invoerblad!$H$56="n.v.t.",(Milieuprofielen!AR40),(Milieuprofielen!AR40/Invoerblad!$H$56)),0) -> 0 | AS40: =IFERROR(IF(Invoerblad!$H$56="n.v.t.",(Milieuprofielen!AS40),(Milieuprofielen!AS40/Invoerblad!$H$56)),0) -> 0
D41: 060. Photochemical ozone formation | E41: kg NMVOC eq | F41: =IFERROR(IF(Invoerblad!$D$56="n.v.t.",(Milieuprofielen!F41),(Milieuprofielen!F41/Invoerblad!$D$56)),0) -> 0.004141490711 | G41: =IFERROR(IF(Invoerblad!$D$56="n.v.t.",(Milieuprofielen!G41),(Milieuprofielen!G41/Invoerblad!$D$56)),0) -> 9.217286828e-05 | H41: =IFERROR(IF(Invoerblad!$D$56="n.v.t.",(Milieuprofielen!H41),(Milieuprofielen!H41/Invoerblad!$D$56)),0) -> 0.01745091258 | I41: =IFERROR(IF(Invoerblad!$D$56="n.v.t.",(Milieuprofielen!I41),(Milieuprofielen!I41/Invoerblad!$D$56)),0) -> 0.02168457616 | M41: 060. Photochemical ozone formation | N41: kg NMVOC eq | O41: =IFERROR(IF(Invoerblad!$E$56="n.v.t.",(Milieuprofielen!O41),(Milieuprofielen!O41/Invoerblad!$E$56)),0) -> 0 | P41: =IFERROR(IF(Invoerblad!$E$56="n.v.t.",(Milieuprofielen!P41),(Milieuprofielen!P41/Invoerblad!$E$56)),0) -> 0 | Q41: =IFERROR(IF(Invoerblad!$E$56="n.v.t.",(Milieuprofielen!Q41),(Milieuprofielen!Q41/Invoerblad!$E$56)),0) -> 0 | R41: =IFERROR(IF(Invoerblad!$E$56="n.v.t.",(Milieuprofielen!R41),(Milieuprofielen!R41/Invoerblad!$E$56)),0) -> 0 | V41: 060. Photochemical ozone formation | W41: kg NMVOC eq | X41: =IFERROR(IF(Invoerblad!$F$56="n.v.t.",(Milieuprofielen!X41),(Milieuprofielen!X41/Invoerblad!$F$56)),0) -> 0 | Y41: =IFERROR(IF(Invoerblad!$F$56="n.v.t.",(Milieuprofielen!Y41),(Milieuprofielen!Y41/Invoerblad!$F$56)),0) -> 0 | Z41: =IFERROR(IF(Invoerblad!$F$56="n.v.t.",(Milieuprofielen!Z41),(Milieuprofielen!Z41/Invoerblad!$F$56)),0) -> 0 | AA41: =IFERROR(IF(Invoerblad!$F$56="n.v.t.",(Milieuprofielen!AA41),(Milieuprofielen!AA41/Invoerblad!$F$56)),0) -> 0 | AE41: 060. Photochemical ozone formation | AF41: kg NMVOC eq | AG41: =IFERROR(IF(Invoerblad!$G$56="n.v.t.",(Milieuprofielen!AG41),(Milieuprofielen!AG41/Invoerblad!$G$56)),0) -> 0 | AH41: =IFERROR(IF(Invoerblad!$G$56="n.v.t.",(Milieuprofielen!AH41),(Milieuprofielen!AH41/Invoerblad!$G$56)),0) -> 0 | AI41: =IFERROR(IF(Invoerblad!$G$56="n.v.t.",(Milieuprofielen!AI41),(Milieuprofielen!AI41/Invoerblad!$G$56)),0) -> 0 | AJ41: =IFERROR(IF(Invoerblad!$G$56="n.v.t.",(Milieuprofielen!AJ41),(Milieuprofielen!AJ41/Invoerblad!$G$56)),0) -> 0 | AN41: 060. Photochemical ozone formation | AO41: kg NMVOC eq | AP41: =IFERROR(IF(Invoerblad!$H$56="n.v.t.",(Milieuprofielen!AP41),(Milieuprofielen!AP41/Invoerblad!$H$56)),0) -> 0 | AQ41: =IFERROR(IF(Invoerblad!$H$56="n.v.t.",(Milieuprofielen!AQ41),(Milieuprofielen!AQ41/Invoerblad!$H$56)),0) -> 0 | AR41: =IFERROR(IF(Invoerblad!$H$56="n.v.t.",(Milieuprofielen!AR41),(Milieuprofielen!AR41/Invoerblad!$H$56)),0) -> 0 | AS41: =IFERROR(IF(Invoerblad!$H$56="n.v.t.",(Milieuprofielen!AS41),(Milieuprofielen!AS41/Invoerblad!$H$56)),0) -> 0
D42: 061. Resource use, minerals and metals | E42: kg Sb eq | F42: =IFERROR(IF(Invoerblad!$D$56="n.v.t.",(Milieuprofielen!F42),(Milieuprofielen!F42/Invoerblad!$D$56)),0) -> 6.409571576e-07 | G42: =IFERROR(IF(Invoerblad!$D$56="n.v.t.",(Milieuprofielen!G42),(Milieuprofielen!G42/Invoerblad!$D$56)),0) -> 6.551763126e-08 | H42: =IFERROR(IF(Invoerblad!$D$56="n.v.t.",(Milieuprofielen!H42),(Milieuprofielen!H42/Invoerblad!$D$56)),0) -> 5.389040632e-07 | I42: =IFERROR(IF(Invoerblad!$D$56="n.v.t.",(Milieuprofielen!I42),(Milieuprofielen!I42/Invoerblad!$D$56)),0) -> 1.245378852e-06 | M42: 061. Resource use, minerals and metals | N42: kg Sb eq | O42: =IFERROR(IF(Invoerblad!$E$56="n.v.t.",(Milieuprofielen!O42),(Milieuprofielen!O42/Invoerblad!$E$56)),0) -> 0 | P42: =IFERROR(IF(Invoerblad!$E$56="n.v.t.",(Milieuprofielen!P42),(Milieuprofielen!P42/Invoerblad!$E$56)),0) -> 0 | Q42: =IFERROR(IF(Invoerblad!$E$56="n.v.t.",(Milieuprofielen!Q42),(Milieuprofielen!Q42/Invoerblad!$E$56)),0) -> 0 | R42: =IFERROR(IF(Invoerblad!$E$56="n.v.t.",(Milieuprofielen!R42),(Milieuprofielen!R42/Invoerblad!$E$56)),0) -> 0 | V42: 061. Resource use, minerals and metals | W42: kg Sb eq | X42: =IFERROR(IF(Invoerblad!$F$56="n.v.t.",(Milieuprofielen!X42),(Milieuprofielen!X42/Invoerblad!$F$56)),0) -> 0 | Y42: =IFERROR(IF(Invoerblad!$F$56="n.v.t.",(Milieuprofielen!Y42),(Milieuprofielen!Y42/Invoerblad!$F$56)),0) -> 0 | Z42: =IFERROR(IF(Invoerblad!$F$56="n.v.t.",(Milieuprofielen!Z42),(Milieuprofielen!Z42/Invoerblad!$F$56)),0) -> 0 | AA42: =IFERROR(IF(Invoerblad!$F$56="n.v.t.",(Milieuprofielen!AA42),(Milieuprofielen!AA42/Invoerblad!$F$56)),0) -> 0 | AE42: 061. Resource use, minerals and metals | AF42: kg Sb eq | AG42: =IFERROR(IF(Invoerblad!$G$56="n.v.t.",(Milieuprofielen!AG42),(Milieuprofielen!AG42/Invoerblad!$G$56)),0) -> 0 | AH42: =IFERROR(IF(Invoerblad!$G$56="n.v.t.",(Milieuprofielen!AH42),(Milieuprofielen!AH42/Invoerblad!$G$56)),0) -> 0 | AI42: =IFERROR(IF(Invoerblad!$G$56="n.v.t.",(Milieuprofielen!AI42),(Milieuprofielen!AI42/Invoerblad!$G$56)),0) -> 0 | AJ42: =IFERROR(IF(Invoerblad!$G$56="n.v.t.",(Milieuprofielen!AJ42),(Milieuprofielen!AJ42/Invoerblad!$G$56)),0) -> 0 | AN42: 061. Resource use, minerals and metals | AO42: kg Sb eq | AP42: =IFERROR(IF(Invoerblad!$H$56="n.v.t.",(Milieuprofielen!AP42),(Milieuprofielen!AP42/Invoerblad!$H$56)),0) -> 0 | AQ42: =IFERROR(IF(Invoerblad!$H$56="n.v.t.",(Milieuprofielen!AQ42),(Milieuprofielen!AQ42/Invoerblad!$H$56)),0) -> 0 | AR42: =IFERROR(IF(Invoerblad!$H$56="n.v.t.",(Milieuprofielen!AR42),(Milieuprofielen!AR42/Invoerblad!$H$56)),0) -> 0 | AS42: =IFERROR(IF(Invoerblad!$H$56="n.v.t.",(Milieuprofielen!AS42),(Milieuprofielen!AS42/Invoerblad!$H$56)),0) -> 0
D43: 062. Resource use, fossils | E43: MJ | F43: =IFERROR(IF(Invoerblad!$D$56="n.v.t.",(Milieuprofielen!F43),(Milieuprofielen!F43/Invoerblad!$D$56)),0) -> 45.42692889 | G43: =IFERROR(IF(Invoerblad!$D$56="n.v.t.",(Milieuprofielen!G43),(Milieuprofielen!G43/Invoerblad!$D$56)),0) -> 0.25625314 | H43: =IFERROR(IF(Invoerblad!$D$56="n.v.t.",(Milieuprofielen!H43),(Milieuprofielen!H43/Invoerblad!$D$56)),0) -> 0.6663782453 | I43: =IFERROR(IF(Invoerblad!$D$56="n.v.t.",(Milieuprofielen!I43),(Milieuprofielen!I43/Invoerblad!$D$56)),0) -> 46.34956027 | M43: 062. Resource use, fossils | N43: MJ | O43: =IFERROR(IF(Invoerblad!$E$56="n.v.t.",(Milieuprofielen!O43),(Milieuprofielen!O43/Invoerblad!$E$56)),0) -> 0 | P43: =IFERROR(IF(Invoerblad!$E$56="n.v.t.",(Milieuprofielen!P43),(Milieuprofielen!P43/Invoerblad!$E$56)),0) -> 0 | Q43: =IFERROR(IF(Invoerblad!$E$56="n.v.t.",(Milieuprofielen!Q43),(Milieuprofielen!Q43/Invoerblad!$E$56)),0) -> 0 | R43: =IFERROR(IF(Invoerblad!$E$56="n.v.t.",(Milieuprofielen!R43),(Milieuprofielen!R43/Invoerblad!$E$56)),0) -> 0 | V43: 062. Resource use, fossils | W43: MJ | X43: =IFERROR(IF(Invoerblad!$F$56="n.v.t.",(Milieuprofielen!X43),(Milieuprofielen!X43/Invoerblad!$F$56)),0) -> 0 | Y43: =IFERROR(IF(Invoerblad!$F$56="n.v.t.",(Milieuprofielen!Y43),(Milieuprofielen!Y43/Invoerblad!$F$56)),0) -> 0 | Z43: =IFERROR(IF(Invoerblad!$F$56="n.v.t.",(Milieuprofielen!Z43),(Milieuprofielen!Z43/Invoerblad!$F$56)),0) -> 0 | AA43: =IFERROR(IF(Invoerblad!$F$56="n.v.t.",(Milieuprofielen!AA43),(Milieuprofielen!AA43/Invoerblad!$F$56)),0) -> 0 | AE43: 062. Resource use, fossils | AF43: MJ | AG43: =IFERROR(IF(Invoerblad!$G$56="n.v.t.",(Milieuprofielen!AG43),(Milieuprofielen!AG43/Invoerblad!$G$56)),0) -> 0 | AH43: =IFERROR(IF(Invoerblad!$G$56="n.v.t.",(Milieuprofielen!AH43),(Milieuprofielen!AH43/Invoerblad!$G$56)),0) -> 0 | AI43: =IFERROR(IF(Invoerblad!$G$56="n.v.t.",(Milieuprofielen!AI43),(Milieuprofielen!AI43/Invoerblad!$G$56)),0) -> 0 | AJ43: =IFERROR(IF(Invoerblad!$G$56="n.v.t.",(Milieuprofielen!AJ43),(Milieuprofielen!AJ43/Invoerblad!$G$56)),0) -> 0 | AN43: 062. Resource use, fossils | AO43: MJ | AP43: =IFERROR(IF(Invoerblad!$H$56="n.v.t.",(Milieuprofielen!AP43),(Milieuprofielen!AP43/Invoerblad!$H$56)),0) -> 0 | AQ43: =IFERROR(IF(Invoerblad!$H$56="n.v.t.",(Milieuprofielen!AQ43),(Milieuprofielen!AQ43/Invoerblad!$H$56)),0) -> 0 | AR43: =IFERROR(IF(Invoerblad!$H$56="n.v.t.",(Milieuprofielen!AR43),(Milieuprofielen!AR43/Invoerblad!$H$56)),0) -> 0 | AS43: =IFERROR(IF(Invoerblad!$H$56="n.v.t.",(Milieuprofielen!AS43),(Milieuprofielen!AS43/Invoerblad!$H$56)),0) -> 0
D44: 063. Water use | E44: m3 depriv. | F44: =IFERROR(IF(Invoerblad!$D$56="n.v.t.",(Milieuprofielen!F44),(Milieuprofielen!F44/Invoerblad!$D$56)),0) -> 0.1053322876 | G44: =IFERROR(IF(Invoerblad!$D$56="n.v.t.",(Milieuprofielen!G44),(Milieuprofielen!G44/Invoerblad!$D$56)),0) -> -0.0009199868189 | H44: =IFERROR(IF(Invoerblad!$D$56="n.v.t.",(Milieuprofielen!H44),(Milieuprofielen!H44/Invoerblad!$D$56)),0) -> 0.01863238352 | I44: =IFERROR(IF(Invoerblad!$D$56="n.v.t.",(Milieuprofielen!I44),(Milieuprofielen!I44/Invoerblad!$D$56)),0) -> 0.1230446843 | M44: 063. Water use | N44: m3 depriv. | O44: =IFERROR(IF(Invoerblad!$E$56="n.v.t.",(Milieuprofielen!O44),(Milieuprofielen!O44/Invoerblad!$E$56)),0) -> 0 | P44: =IFERROR(IF(Invoerblad!$E$56="n.v.t.",(Milieuprofielen!P44),(Milieuprofielen!P44/Invoerblad!$E$56)),0) -> 0 | Q44: =IFERROR(IF(Invoerblad!$E$56="n.v.t.",(Milieuprofielen!Q44),(Milieuprofielen!Q44/Invoerblad!$E$56)),0) -> 0 | R44: =IFERROR(IF(Invoerblad!$E$56="n.v.t.",(Milieuprofielen!R44),(Milieuprofielen!R44/Invoerblad!$E$56)),0) -> 0 | V44: 063. Water use | W44: m3 depriv. | X44: =IFERROR(IF(Invoerblad!$F$56="n.v.t.",(Milieuprofielen!X44),(Milieuprofielen!X44/Invoerblad!$F$56)),0) -> 0 | Y44: =IFERROR(IF(Invoerblad!$F$56="n.v.t.",(Milieuprofielen!Y44),(Milieuprofielen!Y44/Invoerblad!$F$56)),0) -> 0 | Z44: =IFERROR(IF(Invoerblad!$F$56="n.v.t.",(Milieuprofielen!Z44),(Milieuprofielen!Z44/Invoerblad!$F$56)),0) -> 0 | AA44: =IFERROR(IF(Invoerblad!$F$56="n.v.t.",(Milieuprofielen!AA44),(Milieuprofielen!AA44/Invoerblad!$F$56)),0) -> 0 | AE44: 063. Water use | AF44: m3 depriv. | AG44: =IFERROR(IF(Invoerblad!$G$56="n.v.t.",(Milieuprofielen!AG44),(Milieuprofielen!AG44/Invoerblad!$G$56)),0) -> 0 | AH44: =IFERROR(IF(Invoerblad!$G$56="n.v.t.",(Milieuprofielen!AH44),(Milieuprofielen!AH44/Invoerblad!$G$56)),0) -> 0 | AI44: =IFERROR(IF(Invoerblad!$G$56="n.v.t.",(Milieuprofielen!AI44),(Milieuprofielen!AI44/Invoerblad!$G$56)),0) -> 0 | AJ44: =IFERROR(IF(Invoerblad!$G$56="n.v.t.",(Milieuprofielen!AJ44),(Milieuprofielen!AJ44/Invoerblad!$G$56)),0) -> 0 | AN44: 063. Water use | AO44: m3 depriv. | AP44: =IFERROR(IF(Invoerblad!$H$56="n.v.t.",(Milieuprofielen!AP44),(Milieuprofielen!AP44/Invoerblad!$H$56)),0) -> 0 | AQ44: =IFERROR(IF(Invoerblad!$H$56="n.v.t.",(Milieuprofielen!AQ44),(Milieuprofielen!AQ44/Invoerblad!$H$56)),0) -> 0 | AR44: =IFERROR(IF(Invoerblad!$H$56="n.v.t.",(Milieuprofielen!AR44),(Milieuprofielen!AR44/Invoerblad!$H$56)),0) -> 0 | AS44: =IFERROR(IF(Invoerblad!$H$56="n.v.t.",(Milieuprofielen!AS44),(Milieuprofielen!AS44/Invoerblad!$H$56)),0) -> 0
D45: 064. Particulate matter | E45: disease inc. | F45: =IFERROR(IF(Invoerblad!$D$56="n.v.t.",(Milieuprofielen!F45),(Milieuprofielen!F45/Invoerblad!$D$56)),0) -> 3.022762366e-08 | G45: =IFERROR(IF(Invoerblad!$D$56="n.v.t.",(Milieuprofielen!G45),(Milieuprofielen!G45/Invoerblad!$D$56)),0) -> 1.377045074e-09 | H45: =IFERROR(IF(Invoerblad!$D$56="n.v.t.",(Milieuprofielen!H45),(Milieuprofielen!H45/Invoerblad!$D$56)),0) -> 8.152654501e-09 | I45: =IFERROR(IF(Invoerblad!$D$56="n.v.t.",(Milieuprofielen!I45),(Milieuprofielen!I45/Invoerblad!$D$56)),0) -> 3.975732324e-08 | M45: 064. Particulate matter | N45: disease inc. | O45: =IFERROR(IF(Invoerblad!$E$56="n.v.t.",(Milieuprofielen!O45),(Milieuprofielen!O45/Invoerblad!$E$56)),0) -> 0 | P45: =IFERROR(IF(Invoerblad!$E$56="n.v.t.",(Milieuprofielen!P45),(Milieuprofielen!P45/Invoerblad!$E$56)),0) -> 0 | Q45: =IFERROR(IF(Invoerblad!$E$56="n.v.t.",(Milieuprofielen!Q45),(Milieuprofielen!Q45/Invoerblad!$E$56)),0) -> 0 | R45: =IFERROR(IF(Invoerblad!$E$56="n.v.t.",(Milieuprofielen!R45),(Milieuprofielen!R45/Invoerblad!$E$56)),0) -> 0 | V45: 064. Particulate matter | W45: disease inc. | X45: =IFERROR(IF(Invoerblad!$F$56="n.v.t.",(Milieuprofielen!X45),(Milieuprofielen!X45/Invoerblad!$F$56)),0) -> 0 | Y45: =IFERROR(IF(Invoerblad!$F$56="n.v.t.",(Milieuprofielen!Y45),(Milieuprofielen!Y45/Invoerblad!$F$56)),0) -> 0 | Z45: =IFERROR(IF(Invoerblad!$F$56="n.v.t.",(Milieuprofielen!Z45),(Milieuprofielen!Z45/Invoerblad!$F$56)),0) -> 0 | AA45: =IFERROR(IF(Invoerblad!$F$56="n.v.t.",(Milieuprofielen!AA45),(Milieuprofielen!AA45/Invoerblad!$F$56)),0) -> 0 | AE45: 064. Particulate matter | AF45: disease inc. | AG45: =IFERROR(IF(Invoerblad!$G$56="n.v.t.",(Milieuprofielen!AG45),(Milieuprofielen!AG45/Invoerblad!$G$56)),0) -> 0 | AH45: =IFERROR(IF(Invoerblad!$G$56="n.v.t.",(Milieuprofielen!AH45),(Milieuprofielen!AH45/Invoerblad!$G$56)),0) -> 0 | AI45: =IFERROR(IF(Invoerblad!$G$56="n.v.t.",(Milieuprofielen!AI45),(Milieuprofielen!AI45/Invoerblad!$G$56)),0) -> 0 | AJ45: =IFERROR(IF(Invoerblad!$G$56="n.v.t.",(Milieuprofielen!AJ45),(Milieuprofielen!AJ45/Invoerblad!$G$56)),0) -> 0 | AN45: 064. Particulate matter | AO45: disease inc. | AP45: =IFERROR(IF(Invoerblad!$H$56="n.v.t.",(Milieuprofielen!AP45),(Milieuprofielen!AP45/Invoerblad!$H$56)),0) -> 0 | AQ45: =IFERROR(IF(Invoerblad!$H$56="n.v.t.",(Milieuprofielen!AQ45),(Milieuprofielen!AQ45/Invoerblad!$H$56)),0) -> 0 | AR45: =IFERROR(IF(Invoerblad!$H$56="n.v.t.",(Milieuprofielen!AR45),(Milieuprofielen!AR45/Invoerblad!$H$56)),0) -> 0 | AS45: =IFERROR(IF(Invoerblad!$H$56="n.v.t.",(Milieuprofielen!AS45),(Milieuprofielen!AS45/Invoerblad!$H$56)),0) -> 0
D46: 065. Ionising radiation | E46: kBq U-235 eq | F46: =IFERROR(IF(Invoerblad!$D$56="n.v.t.",(Milieuprofielen!F46),(Milieuprofielen!F46/Invoerblad!$D$56)),0) -> 0.007802126532 | G46: =IFERROR(IF(Invoerblad!$D$56="n.v.t.",(Milieuprofielen!G46),(Milieuprofielen!G46/Invoerblad!$D$56)),0) -> 0.0004942052222 | H46: =IFERROR(IF(Invoerblad!$D$56="n.v.t.",(Milieuprofielen!H46),(Milieuprofielen!H46/Invoerblad!$D$56)),0) -> 0.001098729663 | I46: =IFERROR(IF(Invoerblad!$D$56="n.v.t.",(Milieuprofielen!I46),(Milieuprofielen!I46/Invoerblad!$D$56)),0) -> 0.009395061417 | M46: 065. Ionising radiation | N46: kBq U-235 eq | O46: =IFERROR(IF(Invoerblad!$E$56="n.v.t.",(Milieuprofielen!O46),(Milieuprofielen!O46/Invoerblad!$E$56)),0) -> 0 | P46: =IFERROR(IF(Invoerblad!$E$56="n.v.t.",(Milieuprofielen!P46),(Milieuprofielen!P46/Invoerblad!$E$56)),0) -> 0 | Q46: =IFERROR(IF(Invoerblad!$E$56="n.v.t.",(Milieuprofielen!Q46),(Milieuprofielen!Q46/Invoerblad!$E$56)),0) -> 0 | R46: =IFERROR(IF(Invoerblad!$E$56="n.v.t.",(Milieuprofielen!R46),(Milieuprofielen!R46/Invoerblad!$E$56)),0) -> 0 | V46: 065. Ionising radiation | W46: kBq U-235 eq | X46: =IFERROR(IF(Invoerblad!$F$56="n.v.t.",(Milieuprofielen!X46),(Milieuprofielen!X46/Invoerblad!$F$56)),0) -> 0 | Y46: =IFERROR(IF(Invoerblad!$F$56="n.v.t.",(Milieuprofielen!Y46),(Milieuprofielen!Y46/Invoerblad!$F$56)),0) -> 0 | Z46: =IFERROR(IF(Invoerblad!$F$56="n.v.t.",(Milieuprofielen!Z46),(Milieuprofielen!Z46/Invoerblad!$F$56)),0) -> 0 | AA46: =IFERROR(IF(Invoerblad!$F$56="n.v.t.",(Milieuprofielen!AA46),(Milieuprofielen!AA46/Invoerblad!$F$56)),0) -> 0 | AE46: 065. Ionising radiation | AF46: kBq U-235 eq | AG46: =IFERROR(IF(Invoerblad!$G$56="n.v.t.",(Milieuprofielen!AG46),(Milieuprofielen!AG46/Invoerblad!$G$56)),0) -> 0 | AH46: =IFERROR(IF(Invoerblad!$G$56="n.v.t.",(Milieuprofielen!AH46),(Milieuprofielen!AH46/Invoerblad!$G$56)),0) -> 0 | AI46: =IFERROR(IF(Invoerblad!$G$56="n.v.t.",(Milieuprofielen!AI46),(Milieuprofielen!AI46/Invoerblad!$G$56)),0) -> 0 | AJ46: =IFERROR(IF(Invoerblad!$G$56="n.v.t.",(Milieuprofielen!AJ46),(Milieuprofielen!AJ46/Invoerblad!$G$56)),0) -> 0 | AN46: 065. Ionising radiation | AO46: kBq U-235 eq | AP46: =IFERROR(IF(Invoerblad!$H$56="n.v.t.",(Milieuprofielen!AP46),(Milieuprofielen!AP46/Invoerblad!$H$56)),0) -> 0 | AQ46: =IFERROR(IF(Invoerblad!$H$56="n.v.t.",(Milieuprofielen!AQ46),(Milieuprofielen!AQ46/Invoerblad!$H$56)),0) -> 0 | AR46: =IFERROR(IF(Invoerblad!$H$56="n.v.t.",(Milieuprofielen!AR46),(Milieuprofielen!AR46/Invoerblad!$H$56)),0) -> 0 | AS46: =IFERROR(IF(Invoerblad!$H$56="n.v.t.",(Milieuprofielen!AS46),(Milieuprofielen!AS46/Invoerblad!$H$56)),0) -> 0
D47: 066. Ecotoxicity, freshwater | E47: CTUe | F47: =IFERROR(IF(Invoerblad!$D$56="n.v.t.",(Milieuprofielen!F47),(Milieuprofielen!F47/Invoerblad!$D$56)),0) -> 13.32662781 | G47: =IFERROR(IF(Invoerblad!$D$56="n.v.t.",(Milieuprofielen!G47),(Milieuprofielen!G47/Invoerblad!$D$56)),0) -> 0.1453713174 | H47: =IFERROR(IF(Invoerblad!$D$56="n.v.t.",(Milieuprofielen!H47),(Milieuprofielen!H47/Invoerblad!$D$56)),0) -> 0.4950524121 | I47: =IFERROR(IF(Invoerblad!$D$56="n.v.t.",(Milieuprofielen!I47),(Milieuprofielen!I47/Invoerblad!$D$56)),0) -> 13.96705154 | M47: 066. Ecotoxicity, freshwater | N47: CTUe | O47: =IFERROR(IF(Invoerblad!$E$56="n.v.t.",(Milieuprofielen!O47),(Milieuprofielen!O47/Invoerblad!$E$56)),0) -> 0 | P47: =IFERROR(IF(Invoerblad!$E$56="n.v.t.",(Milieuprofielen!P47),(Milieuprofielen!P47/Invoerblad!$E$56)),0) -> 0 | Q47: =IFERROR(IF(Invoerblad!$E$56="n.v.t.",(Milieuprofielen!Q47),(Milieuprofielen!Q47/Invoerblad!$E$56)),0) -> 0 | R47: =IFERROR(IF(Invoerblad!$E$56="n.v.t.",(Milieuprofielen!R47),(Milieuprofielen!R47/Invoerblad!$E$56)),0) -> 0 | V47: 066. Ecotoxicity, freshwater | W47: CTUe | X47: =IFERROR(IF(Invoerblad!$F$56="n.v.t.",(Milieuprofielen!X47),(Milieuprofielen!X47/Invoerblad!$F$56)),0) -> 0 | Y47: =IFERROR(IF(Invoerblad!$F$56="n.v.t.",(Milieuprofielen!Y47),(Milieuprofielen!Y47/Invoerblad!$F$56)),0) -> 0 | Z47: =IFERROR(IF(Invoerblad!$F$56="n.v.t.",(Milieuprofielen!Z47),(Milieuprofielen!Z47/Invoerblad!$F$56)),0) -> 0 | AA47: =IFERROR(IF(Invoerblad!$F$56="n.v.t.",(Milieuprofielen!AA47),(Milieuprofielen!AA47/Invoerblad!$F$56)),0) -> 0 | AE47: 066. Ecotoxicity, freshwater | AF47: CTUe | AG47: =IFERROR(IF(Invoerblad!$G$56="n.v.t.",(Milieuprofielen!AG47),(Milieuprofielen!AG47/Invoerblad!$G$56)),0) -> 0 | AH47: =IFERROR(IF(Invoerblad!$G$56="n.v.t.",(Milieuprofielen!AH47),(Milieuprofielen!AH47/Invoerblad!$G$56)),0) -> 0 | AI47: =IFERROR(IF(Invoerblad!$G$56="n.v.t.",(Milieuprofielen!AI47),(Milieuprofielen!AI47/Invoerblad!$G$56)),0) -> 0 | AJ47: =IFERROR(IF(Invoerblad!$G$56="n.v.t.",(Milieuprofielen!AJ47),(Milieuprofielen!AJ47/Invoerblad!$G$56)),0) -> 0 | AN47: 066. Ecotoxicity, freshwater | AO47: CTUe | AP47: =IFERROR(IF(Invoerblad!$H$56="n.v.t.",(Milieuprofielen!AP47),(Milieuprofielen!AP47/Invoerblad!$H$56)),0) -> 0 | AQ47: =IFERROR(IF(Invoerblad!$H$56="n.v.t.",(Milieuprofielen!AQ47),(Milieuprofielen!AQ47/Invoerblad!$H$56)),0) -> 0 | AR47: =IFERROR(IF(Invoerblad!$H$56="n.v.t.",(Milieuprofielen!AR47),(Milieuprofielen!AR47/Invoerblad!$H$56)),0) -> 0 | AS47: =IFERROR(IF(Invoerblad!$H$56="n.v.t.",(Milieuprofielen!AS47),(Milieuprofielen!AS47/Invoerblad!$H$56)),0) -> 0
D48: 067. Human toxicity, cancer | E48: CTUh | F48: =IFERROR(IF(Invoerblad!$D$56="n.v.t.",(Milieuprofielen!F48),(Milieuprofielen!F48/Invoerblad!$D$56)),0) -> 2.347284456e-10 | G48: =IFERROR(IF(Invoerblad!$D$56="n.v.t.",(Milieuprofielen!G48),(Milieuprofielen!G48/Invoerblad!$D$56)),0) -> 8.033062673e-12 | H48: =IFERROR(IF(Invoerblad!$D$56="n.v.t.",(Milieuprofielen!H48),(Milieuprofielen!H48/Invoerblad!$D$56)),0) -> 4.229826816e-10 | I48: =IFERROR(IF(Invoerblad!$D$56="n.v.t.",(Milieuprofielen!I48),(Milieuprofielen!I48/Invoerblad!$D$56)),0) -> 6.657441899e-10 | M48: 067. Human toxicity, cancer | N48: CTUh | O48: =IFERROR(IF(Invoerblad!$E$56="n.v.t.",(Milieuprofielen!O48),(Milieuprofielen!O48/Invoerblad!$E$56)),0) -> 0 | P48: =IFERROR(IF(Invoerblad!$E$56="n.v.t.",(Milieuprofielen!P48),(Milieuprofielen!P48/Invoerblad!$E$56)),0) -> 0 | Q48: =IFERROR(IF(Invoerblad!$E$56="n.v.t.",(Milieuprofielen!Q48),(Milieuprofielen!Q48/Invoerblad!$E$56)),0) -> 0 | R48: =IFERROR(IF(Invoerblad!$E$56="n.v.t.",(Milieuprofielen!R48),(Milieuprofielen!R48/Invoerblad!$E$56)),0) -> 0 | V48: 067. Human toxicity, cancer | W48: CTUh | X48: =IFERROR(IF(Invoerblad!$F$56="n.v.t.",(Milieuprofielen!X48),(Milieuprofielen!X48/Invoerblad!$F$56)),0) -> 0 | Y48: =IFERROR(IF(Invoerblad!$F$56="n.v.t.",(Milieuprofielen!Y48),(Milieuprofielen!Y48/Invoerblad!$F$56)),0) -> 0 | Z48: =IFERROR(IF(Invoerblad!$F$56="n.v.t.",(Milieuprofielen!Z48),(Milieuprofielen!Z48/Invoerblad!$F$56)),0) -> 0 | AA48: =IFERROR(IF(Invoerblad!$F$56="n.v.t.",(Milieuprofielen!AA48),(Milieuprofielen!AA48/Invoerblad!$F$56)),0) -> 0 | AE48: 067. Human toxicity, cancer | AF48: CTUh | AG48: =IFERROR(IF(Invoerblad!$G$56="n.v.t.",(Milieuprofielen!AG48),(Milieuprofielen!AG48/Invoerblad!$G$56)),0) -> 0 | AH48: =IFERROR(IF(Invoerblad!$G$56="n.v.t.",(Milieuprofielen!AH48),(Milieuprofielen!AH48/Invoerblad!$G$56)),0) -> 0 | AI48: =IFERROR(IF(Invoerblad!$G$56="n.v.t.",(Milieuprofielen!AI48),(Milieuprofielen!AI48/Invoerblad!$G$56)),0) -> 0 | AJ48: =IFERROR(IF(Invoerblad!$G$56="n.v.t.",(Milieuprofielen!AJ48),(Milieuprofielen!AJ48/Invoerblad!$G$56)),0) -> 0 | AN48: 067. Human toxicity, cancer | AO48: CTUh | AP48: =IFERROR(IF(Invoerblad!$H$56="n.v.t.",(Milieuprofielen!AP48),(Milieuprofielen!AP48/Invoerblad!$H$56)),0) -> 0 | AQ48: =IFERROR(IF(Invoerblad!$H$56="n.v.t.",(Milieuprofielen!AQ48),(Milieuprofielen!AQ48/Invoerblad!$H$56)),0) -> 0 | AR48: =IFERROR(IF(Invoerblad!$H$56="n.v.t.",(Milieuprofielen!AR48),(Milieuprofielen!AR48/Invoerblad!$H$56)),0) -> 0 | AS48: =IFERROR(IF(Invoerblad!$H$56="n.v.t.",(Milieuprofielen!AS48),(Milieuprofielen!AS48/Invoerblad!$H$56)),0) -> 0
D49: 068. Human toxicity, non-cancer | E49: CTUh | F49: =IFERROR(IF(Invoerblad!$D$56="n.v.t.",(Milieuprofielen!F49),(Milieuprofielen!F49/Invoerblad!$D$56)),0) -> 4.407400523e-09 | G49: =IFERROR(IF(Invoerblad!$D$56="n.v.t.",(Milieuprofielen!G49),(Milieuprofielen!G49/Invoerblad!$D$56)),0) -> 1.424034453e-10 | H49: =IFERROR(IF(Invoerblad!$D$56="n.v.t.",(Milieuprofielen!H49),(Milieuprofielen!H49/Invoerblad!$D$56)),0) -> 2.245958421e-09 | I49: =IFERROR(IF(Invoerblad!$D$56="n.v.t.",(Milieuprofielen!I49),(Milieuprofielen!I49/Invoerblad!$D$56)),0) -> 6.795762389e-09 | M49: 068. Human toxicity, non-cancer | N49: CTUh | O49: =IFERROR(IF(Invoerblad!$E$56="n.v.t.",(Milieuprofielen!O49),(Milieuprofielen!O49/Invoerblad!$E$56)),0) -> 0 | P49: =IFERROR(IF(Invoerblad!$E$56="n.v.t.",(Milieuprofielen!P49),(Milieuprofielen!P49/Invoerblad!$E$56)),0) -> 0 | Q49: =IFERROR(IF(Invoerblad!$E$56="n.v.t.",(Milieuprofielen!Q49),(Milieuprofielen!Q49/Invoerblad!$E$56)),0) -> 0 | R49: =IFERROR(IF(Invoerblad!$E$56="n.v.t.",(Milieuprofielen!R49),(Milieuprofielen!R49/Invoerblad!$E$56)),0) -> 0 | V49: 068. Human toxicity, non-cancer | W49: CTUh | X49: =IFERROR(IF(Invoerblad!$F$56="n.v.t.",(Milieuprofielen!X49),(Milieuprofielen!X49/Invoerblad!$F$56)),0) -> 0 | Y49: =IFERROR(IF(Invoerblad!$F$56="n.v.t.",(Milieuprofielen!Y49),(Milieuprofielen!Y49/Invoerblad!$F$56)),0) -> 0 | Z49: =IFERROR(IF(Invoerblad!$F$56="n.v.t.",(Milieuprofielen!Z49),(Milieuprofielen!Z49/Invoerblad!$F$56)),0) -> 0 | AA49: =IFERROR(IF(Invoerblad!$F$56="n.v.t.",(Milieuprofielen!AA49),(Milieuprofielen!AA49/Invoerblad!$F$56)),0) -> 0 | AE49: 068. Human toxicity, non-cancer | AF49: CTUh | AG49: =IFERROR(IF(Invoerblad!$G$56="n.v.t.",(Milieuprofielen!AG49),(Milieuprofielen!AG49/Invoerblad!$G$56)),0) -> 0 | AH49: =IFERROR(IF(Invoerblad!$G$56="n.v.t.",(Milieuprofielen!AH49),(Milieuprofielen!AH49/Invoerblad!$G$56)),0) -> 0 | AI49: =IFERROR(IF(Invoerblad!$G$56="n.v.t.",(Milieuprofielen!AI49),(Milieuprofielen!AI49/Invoerblad!$G$56)),0) -> 0 | AJ49: =IFERROR(IF(Invoerblad!$G$56="n.v.t.",(Milieuprofielen!AJ49),(Milieuprofielen!AJ49/Invoerblad!$G$56)),0) -> 0 | AN49: 068. Human toxicity, non-cancer | AO49: CTUh | AP49: =IFERROR(IF(Invoerblad!$H$56="n.v.t.",(Milieuprofielen!AP49),(Milieuprofielen!AP49/Invoerblad!$H$56)),0) -> 0 | AQ49: =IFERROR(IF(Invoerblad!$H$56="n.v.t.",(Milieuprofielen!AQ49),(Milieuprofielen!AQ49/Invoerblad!$H$56)),0) -> 0 | AR49: =IFERROR(IF(Invoerblad!$H$56="n.v.t.",(Milieuprofielen!AR49),(Milieuprofielen!AR49/Invoerblad!$H$56)),0) -> 0 | AS49: =IFERROR(IF(Invoerblad!$H$56="n.v.t.",(Milieuprofielen!AS49),(Milieuprofielen!AS49/Invoerblad!$H$56)),0) -> 0
D50: 069. Land use | E50: Pt | F50: =IFERROR(IF(Invoerblad!$D$56="n.v.t.",(Milieuprofielen!F50),(Milieuprofielen!F50/Invoerblad!$D$56)),0) -> 0.9001731757 | G50: =IFERROR(IF(Invoerblad!$D$56="n.v.t.",(Milieuprofielen!G50),(Milieuprofielen!G50/Invoerblad!$D$56)),0) -> 0.4419665466 | H50: =IFERROR(IF(Invoerblad!$D$56="n.v.t.",(Milieuprofielen!H50),(Milieuprofielen!H50/Invoerblad!$D$56)),0) -> 1.667486734 | I50: =IFERROR(IF(Invoerblad!$D$56="n.v.t.",(Milieuprofielen!I50),(Milieuprofielen!I50/Invoerblad!$D$56)),0) -> 3.009626456 | M50: 069. Land use | N50: Pt | O50: =IFERROR(IF(Invoerblad!$E$56="n.v.t.",(Milieuprofielen!O50),(Milieuprofielen!O50/Invoerblad!$E$56)),0) -> 0 | P50: =IFERROR(IF(Invoerblad!$E$56="n.v.t.",(Milieuprofielen!P50),(Milieuprofielen!P50/Invoerblad!$E$56)),0) -> 0 | Q50: =IFERROR(IF(Invoerblad!$E$56="n.v.t.",(Milieuprofielen!Q50),(Milieuprofielen!Q50/Invoerblad!$E$56)),0) -> 0 | R50: =IFERROR(IF(Invoerblad!$E$56="n.v.t.",(Milieuprofielen!R50),(Milieuprofielen!R50/Invoerblad!$E$56)),0) -> 0 | V50: 069. Land use | W50: Pt | X50: =IFERROR(IF(Invoerblad!$F$56="n.v.t.",(Milieuprofielen!X50),(Milieuprofielen!X50/Invoerblad!$F$56)),0) -> 0 | Y50: =IFERROR(IF(Invoerblad!$F$56="n.v.t.",(Milieuprofielen!Y50),(Milieuprofielen!Y50/Invoerblad!$F$56)),0) -> 0 | Z50: =IFERROR(IF(Invoerblad!$F$56="n.v.t.",(Milieuprofielen!Z50),(Milieuprofielen!Z50/Invoerblad!$F$56)),0) -> 0 | AA50: =IFERROR(IF(Invoerblad!$F$56="n.v.t.",(Milieuprofielen!AA50),(Milieuprofielen!AA50/Invoerblad!$F$56)),0) -> 0 | AE50: 069. Land use | AF50: Pt | AG50: =IFERROR(IF(Invoerblad!$G$56="n.v.t.",(Milieuprofielen!AG50),(Milieuprofielen!AG50/Invoerblad!$G$56)),0) -> 0 | AH50: =IFERROR(IF(Invoerblad!$G$56="n.v.t.",(Milieuprofielen!AH50),(Milieuprofielen!AH50/Invoerblad!$G$56)),0) -> 0 | AI50: =IFERROR(IF(Invoerblad!$G$56="n.v.t.",(Milieuprofielen!AI50),(Milieuprofielen!AI50/Invoerblad!$G$56)),0) -> 0 | AJ50: =IFERROR(IF(Invoerblad!$G$56="n.v.t.",(Milieuprofielen!AJ50),(Milieuprofielen!AJ50/Invoerblad!$G$56)),0) -> 0 | AN50: 069. Land use | AO50: Pt | AP50: =IFERROR(IF(Invoerblad!$H$56="n.v.t.",(Milieuprofielen!AP50),(Milieuprofielen!AP50/Invoerblad!$H$56)),0) -> 0 | AQ50: =IFERROR(IF(Invoerblad!$H$56="n.v.t.",(Milieuprofielen!AQ50),(Milieuprofielen!AQ50/Invoerblad!$H$56)),0) -> 0 | AR50: =IFERROR(IF(Invoerblad!$H$56="n.v.t.",(Milieuprofielen!AR50),(Milieuprofielen!AR50/Invoerblad!$H$56)),0) -> 0 | AS50: =IFERROR(IF(Invoerblad!$H$56="n.v.t.",(Milieuprofielen!AS50),(Milieuprofielen!AS50/Invoerblad!$H$56)),0) -> 0
C51: Parameters EN15804+A2 | D51: 111. Energy, primary, renewable, excludi | E51: MJ | F51: =IFERROR(IF(Invoerblad!$D$56="n.v.t.",(Milieuprofielen!F51),(Milieuprofielen!F51/Invoerblad!$D$56)),0) -> 0 | G51: =IFERROR(IF(Invoerblad!$D$56="n.v.t.",(Milieuprofielen!G51),(Milieuprofielen!G51/Invoerblad!$D$56)),0) -> 0 | H51: =IFERROR(IF(Invoerblad!$D$56="n.v.t.",(Milieuprofielen!H51),(Milieuprofielen!H51/Invoerblad!$D$56)),0) -> 0 | I51: =IFERROR(IF(Invoerblad!$D$56="n.v.t.",(Milieuprofielen!I51),(Milieuprofielen!I51/Invoerblad!$D$56)),0) -> 0 | L51: Parameters EN15804+A2 | M51: 111. Energy, primary, renewable, excludi | N51: MJ | O51: =IFERROR(IF(Invoerblad!$E$56="n.v.t.",(Milieuprofielen!O51),(Milieuprofielen!O51/Invoerblad!$E$56)),0) -> 0 | P51: =IFERROR(IF(Invoerblad!$E$56="n.v.t.",(Milieuprofielen!P51),(Milieuprofielen!P51/Invoerblad!$E$56)),0) -> 0 | Q51: =IFERROR(IF(Invoerblad!$E$56="n.v.t.",(Milieuprofielen!Q51),(Milieuprofielen!Q51/Invoerblad!$E$56)),0) -> 0 | R51: =IFERROR(IF(Invoerblad!$E$56="n.v.t.",(Milieuprofielen!R51),(Milieuprofielen!R51/Invoerblad!$E$56)),0) -> 0 | U51: Parameters EN15804+A2 | V51: 111. Energy, primary, renewable, excludi | W51: MJ | X51: =IFERROR(IF(Invoerblad!$F$56="n.v.t.",(Milieuprofielen!X51),(Milieuprofielen!X51/Invoerblad!$F$56)),0) -> 0 | Y51: =IFERROR(IF(Invoerblad!$F$56="n.v.t.",(Milieuprofielen!Y51),(Milieuprofielen!Y51/Invoerblad!$F$56)),0) -> 0 | Z51: =IFERROR(IF(Invoerblad!$F$56="n.v.t.",(Milieuprofielen!Z51),(Milieuprofielen!Z51/Invoerblad!$F$56)),0) -> 0 | AA51: =IFERROR(IF(Invoerblad!$F$56="n.v.t.",(Milieuprofielen!AA51),(Milieuprofielen!AA51/Invoerblad!$F$56)),0) -> 0 | AD51: Parameters EN15804+A2 | AE51: 111. Energy, primary, renewable, excludi | AF51: MJ | AG51: =IFERROR(IF(Invoerblad!$G$56="n.v.t.",(Milieuprofielen!AG51),(Milieuprofielen!AG51/Invoerblad!$G$56)),0) -> 0 | AH51: =IFERROR(IF(Invoerblad!$G$56="n.v.t.",(Milieuprofielen!AH51),(Milieuprofielen!AH51/Invoerblad!$G$56)),0) -> 0 | AI51: =IFERROR(IF(Invoerblad!$G$56="n.v.t.",(Milieuprofielen!AI51),(Milieuprofielen!AI51/Invoerblad!$G$56)),0) -> 0 | AJ51: =IFERROR(IF(Invoerblad!$G$56="n.v.t.",(Milieuprofielen!AJ51),(Milieuprofielen!AJ51/Invoerblad!$G$56)),0) -> 0 | AM51: Parameters EN15804+A2 | AN51: 111. Energy, primary, renewable, excludi | AO51: MJ | AP51: =IFERROR(IF(Invoerblad!$H$56="n.v.t.",(Milieuprofielen!AP51),(Milieuprofielen!AP51/Invoerblad!$H$56)),0) -> 0 | AQ51: =IFERROR(IF(Invoerblad!$H$56="n.v.t.",(Milieuprofielen!AQ51),(Milieuprofielen!AQ51/Invoerblad!$H$56)),0) -> 0 | AR51: =IFERROR(IF(Invoerblad!$H$56="n.v.t.",(Milieuprofielen!AR51),(Milieuprofielen!AR51/Invoerblad!$H$56)),0) -> 0 | AS51: =IFERROR(IF(Invoerblad!$H$56="n.v.t.",(Milieuprofielen!AS51),(Milieuprofielen!AS51/Invoerblad!$H$56)),0) -> 0
D52: 113. Energy, primary, renewable, materia | E52: MJ | F52: =IFERROR(IF(Invoerblad!$D$56="n.v.t.",(Milieuprofielen!F52),(Milieuprofielen!F52/Invoerblad!$D$56)),0) -> 0 | G52: =IFERROR(IF(Invoerblad!$D$56="n.v.t.",(Milieuprofielen!G52),(Milieuprofielen!G52/Invoerblad!$D$56)),0) -> 0 | H52: =IFERROR(IF(Invoerblad!$D$56="n.v.t.",(Milieuprofielen!H52),(Milieuprofielen!H52/Invoerblad!$D$56)),0) -> 0 | I52: =IFERROR(IF(Invoerblad!$D$56="n.v.t.",(Milieuprofielen!I52),(Milieuprofielen!I52/Invoerblad!$D$56)),0) -> 0 | M52: 113. Energy, primary, renewable, materia | N52: MJ | O52: =IFERROR(IF(Invoerblad!$E$56="n.v.t.",(Milieuprofielen!O52),(Milieuprofielen!O52/Invoerblad!$E$56)),0) -> 0 | P52: =IFERROR(IF(Invoerblad!$E$56="n.v.t.",(Milieuprofielen!P52),(Milieuprofielen!P52/Invoerblad!$E$56)),0) -> 0 | Q52: =IFERROR(IF(Invoerblad!$E$56="n.v.t.",(Milieuprofielen!Q52),(Milieuprofielen!Q52/Invoerblad!$E$56)),0) -> 0 | R52: =IFERROR(IF(Invoerblad!$E$56="n.v.t.",(Milieuprofielen!R52),(Milieuprofielen!R52/Invoerblad!$E$56)),0) -> 0 | V52: 113. Energy, primary, renewable, materia | W52: MJ | X52: =IFERROR(IF(Invoerblad!$F$56="n.v.t.",(Milieuprofielen!X52),(Milieuprofielen!X52/Invoerblad!$F$56)),0) -> 0 | Y52: =IFERROR(IF(Invoerblad!$F$56="n.v.t.",(Milieuprofielen!Y52),(Milieuprofielen!Y52/Invoerblad!$F$56)),0) -> 0 | Z52: =IFERROR(IF(Invoerblad!$F$56="n.v.t.",(Milieuprofielen!Z52),(Milieuprofielen!Z52/Invoerblad!$F$56)),0) -> 0 | AA52: =IFERROR(IF(Invoerblad!$F$56="n.v.t.",(Milieuprofielen!AA52),(Milieuprofielen!AA52/Invoerblad!$F$56)),0) -> 0 | AE52: 113. Energy, primary, renewable, materia | AF52: MJ | AG52: =IFERROR(IF(Invoerblad!$G$56="n.v.t.",(Milieuprofielen!AG52),(Milieuprofielen!AG52/Invoerblad!$G$56)),0) -> 0 | AH52: =IFERROR(IF(Invoerblad!$G$56="n.v.t.",(Milieuprofielen!AH52),(Milieuprofielen!AH52/Invoerblad!$G$56)),0) -> 0 | AI52: =IFERROR(IF(Invoerblad!$G$56="n.v.t.",(Milieuprofielen!AI52),(Milieuprofielen!AI52/Invoerblad!$G$56)),0) -> 0 | AJ52: =IFERROR(IF(Invoerblad!$G$56="n.v.t.",(Milieuprofielen!AJ52),(Milieuprofielen!AJ52/Invoerblad!$G$56)),0) -> 0 | AN52: 113. Energy, primary, renewable, materia | AO52: MJ | AP52: =IFERROR(IF(Invoerblad!$H$56="n.v.t.",(Milieuprofielen!AP52),(Milieuprofielen!AP52/Invoerblad!$H$56)),0) -> 0 | AQ52: =IFERROR(IF(Invoerblad!$H$56="n.v.t.",(Milieuprofielen!AQ52),(Milieuprofielen!AQ52/Invoerblad!$H$56)),0) -> 0 | AR52: =IFERROR(IF(Invoerblad!$H$56="n.v.t.",(Milieuprofielen!AR52),(Milieuprofielen!AR52/Invoerblad!$H$56)),0) -> 0 | AS52: =IFERROR(IF(Invoerblad!$H$56="n.v.t.",(Milieuprofielen!AS52),(Milieuprofielen!AS52/Invoerblad!$H$56)),0) -> 0
D53: 101. Energy, primary, renewable (MJ) | E53: MJ | F53: =IFERROR(IF(Invoerblad!$D$56="n.v.t.",(Milieuprofielen!F53),(Milieuprofielen!F53/Invoerblad!$D$56)),0) -> 0.1367753068 | G53: =IFERROR(IF(Invoerblad!$D$56="n.v.t.",(Milieuprofielen!G53),(Milieuprofielen!G53/Invoerblad!$D$56)),0) -> 0.01544975914 | H53: =IFERROR(IF(Invoerblad!$D$56="n.v.t.",(Milieuprofielen!H53),(Milieuprofielen!H53/Invoerblad!$D$56)),0) -> 0.04675971997 | I53: =IFERROR(IF(Invoerblad!$D$56="n.v.t.",(Milieuprofielen!I53),(Milieuprofielen!I53/Invoerblad!$D$56)),0) -> 0.1989847859 | M53: 101. Energy, primary, renewable (MJ) | N53: MJ | O53: =IFERROR(IF(Invoerblad!$E$56="n.v.t.",(Milieuprofielen!O53),(Milieuprofielen!O53/Invoerblad!$E$56)),0) -> 0 | P53: =IFERROR(IF(Invoerblad!$E$56="n.v.t.",(Milieuprofielen!P53),(Milieuprofielen!P53/Invoerblad!$E$56)),0) -> 0 | Q53: =IFERROR(IF(Invoerblad!$E$56="n.v.t.",(Milieuprofielen!Q53),(Milieuprofielen!Q53/Invoerblad!$E$56)),0) -> 0 | R53: =IFERROR(IF(Invoerblad!$E$56="n.v.t.",(Milieuprofielen!R53),(Milieuprofielen!R53/Invoerblad!$E$56)),0) -> 0 | V53: 101. Energy, primary, renewable (MJ) | W53: MJ | X53: =IFERROR(IF(Invoerblad!$F$56="n.v.t.",(Milieuprofielen!X53),(Milieuprofielen!X53/Invoerblad!$F$56)),0) -> 0 | Y53: =IFERROR(IF(Invoerblad!$F$56="n.v.t.",(Milieuprofielen!Y53),(Milieuprofielen!Y53/Invoerblad!$F$56)),0) -> 0 | Z53: =IFERROR(IF(Invoerblad!$F$56="n.v.t.",(Milieuprofielen!Z53),(Milieuprofielen!Z53/Invoerblad!$F$56)),0) -> 0 | AA53: =IFERROR(IF(Invoerblad!$F$56="n.v.t.",(Milieuprofielen!AA53),(Milieuprofielen!AA53/Invoerblad!$F$56)),0) -> 0 | AE53: 101. Energy, primary, renewable (MJ) | AF53: MJ | AG53: =IFERROR(IF(Invoerblad!$G$56="n.v.t.",(Milieuprofielen!AG53),(Milieuprofielen!AG53/Invoerblad!$G$56)),0) -> 0 | AH53: =IFERROR(IF(Invoerblad!$G$56="n.v.t.",(Milieuprofielen!AH53),(Milieuprofielen!AH53/Invoerblad!$G$56)),0) -> 0 | AI53: =IFERROR(IF(Invoerblad!$G$56="n.v.t.",(Milieuprofielen!AI53),(Milieuprofielen!AI53/Invoerblad!$G$56)),0) -> 0 | AJ53: =IFERROR(IF(Invoerblad!$G$56="n.v.t.",(Milieuprofielen!AJ53),(Milieuprofielen!AJ53/Invoerblad!$G$56)),0) -> 0 | AN53: 101. Energy, primary, renewable (MJ) | AO53: MJ | AP53: =IFERROR(IF(Invoerblad!$H$56="n.v.t.",(Milieuprofielen!AP53),(Milieuprofielen!AP53/Invoerblad!$H$56)),0) -> 0 | AQ53: =IFERROR(IF(Invoerblad!$H$56="n.v.t.",(Milieuprofielen!AQ53),(Milieuprofielen!AQ53/Invoerblad!$H$56)),0) -> 0 | AR53: =IFERROR(IF(Invoerblad!$H$56="n.v.t.",(Milieuprofielen!AR53),(Milieuprofielen!AR53/Invoerblad!$H$56)),0) -> 0 | AS53: =IFERROR(IF(Invoerblad!$H$56="n.v.t.",(Milieuprofielen!AS53),(Milieuprofielen!AS53/Invoerblad!$H$56)),0) -> 0
D54: 112. Energy, primary, non-renewable, exc | E54: MJ | F54: =IFERROR(IF(Invoerblad!$D$56="n.v.t.",(Milieuprofielen!F54),(Milieuprofielen!F54/Invoerblad!$D$56)),0) -> 0 | G54: =IFERROR(IF(Invoerblad!$D$56="n.v.t.",(Milieuprofielen!G54),(Milieuprofielen!G54/Invoerblad!$D$56)),0) -> 0 | H54: =IFERROR(IF(Invoerblad!$D$56="n.v.t.",(Milieuprofielen!H54),(Milieuprofielen!H54/Invoerblad!$D$56)),0) -> 0 | I54: =IFERROR(IF(Invoerblad!$D$56="n.v.t.",(Milieuprofielen!I54),(Milieuprofielen!I54/Invoerblad!$D$56)),0) -> 0 | M54: 112. Energy, primary, non-renewable, exc | N54: MJ | O54: =IFERROR(IF(Invoerblad!$E$56="n.v.t.",(Milieuprofielen!O54),(Milieuprofielen!O54/Invoerblad!$E$56)),0) -> 0 | P54: =IFERROR(IF(Invoerblad!$E$56="n.v.t.",(Milieuprofielen!P54),(Milieuprofielen!P54/Invoerblad!$E$56)),0) -> 0 | Q54: =IFERROR(IF(Invoerblad!$E$56="n.v.t.",(Milieuprofielen!Q54),(Milieuprofielen!Q54/Invoerblad!$E$56)),0) -> 0 | R54: =IFERROR(IF(Invoerblad!$E$56="n.v.t.",(Milieuprofielen!R54),(Milieuprofielen!R54/Invoerblad!$E$56)),0) -> 0 | V54: 112. Energy, primary, non-renewable, exc | W54: MJ | X54: =IFERROR(IF(Invoerblad!$F$56="n.v.t.",(Milieuprofielen!X54),(Milieuprofielen!X54/Invoerblad!$F$56)),0) -> 0 | Y54: =IFERROR(IF(Invoerblad!$F$56="n.v.t.",(Milieuprofielen!Y54),(Milieuprofielen!Y54/Invoerblad!$F$56)),0) -> 0 | Z54: =IFERROR(IF(Invoerblad!$F$56="n.v.t.",(Milieuprofielen!Z54),(Milieuprofielen!Z54/Invoerblad!$F$56)),0) -> 0 | AA54: =IFERROR(IF(Invoerblad!$F$56="n.v.t.",(Milieuprofielen!AA54),(Milieuprofielen!AA54/Invoerblad!$F$56)),0) -> 0 | AE54: 112. Energy, primary, non-renewable, exc | AF54: MJ | AG54: =IFERROR(IF(Invoerblad!$G$56="n.v.t.",(Milieuprofielen!AG54),(Milieuprofielen!AG54/Invoerblad!$G$56)),0) -> 0 | AH54: =IFERROR(IF(Invoerblad!$G$56="n.v.t.",(Milieuprofielen!AH54),(Milieuprofielen!AH54/Invoerblad!$G$56)),0) -> 0 | AI54: =IFERROR(IF(Invoerblad!$G$56="n.v.t.",(Milieuprofielen!AI54),(Milieuprofielen!AI54/Invoerblad!$G$56)),0) -> 0 | AJ54: =IFERROR(IF(Invoerblad!$G$56="n.v.t.",(Milieuprofielen!AJ54),(Milieuprofielen!AJ54/Invoerblad!$G$56)),0) -> 0 | AN54: 112. Energy, primary, non-renewable, exc | AO54: MJ | AP54: =IFERROR(IF(Invoerblad!$H$56="n.v.t.",(Milieuprofielen!AP54),(Milieuprofielen!AP54/Invoerblad!$H$56)),0) -> 0 | AQ54: =IFERROR(IF(Invoerblad!$H$56="n.v.t.",(Milieuprofielen!AQ54),(Milieuprofielen!AQ54/Invoerblad!$H$56)),0) -> 0 | AR54: =IFERROR(IF(Invoerblad!$H$56="n.v.t.",(Milieuprofielen!AR54),(Milieuprofielen!AR54/Invoerblad!$H$56)),0) -> 0 | AS54: =IFERROR(IF(Invoerblad!$H$56="n.v.t.",(Milieuprofielen!AS54),(Milieuprofielen!AS54/Invoerblad!$H$56)),0) -> 0
D55: 114. Energy, primary, non-renewable, mat | E55: MJ | F55: =IFERROR(IF(Invoerblad!$D$56="n.v.t.",(Milieuprofielen!F55),(Milieuprofielen!F55/Invoerblad!$D$56)),0) -> 0 | G55: =IFERROR(IF(Invoerblad!$D$56="n.v.t.",(Milieuprofielen!G55),(Milieuprofielen!G55/Invoerblad!$D$56)),0) -> 0 | H55: =IFERROR(IF(Invoerblad!$D$56="n.v.t.",(Milieuprofielen!H55),(Milieuprofielen!H55/Invoerblad!$D$56)),0) -> 0 | I55: =IFERROR(IF(Invoerblad!$D$56="n.v.t.",(Milieuprofielen!I55),(Milieuprofielen!I55/Invoerblad!$D$56)),0) -> 0 | M55: 114. Energy, primary, non-renewable, mat | N55: MJ | O55: =IFERROR(IF(Invoerblad!$E$56="n.v.t.",(Milieuprofielen!O55),(Milieuprofielen!O55/Invoerblad!$E$56)),0) -> 0 | P55: =IFERROR(IF(Invoerblad!$E$56="n.v.t.",(Milieuprofielen!P55),(Milieuprofielen!P55/Invoerblad!$E$56)),0) -> 0 | Q55: =IFERROR(IF(Invoerblad!$E$56="n.v.t.",(Milieuprofielen!Q55),(Milieuprofielen!Q55/Invoerblad!$E$56)),0) -> 0 | R55: =IFERROR(IF(Invoerblad!$E$56="n.v.t.",(Milieuprofielen!R55),(Milieuprofielen!R55/Invoerblad!$E$56)),0) -> 0 | V55: 114. Energy, primary, non-renewable, mat | W55: MJ | X55: =IFERROR(IF(Invoerblad!$F$56="n.v.t.",(Milieuprofielen!X55),(Milieuprofielen!X55/Invoerblad!$F$56)),0) -> 0 | Y55: =IFERROR(IF(Invoerblad!$F$56="n.v.t.",(Milieuprofielen!Y55),(Milieuprofielen!Y55/Invoerblad!$F$56)),0) -> 0 | Z55: =IFERROR(IF(Invoerblad!$F$56="n.v.t.",(Milieuprofielen!Z55),(Milieuprofielen!Z55/Invoerblad!$F$56)),0) -> 0 | AA55: =IFERROR(IF(Invoerblad!$F$56="n.v.t.",(Milieuprofielen!AA55),(Milieuprofielen!AA55/Invoerblad!$F$56)),0) -> 0 | AE55: 114. Energy, primary, non-renewable, mat | AF55: MJ | AG55: =IFERROR(IF(Invoerblad!$G$56="n.v.t.",(Milieuprofielen!AG55),(Milieuprofielen!AG55/Invoerblad!$G$56)),0) -> 0 | AH55: =IFERROR(IF(Invoerblad!$G$56="n.v.t.",(Milieuprofielen!AH55),(Milieuprofielen!AH55/Invoerblad!$G$56)),0) -> 0 | AI55: =IFERROR(IF(Invoerblad!$G$56="n.v.t.",(Milieuprofielen!AI55),(Milieuprofielen!AI55/Invoerblad!$G$56)),0) -> 0 | AJ55: =IFERROR(IF(Invoerblad!$G$56="n.v.t.",(Milieuprofielen!AJ55),(Milieuprofielen!AJ55/Invoerblad!$G$56)),0) -> 0 | AN55: 114. Energy, primary, non-renewable, mat | AO55: MJ | AP55: =IFERROR(IF(Invoerblad!$H$56="n.v.t.",(Milieuprofielen!AP55),(Milieuprofielen!AP55/Invoerblad!$H$56)),0) -> 0 | AQ55: =IFERROR(IF(Invoerblad!$H$56="n.v.t.",(Milieuprofielen!AQ55),(Milieuprofielen!AQ55/Invoerblad!$H$56)),0) -> 0 | AR55: =IFERROR(IF(Invoerblad!$H$56="n.v.t.",(Milieuprofielen!AR55),(Milieuprofielen!AR55/Invoerblad!$H$56)),0) -> 0 | AS55: =IFERROR(IF(Invoerblad!$H$56="n.v.t.",(Milieuprofielen!AS55),(Milieuprofielen!AS55/Invoerblad!$H$56)),0) -> 0
D56: 102. Energy, primary, non-renewable (MJ) | E56: MJ | F56: =IFERROR(IF(Invoerblad!$D$56="n.v.t.",(Milieuprofielen!F56),(Milieuprofielen!F56/Invoerblad!$D$56)),0) -> 45.42684551 | G56: =IFERROR(IF(Invoerblad!$D$56="n.v.t.",(Milieuprofielen!G56),(Milieuprofielen!G56/Invoerblad!$D$56)),0) -> 0.2562356613 | H56: =IFERROR(IF(Invoerblad!$D$56="n.v.t.",(Milieuprofielen!H56),(Milieuprofielen!H56/Invoerblad!$D$56)),0) -> 0.6664607344 | I56: =IFERROR(IF(Invoerblad!$D$56="n.v.t.",(Milieuprofielen!I56),(Milieuprofielen!I56/Invoerblad!$D$56)),0) -> 46.34954191 | M56: 102. Energy, primary, non-renewable (MJ) | N56: MJ | O56: =IFERROR(IF(Invoerblad!$E$56="n.v.t.",(Milieuprofielen!O56),(Milieuprofielen!O56/Invoerblad!$E$56)),0) -> 0 | P56: =IFERROR(IF(Invoerblad!$E$56="n.v.t.",(Milieuprofielen!P56),(Milieuprofielen!P56/Invoerblad!$E$56)),0) -> 0 | Q56: =IFERROR(IF(Invoerblad!$E$56="n.v.t.",(Milieuprofielen!Q56),(Milieuprofielen!Q56/Invoerblad!$E$56)),0) -> 0 | R56: =IFERROR(IF(Invoerblad!$E$56="n.v.t.",(Milieuprofielen!R56),(Milieuprofielen!R56/Invoerblad!$E$56)),0) -> 0 | V56: 102. Energy, primary, non-renewable (MJ) | W56: MJ | X56: =IFERROR(IF(Invoerblad!$F$56="n.v.t.",(Milieuprofielen!X56),(Milieuprofielen!X56/Invoerblad!$F$56)),0) -> 0 | Y56: =IFERROR(IF(Invoerblad!$F$56="n.v.t.",(Milieuprofielen!Y56),(Milieuprofielen!Y56/Invoerblad!$F$56)),0) -> 0 | Z56: =IFERROR(IF(Invoerblad!$F$56="n.v.t.",(Milieuprofielen!Z56),(Milieuprofielen!Z56/Invoerblad!$F$56)),0) -> 0 | AA56: =IFERROR(IF(Invoerblad!$F$56="n.v.t.",(Milieuprofielen!AA56),(Milieuprofielen!AA56/Invoerblad!$F$56)),0) -> 0 | AE56: 102. Energy, primary, non-renewable (MJ) | AF56: MJ | AG56: =IFERROR(IF(Invoerblad!$G$56="n.v.t.",(Milieuprofielen!AG56),(Milieuprofielen!AG56/Invoerblad!$G$56)),0) -> 0 | AH56: =IFERROR(IF(Invoerblad!$G$56="n.v.t.",(Milieuprofielen!AH56),(Milieuprofielen!AH56/Invoerblad!$G$56)),0) -> 0 | AI56: =IFERROR(IF(Invoerblad!$G$56="n.v.t.",(Milieuprofielen!AI56),(Milieuprofielen!AI56/Invoerblad!$G$56)),0) -> 0 | AJ56: =IFERROR(IF(Invoerblad!$G$56="n.v.t.",(Milieuprofielen!AJ56),(Milieuprofielen!AJ56/Invoerblad!$G$56)),0) -> 0 | AN56: 102. Energy, primary, non-renewable (MJ) | AO56: MJ | AP56: =IFERROR(IF(Invoerblad!$H$56="n.v.t.",(Milieuprofielen!AP56),(Milieuprofielen!AP56/Invoerblad!$H$56)),0) -> 0 | AQ56: =IFERROR(IF(Invoerblad!$H$56="n.v.t.",(Milieuprofielen!AQ56),(Milieuprofielen!AQ56/Invoerblad!$H$56)),0) -> 0 | AR56: =IFERROR(IF(Invoerblad!$H$56="n.v.t.",(Milieuprofielen!AR56),(Milieuprofielen!AR56/Invoerblad!$H$56)),0) -> 0 | AS56: =IFERROR(IF(Invoerblad!$H$56="n.v.t.",(Milieuprofielen!AS56),(Milieuprofielen!AS56/Invoerblad!$H$56)),0) -> 0
D57: 108. Secondary material (kg) | E57: kg | F57: =IFERROR(IF(Invoerblad!$D$56="n.v.t.",(Milieuprofielen!F57),(Milieuprofielen!F57/Invoerblad!$D$56)),0) -> 0 | G57: =IFERROR(IF(Invoerblad!$D$56="n.v.t.",(Milieuprofielen!G57),(Milieuprofielen!G57/Invoerblad!$D$56)),0) -> 0 | H57: =IFERROR(IF(Invoerblad!$D$56="n.v.t.",(Milieuprofielen!H57),(Milieuprofielen!H57/Invoerblad!$D$56)),0) -> 0 | I57: =IFERROR(IF(Invoerblad!$D$56="n.v.t.",(Milieuprofielen!I57),(Milieuprofielen!I57/Invoerblad!$D$56)),0) -> 0 | M57: 108. Secondary material (kg) | N57: kg | O57: =IFERROR(IF(Invoerblad!$E$56="n.v.t.",(Milieuprofielen!O57),(Milieuprofielen!O57/Invoerblad!$E$56)),0) -> 0 | P57: =IFERROR(IF(Invoerblad!$E$56="n.v.t.",(Milieuprofielen!P57),(Milieuprofielen!P57/Invoerblad!$E$56)),0) -> 0 | Q57: =IFERROR(IF(Invoerblad!$E$56="n.v.t.",(Milieuprofielen!Q57),(Milieuprofielen!Q57/Invoerblad!$E$56)),0) -> 0 | R57: =IFERROR(IF(Invoerblad!$E$56="n.v.t.",(Milieuprofielen!R57),(Milieuprofielen!R57/Invoerblad!$E$56)),0) -> 0 | V57: 108. Secondary material (kg) | W57: kg | X57: =IFERROR(IF(Invoerblad!$F$56="n.v.t.",(Milieuprofielen!X57),(Milieuprofielen!X57/Invoerblad!$F$56)),0) -> 0 | Y57: =IFERROR(IF(Invoerblad!$F$56="n.v.t.",(Milieuprofielen!Y57),(Milieuprofielen!Y57/Invoerblad!$F$56)),0) -> 0 | Z57: =IFERROR(IF(Invoerblad!$F$56="n.v.t.",(Milieuprofielen!Z57),(Milieuprofielen!Z57/Invoerblad!$F$56)),0) -> 0 | AA57: =IFERROR(IF(Invoerblad!$F$56="n.v.t.",(Milieuprofielen!AA57),(Milieuprofielen!AA57/Invoerblad!$F$56)),0) -> 0 | AE57: 108. Secondary material (kg) | AF57: kg | AG57: =IFERROR(IF(Invoerblad!$G$56="n.v.t.",(Milieuprofielen!AG57),(Milieuprofielen!AG57/Invoerblad!$G$56)),0) -> 0 | AH57: =IFERROR(IF(Invoerblad!$G$56="n.v.t.",(Milieuprofielen!AH57),(Milieuprofielen!AH57/Invoerblad!$G$56)),0) -> 0 | AI57: =IFERROR(IF(Invoerblad!$G$56="n.v.t.",(Milieuprofielen!AI57),(Milieuprofielen!AI57/Invoerblad!$G$56)),0) -> 0 | AJ57: =IFERROR(IF(Invoerblad!$G$56="n.v.t.",(Milieuprofielen!AJ57),(Milieuprofielen!AJ57/Invoerblad!$G$56)),0) -> 0 | AN57: 108. Secondary material (kg) | AO57: kg | AP57: =IFERROR(IF(Invoerblad!$H$56="n.v.t.",(Milieuprofielen!AP57),(Milieuprofielen!AP57/Invoerblad!$H$56)),0) -> 0 | AQ57: =IFERROR(IF(Invoerblad!$H$56="n.v.t.",(Milieuprofielen!AQ57),(Milieuprofielen!AQ57/Invoerblad!$H$56)),0) -> 0 | AR57: =IFERROR(IF(Invoerblad!$H$56="n.v.t.",(Milieuprofielen!AR57),(Milieuprofielen!AR57/Invoerblad!$H$56)),0) -> 0 | AS57: =IFERROR(IF(Invoerblad!$H$56="n.v.t.",(Milieuprofielen!AS57),(Milieuprofielen!AS57/Invoerblad!$H$56)),0) -> 0
D58: 109. Secondary fuel, renewable (kg) | E58: MJ | F58: =IFERROR(IF(Invoerblad!$D$56="n.v.t.",(Milieuprofielen!F58),(Milieuprofielen!F58/Invoerblad!$D$56)),0) -> 0 | G58: =IFERROR(IF(Invoerblad!$D$56="n.v.t.",(Milieuprofielen!G58),(Milieuprofielen!G58/Invoerblad!$D$56)),0) -> 0 | H58: =IFERROR(IF(Invoerblad!$D$56="n.v.t.",(Milieuprofielen!H58),(Milieuprofielen!H58/Invoerblad!$D$56)),0) -> 0 | I58: =IFERROR(IF(Invoerblad!$D$56="n.v.t.",(Milieuprofielen!I58),(Milieuprofielen!I58/Invoerblad!$D$56)),0) -> 0 | M58: 109. Secondary fuel, renewable (kg) | N58: MJ | O58: =IFERROR(IF(Invoerblad!$E$56="n.v.t.",(Milieuprofielen!O58),(Milieuprofielen!O58/Invoerblad!$E$56)),0) -> 0 | P58: =IFERROR(IF(Invoerblad!$E$56="n.v.t.",(Milieuprofielen!P58),(Milieuprofielen!P58/Invoerblad!$E$56)),0) -> 0 | Q58: =IFERROR(IF(Invoerblad!$E$56="n.v.t.",(Milieuprofielen!Q58),(Milieuprofielen!Q58/Invoerblad!$E$56)),0) -> 0 | R58: =IFERROR(IF(Invoerblad!$E$56="n.v.t.",(Milieuprofielen!R58),(Milieuprofielen!R58/Invoerblad!$E$56)),0) -> 0 | V58: 109. Secondary fuel, renewable (kg) | W58: MJ | X58: =IFERROR(IF(Invoerblad!$F$56="n.v.t.",(Milieuprofielen!X58),(Milieuprofielen!X58/Invoerblad!$F$56)),0) -> 0 | Y58: =IFERROR(IF(Invoerblad!$F$56="n.v.t.",(Milieuprofielen!Y58),(Milieuprofielen!Y58/Invoerblad!$F$56)),0) -> 0 | Z58: =IFERROR(IF(Invoerblad!$F$56="n.v.t.",(Milieuprofielen!Z58),(Milieuprofielen!Z58/Invoerblad!$F$56)),0) -> 0 | AA58: =IFERROR(IF(Invoerblad!$F$56="n.v.t.",(Milieuprofielen!AA58),(Milieuprofielen!AA58/Invoerblad!$F$56)),0) -> 0 | AE58: 109. Secondary fuel, renewable (kg) | AF58: MJ | AG58: =IFERROR(IF(Invoerblad!$G$56="n.v.t.",(Milieuprofielen!AG58),(Milieuprofielen!AG58/Invoerblad!$G$56)),0) -> 0 | AH58: =IFERROR(IF(Invoerblad!$G$56="n.v.t.",(Milieuprofielen!AH58),(Milieuprofielen!AH58/Invoerblad!$G$56)),0) -> 0 | AI58: =IFERROR(IF(Invoerblad!$G$56="n.v.t.",(Milieuprofielen!AI58),(Milieuprofielen!AI58/Invoerblad!$G$56)),0) -> 0 | AJ58: =IFERROR(IF(Invoerblad!$G$56="n.v.t.",(Milieuprofielen!AJ58),(Milieuprofielen!AJ58/Invoerblad!$G$56)),0) -> 0 | AN58: 109. Secondary fuel, renewable (kg) | AO58: MJ | AP58: =IFERROR(IF(Invoerblad!$H$56="n.v.t.",(Milieuprofielen!AP58),(Milieuprofielen!AP58/Invoerblad!$H$56)),0) -> 0 | AQ58: =IFERROR(IF(Invoerblad!$H$56="n.v.t.",(Milieuprofielen!AQ58),(Milieuprofielen!AQ58/Invoerblad!$H$56)),0) -> 0 | AR58: =IFERROR(IF(Invoerblad!$H$56="n.v.t.",(Milieuprofielen!AR58),(Milieuprofielen!AR58/Invoerblad!$H$56)),0) -> 0 | AS58: =IFERROR(IF(Invoerblad!$H$56="n.v.t.",(Milieuprofielen!AS58),(Milieuprofielen!AS58/Invoerblad!$H$56)),0) -> 0
D59: 110. Secondary fuel, non-renewable (kg) | E59: MJ | F59: =IFERROR(IF(Invoerblad!$D$56="n.v.t.",(Milieuprofielen!F59),(Milieuprofielen!F59/Invoerblad!$D$56)),0) -> 0 | G59: =IFERROR(IF(Invoerblad!$D$56="n.v.t.",(Milieuprofielen!G59),(Milieuprofielen!G59/Invoerblad!$D$56)),0) -> 0 | H59: =IFERROR(IF(Invoerblad!$D$56="n.v.t.",(Milieuprofielen!H59),(Milieuprofielen!H59/Invoerblad!$D$56)),0) -> 0 | I59: =IFERROR(IF(Invoerblad!$D$56="n.v.t.",(Milieuprofielen!I59),(Milieuprofielen!I59/Invoerblad!$D$56)),0) -> 0 | M59: 110. Secondary fuel, non-renewable (kg) | N59: MJ | O59: =IFERROR(IF(Invoerblad!$E$56="n.v.t.",(Milieuprofielen!O59),(Milieuprofielen!O59/Invoerblad!$E$56)),0) -> 0 | P59: =IFERROR(IF(Invoerblad!$E$56="n.v.t.",(Milieuprofielen!P59),(Milieuprofielen!P59/Invoerblad!$E$56)),0) -> 0 | Q59: =IFERROR(IF(Invoerblad!$E$56="n.v.t.",(Milieuprofielen!Q59),(Milieuprofielen!Q59/Invoerblad!$E$56)),0) -> 0 | R59: =IFERROR(IF(Invoerblad!$E$56="n.v.t.",(Milieuprofielen!R59),(Milieuprofielen!R59/Invoerblad!$E$56)),0) -> 0 | V59: 110. Secondary fuel, non-renewable (kg) | W59: MJ | X59: =IFERROR(IF(Invoerblad!$F$56="n.v.t.",(Milieuprofielen!X59),(Milieuprofielen!X59/Invoerblad!$F$56)),0) -> 0 | Y59: =IFERROR(IF(Invoerblad!$F$56="n.v.t.",(Milieuprofielen!Y59),(Milieuprofielen!Y59/Invoerblad!$F$56)),0) -> 0 | Z59: =IFERROR(IF(Invoerblad!$F$56="n.v.t.",(Milieuprofielen!Z59),(Milieuprofielen!Z59/Invoerblad!$F$56)),0) -> 0 | AA59: =IFERROR(IF(Invoerblad!$F$56="n.v.t.",(Milieuprofielen!AA59),(Milieuprofielen!AA59/Invoerblad!$F$56)),0) -> 0 | AE59: 110. Secondary fuel, non-renewable (kg) | AF59: MJ | AG59: =IFERROR(IF(Invoerblad!$G$56="n.v.t.",(Milieuprofielen!AG59),(Milieuprofielen!AG59/Invoerblad!$G$56)),0) -> 0 | AH59: =IFERROR(IF(Invoerblad!$G$56="n.v.t.",(Milieuprofielen!AH59),(Milieuprofielen!AH59/Invoerblad!$G$56)),0) -> 0 | AI59: =IFERROR(IF(Invoerblad!$G$56="n.v.t.",(Milieuprofielen!AI59),(Milieuprofielen!AI59/Invoerblad!$G$56)),0) -> 0 | AJ59: =IFERROR(IF(Invoerblad!$G$56="n.v.t.",(Milieuprofielen!AJ59),(Milieuprofielen!AJ59/Invoerblad!$G$56)),0) -> 0 | AN59: 110. Secondary fuel, non-renewable (kg) | AO59: MJ | AP59: =IFERROR(IF(Invoerblad!$H$56="n.v.t.",(Milieuprofielen!AP59),(Milieuprofielen!AP59/Invoerblad!$H$56)),0) -> 0 | AQ59: =IFERROR(IF(Invoerblad!$H$56="n.v.t.",(Milieuprofielen!AQ59),(Milieuprofielen!AQ59/Invoerblad!$H$56)),0) -> 0 | AR59: =IFERROR(IF(Invoerblad!$H$56="n.v.t.",(Milieuprofielen!AR59),(Milieuprofielen!AR59/Invoerblad!$H$56)),0) -> 0 | AS59: =IFERROR(IF(Invoerblad!$H$56="n.v.t.",(Milieuprofielen!AS59),(Milieuprofielen!AS59/Invoerblad!$H$56)),0) -> 0
D60: 104. Water, fresh water use (m3) | E60: m3 | F60: =IFERROR(IF(Invoerblad!$D$56="n.v.t.",(Milieuprofielen!F60),(Milieuprofielen!F60/Invoerblad!$D$56)),0) -> 0.003450155496 | G60: =IFERROR(IF(Invoerblad!$D$56="n.v.t.",(Milieuprofielen!G60),(Milieuprofielen!G60/Invoerblad!$D$56)),0) -> 1.180836422e-05 | H60: =IFERROR(IF(Invoerblad!$D$56="n.v.t.",(Milieuprofielen!H60),(Milieuprofielen!H60/Invoerblad!$D$56)),0) -> 0.0005901366163 | I60: =IFERROR(IF(Invoerblad!$D$56="n.v.t.",(Milieuprofielen!I60),(Milieuprofielen!I60/Invoerblad!$D$56)),0) -> 0.004052100477 | M60: 104. Water, fresh water use (m3) | N60: m3 | O60: =IFERROR(IF(Invoerblad!$E$56="n.v.t.",(Milieuprofielen!O60),(Milieuprofielen!O60/Invoerblad!$E$56)),0) -> 0 | P60: =IFERROR(IF(Invoerblad!$E$56="n.v.t.",(Milieuprofielen!P60),(Milieuprofielen!P60/Invoerblad!$E$56)),0) -> 0 | Q60: =IFERROR(IF(Invoerblad!$E$56="n.v.t.",(Milieuprofielen!Q60),(Milieuprofielen!Q60/Invoerblad!$E$56)),0) -> 0 | R60: =IFERROR(IF(Invoerblad!$E$56="n.v.t.",(Milieuprofielen!R60),(Milieuprofielen!R60/Invoerblad!$E$56)),0) -> 0 | V60: 104. Water, fresh water use (m3) | W60: m3 | X60: =IFERROR(IF(Invoerblad!$F$56="n.v.t.",(Milieuprofielen!X60),(Milieuprofielen!X60/Invoerblad!$F$56)),0) -> 0 | Y60: =IFERROR(IF(Invoerblad!$F$56="n.v.t.",(Milieuprofielen!Y60),(Milieuprofielen!Y60/Invoerblad!$F$56)),0) -> 0 | Z60: =IFERROR(IF(Invoerblad!$F$56="n.v.t.",(Milieuprofielen!Z60),(Milieuprofielen!Z60/Invoerblad!$F$56)),0) -> 0 | AA60: =IFERROR(IF(Invoerblad!$F$56="n.v.t.",(Milieuprofielen!AA60),(Milieuprofielen!AA60/Invoerblad!$F$56)),0) -> 0 | AE60: 104. Water, fresh water use (m3) | AF60: m3 | AG60: =IFERROR(IF(Invoerblad!$G$56="n.v.t.",(Milieuprofielen!AG60),(Milieuprofielen!AG60/Invoerblad!$G$56)),0) -> 0 | AH60: =IFERROR(IF(Invoerblad!$G$56="n.v.t.",(Milieuprofielen!AH60),(Milieuprofielen!AH60/Invoerblad!$G$56)),0) -> 0 | AI60: =IFERROR(IF(Invoerblad!$G$56="n.v.t.",(Milieuprofielen!AI60),(Milieuprofielen!AI60/Invoerblad!$G$56)),0) -> 0 | AJ60: =IFERROR(IF(Invoerblad!$G$56="n.v.t.",(Milieuprofielen!AJ60),(Milieuprofielen!AJ60/Invoerblad!$G$56)),0) -> 0 | AN60: 104. Water, fresh water use (m3) | AO60: m3 | AP60: =IFERROR(IF(Invoerblad!$H$56="n.v.t.",(Milieuprofielen!AP60),(Milieuprofielen!AP60/Invoerblad!$H$56)),0) -> 0 | AQ60: =IFERROR(IF(Invoerblad!$H$56="n.v.t.",(Milieuprofielen!AQ60),(Milieuprofielen!AQ60/Invoerblad!$H$56)),0) -> 0 | AR60: =IFERROR(IF(Invoerblad!$H$56="n.v.t.",(Milieuprofielen!AR60),(Milieuprofielen!AR60/Invoerblad!$H$56)),0) -> 0 | AS60: =IFERROR(IF(Invoerblad!$H$56="n.v.t.",(Milieuprofielen!AS60),(Milieuprofielen!AS60/Invoerblad!$H$56)),0) -> 0
D61: 106. Waste, hazardous (kg) | E61: kg | F61: =IFERROR(IF(Invoerblad!$D$56="n.v.t.",(Milieuprofielen!F61),(Milieuprofielen!F61/Invoerblad!$D$56)),0) -> 0.0002555044429 | G61: =IFERROR(IF(Invoerblad!$D$56="n.v.t.",(Milieuprofielen!G61),(Milieuprofielen!G61/Invoerblad!$D$56)),0) -> 1.490114282e-06 | H61: =IFERROR(IF(Invoerblad!$D$56="n.v.t.",(Milieuprofielen!H61),(Milieuprofielen!H61/Invoerblad!$D$56)),0) -> 3.771094449e-06 | I61: =IFERROR(IF(Invoerblad!$D$56="n.v.t.",(Milieuprofielen!I61),(Milieuprofielen!I61/Invoerblad!$D$56)),0) -> 0.0002607656517 | M61: 106. Waste, hazardous (kg) | N61: kg | O61: =IFERROR(IF(Invoerblad!$E$56="n.v.t.",(Milieuprofielen!O61),(Milieuprofielen!O61/Invoerblad!$E$56)),0) -> 0 | P61: =IFERROR(IF(Invoerblad!$E$56="n.v.t.",(Milieuprofielen!P61),(Milieuprofielen!P61/Invoerblad!$E$56)),0) -> 0 | Q61: =IFERROR(IF(Invoerblad!$E$56="n.v.t.",(Milieuprofielen!Q61),(Milieuprofielen!Q61/Invoerblad!$E$56)),0) -> 0 | R61: =IFERROR(IF(Invoerblad!$E$56="n.v.t.",(Milieuprofielen!R61),(Milieuprofielen!R61/Invoerblad!$E$56)),0) -> 0 | V61: 106. Waste, hazardous (kg) | W61: kg | X61: =IFERROR(IF(Invoerblad!$F$56="n.v.t.",(Milieuprofielen!X61),(Milieuprofielen!X61/Invoerblad!$F$56)),0) -> 0 | Y61: =IFERROR(IF(Invoerblad!$F$56="n.v.t.",(Milieuprofielen!Y61),(Milieuprofielen!Y61/Invoerblad!$F$56)),0) -> 0 | Z61: =IFERROR(IF(Invoerblad!$F$56="n.v.t.",(Milieuprofielen!Z61),(Milieuprofielen!Z61/Invoerblad!$F$56)),0) -> 0 | AA61: =IFERROR(IF(Invoerblad!$F$56="n.v.t.",(Milieuprofielen!AA61),(Milieuprofielen!AA61/Invoerblad!$F$56)),0) -> 0 | AE61: 106. Waste, hazardous (kg) | AF61: kg | AG61: =IFERROR(IF(Invoerblad!$G$56="n.v.t.",(Milieuprofielen!AG61),(Milieuprofielen!AG61/Invoerblad!$G$56)),0) -> 0 | AH61: =IFERROR(IF(Invoerblad!$G$56="n.v.t.",(Milieuprofielen!AH61),(Milieuprofielen!AH61/Invoerblad!$G$56)),0) -> 0 | AI61: =IFERROR(IF(Invoerblad!$G$56="n.v.t.",(Milieuprofielen!AI61),(Milieuprofielen!AI61/Invoerblad!$G$56)),0) -> 0 | AJ61: =IFERROR(IF(Invoerblad!$G$56="n.v.t.",(Milieuprofielen!AJ61),(Milieuprofielen!AJ61/Invoerblad!$G$56)),0) -> 0 | AN61: 106. Waste, hazardous (kg) | AO61: kg | AP61: =IFERROR(IF(Invoerblad!$H$56="n.v.t.",(Milieuprofielen!AP61),(Milieuprofielen!AP61/Invoerblad!$H$56)),0) -> 0 | AQ61: =IFERROR(IF(Invoerblad!$H$56="n.v.t.",(Milieuprofielen!AQ61),(Milieuprofielen!AQ61/Invoerblad!$H$56)),0) -> 0 | AR61: =IFERROR(IF(Invoerblad!$H$56="n.v.t.",(Milieuprofielen!AR61),(Milieuprofielen!AR61/Invoerblad!$H$56)),0) -> 0 | AS61: =IFERROR(IF(Invoerblad!$H$56="n.v.t.",(Milieuprofielen!AS61),(Milieuprofielen!AS61/Invoerblad!$H$56)),0) -> 0
D62: 105. Waste, non hazardous (kg) | E62: kg | F62: =IFERROR(IF(Invoerblad!$D$56="n.v.t.",(Milieuprofielen!F62),(Milieuprofielen!F62/Invoerblad!$D$56)),0) -> 0.01605532126 | G62: =IFERROR(IF(Invoerblad!$D$56="n.v.t.",(Milieuprofielen!G62),(Milieuprofielen!G62/Invoerblad!$D$56)),0) -> 0.01949972959 | H62: =IFERROR(IF(Invoerblad!$D$56="n.v.t.",(Milieuprofielen!H62),(Milieuprofielen!H62/Invoerblad!$D$56)),0) -> 0.02332289852 | I62: =IFERROR(IF(Invoerblad!$D$56="n.v.t.",(Milieuprofielen!I62),(Milieuprofielen!I62/Invoerblad!$D$56)),0) -> 0.05887794938 | M62: 105. Waste, non hazardous (kg) | N62: kg | O62: =IFERROR(IF(Invoerblad!$E$56="n.v.t.",(Milieuprofielen!O62),(Milieuprofielen!O62/Invoerblad!$E$56)),0) -> 0 | P62: =IFERROR(IF(Invoerblad!$E$56="n.v.t.",(Milieuprofielen!P62),(Milieuprofielen!P62/Invoerblad!$E$56)),0) -> 0 | Q62: =IFERROR(IF(Invoerblad!$E$56="n.v.t.",(Milieuprofielen!Q62),(Milieuprofielen!Q62/Invoerblad!$E$56)),0) -> 0 | R62: =IFERROR(IF(Invoerblad!$E$56="n.v.t.",(Milieuprofielen!R62),(Milieuprofielen!R62/Invoerblad!$E$56)),0) -> 0 | V62: 105. Waste, non hazardous (kg) | W62: kg | X62: =IFERROR(IF(Invoerblad!$F$56="n.v.t.",(Milieuprofielen!X62),(Milieuprofielen!X62/Invoerblad!$F$56)),0) -> 0 | Y62: =IFERROR(IF(Invoerblad!$F$56="n.v.t.",(Milieuprofielen!Y62),(Milieuprofielen!Y62/Invoerblad!$F$56)),0) -> 0 | Z62: =IFERROR(IF(Invoerblad!$F$56="n.v.t.",(Milieuprofielen!Z62),(Milieuprofielen!Z62/Invoerblad!$F$56)),0) -> 0 | AA62: =IFERROR(IF(Invoerblad!$F$56="n.v.t.",(Milieuprofielen!AA62),(Milieuprofielen!AA62/Invoerblad!$F$56)),0) -> 0 | AE62: 105. Waste, non hazardous (kg) | AF62: kg | AG62: =IFERROR(IF(Invoerblad!$G$56="n.v.t.",(Milieuprofielen!AG62),(Milieuprofielen!AG62/Invoerblad!$G$56)),0) -> 0 | AH62: =IFERROR(IF(Invoerblad!$G$56="n.v.t.",(Milieuprofielen!AH62),(Milieuprofielen!AH62/Invoerblad!$G$56)),0) -> 0 | AI62: =IFERROR(IF(Invoerblad!$G$56="n.v.t.",(Milieuprofielen!AI62),(Milieuprofielen!AI62/Invoerblad!$G$56)),0) -> 0 | AJ62: =IFERROR(IF(Invoerblad!$G$56="n.v.t.",(Milieuprofielen!AJ62),(Milieuprofielen!AJ62/Invoerblad!$G$56)),0) -> 0 | AN62: 105. Waste, non hazardous (kg) | AO62: kg | AP62: =IFERROR(IF(Invoerblad!$H$56="n.v.t.",(Milieuprofielen!AP62),(Milieuprofielen!AP62/Invoerblad!$H$56)),0) -> 0 | AQ62: =IFERROR(IF(Invoerblad!$H$56="n.v.t.",(Milieuprofielen!AQ62),(Milieuprofielen!AQ62/Invoerblad!$H$56)),0) -> 0 | AR62: =IFERROR(IF(Invoerblad!$H$56="n.v.t.",(Milieuprofielen!AR62),(Milieuprofielen!AR62/Invoerblad!$H$56)),0) -> 0 | AS62: =IFERROR(IF(Invoerblad!$H$56="n.v.t.",(Milieuprofielen!AS62),(Milieuprofielen!AS62/Invoerblad!$H$56)),0) -> 0
D63: 107. Waste, radioactive (kg) | E63: kg | F63: =IFERROR(IF(Invoerblad!$D$56="n.v.t.",(Milieuprofielen!F63),(Milieuprofielen!F63/Invoerblad!$D$56)),0) -> 5.165470308e-06 | G63: =IFERROR(IF(Invoerblad!$D$56="n.v.t.",(Milieuprofielen!G63),(Milieuprofielen!G63/Invoerblad!$D$56)),0) -> 3.812121854e-07 | H63: =IFERROR(IF(Invoerblad!$D$56="n.v.t.",(Milieuprofielen!H63),(Milieuprofielen!H63/Invoerblad!$D$56)),0) -> 7.368635941e-07 | I63: =IFERROR(IF(Invoerblad!$D$56="n.v.t.",(Milieuprofielen!I63),(Milieuprofielen!I63/Invoerblad!$D$56)),0) -> 6.283546088e-06 | M63: 107. Waste, radioactive (kg) | N63: kg | O63: =IFERROR(IF(Invoerblad!$E$56="n.v.t.",(Milieuprofielen!O63),(Milieuprofielen!O63/Invoerblad!$E$56)),0) -> 0 | P63: =IFERROR(IF(Invoerblad!$E$56="n.v.t.",(Milieuprofielen!P63),(Milieuprofielen!P63/Invoerblad!$E$56)),0) -> 0 | Q63: =IFERROR(IF(Invoerblad!$E$56="n.v.t.",(Milieuprofielen!Q63),(Milieuprofielen!Q63/Invoerblad!$E$56)),0) -> 0 | R63: =IFERROR(IF(Invoerblad!$E$56="n.v.t.",(Milieuprofielen!R63),(Milieuprofielen!R63/Invoerblad!$E$56)),0) -> 0 | V63: 107. Waste, radioactive (kg) | W63: kg | X63: =IFERROR(IF(Invoerblad!$F$56="n.v.t.",(Milieuprofielen!X63),(Milieuprofielen!X63/Invoerblad!$F$56)),0) -> 0 | Y63: =IFERROR(IF(Invoerblad!$F$56="n.v.t.",(Milieuprofielen!Y63),(Milieuprofielen!Y63/Invoerblad!$F$56)),0) -> 0 | Z63: =IFERROR(IF(Invoerblad!$F$56="n.v.t.",(Milieuprofielen!Z63),(Milieuprofielen!Z63/Invoerblad!$F$56)),0) -> 0 | AA63: =IFERROR(IF(Invoerblad!$F$56="n.v.t.",(Milieuprofielen!AA63),(Milieuprofielen!AA63/Invoerblad!$F$56)),0) -> 0 | AE63: 107. Waste, radioactive (kg) | AF63: kg | AG63: =IFERROR(IF(Invoerblad!$G$56="n.v.t.",(Milieuprofielen!AG63),(Milieuprofielen!AG63/Invoerblad!$G$56)),0) -> 0 | AH63: =IFERROR(IF(Invoerblad!$G$56="n.v.t.",(Milieuprofielen!AH63),(Milieuprofielen!AH63/Invoerblad!$G$56)),0) -> 0 | AI63: =IFERROR(IF(Invoerblad!$G$56="n.v.t.",(Milieuprofielen!AI63),(Milieuprofielen!AI63/Invoerblad!$G$56)),0) -> 0 | AJ63: =IFERROR(IF(Invoerblad!$G$56="n.v.t.",(Milieuprofielen!AJ63),(Milieuprofielen!AJ63/Invoerblad!$G$56)),0) -> 0 | AN63: 107. Waste, radioactive (kg) | AO63: kg | AP63: =IFERROR(IF(Invoerblad!$H$56="n.v.t.",(Milieuprofielen!AP63),(Milieuprofielen!AP63/Invoerblad!$H$56)),0) -> 0 | AQ63: =IFERROR(IF(Invoerblad!$H$56="n.v.t.",(Milieuprofielen!AQ63),(Milieuprofielen!AQ63/Invoerblad!$H$56)),0) -> 0 | AR63: =IFERROR(IF(Invoerblad!$H$56="n.v.t.",(Milieuprofielen!AR63),(Milieuprofielen!AR63/Invoerblad!$H$56)),0) -> 0 | AS63: =IFERROR(IF(Invoerblad!$H$56="n.v.t.",(Milieuprofielen!AS63),(Milieuprofielen!AS63/Invoerblad!$H$56)),0) -> 0
